Workbook

Sheet Форма по МДС 81-35.2004
A1: < ГЭСНс * 2015_s * 13_15_лр > | C1: ПК РИК (вер.1.3.140604) | H1: Форма по МДС 81-35.2004
B3: Объект: | C3: Содержание дорог 2015-2017
A4: ЛОКАЛЬНАЯ СМЕТА № 13_15_лр
A5: (Локальный сметный расчет)
A6: Автомобильные дороги регионального или межмуниципального значения с допустимым уровнем содержания - норматив "К" 4 категория (ЛЕТНИЕ РАБОТЫ)
B7: Основание: | C7: Техническое задание и перечень видов и объёмов работ на содержание автодорог на год, на 1
E8: Сметная стоимость: | F8: =TEXT((H2265)/1000,"# ##0"&GetSeparator()&"000") -> 82,040 | H8: тыс. руб.
A9: Составлена в текущих ценах на 3-й квартал 2013 г. по НБ: "ГЭСНс-2001".
A11: № поз | B11: Шифр, номер норматива, код ресурса | C11: Наименование работ и затрат, характеристика оборудования, масса | D11: Единица измерения | E11: Количество | G11: Сметная стоимость в текущих ценах
D12: Кол-во механиза-торов | E12: на единицу измерения | F12: по проектным данным | G12: на единицу измерения | H12: общая
A13: 1 | B13: 2 | C13: 3 | D13: 4 | E13: 5 | F13: 6 | G13: 7 | H13: 8
B14: I. ЗЕМЛЯНОЕ ПОЛОТНО
B15: 1.Обочины
A16: 1. | B16: ГЭСНс 01-01-001-01 | C16: Разравнивание грунта на обочине автогрейдером толщиной слоя 10 см (в плотном теле) | D16: 1000 м2 | F16: 0.01 | G16: =ROUND(СУММПРОИЗВЕСЛИ(1,I16:I20,"s",E16:E20,G16:G20,0),2)+SUMIF(I16:I35,"=NenormMatOtZPR",G16:G35) -> 38196.11 | H16: =ROUND(СУММПРОИЗВЕСЛИ(F16,I16:I20,"s",E16:E20,G16:G20,0),0)+SUMIF(I16:I35,"=NenormMatOtZPR",H16:H35) -> 382 | I16: sum | M16: =ROUND(СУММПРОИЗВЕСЛИ(1,I16:I20,"s",E16:E20,M16:M20,0),2)+SUMIF(I16:I35,"=NenormMatOtZPR",M16:M35) -> 25.83 | N16: =ROUND(СУММПРОИЗВЕСЛИ(F16,I16:I20,"s",E16:E20,M16:M20,0),0)+SUMIF(I16:I35,"=NenormMatOtZPR",N16:N35) -> 0
A17: 1. 1. | B17: 2 | C17: Затраты труда машинистов | D17: чел.-ч | E17: =ОКРУГЛВСЕ(СУММПРОИЗВЕСЛИ(1,K16:K20,"mWithZTM",D16:D20,E16:E20,-1)+СУММКОЭФПРОЦЕНТЕСЛИ(1,1,K16:K20,"mWithZTM_Proch",E16:E20,-1),11) -> 0.21 | F17: =ОКРУГЛВСЕ(СУММПРОИЗВЕСЛИ(1,K16:K20,"mWithZTM",D16:D20,F16:F20,-1)+СУММКОЭФПРОЦЕНТЕСЛИ(1,1,K16:K20,"mWithZTM_Proch",F16:F20,-1),11) -> 0.0021 | G17: =IF(F17=0,0,ROUND(H17/F17,3)) -> 0 | H17: =ROUND(СУММЕСЛИДА1НЕ1(L16:L20,"mWithZPM",D16:D20,0,H16:H20),0) -> 0 | J17: Ж | M17: =IF(F17=0,0,ROUND(N17/F17,3)) -> 0 | N17: =ROUND(СУММЕСЛИДА1НЕ1(L16:L20,"mWithZPM",D16:D20,0,N16:N20),0) -> 0
A18: 1. 2. | B18: =ПОЛУЧШИФР(Ресурсы!A85,1) -> СЦЭСМ 120202 | C18: =Ресурсы!B85 -> Автогрейдеры среднего типа 99 кВт (135 л.с.) | D18: маш.-ч | E18: 0.21 | F18: =ОКРУГЛВСЕ(IF(E18="",0,E18)*IF(F16="",0,F16),11) -> 0.0021 | G18: =Ресурсы!D85 -> 958.4 | H18: =ROUND(IF(F18="",0,F18)*IF(G18="",0,G18),0) -> 2 | I18: s | J18: IsMash | M18: =Ресурсы!C85 -> 123 | N18: =ROUND(IF(F18="",0,F18)*IF(M18="",0,M18),0) -> 0
D19: =Ресурсы!G85 -> 1 | G19: =Ресурсы!F85 -> 166.8 | H19: =ROUND(IF(F18="",0,F18)*IF(G19="",0,G19),0) -> 0 | K19: mWithZTM | L19: mWithZPM | M19: =Ресурсы!E85 -> 13.5 | N19: =ROUND(IF(F18="",0,F18)*IF(M19="",0,M19),0) -> 0
A20: 1. 3. | B20: =ПОЛУЧШИФР(Ресурсы!A49,0) -> с407-0024 | C20: =Ресурсы!B49 -> Грунт песчаный, супесчаный | D20: м3 | E20: 115 | F20: =ОКРУГЛВСЕ(IF(E20="",0,E20)*IF(F16="",0,F16),11) -> 1.15 | G20: =ROUND(Ресурсы!D49*Начисления!AV6,2) -> 330.39 | H20: =ROUND(IF(F20="",0,F20)*IF(G20="",0,G20),0) -> 380 | I20: s | J20: IsMater | M20: =ROUND(Ресурсы!C49*Начисления!AV6,2) -> 0 | N20: =ROUND(IF(F20="",0,F20)*IF(M20="",0,M20),0) -> 0
C21: Зарплата рабочих
C22: Эксплуатация машин | H22: 2
C23: в т.ч. зарплата машинистов
C24: Материалы | H24: 380
C25: в т.ч. Вспомогательные материалы от стоимости материалов
C26: в т.ч. Вспомогательные ненормируемые материалы | I26: NenormMatOtZPR
C27: в т.ч. Ненормированная з.п. рабочих
C28: в т.ч. Ненормированная стоимость эксплуатации машин
C29: в т.ч. Ненормированная оплата механизаторов
C30: Накладные расходы | G30: 11.7 | H30: =IF('Текущие цены с учетом расхода'!N6>0,'Текущие цены с учетом расхода'!N6,IF('Текущие цены с учетом расхода'!N6<0,'Текущие цены с учетом расхода'!N6,"")) -> 45 | J30: Nakl | N30: =IF('Базовые цены с учетом расхода'!N6>0,'Базовые цены с учетом расхода'!N6,IF('Базовые цены с учетом расхода'!N6<0,'Базовые цены с учетом расхода'!N6,"")) -> 
C31: НР от ЗПР | H31: =IF('Текущие цены с учетом расхода'!P6>0,'Текущие цены с учетом расхода'!P6,IF('Текущие цены с учетом расхода'!P6<0,'Текущие цены с учетом расхода'!P6,"")) ->  | J31: Nakl_ZPR | N31: =IF('Базовые цены с учетом расхода'!P6>0,'Базовые цены с учетом расхода'!P6,IF('Базовые цены с учетом расхода'!P6<0,'Базовые цены с учетом расхода'!P6,"")) -> 
C32: НР от ЗПМ | H32: =IF('Текущие цены с учетом расхода'!Q6>0,'Текущие цены с учетом расхода'!Q6,IF('Текущие цены с учетом расхода'!Q6<0,'Текущие цены с учетом расхода'!Q6,"")) ->  | J32: Nakl_ZPM | N32: =IF('Базовые цены с учетом расхода'!Q6>0,'Базовые цены с учетом расхода'!Q6,IF('Базовые цены с учетом расхода'!Q6<0,'Базовые цены с учетом расхода'!Q6,"")) -> 
C33: Плановые накопления / Сметная прибыль | G33: 8 | H33: =IF('Текущие цены с учетом расхода'!O6>0,'Текущие цены с учетом расхода'!O6,IF('Текущие цены с учетом расхода'!O6<0,'Текущие цены с учетом расхода'!O6,"")) -> 34 | J33: Plan | N33: =IF('Базовые цены с учетом расхода'!O6>0,'Базовые цены с учетом расхода'!O6,IF('Базовые цены с учетом расхода'!O6<0,'Базовые цены с учетом расхода'!O6,"")) -> 
C34: СП от ЗПР | H34: =IF('Текущие цены с учетом расхода'!R6>0,'Текущие цены с учетом расхода'!R6,IF('Текущие цены с учетом расхода'!R6<0,'Текущие цены с учетом расхода'!R6,"")) ->  | J34: Plan_ZPR | N34: =IF('Базовые цены с учетом расхода'!R6>0,'Базовые цены с учетом расхода'!R6,IF('Базовые цены с учетом расхода'!R6<0,'Базовые цены с учетом расхода'!R6,"")) -> 
C35: СП от ЗПМ | H35: =IF('Текущие цены с учетом расхода'!S6>0,'Текущие цены с учетом расхода'!S6,IF('Текущие цены с учетом расхода'!S6<0,'Текущие цены с учетом расхода'!S6,"")) ->  | J35: Plan_ZPM | N35: =IF('Базовые цены с учетом расхода'!S6>0,'Базовые цены с учетом расхода'!S6,IF('Базовые цены с учетом расхода'!S6<0,'Базовые цены с учетом расхода'!S6,"")) -> 
A36: 2. | B36: ГЭСНс 01-01-003-01 | C36: Уплотнение грунта самоходным катком на пневмоколесном ходу 16 т | D36: 1000 м2 | F36: 0.01 | G36: =ROUND(СУММПРОИЗВЕСЛИ(1,I36:I39,"s",E36:E39,G36:G39,0),2)+SUMIF(I36:I54,"=NenormMatOtZPR",G36:G54) -> 1767.56 | H36: =ROUND(СУММПРОИЗВЕСЛИ(F36,I36:I39,"s",E36:E39,G36:G39,0),0)+SUMIF(I36:I54,"=NenormMatOtZPR",H36:H54) -> 18 | I36: sum | M36: =ROUND(СУММПРОИЗВЕСЛИ(1,I36:I39,"s",E36:E39,M36:M39,0),2)+SUMIF(I36:I54,"=NenormMatOtZPR",M36:M54) -> 231.35 | N36: =ROUND(СУММПРОИЗВЕСЛИ(F36,I36:I39,"s",E36:E39,M36:M39,0),0)+SUMIF(I36:I54,"=NenormMatOtZPR",N36:N54) -> 2
A37: 2. 1. | B37: 2 | C37: Затраты труда машинистов | D37: чел.-ч | E37: =ОКРУГЛВСЕ(СУММПРОИЗВЕСЛИ(1,K36:K39,"mWithZTM",D36:D39,E36:E39,-1)+СУММКОЭФПРОЦЕНТЕСЛИ(1,1,K36:K39,"mWithZTM_Proch",E36:E39,-1),11) -> 1.48 | F37: =ОКРУГЛВСЕ(СУММПРОИЗВЕСЛИ(1,K36:K39,"mWithZTM",D36:D39,F36:F39,-1)+СУММКОЭФПРОЦЕНТЕСЛИ(1,1,K36:K39,"mWithZTM_Proch",F36:F39,-1),11) -> 0.0148 | G37: =IF(F37=0,0,ROUND(H37/F37,3)) -> 202.703 | H37: =ROUND(СУММЕСЛИДА1НЕ1(L36:L39,"mWithZPM",D36:D39,0,H36:H39),0) -> 3 | J37: Ж | M37: =IF(F37=0,0,ROUND(N37/F37,3)) -> 0 | N37: =ROUND(СУММЕСЛИДА1НЕ1(L36:L39,"mWithZPM",D36:D39,0,N36:N39),0) -> 0
A38: 2. 2. | B38: =ПОЛУЧШИФР(Ресурсы!A92,1) -> СЦЭСМ 120910 | C38: =Ресурсы!B92 -> Катки на пневмоколесном ходу 16 т | D38: маш.-ч | E38: 1.48 | F38: =ОКРУГЛВСЕ(IF(E38="",0,E38)*IF(F36="",0,F36),11) -> 0.0148 | G38: =Ресурсы!D92 -> 1194.3 | H38: =ROUND(IF(F38="",0,F38)*IF(G38="",0,G38),0) -> 18 | I38: s | J38: IsMash | M38: =Ресурсы!C92 -> 156.32 | N38: =ROUND(IF(F38="",0,F38)*IF(M38="",0,M38),0) -> 2
D39: =Ресурсы!G92 -> 1 | G39: =Ресурсы!F92 -> 178 | H39: =ROUND(IF(F38="",0,F38)*IF(G39="",0,G39),0) -> 3 | K39: mWithZTM | L39: mWithZPM | M39: =Ресурсы!E92 -> 14.4 | N39: =ROUND(IF(F38="",0,F38)*IF(M39="",0,M39),0) -> 0
C40: Зарплата рабочих
C41: Эксплуатация машин | H41: 18 | N41: 2
C42: в т.ч. зарплата машинистов | H42: 3
C43: Материалы
C44: в т.ч. Вспомогательные материалы от стоимости материалов
C45: в т.ч. Вспомогательные ненормируемые материалы | I45: NenormMatOtZPR
C46: в т.ч. Ненормированная з.п. рабочих
C47: в т.ч. Ненормированная стоимость эксплуатации машин
C48: в т.ч. Ненормированная оплата механизаторов
C49: Накладные расходы | G49: 11.7 | H49: =IF('Текущие цены с учетом расхода'!N7>0,'Текущие цены с учетом расхода'!N7,IF('Текущие цены с учетом расхода'!N7<0,'Текущие цены с учетом расхода'!N7,"")) -> 2 | J49: Nakl | M49: 11.7 | N49: =IF('Базовые цены с учетом расхода'!N7>0,'Базовые цены с учетом расхода'!N7,IF('Базовые цены с учетом расхода'!N7<0,'Базовые цены с учетом расхода'!N7,"")) -> 
C50: НР от ЗПР | H50: =IF('Текущие цены с учетом расхода'!P7>0,'Текущие цены с учетом расхода'!P7,IF('Текущие цены с учетом расхода'!P7<0,'Текущие цены с учетом расхода'!P7,"")) ->  | J50: Nakl_ZPR | N50: =IF('Базовые цены с учетом расхода'!P7>0,'Базовые цены с учетом расхода'!P7,IF('Базовые цены с учетом расхода'!P7<0,'Базовые цены с учетом расхода'!P7,"")) -> 
C51: НР от ЗПМ | H51: =IF('Текущие цены с учетом расхода'!Q7>0,'Текущие цены с учетом расхода'!Q7,IF('Текущие цены с учетом расхода'!Q7<0,'Текущие цены с учетом расхода'!Q7,"")) ->  | J51: Nakl_ZPM | N51: =IF('Базовые цены с учетом расхода'!Q7>0,'Базовые цены с учетом расхода'!Q7,IF('Базовые цены с учетом расхода'!Q7<0,'Базовые цены с учетом расхода'!Q7,"")) -> 
C52: Плановые накопления / Сметная прибыль | G52: 8 | H52: =IF('Текущие цены с учетом расхода'!O7>0,'Текущие цены с учетом расхода'!O7,IF('Текущие цены с учетом расхода'!O7<0,'Текущие цены с учетом расхода'!O7,"")) -> 2 | J52: Plan | M52: 8 | N52: =IF('Базовые цены с учетом расхода'!O7>0,'Базовые цены с учетом расхода'!O7,IF('Базовые цены с учетом расхода'!O7<0,'Базовые цены с учетом расхода'!O7,"")) -> 
C53: СП от ЗПР | H53: =IF('Текущие цены с учетом расхода'!R7>0,'Текущие цены с учетом расхода'!R7,IF('Текущие цены с учетом расхода'!R7<0,'Текущие цены с учетом расхода'!R7,"")) ->  | J53: Plan_ZPR | N53: =IF('Базовые цены с учетом расхода'!R7>0,'Базовые цены с учетом расхода'!R7,IF('Базовые цены с учетом расхода'!R7<0,'Базовые цены с учетом расхода'!R7,"")) -> 
C54: СП от ЗПМ | H54: =IF('Текущие цены с учетом расхода'!S7>0,'Текущие цены с учетом расхода'!S7,IF('Текущие цены с учетом расхода'!S7<0,'Текущие цены с учетом расхода'!S7,"")) ->  | J54: Plan_ZPM | N54: =IF('Базовые цены с учетом расхода'!S7>0,'Базовые цены с учетом расхода'!S7,IF('Базовые цены с учетом расхода'!S7<0,'Базовые цены с учетом расхода'!S7,"")) -> 
A55: 3. | B55: ГЭСНс 01-01-006-03 | C55: Ремонт укрепления обочин щебнем, толщина слоя 10 см | D55: 100 м2 | F55: 0.01 | G55: =ROUND(СУММПРОИЗВЕСЛИ(1,I55:I61,"s",E55:E61,G55:G61,0),2)+SUMIF(I55:I76,"=NenormMatOtZPR",G55:G76) -> 16321.78 | H55: =ROUND(СУММПРОИЗВЕСЛИ(F55,I55:I61,"s",E55:E61,G55:G61,0),0)+SUMIF(I55:I76,"=NenormMatOtZPR",H55:H76) -> 163 | I55: sum | M55: =ROUND(СУММПРОИЗВЕСЛИ(1,I55:I61,"s",E55:E61,M55:M61,0),2)+SUMIF(I55:I76,"=NenormMatOtZPR",M55:M76) -> 43.73 | N55: =ROUND(СУММПРОИЗВЕСЛИ(F55,I55:I61,"s",E55:E61,M55:M61,0),0)+SUMIF(I55:I76,"=NenormMatOtZPR",N55:N76) -> 0
A56: 3. 1. | B56: 2 | C56: Затраты труда машинистов | D56: чел.-ч | E56: =ОКРУГЛВСЕ(СУММПРОИЗВЕСЛИ(1,K55:K61,"mWithZTM",D55:D61,E55:E61,-1)+СУММКОЭФПРОЦЕНТЕСЛИ(1,1,K55:K61,"mWithZTM_Proch",E55:E61,-1),11) -> 0.7 | F56: =ОКРУГЛВСЕ(СУММПРОИЗВЕСЛИ(1,K55:K61,"mWithZTM",D55:D61,F55:F61,-1)+СУММКОЭФПРОЦЕНТЕСЛИ(1,1,K55:K61,"mWithZTM_Proch",F55:F61,-1),11) -> 0.007 | G56: =IF(F56=0,0,ROUND(H56/F56,3)) -> 142.857 | H56: =ROUND(СУММЕСЛИДА1НЕ1(L55:L61,"mWithZPM",D55:D61,0,H55:H61),0) -> 1 | J56: Ж | M56: =IF(F56=0,0,ROUND(N56/F56,3)) -> 0 | N56: =ROUND(СУММЕСЛИДА1НЕ1(L55:L61,"mWithZPM",D55:D61,0,N55:N61),0) -> 0
A57: 3. 2. | B57: =ПОЛУЧШИФР(Ресурсы!A85,1) -> СЦЭСМ 120202 | C57: =Ресурсы!B85 -> Автогрейдеры среднего типа 99 кВт (135 л.с.) | D57: маш.-ч | E57: 0.21 | F57: =ОКРУГЛВСЕ(IF(E57="",0,E57)*IF(F55="",0,F55),11) -> 0.0021 | G57: =Ресурсы!D85 -> 958.4 | H57: =ROUND(IF(F57="",0,F57)*IF(G57="",0,G57),0) -> 2 | I57: s | J57: IsMash | M57: =Ресурсы!C85 -> 123 | N57: =ROUND(IF(F57="",0,F57)*IF(M57="",0,M57),0) -> 0
D58: =Ресурсы!G85 -> 1 | G58: =Ресурсы!F85 -> 166.8 | H58: =ROUND(IF(F57="",0,F57)*IF(G58="",0,G58),0) -> 0 | K58: mWithZTM | L58: mWithZPM | M58: =Ресурсы!E85 -> 13.5 | N58: =ROUND(IF(F57="",0,F57)*IF(M58="",0,M58),0) -> 0
A59: 3. 3. | B59: =ПОЛУЧШИФР(Ресурсы!A88,1) -> СЦЭСМ 120901 | C59: =Ресурсы!B88 -> Катки дорожные самоходные вибрационные 2,2 т | D59: маш.-ч | E59: 0.49 | F59: =ОКРУГЛВСЕ(IF(E59="",0,E59)*IF(F55="",0,F55),11) -> 0.0049 | G59: =Ресурсы!D88 -> 267.33 | H59: =ROUND(IF(F59="",0,F59)*IF(G59="",0,G59),0) -> 1 | I59: s | J59: IsMash | M59: =Ресурсы!C88 -> 36.54 | N59: =ROUND(IF(F59="",0,F59)*IF(M59="",0,M59),0) -> 0
D60: =Ресурсы!G88 -> 1 | G60: =Ресурсы!F88 -> 124.21 | H60: =ROUND(IF(F59="",0,F59)*IF(G60="",0,G60),0) -> 1 | K60: mWithZTM | L60: mWithZPM | M60: =Ресурсы!E88 -> 10.06 | N60: =ROUND(IF(F59="",0,F59)*IF(M60="",0,M60),0) -> 0
A61: 3. 4. | B61: =ПОЛУЧШИФР(Ресурсы!A53,0) -> с408-0023 | C61: =Ресурсы!B53 -> Щебень из природного камня для строительных работ марка 400, фракция 20-40 мм | D61: м3 | E61: 12.6 | F61: =ОКРУГЛВСЕ(IF(E61="",0,E61)*IF(F55="",0,F55),11) -> 0.126 | G61: =ROUND(Ресурсы!D53*Начисления!AV8,2) -> 1269.01 | H61: =ROUND(IF(F61="",0,F61)*IF(G61="",0,G61),0) -> 160 | I61: s | J61: IsMater | M61: =ROUND(Ресурсы!C53*Начисления!AV8,2) -> 0 | N61: =ROUND(IF(F61="",0,F61)*IF(M61="",0,M61),0) -> 0
C62: Зарплата рабочих
C63: Эксплуатация машин | H63: 3
C64: в т.ч. зарплата машинистов | H64: 1
C65: Материалы | H65: 160
C66: в т.ч. Вспомогательные материалы от стоимости материалов
C67: в т.ч. Вспомогательные ненормируемые материалы | I67: NenormMatOtZPR
C68: в т.ч. Ненормированная з.п. рабочих
C69: в т.ч. Ненормированная стоимость эксплуатации машин
C70: в т.ч. Ненормированная оплата механизаторов
C71: Накладные расходы | G71: 11.7 | H71: =IF('Текущие цены с учетом расхода'!N8>0,'Текущие цены с учетом расхода'!N8,IF('Текущие цены с учетом расхода'!N8<0,'Текущие цены с учетом расхода'!N8,"")) -> 19 | J71: Nakl | N71: =IF('Базовые цены с учетом расхода'!N8>0,'Базовые цены с учетом расхода'!N8,IF('Базовые цены с учетом расхода'!N8<0,'Базовые цены с учетом расхода'!N8,"")) -> 
C72: НР от ЗПР | H72: =IF('Текущие цены с учетом расхода'!P8>0,'Текущие цены с учетом расхода'!P8,IF('Текущие цены с учетом расхода'!P8<0,'Текущие цены с учетом расхода'!P8,"")) ->  | J72: Nakl_ZPR | N72: =IF('Базовые цены с учетом расхода'!P8>0,'Базовые цены с учетом расхода'!P8,IF('Базовые цены с учетом расхода'!P8<0,'Базовые цены с учетом расхода'!P8,"")) -> 
C73: НР от ЗПМ | H73: =IF('Текущие цены с учетом расхода'!Q8>0,'Текущие цены с учетом расхода'!Q8,IF('Текущие цены с учетом расхода'!Q8<0,'Текущие цены с учетом расхода'!Q8,"")) ->  | J73: Nakl_ZPM | N73: =IF('Базовые цены с учетом расхода'!Q8>0,'Базовые цены с учетом расхода'!Q8,IF('Базовые цены с учетом расхода'!Q8<0,'Базовые цены с учетом расхода'!Q8,"")) -> 
C74: Плановые накопления / Сметная прибыль | G74: 8 | H74: =IF('Текущие цены с учетом расхода'!O8>0,'Текущие цены с учетом расхода'!O8,IF('Текущие цены с учетом расхода'!O8<0,'Текущие цены с учетом расхода'!O8,"")) -> 15 | J74: Plan | N74: =IF('Базовые цены с учетом расхода'!O8>0,'Базовые цены с учетом расхода'!O8,IF('Базовые цены с учетом расхода'!O8<0,'Базовые цены с учетом расхода'!O8,"")) -> 
C75: СП от ЗПР | H75: =IF('Текущие цены с учетом расхода'!R8>0,'Текущие цены с учетом расхода'!R8,IF('Текущие цены с учетом расхода'!R8<0,'Текущие цены с учетом расхода'!R8,"")) ->  | J75: Plan_ZPR | N75: =IF('Базовые цены с учетом расхода'!R8>0,'Базовые цены с учетом расхода'!R8,IF('Базовые цены с учетом расхода'!R8<0,'Базовые цены с учетом расхода'!R8,"")) -> 
C76: СП от ЗПМ | H76: =IF('Текущие цены с учетом расхода'!S8>0,'Текущие цены с учетом расхода'!S8,IF('Текущие цены с учетом расхода'!S8<0,'Текущие цены с учетом расхода'!S8,"")) ->  | J76: Plan_ZPM | N76: =IF('Базовые цены с учетом расхода'!S8>0,'Базовые цены с учетом расхода'!S8,IF('Базовые цены с учетом расхода'!S8<0,'Базовые цены с учетом расхода'!S8,"")) -> 
A77: 4. | B77: ГЭСНс 01-01-004-01 | C77: Планировка автогрейдером грунтовых обочин | D77: км прохода | F77: 2 | G77: =ROUND(СУММПРОИЗВЕСЛИ(1,I77:I80,"s",E77:E80,G77:G80,0),2)+SUMIF(I77:I95,"=NenormMatOtZPR",G77:G95) -> 220.43 | H77: =ROUND(СУММПРОИЗВЕСЛИ(F77,I77:I80,"s",E77:E80,G77:G80,0),0)+SUMIF(I77:I95,"=NenormMatOtZPR",H77:H95) -> 441 | I77: sum | M77: =ROUND(СУММПРОИЗВЕСЛИ(1,I77:I80,"s",E77:E80,M77:M80,0),2)+SUMIF(I77:I95,"=NenormMatOtZPR",M77:M95) -> 28.29 | N77: =ROUND(СУММПРОИЗВЕСЛИ(F77,I77:I80,"s",E77:E80,M77:M80,0),0)+SUMIF(I77:I95,"=NenormMatOtZPR",N77:N95) -> 57
A78: 4. 1. | B78: 2 | C78: Затраты труда машинистов | D78: чел.-ч | E78: =ОКРУГЛВСЕ(СУММПРОИЗВЕСЛИ(1,K77:K80,"mWithZTM",D77:D80,E77:E80,-1)+СУММКОЭФПРОЦЕНТЕСЛИ(1,1,K77:K80,"mWithZTM_Proch",E77:E80,-1),11) -> 0.23 | F78: =ОКРУГЛВСЕ(СУММПРОИЗВЕСЛИ(1,K77:K80,"mWithZTM",D77:D80,F77:F80,-1)+СУММКОЭФПРОЦЕНТЕСЛИ(1,1,K77:K80,"mWithZTM_Proch",F77:F80,-1),11) -> 0.46 | G78: =IF(F78=0,0,ROUND(H78/F78,3)) -> 167.391 | H78: =ROUND(СУММЕСЛИДА1НЕ1(L77:L80,"mWithZPM",D77:D80,0,H77:H80),0) -> 77 | J78: Ж | M78: =IF(F78=0,0,ROUND(N78/F78,3)) -> 13.043 | N78: =ROUND(СУММЕСЛИДА1НЕ1(L77:L80,"mWithZPM",D77:D80,0,N77:N80),0) -> 6
A79: 4. 2. | B79: =ПОЛУЧШИФР(Ресурсы!A85,1) -> СЦЭСМ 120202 | C79: =Ресурсы!B85 -> Автогрейдеры среднего типа 99 кВт (135 л.с.) | D79: маш.-ч | E79: 0.23 | F79: =ОКРУГЛВСЕ(IF(E79="",0,E79)*IF(F77="",0,F77),11) -> 0.46 | G79: =Ресурсы!D85 -> 958.4 | H79: =ROUND(IF(F79="",0,F79)*IF(G79="",0,G79),0) -> 441 | I79: s | J79: IsMash | M79: =Ресурсы!C85 -> 123 | N79: =ROUND(IF(F79="",0,F79)*IF(M79="",0,M79),0) -> 57
D80: =Ресурсы!G85 -> 1 | G80: =Ресурсы!F85 -> 166.8 | H80: =ROUND(IF(F79="",0,F79)*IF(G80="",0,G80),0) -> 77 | K80: mWithZTM | L80: mWithZPM | M80: =Ресурсы!E85 -> 13.5 | N80: =ROUND(IF(F79="",0,F79)*IF(M80="",0,M80),0) -> 6
C81: Зарплата рабочих
C82: Эксплуатация машин | H82: 441 | N82: 57
C83: в т.ч. зарплата машинистов | H83: 77 | N83: 6
C84: Материалы
C85: в т.ч. Вспомогательные материалы от стоимости материалов
C86: в т.ч. Вспомогательные ненормируемые материалы | I86: NenormMatOtZPR
C87: в т.ч. Ненормированная з.п. рабочих
C88: в т.ч. Ненормированная стоимость эксплуатации машин
C89: в т.ч. Ненормированная оплата механизаторов
C90: Накладные расходы | G90: 11.7 | H90: =IF('Текущие цены с учетом расхода'!N9>0,'Текущие цены с учетом расхода'!N9,IF('Текущие цены с учетом расхода'!N9<0,'Текущие цены с учетом расхода'!N9,"")) -> 52 | J90: Nakl | M90: 11.7 | N90: =IF('Базовые цены с учетом расхода'!N9>0,'Базовые цены с учетом расхода'!N9,IF('Базовые цены с учетом расхода'!N9<0,'Базовые цены с учетом расхода'!N9,"")) -> 7
C91: НР от ЗПР | H91: =IF('Текущие цены с учетом расхода'!P9>0,'Текущие цены с учетом расхода'!P9,IF('Текущие цены с учетом расхода'!P9<0,'Текущие цены с учетом расхода'!P9,"")) ->  | J91: Nakl_ZPR | N91: =IF('Базовые цены с учетом расхода'!P9>0,'Базовые цены с учетом расхода'!P9,IF('Базовые цены с учетом расхода'!P9<0,'Базовые цены с учетом расхода'!P9,"")) -> 
C92: НР от ЗПМ | H92: =IF('Текущие цены с учетом расхода'!Q9>0,'Текущие цены с учетом расхода'!Q9,IF('Текущие цены с учетом расхода'!Q9<0,'Текущие цены с учетом расхода'!Q9,"")) ->  | J92: Nakl_ZPM | N92: =IF('Базовые цены с учетом расхода'!Q9>0,'Базовые цены с учетом расхода'!Q9,IF('Базовые цены с учетом расхода'!Q9<0,'Базовые цены с учетом расхода'!Q9,"")) -> 
C93: Плановые накопления / Сметная прибыль | G93: 8 | H93: =IF('Текущие цены с учетом расхода'!O9>0,'Текущие цены с учетом расхода'!O9,IF('Текущие цены с учетом расхода'!O9<0,'Текущие цены с учетом расхода'!O9,"")) -> 39 | J93: Plan | M93: 8 | N93: =IF('Базовые цены с учетом расхода'!O9>0,'Базовые цены с учетом расхода'!O9,IF('Базовые цены с учетом расхода'!O9<0,'Базовые цены с учетом расхода'!O9,"")) -> 5
C94: СП от ЗПР | H94: =IF('Текущие цены с учетом расхода'!R9>0,'Текущие цены с учетом расхода'!R9,IF('Текущие цены с учетом расхода'!R9<0,'Текущие цены с учетом расхода'!R9,"")) ->  | J94: Plan_ZPR | N94: =IF('Базовые цены с учетом расхода'!R9>0,'Базовые цены с учетом расхода'!R9,IF('Базовые цены с учетом расхода'!R9<0,'Базовые цены с учетом расхода'!R9,"")) -> 
C95: СП от ЗПМ | H95: =IF('Текущие цены с учетом расхода'!S9>0,'Текущие цены с учетом расхода'!S9,IF('Текущие цены с учетом расхода'!S9<0,'Текущие цены с учетом расхода'!S9,"")) ->  | J95: Plan_ZPM | N95: =IF('Базовые цены с учетом расхода'!S9>0,'Базовые цены с учетом расхода'!S9,IF('Базовые цены с учетом расхода'!S9<0,'Базовые цены с учетом расхода'!S9,"")) -> 
A96: 5. | B96: ГЭСНс 01-01-005-01 | C96: Ремонтная планировка обочин вручную | D96: 100 м2 | F96: 0.08 | G96: =ROUND(СУММПРОИЗВЕСЛИ(1,I96:I99,"s",E96:E99,G96:G99,0),2)+SUMIF(I96:I114,"=NenormMatOtZPR",G96:G114) -> 1517.78 | H96: =ROUND(СУММПРОИЗВЕСЛИ(F96,I96:I99,"s",E96:E99,G96:G99,0),0)+SUMIF(I96:I114,"=NenormMatOtZPR",H96:H114) -> 121 | I96: sum | M96: =ROUND(СУММПРОИЗВЕСЛИ(1,I96:I99,"s",E96:E99,M96:M99,0),2)+SUMIF(I96:I114,"=NenormMatOtZPR",M96:M114) -> 117.74 | N96: =ROUND(СУММПРОИЗВЕСЛИ(F96,I96:I99,"s",E96:E99,M96:M99,0),0)+SUMIF(I96:I114,"=NenormMatOtZPR",N96:N114) -> 9
A97: 5. 0. | B97: З1000-0001 | C97: Затраты труда машинистов | D97: чел.ч | E97: 0 | F97: 0 | G97: =IF(F97=0,0,ROUND(H97/F97,3)) -> 0 | J97: Ж | M97: =IF(F97=0,0,ROUND(N97/F97,3)) -> 0
A98: 5. 1. | B98: =ПОЛУЧШИФР(Ресурсы!A4,1) -> 0-4002 | C98: =Ресурсы!B4 -> Дорожный рабочий 2 разряда | D98: чел.-ч | E98: 7.21 | F98: =ОКРУГЛВСЕ(IF(E98="",0,E98)*IF(F96="",0,F96),11) -> 0.5768 | G98: =Ресурсы!D4 -> 100.57 | H98: =ROUND(IF(F98="",0,F98)*IF(G98="",0,G98),0) -> 58 | I98: s | J98: Г | M98: =Ресурсы!C4 -> 7.8 | N98: =ROUND(IF(F98="",0,F98)*IF(M98="",0,M98),0) -> 4
A99: 5. 2. | B99: =ПОЛУЧШИФР(Ресурсы!A5,1) -> 0-4003 | C99: =Ресурсы!B5 -> Дорожный рабочий 3 разряда | D99: чел.-ч | E99: 7.21 | F99: =ОКРУГЛВСЕ(IF(E99="",0,E99)*IF(F96="",0,F96),11) -> 0.5768 | G99: =Ресурсы!D5 -> 109.94 | H99: =ROUND(IF(F99="",0,F99)*IF(G99="",0,G99),0) -> 63 | I99: s | J99: Г | M99: =Ресурсы!C5 -> 8.53 | N99: =ROUND(IF(F99="",0,F99)*IF(M99="",0,M99),0) -> 5
C100: Зарплата рабочих | H100: 121 | N100: 9
C101: Эксплуатация машин
C102: в т.ч. зарплата машинистов
C103: Материалы
C104: в т.ч. Вспомогательные материалы от стоимости материалов
C105: в т.ч. Вспомогательные ненормируемые материалы | I105: NenormMatOtZPR
C106: в т.ч. Ненормированная з.п. рабочих
C107: в т.ч. Ненормированная стоимость эксплуатации машин
C108: в т.ч. Ненормированная оплата механизаторов
C109: Накладные расходы | G109: 11.7 | H109: =IF('Текущие цены с учетом расхода'!N10>0,'Текущие цены с учетом расхода'!N10,IF('Текущие цены с учетом расхода'!N10<0,'Текущие цены с учетом расхода'!N10,"")) -> 14 | J109: Nakl | M109: 11.7 | N109: =IF('Базовые цены с учетом расхода'!N10>0,'Базовые цены с учетом расхода'!N10,IF('Базовые цены с учетом расхода'!N10<0,'Базовые цены с учетом расхода'!N10,"")) -> 1
C110: НР от ЗПР | H110: =IF('Текущие цены с учетом расхода'!P10>0,'Текущие цены с учетом расхода'!P10,IF('Текущие цены с учетом расхода'!P10<0,'Текущие цены с учетом расхода'!P10,"")) ->  | J110: Nakl_ZPR | N110: =IF('Базовые цены с учетом расхода'!P10>0,'Базовые цены с учетом расхода'!P10,IF('Базовые цены с учетом расхода'!P10<0,'Базовые цены с учетом расхода'!P10,"")) -> 
C111: НР от ЗПМ | H111: =IF('Текущие цены с учетом расхода'!Q10>0,'Текущие цены с учетом расхода'!Q10,IF('Текущие цены с учетом расхода'!Q10<0,'Текущие цены с учетом расхода'!Q10,"")) ->  | J111: Nakl_ZPM | N111: =IF('Базовые цены с учетом расхода'!Q10>0,'Базовые цены с учетом расхода'!Q10,IF('Базовые цены с учетом расхода'!Q10<0,'Базовые цены с учетом расхода'!Q10,"")) -> 
C112: Плановые накопления / Сметная прибыль | G112: 8 | H112: =IF('Текущие цены с учетом расхода'!O10>0,'Текущие цены с учетом расхода'!O10,IF('Текущие цены с учетом расхода'!O10<0,'Текущие цены с учетом расхода'!O10,"")) -> 11 | J112: Plan | M112: 8 | N112: =IF('Базовые цены с учетом расхода'!O10>0,'Базовые цены с учетом расхода'!O10,IF('Базовые цены с учетом расхода'!O10<0,'Базовые цены с учетом расхода'!O10,"")) -> 1
C113: СП от ЗПР | H113: =IF('Текущие цены с учетом расхода'!R10>0,'Текущие цены с учетом расхода'!R10,IF('Текущие цены с учетом расхода'!R10<0,'Текущие цены с учетом расхода'!R10,"")) ->  | J113: Plan_ZPR | N113: =IF('Базовые цены с учетом расхода'!R10>0,'Базовые цены с учетом расхода'!R10,IF('Базовые цены с учетом расхода'!R10<0,'Базовые цены с учетом расхода'!R10,"")) -> 
C114: СП от ЗПМ | H114: =IF('Текущие цены с учетом расхода'!S10>0,'Текущие цены с учетом расхода'!S10,IF('Текущие цены с учетом расхода'!S10<0,'Текущие цены с учетом расхода'!S10,"")) ->  | J114: Plan_ZPM | N114: =IF('Базовые цены с учетом расхода'!S10>0,'Базовые цены с учетом расхода'!S10,IF('Базовые цены с учетом расхода'!S10<0,'Базовые цены с учетом расхода'!S10,"")) -> 
A115: 6. | B115: ГЭСНс 01-01-011-02 | C115: Скашивание травы косилкой на базе трактора на пневмоколесном ходу 80 л.с., ширина окашивания до 2 м | D115: км прохода | F115: 16 | G115: =ROUND(СУММПРОИЗВЕСЛИ(1,I115:I119,"s",E115:E119,G115:G119,0),2)+SUMIF(I115:I134,"=NenormMatOtZPR",G115:G134) -> 86.03 | H115: =ROUND(СУММПРОИЗВЕСЛИ(F115,I115:I119,"s",E115:E119,G115:G119,0),0)+SUMIF(I115:I134,"=NenormMatOtZPR",H115:H134) -> 1376 | I115: sum | M115: =ROUND(СУММПРОИЗВЕСЛИ(1,I115:I119,"s",E115:E119,M115:M119,0),2)+SUMIF(I115:I134,"=NenormMatOtZPR",M115:M134) -> 15.27 | N115: =ROUND(СУММПРОИЗВЕСЛИ(F115,I115:I119,"s",E115:E119,M115:M119,0),0)+SUMIF(I115:I134,"=NenormMatOtZPR",N115:N134) -> 244
A116: 6. 1. | B116: 2 | C116: Затраты труда машинистов | D116: чел.-ч | E116: =ОКРУГЛВСЕ(СУММПРОИЗВЕСЛИ(1,K115:K119,"mWithZTM",D115:D119,E115:E119,-1)+СУММКОЭФПРОЦЕНТЕСЛИ(1,1,K115:K119,"mWithZTM_Proch",E115:E119,-1),11) -> 0.18 | F116: =ОКРУГЛВСЕ(СУММПРОИЗВЕСЛИ(1,K115:K119,"mWithZTM",D115:D119,F115:F119,-1)+СУММКОЭФПРОЦЕНТЕСЛИ(1,1,K115:K119,"mWithZTM_Proch",F115:F119,-1),11) -> 2.88 | G116: =IF(F116=0,0,ROUND(H116/F116,3)) -> 166.667 | H116: =ROUND(СУММЕСЛИДА1НЕ1(L115:L119,"mWithZPM",D115:D119,0,H115:H119),0) -> 480 | J116: Ж | M116: =IF(F116=0,0,ROUND(N116/F116,3)) -> 13.542 | N116: =ROUND(СУММЕСЛИДА1НЕ1(L115:L119,"mWithZPM",D115:D119,0,N115:N119),0) -> 39
A117: 6. 2. | B117: =ПОЛУЧШИФР(Ресурсы!A68,1) -> СЦЭСМ 010410 | C117: =Ресурсы!B68 -> Тракторы на пневмоколесном ходу при работе на других видах строительства 59 кВт (80 л.с.) | D117: маш.-ч | E117: 0.18 | F117: =ОКРУГЛВСЕ(IF(E117="",0,E117)*IF(F115="",0,F115),11) -> 2.88 | G117: =Ресурсы!D68 -> 437.58 | H117: =ROUND(IF(F117="",0,F117)*IF(G117="",0,G117),0) -> 1260 | I117: s | J117: IsMash | M117: =Ресурсы!C68 -> 74.61 | N117: =ROUND(IF(F117="",0,F117)*IF(M117="",0,M117),0) -> 215
D118: =Ресурсы!G68 -> 1 | G118: =Ресурсы!F68 -> 166.8 | H118: =ROUND(IF(F117="",0,F117)*IF(G118="",0,G118),0) -> 480 | K118: mWithZTM | L118: mWithZPM | M118: =Ресурсы!E68 -> 13.5 | N118: =ROUND(IF(F117="",0,F117)*IF(M118="",0,M118),0) -> 39
A119: 6. 3. | B119: =ПОЛУЧШИФР(Ресурсы!A82,1) -> СЦЭСМ 092401 | C119: =Ресурсы!B82 -> Косилки прицепные | D119: маш.-ч | E119: 0.18 | F119: =ОКРУГЛВСЕ(IF(E119="",0,E119)*IF(F115="",0,F115),11) -> 2.88 | G119: =Ресурсы!D82 -> 40.35 | H119: =ROUND(IF(F119="",0,F119)*IF(G119="",0,G119),0) -> 116 | I119: s | J119: IsMash | M119: =Ресурсы!C82 -> 10.2 | N119: =ROUND(IF(F119="",0,F119)*IF(M119="",0,M119),0) -> 29
C120: Зарплата рабочих
C121: Эксплуатация машин | H121: 1376 | N121: 244
C122: в т.ч. зарплата машинистов | H122: 480 | N122: 39
C123: Материалы
C124: в т.ч. Вспомогательные материалы от стоимости материалов
C125: в т.ч. Вспомогательные ненормируемые материалы | I125: NenormMatOtZPR
C126: в т.ч. Ненормированная з.п. рабочих
C127: в т.ч. Ненормированная стоимость эксплуатации машин
C128: в т.ч. Ненормированная оплата механизаторов
C129: Накладные расходы | G129: 11.7 | H129: =IF('Текущие цены с учетом расхода'!N11>0,'Текущие цены с учетом расхода'!N11,IF('Текущие цены с учетом расхода'!N11<0,'Текущие цены с учетом расхода'!N11,"")) -> 161 | J129: Nakl | M129: 11.7 | N129: =IF('Базовые цены с учетом расхода'!N11>0,'Базовые цены с учетом расхода'!N11,IF('Базовые цены с учетом расхода'!N11<0,'Базовые цены с учетом расхода'!N11,"")) -> 29
C130: НР от ЗПР | H130: =IF('Текущие цены с учетом расхода'!P11>0,'Текущие цены с учетом расхода'!P11,IF('Текущие цены с учетом расхода'!P11<0,'Текущие цены с учетом расхода'!P11,"")) ->  | J130: Nakl_ZPR | N130: =IF('Базовые цены с учетом расхода'!P11>0,'Базовые цены с учетом расхода'!P11,IF('Базовые цены с учетом расхода'!P11<0,'Базовые цены с учетом расхода'!P11,"")) -> 
C131: НР от ЗПМ | H131: =IF('Текущие цены с учетом расхода'!Q11>0,'Текущие цены с учетом расхода'!Q11,IF('Текущие цены с учетом расхода'!Q11<0,'Текущие цены с учетом расхода'!Q11,"")) ->  | J131: Nakl_ZPM | N131: =IF('Базовые цены с учетом расхода'!Q11>0,'Базовые цены с учетом расхода'!Q11,IF('Базовые цены с учетом расхода'!Q11<0,'Базовые цены с учетом расхода'!Q11,"")) -> 
C132: Плановые накопления / Сметная прибыль | G132: 8 | H132: =IF('Текущие цены с учетом расхода'!O11>0,'Текущие цены с учетом расхода'!O11,IF('Текущие цены с учетом расхода'!O11<0,'Текущие цены с учетом расхода'!O11,"")) -> 123 | J132: Plan | M132: 8 | N132: =IF('Базовые цены с учетом расхода'!O11>0,'Базовые цены с учетом расхода'!O11,IF('Базовые цены с учетом расхода'!O11<0,'Базовые цены с учетом расхода'!O11,"")) -> 22
C133: СП от ЗПР | H133: =IF('Текущие цены с учетом расхода'!R11>0,'Текущие цены с учетом расхода'!R11,IF('Текущие цены с учетом расхода'!R11<0,'Текущие цены с учетом расхода'!R11,"")) ->  | J133: Plan_ZPR | N133: =IF('Базовые цены с учетом расхода'!R11>0,'Базовые цены с учетом расхода'!R11,IF('Базовые цены с учетом расхода'!R11<0,'Базовые цены с учетом расхода'!R11,"")) -> 
C134: СП от ЗПМ | H134: =IF('Текущие цены с учетом расхода'!S11>0,'Текущие цены с учетом расхода'!S11,IF('Текущие цены с учетом расхода'!S11<0,'Текущие цены с учетом расхода'!S11,"")) ->  | J134: Plan_ZPM | N134: =IF('Базовые цены с учетом расхода'!S11>0,'Базовые цены с учетом расхода'!S11,IF('Базовые цены с учетом расхода'!S11<0,'Базовые цены с учетом расхода'!S11,"")) -> 
A135: 7. | B135: ГЭСНс 01-01-013-01 | C135: Откидывание травы на обрез вручную | D135: 100 м2 | F135: 160 | G135: =ROUND(СУММПРОИЗВЕСЛИ(1,I135:I137,"s",E135:E137,G135:G137,0),2)+SUMIF(I135:I152,"=NenormMatOtZPR",G135:G152) -> 12.07 | H135: =ROUND(СУММПРОИЗВЕСЛИ(F135,I135:I137,"s",E135:E137,G135:G137,0),0)+SUMIF(I135:I152,"=NenormMatOtZPR",H135:H152) -> 1931 | I135: sum | M135: =ROUND(СУММПРОИЗВЕСЛИ(1,I135:I137,"s",E135:E137,M135:M137,0),2)+SUMIF(I135:I152,"=NenormMatOtZPR",M135:M152) -> 0.94 | N135: =ROUND(СУММПРОИЗВЕСЛИ(F135,I135:I137,"s",E135:E137,M135:M137,0),0)+SUMIF(I135:I152,"=NenormMatOtZPR",N135:N152) -> 150
A136: 7. 0. | B136: З1000-0001 | C136: Затраты труда машинистов | D136: чел.ч | E136: 0 | F136: 0 | G136: =IF(F136=0,0,ROUND(H136/F136,3)) -> 0 | J136: Ж | M136: =IF(F136=0,0,ROUND(N136/F136,3)) -> 0
A137: 7. 1. | B137: =ПОЛУЧШИФР(Ресурсы!A4,1) -> 0-4002 | C137: =Ресурсы!B4 -> Дорожный рабочий 2 разряда | D137: чел.-ч | E137: 0.12 | F137: =ОКРУГЛВСЕ(IF(E137="",0,E137)*IF(F135="",0,F135),11) -> 19.2 | G137: =Ресурсы!D4 -> 100.57 | H137: =ROUND(IF(F137="",0,F137)*IF(G137="",0,G137),0) -> 1931 | I137: s | J137: Г | M137: =Ресурсы!C4 -> 7.8 | N137: =ROUND(IF(F137="",0,F137)*IF(M137="",0,M137),0) -> 150
C138: Зарплата рабочих | H138: 1931 | N138: 150
C139: Эксплуатация машин
C140: в т.ч. зарплата машинистов
C141: Материалы
C142: в т.ч. Вспомогательные материалы от стоимости материалов
C143: в т.ч. Вспомогательные ненормируемые материалы | I143: NenormMatOtZPR
C144: в т.ч. Ненормированная з.п. рабочих
C145: в т.ч. Ненормированная стоимость эксплуатации машин
C146: в т.ч. Ненормированная оплата механизаторов
C147: Накладные расходы | G147: 11.7 | H147: =IF('Текущие цены с учетом расхода'!N12>0,'Текущие цены с учетом расхода'!N12,IF('Текущие цены с учетом расхода'!N12<0,'Текущие цены с учетом расхода'!N12,"")) -> 226 | J147: Nakl | M147: 11.7 | N147: =IF('Базовые цены с учетом расхода'!N12>0,'Базовые цены с учетом расхода'!N12,IF('Базовые цены с учетом расхода'!N12<0,'Базовые цены с учетом расхода'!N12,"")) -> 18
C148: НР от ЗПР | H148: =IF('Текущие цены с учетом расхода'!P12>0,'Текущие цены с учетом расхода'!P12,IF('Текущие цены с учетом расхода'!P12<0,'Текущие цены с учетом расхода'!P12,"")) ->  | J148: Nakl_ZPR | N148: =IF('Базовые цены с учетом расхода'!P12>0,'Базовые цены с учетом расхода'!P12,IF('Базовые цены с учетом расхода'!P12<0,'Базовые цены с учетом расхода'!P12,"")) -> 
C149: НР от ЗПМ | H149: =IF('Текущие цены с учетом расхода'!Q12>0,'Текущие цены с учетом расхода'!Q12,IF('Текущие цены с учетом расхода'!Q12<0,'Текущие цены с учетом расхода'!Q12,"")) ->  | J149: Nakl_ZPM | N149: =IF('Базовые цены с учетом расхода'!Q12>0,'Базовые цены с учетом расхода'!Q12,IF('Базовые цены с учетом расхода'!Q12<0,'Базовые цены с учетом расхода'!Q12,"")) -> 
C150: Плановые накопления / Сметная прибыль | G150: 8 | H150: =IF('Текущие цены с учетом расхода'!O12>0,'Текущие цены с учетом расхода'!O12,IF('Текущие цены с учетом расхода'!O12<0,'Текущие цены с учетом расхода'!O12,"")) -> 173 | J150: Plan | M150: 8 | N150: =IF('Базовые цены с учетом расхода'!O12>0,'Базовые цены с учетом расхода'!O12,IF('Базовые цены с учетом расхода'!O12<0,'Базовые цены с учетом расхода'!O12,"")) -> 13
C151: СП от ЗПР | H151: =IF('Текущие цены с учетом расхода'!R12>0,'Текущие цены с учетом расхода'!R12,IF('Текущие цены с учетом расхода'!R12<0,'Текущие цены с учетом расхода'!R12,"")) ->  | J151: Plan_ZPR | N151: =IF('Базовые цены с учетом расхода'!R12>0,'Базовые цены с учетом расхода'!R12,IF('Базовые цены с учетом расхода'!R12<0,'Базовые цены с учетом расхода'!R12,"")) -> 
C152: СП от ЗПМ | H152: =IF('Текущие цены с учетом расхода'!S12>0,'Текущие цены с учетом расхода'!S12,IF('Текущие цены с учетом расхода'!S12<0,'Текущие цены с учетом расхода'!S12,"")) ->  | J152: Plan_ZPM | N152: =IF('Базовые цены с учетом расхода'!S12>0,'Базовые цены с учетом расхода'!S12,IF('Базовые цены с учетом расхода'!S12<0,'Базовые цены с учетом расхода'!S12,"")) -> 
A153: 8. | B153: ГЭСНс 01-01-014-03 | C153: Устройство дренажных прорезей трактором с навесным оборудованием | D153: км обочины | F153: 0.01 | G153: =ROUND(СУММПРОИЗВЕСЛИ(1,I153:I158,"s",E153:E158,G153:G158,0),2)+SUMIF(I153:I173,"=NenormMatOtZPR",G153:G173) -> 163185.58 | H153: =ROUND(СУММПРОИЗВЕСЛИ(F153,I153:I158,"s",E153:E158,G153:G158,0),0)+SUMIF(I153:I173,"=NenormMatOtZPR",H153:H173) -> 1632 | I153: sum | M153: =ROUND(СУММПРОИЗВЕСЛИ(1,I153:I158,"s",E153:E158,M153:M158,0),2)+SUMIF(I153:I173,"=NenormMatOtZPR",M153:M173) -> 2645.55 | N153: =ROUND(СУММПРОИЗВЕСЛИ(F153,I153:I158,"s",E153:E158,M153:M158,0),0)+SUMIF(I153:I173,"=NenormMatOtZPR",N153:N173) -> 26
A154: 8. 1. | B154: 2 | C154: Затраты труда машинистов | D154: чел.-ч | E154: =ОКРУГЛВСЕ(СУММПРОИЗВЕСЛИ(1,K153:K158,"mWithZTM",D153:D158,E153:E158,-1)+СУММКОЭФПРОЦЕНТЕСЛИ(1,1,K153:K158,"mWithZTM_Proch",E153:E158,-1),11) -> 10.45 | F154: =ОКРУГЛВСЕ(СУММПРОИЗВЕСЛИ(1,K153:K158,"mWithZTM",D153:D158,F153:F158,-1)+СУММКОЭФПРОЦЕНТЕСЛИ(1,1,K153:K158,"mWithZTM_Proch",F153:F158,-1),11) -> 0.1045 | G154: =IF(F154=0,0,ROUND(H154/F154,3)) -> 143.541 | H154: =ROUND(СУММЕСЛИДА1НЕ1(L153:L158,"mWithZPM",D153:D158,0,H153:H158),0) -> 15 | J154: Ж | M154: =IF(F154=0,0,ROUND(N154/F154,3)) -> 9.569 | N154: =ROUND(СУММЕСЛИДА1НЕ1(L153:L158,"mWithZPM",D153:D158,0,N153:N158),0) -> 1
A155: 8. 2. | B155: =ПОЛУЧШИФР(Ресурсы!A4,1) -> 0-4002 | C155: =Ресурсы!B4 -> Дорожный рабочий 2 разряда | D155: чел.-ч | E155: 250 | F155: =ОКРУГЛВСЕ(IF(E155="",0,E155)*IF(F153="",0,F153),11) -> 2.5 | G155: =Ресурсы!D4 -> 100.57 | H155: =ROUND(IF(F155="",0,F155)*IF(G155="",0,G155),0) -> 251 | I155: s | J155: Г | M155: =Ресурсы!C4 -> 7.8 | N155: =ROUND(IF(F155="",0,F155)*IF(M155="",0,M155),0) -> 20
A156: 8. 3. | B156: =ПОЛУЧШИФР(Ресурсы!A67,1) -> СЦЭСМ 010409 | C156: =Ресурсы!B67 -> Тракторы на пневмоколесном ходу при работе на других видах строительства 40 кВт (55 л.с.) | D156: маш.-ч | E156: 10.45 | F156: =ОКРУГЛВСЕ(IF(E156="",0,E156)*IF(F153="",0,F153),11) -> 0.1045 | G156: =Ресурсы!D67 -> 386.66 | H156: =ROUND(IF(F156="",0,F156)*IF(G156="",0,G156),0) -> 40 | I156: s | J156: IsMash | M156: =Ресурсы!C67 -> 66.56 | N156: =ROUND(IF(F156="",0,F156)*IF(M156="",0,M156),0) -> 7
D157: =Ресурсы!G67 -> 1 | G157: =Ресурсы!F67 -> 142.8 | H157: =ROUND(IF(F156="",0,F156)*IF(G157="",0,G157),0) -> 15 | K157: mWithZTM | L157: mWithZPM | M157: =Ресурсы!E67 -> 11.6 | N157: =ROUND(IF(F156="",0,F156)*IF(M157="",0,M157),0) -> 1
A158: 8. 4. | B158: =ПОЛУЧШИФР(Ресурсы!A55,0) -> с408-0024 | C158: =Ресурсы!B55 -> Щебень из природого камня для строительных работ марка 400, фракция 40-70 мм | D158: м3 | E158: 103.5 | F158: =ОКРУГЛВСЕ(IF(E158="",0,E158)*IF(F153="",0,F153),11) -> 1.035 | G158: =ROUND(Ресурсы!D55*Начисления!AV13,2) -> 1294.71 | H158: =ROUND(IF(F158="",0,F158)*IF(G158="",0,G158),0) -> 1340 | I158: s | J158: IsMater | M158: =ROUND(Ресурсы!C55*Начисления!AV13,2) -> 0 | N158: =ROUND(IF(F158="",0,F158)*IF(M158="",0,M158),0) -> 0
C159: Зарплата рабочих | H159: 251 | N159: 20
C160: Эксплуатация машин | H160: 40 | N160: 7
C161: в т.ч. зарплата машинистов | H161: 15 | N161: 1
C162: Материалы | H162: 1340
C163: в т.ч. Вспомогательные материалы от стоимости материалов
C164: в т.ч. Вспомогательные ненормируемые материалы | I164: NenormMatOtZPR
C165: в т.ч. Ненормированная з.п. рабочих
C166: в т.ч. Ненормированная стоимость эксплуатации машин
C167: в т.ч. Ненормированная оплата механизаторов
C168: Накладные расходы | G168: 11.7 | H168: =IF('Текущие цены с учетом расхода'!N13>0,'Текущие цены с учетом расхода'!N13,IF('Текущие цены с учетом расхода'!N13<0,'Текущие цены с учетом расхода'!N13,"")) -> 191 | J168: Nakl | M168: 11.7 | N168: =IF('Базовые цены с учетом расхода'!N13>0,'Базовые цены с учетом расхода'!N13,IF('Базовые цены с учетом расхода'!N13<0,'Базовые цены с учетом расхода'!N13,"")) -> 3
C169: НР от ЗПР | H169: =IF('Текущие цены с учетом расхода'!P13>0,'Текущие цены с учетом расхода'!P13,IF('Текущие цены с учетом расхода'!P13<0,'Текущие цены с учетом расхода'!P13,"")) ->  | J169: Nakl_ZPR | N169: =IF('Базовые цены с учетом расхода'!P13>0,'Базовые цены с учетом расхода'!P13,IF('Базовые цены с учетом расхода'!P13<0,'Базовые цены с учетом расхода'!P13,"")) -> 
C170: НР от ЗПМ | H170: =IF('Текущие цены с учетом расхода'!Q13>0,'Текущие цены с учетом расхода'!Q13,IF('Текущие цены с учетом расхода'!Q13<0,'Текущие цены с учетом расхода'!Q13,"")) ->  | J170: Nakl_ZPM | N170: =IF('Базовые цены с учетом расхода'!Q13>0,'Базовые цены с учетом расхода'!Q13,IF('Базовые цены с учетом расхода'!Q13<0,'Базовые цены с учетом расхода'!Q13,"")) -> 
C171: Плановые накопления / Сметная прибыль | G171: 8 | H171: =IF('Текущие цены с учетом расхода'!O13>0,'Текущие цены с учетом расхода'!O13,IF('Текущие цены с учетом расхода'!O13<0,'Текущие цены с учетом расхода'!O13,"")) -> 146 | J171: Plan | M171: 8 | N171: =IF('Базовые цены с учетом расхода'!O13>0,'Базовые цены с учетом расхода'!O13,IF('Базовые цены с учетом расхода'!O13<0,'Базовые цены с учетом расхода'!O13,"")) -> 2
C172: СП от ЗПР | H172: =IF('Текущие цены с учетом расхода'!R13>0,'Текущие цены с учетом расхода'!R13,IF('Текущие цены с учетом расхода'!R13<0,'Текущие цены с учетом расхода'!R13,"")) ->  | J172: Plan_ZPR | N172: =IF('Базовые цены с учетом расхода'!R13>0,'Базовые цены с учетом расхода'!R13,IF('Базовые цены с учетом расхода'!R13<0,'Базовые цены с учетом расхода'!R13,"")) -> 
C173: СП от ЗПМ | H173: =IF('Текущие цены с учетом расхода'!S13>0,'Текущие цены с учетом расхода'!S13,IF('Текущие цены с учетом расхода'!S13<0,'Текущие цены с учетом расхода'!S13,"")) ->  | J173: Plan_ZPM | N173: =IF('Базовые цены с учетом расхода'!S13>0,'Базовые цены с учетом расхода'!S13,IF('Базовые цены с учетом расхода'!S13<0,'Базовые цены с учетом расхода'!S13,"")) -> 
A174: 9. | B174: ГЭСНс 01-01-018-02 | C174: Ликвидация "диких" съездов бульдозером 108 л.с. | D174: съезд | F174: 2 | G174: =ROUND(СУММПРОИЗВЕСЛИ(1,I174:I177,"s",E174:E177,G174:G177,0),2)+SUMIF(I174:I192,"=NenormMatOtZPR",G174:G192) -> 165.24 | H174: =ROUND(СУММПРОИЗВЕСЛИ(F174,I174:I177,"s",E174:E177,G174:G177,0),0)+SUMIF(I174:I192,"=NenormMatOtZPR",H174:H192) -> 330 | I174: sum | M174: =ROUND(СУММПРОИЗВЕСЛИ(1,I174:I177,"s",E174:E177,M174:M177,0),2)+SUMIF(I174:I192,"=NenormMatOtZPR",M174:M192) -> 21.6 | N174: =ROUND(СУММПРОИЗВЕСЛИ(F174,I174:I177,"s",E174:E177,M174:M177,0),0)+SUMIF(I174:I192,"=NenormMatOtZPR",N174:N192) -> 43
A175: 9. 1. | B175: 2 | C175: Затраты труда машинистов | D175: чел.-ч | E175: =ОКРУГЛВСЕ(СУММПРОИЗВЕСЛИ(1,K174:K177,"mWithZTM",D174:D177,E174:E177,-1)+СУММКОЭФПРОЦЕНТЕСЛИ(1,1,K174:K177,"mWithZTM_Proch",E174:E177,-1),11) -> 0.27 | F175: =ОКРУГЛВСЕ(СУММПРОИЗВЕСЛИ(1,K174:K177,"mWithZTM",D174:D177,F174:F177,-1)+СУММКОЭФПРОЦЕНТЕСЛИ(1,1,K174:K177,"mWithZTM_Proch",F174:F177,-1),11) -> 0.54 | G175: =IF(F175=0,0,ROUND(H175/F175,3)) -> 177.778 | H175: =ROUND(СУММЕСЛИДА1НЕ1(L174:L177,"mWithZPM",D174:D177,0,H174:H177),0) -> 96 | J175: Ж | M175: =IF(F175=0,0,ROUND(N175/F175,3)) -> 14.815 | N175: =ROUND(СУММЕСЛИДА1НЕ1(L174:L177,"mWithZPM",D174:D177,0,N174:N177),0) -> 8
A176: 9. 2. | B176: =ПОЛУЧШИФР(Ресурсы!A77,1) -> СЦЭСМ 070149 | C176: =Ресурсы!B77 -> Бульдозеры при работе на других видах строительства 79 кВт (108 л.с.) | D176: маш.-ч | E176: 0.27 | F176: =ОКРУГЛВСЕ(IF(E176="",0,E176)*IF(F174="",0,F174),11) -> 0.54 | G176: =Ресурсы!D77 -> 612 | H176: =ROUND(IF(F176="",0,F176)*IF(G176="",0,G176),0) -> 330 | I176: s | J176: IsMash | M176: =Ресурсы!C77 -> 80.01 | N176: =ROUND(IF(F176="",0,F176)*IF(M176="",0,M176),0) -> 43
D177: =Ресурсы!G77 -> 1 | G177: =Ресурсы!F77 -> 178 | H177: =ROUND(IF(F176="",0,F176)*IF(G177="",0,G177),0) -> 96 | K177: mWithZTM | L177: mWithZPM | M177: =Ресурсы!E77 -> 14.4 | N177: =ROUND(IF(F176="",0,F176)*IF(M177="",0,M177),0) -> 8
C178: Зарплата рабочих
C179: Эксплуатация машин | H179: 330 | N179: 43
C180: в т.ч. зарплата машинистов | H180: 96 | N180: 8
C181: Материалы
C182: в т.ч. Вспомогательные материалы от стоимости материалов
C183: в т.ч. Вспомогательные ненормируемые материалы | I183: NenormMatOtZPR
C184: в т.ч. Ненормированная з.п. рабочих
C185: в т.ч. Ненормированная стоимость эксплуатации машин
C186: в т.ч. Ненормированная оплата механизаторов
C187: Накладные расходы | G187: 11.7 | H187: =IF('Текущие цены с учетом расхода'!N14>0,'Текущие цены с учетом расхода'!N14,IF('Текущие цены с учетом расхода'!N14<0,'Текущие цены с учетом расхода'!N14,"")) -> 39 | J187: Nakl | M187: 11.7 | N187: =IF('Базовые цены с учетом расхода'!N14>0,'Базовые цены с учетом расхода'!N14,IF('Базовые цены с учетом расхода'!N14<0,'Базовые цены с учетом расхода'!N14,"")) -> 5
C188: НР от ЗПР | H188: =IF('Текущие цены с учетом расхода'!P14>0,'Текущие цены с учетом расхода'!P14,IF('Текущие цены с учетом расхода'!P14<0,'Текущие цены с учетом расхода'!P14,"")) ->  | J188: Nakl_ZPR | N188: =IF('Базовые цены с учетом расхода'!P14>0,'Базовые цены с учетом расхода'!P14,IF('Базовые цены с учетом расхода'!P14<0,'Базовые цены с учетом расхода'!P14,"")) -> 
C189: НР от ЗПМ | H189: =IF('Текущие цены с учетом расхода'!Q14>0,'Текущие цены с учетом расхода'!Q14,IF('Текущие цены с учетом расхода'!Q14<0,'Текущие цены с учетом расхода'!Q14,"")) ->  | J189: Nakl_ZPM | N189: =IF('Базовые цены с учетом расхода'!Q14>0,'Базовые цены с учетом расхода'!Q14,IF('Базовые цены с учетом расхода'!Q14<0,'Базовые цены с учетом расхода'!Q14,"")) -> 
C190: Плановые накопления / Сметная прибыль | G190: 8 | H190: =IF('Текущие цены с учетом расхода'!O14>0,'Текущие цены с учетом расхода'!O14,IF('Текущие цены с учетом расхода'!O14<0,'Текущие цены с учетом расхода'!O14,"")) -> 30 | J190: Plan | M190: 8 | N190: =IF('Базовые цены с учетом расхода'!O14>0,'Базовые цены с учетом расхода'!O14,IF('Базовые цены с учетом расхода'!O14<0,'Базовые цены с учетом расхода'!O14,"")) -> 4
C191: СП от ЗПР | H191: =IF('Текущие цены с учетом расхода'!R14>0,'Текущие цены с учетом расхода'!R14,IF('Текущие цены с учетом расхода'!R14<0,'Текущие цены с учетом расхода'!R14,"")) ->  | J191: Plan_ZPR | N191: =IF('Базовые цены с учетом расхода'!R14>0,'Базовые цены с учетом расхода'!R14,IF('Базовые цены с учетом расхода'!R14<0,'Базовые цены с учетом расхода'!R14,"")) -> 
C192: СП от ЗПМ | H192: =IF('Текущие цены с учетом расхода'!S14>0,'Текущие цены с учетом расхода'!S14,IF('Текущие цены с учетом расхода'!S14<0,'Текущие цены с учетом расхода'!S14,"")) ->  | J192: Plan_ZPM | N192: =IF('Базовые цены с учетом расхода'!S14>0,'Базовые цены с учетом расхода'!S14,IF('Базовые цены с учетом расхода'!S14<0,'Базовые цены с учетом расхода'!S14,"")) -> 
B193: 2.Откосы
A194: 10. | B194: ГЭСНс 01-01-009-01 | C194: Засыпка грунтом промоин и ям на откосах и бермах с трамбованием вручную, грунт I группы | D194: 10 м3 | F194: 0.1838 | G194: =ROUND(СУММПРОИЗВЕСЛИ(1,I194:I200,"s",E194:E200,G194:G200,0),2)+SUMIF(I194:I215,"=NenormMatOtZPR",G194:G215) -> 5339.45 | H194: =ROUND(СУММПРОИЗВЕСЛИ(F194,I194:I200,"s",E194:E200,G194:G200,0),0)+SUMIF(I194:I215,"=NenormMatOtZPR",H194:H215) -> 981 | I194: sum | M194: =ROUND(СУММПРОИЗВЕСЛИ(1,I194:I200,"s",E194:E200,M194:M200,0),2)+SUMIF(I194:I215,"=NenormMatOtZPR",M194:M215) -> 178.8 | N194: =ROUND(СУММПРОИЗВЕСЛИ(F194,I194:I200,"s",E194:E200,M194:M200,0),0)+SUMIF(I194:I215,"=NenormMatOtZPR",N194:N215) -> 33
A195: 10. 1. | B195: 2 | C195: Затраты труда машинистов | D195: чел.-ч | E195: =ОКРУГЛВСЕ(СУММПРОИЗВЕСЛИ(1,K194:K200,"mWithZTM",D194:D200,E194:E200,-1)+СУММКОЭФПРОЦЕНТЕСЛИ(1,1,K194:K200,"mWithZTM_Proch",E194:E200,-1),11) -> 1.36 | F195: =ОКРУГЛВСЕ(СУММПРОИЗВЕСЛИ(1,K194:K200,"mWithZTM",D194:D200,F194:F200,-1)+СУММКОЭФПРОЦЕНТЕСЛИ(1,1,K194:K200,"mWithZTM_Proch",F194:F200,-1),11) -> 0.249968 | G195: =IF(F195=0,0,ROUND(H195/F195,3)) -> 148.019 | H195: =ROUND(СУММЕСЛИДА1НЕ1(L194:L200,"mWithZPM",D194:D200,0,H194:H200),0) -> 37 | J195: Ж | M195: =IF(F195=0,0,ROUND(N195/F195,3)) -> 12.002 | N195: =ROUND(СУММЕСЛИДА1НЕ1(L194:L200,"mWithZPM",D194:D200,0,N194:N200),0) -> 3
A196: 10. 2. | B196: =ПОЛУЧШИФР(Ресурсы!A3,1) -> 0-4001 | C196: =Ресурсы!B3 -> Дорожный рабочий 1 разряда | D196: чел.-ч | E196: 4.08 | F196: =ОКРУГЛВСЕ(IF(E196="",0,E196)*IF(F194="",0,F194),11) -> 0.749904 | G196: =Ресурсы!D3 -> 92.69 | H196: =ROUND(IF(F196="",0,F196)*IF(G196="",0,G196),0) -> 70 | I196: s | J196: Г | M196: =Ресурсы!C3 -> 7.19 | N196: =ROUND(IF(F196="",0,F196)*IF(M196="",0,M196),0) -> 5
A197: 10. 3. | B197: =ПОЛУЧШИФР(Ресурсы!A4,1) -> 0-4002 | C197: =Ресурсы!B4 -> Дорожный рабочий 2 разряда | D197: чел.-ч | E197: 4.08 | F197: =ОКРУГЛВСЕ(IF(E197="",0,E197)*IF(F194="",0,F194),11) -> 0.749904 | G197: =Ресурсы!D4 -> 100.57 | H197: =ROUND(IF(F197="",0,F197)*IF(G197="",0,G197),0) -> 75 | I197: s | J197: Г | M197: =Ресурсы!C4 -> 7.8 | N197: =ROUND(IF(F197="",0,F197)*IF(M197="",0,M197),0) -> 6
A198: 10. 4. | B198: =ПОЛУЧШИФР(Ресурсы!A96,1) -> СЦЭСМ 121550 | C198: =Ресурсы!B96 -> Машины дорожной службы (машина дорожного мастера) | D198: маш.-ч | E198: 1.36 | F198: =ОКРУГЛВСЕ(IF(E198="",0,E198)*IF(F194="",0,F194),11) -> 0.249968 | G198: =Ресурсы!D96 -> 552.55 | H198: =ROUND(IF(F198="",0,F198)*IF(G198="",0,G198),0) -> 138 | I198: s | J198: IsMash | M198: =Ресурсы!C96 -> 86.5 | N198: =ROUND(IF(F198="",0,F198)*IF(M198="",0,M198),0) -> 22
D199: =Ресурсы!G96 -> 1 | G199: =Ресурсы!F96 -> 149.81 | H199: =ROUND(IF(F198="",0,F198)*IF(G199="",0,G199),0) -> 37 | K199: mWithZTM | L199: mWithZPM | M199: =Ресурсы!E96 -> 11.6 | N199: =ROUND(IF(F198="",0,F198)*IF(M199="",0,M199),0) -> 3
A200: 10. 5. | B200: =ПОЛУЧШИФР(Ресурсы!A49,0) -> с407-0024 | C200: =Ресурсы!B49 -> Грунт песчаный, супесчаный | D200: м3 | E200: 11.5 | F200: =ОКРУГЛВСЕ(IF(E200="",0,E200)*IF(F194="",0,F194),11) -> 2.1137 | G200: =ROUND(Ресурсы!D49*Начисления!AV15,2) -> 330.39 | H200: =ROUND(IF(F200="",0,F200)*IF(G200="",0,G200),0) -> 698 | I200: s | J200: IsMater | M200: =ROUND(Ресурсы!C49*Начисления!AV15,2) -> 0 | N200: =ROUND(IF(F200="",0,F200)*IF(M200="",0,M200),0) -> 0
C201: Зарплата рабочих | H201: 145 | N201: 11
C202: Эксплуатация машин | H202: 138 | N202: 22
... 2056 more rows

Sheet Ресурсы
A1: Шифр | B1: Наименование | C1: Цена за единицу | E1: В том числе | G1: Кол-во механизаторов | H1: Tag
C2: базовая | D2: текущая | E2: базовая | F2: текущая
A3: 0-4001 | B3: Дорожный рабочий 1 разряда | C3: 7.19 | D3: 92.69 | G3: 0 | H3: 0
A4: 0-4002 | B4: Дорожный рабочий 2 разряда | C4: 7.8 | D4: 100.57 | G4: 0 | H4: 0
A5: 0-4003 | B5: Дорожный рабочий 3 разряда | C5: 8.53 | D5: 109.94 | G5: 0 | H5: 0
A6: 0-4004 | B6: Дорожный рабочий 4 разряда | C6: 9.62 | D6: 124.02 | G6: 0 | H6: 0
A7: ГЭСН 1-1017 | B7: Рабочий строитель среднего разряда 1,7 | D7: 98.26 | G7: 0 | H7: 0
A8: ГЭСН 1-1025 | B8: Рабочий строитель среднего разряда 2,5 | D8: 105.3 | G8: 0 | H8: 0
A9: 1-1029 | B9: Рабочий строитель среднего разряда 2,9 | D9: 109.01 | G9: 0 | H9: 0
A10: ГЭСН 1-1040 | B10: Рабочий строитель среднего разряда 4 | D10: 124.02 | G10: 0 | H10: 0
A11: ГЭСН 2.0 | B11: Рабочие-строители (средний разряд 2.0) | D11: 100.57 | G11: 0 | H11: 0
A12: ГЭСН 3.0 | B12: Рабочие-строители (средний разряд 3.0) | D12: 109.94 | G12: 0 | H12: 0
A13: ГЭСН 4.0 | B13: Рабочие-строители (средний разряд 4.0) | D13: 124.02 | G13: 0 | H13: 0
A14: 2 | B14: Затраты труда машинистов
A15: ССЦ 101-0782 | B15: Поковки из квадратных заготовок, масса 1,8 кг | D15: 30976.48 | G15: 0 | H15: 0
A16: ССЦ 101-1292 | B16: Уайт-спирит | C16: 6667 | D16: 34168.95 | E16: 6489.2 | G16: 0 | H16: 0
A17: С101-1305 | B17: Портландцемент общестроительного назначения бездобавочный, марки: 400 | D17: 3708.31 | G17: 0 | H17: 0
A18: ССЦ 101-1513 | B18: Электроды диаметром 4 мм Э42 | C18: 10315 | D18: 52025.92 | E18: 10066.36 | G18: 0 | H18: 0
A19: ССЦ 101-1513 | B19: Электроды диаметром 4 мм Э42 | D19: 52025.92 | G19: 0 | H19: 1
A20: С101-1556 | B20: Битумы нефтяные дорожные марки БНД-60/90, БНД-90/130 первый сорт | D20: 14016.54 | G20: 0 | H20: 0
A21: ССЦ 101-1579 | B21: Пленка для дорожных знаков с покрытием обратной стороны клеевым составом | C21: 133601.8 | D21: 681443.95 | E21: 130930.81 | G21: 0 | H21: 0
A22: С101-1627 | B22: Сталь листовая углеродистая обыкновенного качества марки ВСт3пс5 толщиной: 4-6 мм | D22: 28158.12 | G22: 0 | H22: 0
A23: ССЦ 101-1668 | B23: Рогожа | C23: 10.2 | D23: 45.5 | E23: 9.98 | G23: 0 | H23: 0
A24: ССЦ 101-1705 | B24: Пакля пропитанная | C24: 9.04 | D24: 96.97 | E24: 8.82 | G24: 0 | H24: 0
A25: ССЦ 101-1757 | B25: Ветошь | C25: 1.82 | D25: 10.68 | E25: 1.75 | G25: 0 | H25: 0
A26: ССЦ 101-1805 | B26: Гвозди строительные | C26: 11978 | D26: 30959.39 | E26: 11702.98 | G26: 0 | H26: 0
A27: С101-1977 | B27: Болты с гайками и шайбами строительные | D27: 45.19 | G27: 0 | H27: 0
A28: ССЦ 101-2775 | B28: Микросферы стеклянные для дорожной разметки | C28: 437.82 | D28: 23728.81 | E28: 422.06 | G28: 0 | H28: 0
A29: ССЦ 101-2776 | B29: Элементы светоотражающие на барьерные ограждения | C29: 29.86 | D29: 155.03 | E29: 28.78 | G29: 0 | H29: 0
A30: ССЦ 101-2777 | B30: Столбики сигнальные дорожные пластиковые | C30: 43.06 | D30: 223.59 | E30: 41.97 | G30: 0 | H30: 0
A31: С101-3561 | B31: Олифа комбинированная ОКСОЛЬ | D31: 45007.83 | G31: 0 | H31: 0
A32: С101-4289 | B32: Знаки дорожные на оцинкованной подоснове со световозвращающей пленкой: предупреждающие, размером 900х900х900 мм, тип 1.1, 1.2, 1.5-1.33 | D32: 1011.86 | G32: 0 | H32: 0
A33: С101-4432 | B33: Комплект металлоконструкций барьерного ограждения, марка: 11ДО-2,0-190 кДж У2(СД-1,68 Ш12), огрунтованное | D33: 996830.51 | G33: 0 | H33: 0
A34: С101-4959 | B34: Эмульсия битумно-катионная, марка ЭБК-1 | D34: 14602.07 | G34: 0 | H34: 0
A35: ССЦ 101-9402 | B35: Краска полиакриловая для дорожной разметки | D35: 58.47 | G35: 0 | H35: 0
A36: С101-9610-2 | B36: Знаки дорожные информационные индувиального изготовления на оцинкованной подоснове со световозвращающей пленкой типа А | C36: 521.9 | D36: 3220.93 | E36: 521.9 | G36: 0 | H36: 0
A37: ССЦ 102-0025 | B37: Бруски обрезные хвойных пород длиной 4-6,5 м, шириной 75-150 мм, толщиной 40-75 мм, III сорта | D37: 3526.67 | G37: 0 | H37: 0
A38: С102-0084 | B38: Пиломатериалы хвойных пород. Бруски обрезные длиной 2-3,75 м, шириной 75-150 мм, толщиной 40-75 мм II сорта | D38: 4016.21 | G38: 0 | H38: 0
A39: ССЦ 102-0108 | B39: Доски обрезные хвойных пород длиной 2-3,75 м, шириной 75-150 мм, толщиной 19-22 мм, II сорта | C39: 1355 | D39: 4894.26 | E39: 1319.64 | G39: 0 | H39: 0
A40: ССЦ 102-0113 | B40: Доски обрезные хвойных пород длиной 2-3,75 м, шириной 75-150 мм, толщиной 25 мм, III сорта | C40: 1045 | D40: 3774.49 | E40: 1017.73 | G40: 0 | H40: 0
A41: ССЦ 113-0246 | B41: Эмаль ПФ-115 серая | C41: 14312.87 | D41: 64372.5 | E41: 14018.48 | G41: 0 | H41: 0
A42: ССЦ 113-8028 | B42: Эмаль ПФ-115 белая | C42: 12.27 | D42: 58.58 | E42: 12.02 | G42: 0 | H42: 0
A43: ССЦ 113-8029 | B43: Эмаль ПФ-115 цветная | C43: 16.66 | D43: 67.23 | E43: 16.31 | G43: 0 | H43: 0
A44: С201-0841 | B44: Стойки для дорожных знаков со струбцинами | D44: 38.45 | G44: 0 | H44: 0
A45: С403-8021 | B45: Камни бортовые: БР 100.30.15 / бетон В30 (М400), объем 0,043 м3/ (ГОСТ 6665-91) | D45: 439.98 | G45: 0 | H45: 0
A46: С403-8023 | B46: Камни бортовые: БР 100.20.8 / бетон В22,5 (М300), объем 0,016 м3/ (ГОСТ 6665-91) | D46: 184.97 | G46: 0 | H46: 0
A47: С403-8142 | B47: Плитки площадью до 0,1 м2 прямоугольные для покрытия тротуаров и площадок с ровной гладкой поверхностью на цветном цементе, при толщине: 50 мм | D47: 472.51 | G47: 0 | H47: 0
A48: ССЦ 405-0253 | B48: Известь строительная негашеная комовая, сорт I | C48: 734.5 | D48: 2867.94 | E48: 711.93 | G48: 0 | H48: 0
A49: С407-0024 | B49: Грунт песчаный, супесчаный | D49: 330.39 | G49: 0 | H49: 0
A50: С407-0028 | B50: Смесь пескоцементная (цемент М 400) | D50: 1171.86 | G50: 0 | H50: 0
A51: С408-0009 | B51: Щебень из природного камня для строительных работ марка 1000, фракция 5(3)-10 мм | D51: 2007.44 | G51: 0 | H51: 0
A52: С408-0020 | B52: Щебень из природого камня для строительных работ марка 600, фракция 40-70 мм | D52: 1329.33 | G52: 0 | H52: 0
A53: С408-0023 | B53: Щебень из природного камня для строительных работ марка 400, фракция 20-40 мм | D53: 1269.01 | G53: 0 | H53: 0
A54: С408-0023 | B54: Щебень из природного камня для строительных работ марка: 400, фракция 20-40 мм | D54: 1269.01 | G54: 0 | H54: 1
A55: С408-0024 | B55: Щебень из природого камня для строительных работ марка 400, фракция 40-70 мм | D55: 1294.71 | G55: 0 | H55: 0
A56: С408-0122 | B56: Песок природный для строительных работ средний | D56: 333.75 | G56: 0 | H56: 0
A57: С408-0124 | B57: Песок природный для стрительных работ мелкий | D57: 141.55 | G57: 0 | H57: 0
A58: С408-0256 | B58: Материалы из отсевов дробления осадочных горных пород для строитель-ных работ 2 класса марка 1200, размер зерен до 5 мм, очень крупные | D58: 210.57 | G58: 0 | H58: 0
A59: С410-0006 | B59: Смеси асфальтобетонные дорожные, аэродромные и асфальтобетон (горячие и тёплые для плотного асфальтобетона мелко и крупнозернистые, песчаныее), марка II, тип Б | D59: 3607.16 | G59: 0 | H59: 0
A60: С410-0007 | B60: Смеси асфальтобетонные дорожные, аэродромные и асфальтобетон (горячие и тёплые для плотного асфальтобетона мелко и крупнозернистые, песчаныее), марка II, тип B | D60: 3686.48 | G60: 0 | H60: 0
A61: С410-0011 | B61: Смеси асфальтобетонные дорожные, аэродромные и асфальтобетон (горячие и тёплые для плотного асфальтобетона мелко и крупнозернистые, песчаныее), марка III, тип B | D61: 3444.91 | G61: 0 | H61: 0
A62: С410-0013 | B62: Смеси асфальтобетонные дорожные, аэродромные и асфальтобетон (горячие и тёплые для плотного асфальтобетона мелко и крупнозернистые, песчаныее), марка III, тип Д | D62: 2916.1 | G62: 0 | H62: 0
A63: ССЦ 411-0001 | B63: Вода | C63: 2.44 | D63: 10.85 | E63: 0.87 | G63: 0 | H63: 0
A64: ССЦ 411-0001 | B64: Вода | C64: 2.44 | D64: 10.85 | E64: 0.87 | G64: 0 | H64: 1
A65: СЦЭСМ 010311 | B65: Тракторы на гусеничном ходу при работе на других видах строительства 59 кВт (80 л.с.) | D65: 461.77 | F65: 166.8 | G65: 1 | H65: 0
A66: СЦЭСМ 010312 | B66: Тракторы на гусеничном ходу при работе на других видах строительства 79 кВт (108 л.с.) | D66: 501.55 | F66: 178 | G66: 1 | H66: 0
A67: СЦЭСМ 010409 | B67: Тракторы на пневмоколесном ходу при работе на других видах строительства 40 кВт (55 л.с.) | C67: 66.56 | D67: 386.66 | E67: 11.6 | F67: 142.8 | G67: 1 | H67: 0
A68: СЦЭСМ 010410 | B68: Тракторы на пневмоколесном ходу при работе на других видах строительства 59 кВт (80 л.с.) | C68: 74.61 | D68: 437.58 | E68: 13.5 | F68: 166.8 | G68: 1 | H68: 0
A69: СЦЭСМ 021140 | B69: Краны на автомобильном ходу при работе на других видах строительства 6,3 т | C69: 88.01 | D69: 534.98 | E69: 11.6 | F69: 142.8 | G69: 1 | H69: 0
A70: СЦЭСМ 021140 | B70: Краны на автомобильном ходу при работе на других видах строительства 6,3 т | D70: 534.98 | F70: 142.8 | G70: 1 | H70: 1
A71: СЦЭСМ 021141 | B71: Краны на автомобильном ходу при работе на других видах строительства 10 т | D71: 698.31 | F71: 166.8 | G71: 1 | H71: 0
A72: СЦЭСМ 030101 | B72: Автопогрузчики 5 т | D72: 553.5 | F72: 124.21 | G72: 1 | H72: 0
A73: СЦЭСМ 031811 | B73: Погрузчики одноковшовые универсальные фронтальные пневмоколесные 2 т | C73: 85 | D73: 507.45 | E73: 11.6 | F73: 142.8 | G73: 1 | H73: 0
A74: СЦЭСМ 040202 | B74: Агрегаты сварочные передвижные с номинальным сварочным током 250-400 А с дизельным двигателем | C74: 14 | D74: 80.34 | G74: 0 | H74: 0
A75: СЦЭСМ 040202 | B75: Агрегаты сварочные передвижные с номинальным сварочным током 250-400 А с дизельным двигателем | D75: 80.34 | G75: 0 | H75: 1
A76: СЦЭСМ 050101 | B76: Компрессоры передвижные с двигателем внутреннего сгорания давлением до 686 кПа (7 ат), производительность 2,2 м3/мин | C76: 90 | D76: 524.18 | E76: 10.06 | F76: 124.21 | G76: 1 | H76: 0
A77: СЦЭСМ 070149 | B77: Бульдозеры при работе на других видах строительства 79 кВт (108 л.с.) | C77: 80.01 | D77: 612 | E77: 14.4 | F77: 178 | G77: 1 | H77: 0
A78: СЦЭСМ 090111 | B78: Бороны зубовые | D78: 5.07 | G78: 0 | H78: 0
A79: СЦЭСМ 090200 | B79: Грабли кустарниковые навесные (без трактора) | D79: 20.72 | G79: 0 | H79: 0
A80: СЦЭСМ 090520 | B80: Установки навесные для дробления растительности в щепу | C80: 10.27 | D80: 45.17 | G80: 0 | H80: 0
A81: СЦЭСМ 091306 | B81: Плуги четырехкорпусные навесные | D81: 43.22 | G81: 0 | H81: 0
A82: СЦЭСМ 092401 | B82: Косилки прицепные | C82: 10.2 | D82: 40.35 | G82: 0 | H82: 0
A83: СЦЭСМ 092402 | B83: Газонокосилки моторные | C83: 22.5 | D83: 91.41 | G83: 0 | H83: 0
A84: СЦЭСМ 120101 | B84: Автогудронаторы 3500 л | D84: 903.2 | F84: 285.59 | G84: 2 | H84: 0
A85: СЦЭСМ 120202 | B85: Автогрейдеры среднего типа 99 кВт (135 л.с.) | C85: 123 | D85: 958.4 | E85: 13.5 | F85: 166.8 | G85: 1 | H85: 0
A86: СЦЭСМ 120500 | B86: Гудронаторы ручные | C86: 17.2 | D86: 78.09 | G86: 0 | H86: 0
A87: СЦЭСМ 120500 | B87: Гудронаторы ручные | C87: 17.2 | D87: 78.09 | G87: 0 | H87: 1
A88: СЦЭСМ 120901 | B88: Катки дорожные самоходные вибрационные 2,2 т | C88: 36.54 | D88: 267.33 | E88: 10.06 | F88: 124.21 | G88: 1 | H88: 0
A89: СЦЭСМ 120906 | B89: Катки дорожные самоходные гладкие 8 т | C89: 75 | D89: 586.67 | E89: 11.6 | F89: 142.8 | G89: 1 | H89: 0
A90: СЦЭСМ 120906 | B90: Катки дорожные самоходные гладкие 8 т | D90: 586.67 | F90: 142.8 | G90: 1 | H90: 1
A91: СЦЭСМ 120907 | B91: Катки дорожные самоходные гладкие 13 т | D91: 825.8 | F91: 178 | G91: 1 | H91: 0
A92: СЦЭСМ 120910 | B92: Катки на пневмоколесном ходу 16 т | C92: 156.32 | D92: 1194.3 | E92: 14.4 | F92: 178 | G92: 1 | H92: 0
A93: СЦЭСМ 121011 | B93: Котлы битумные передвижные 400 л | C93: 30 | D93: 158.25 | G93: 0 | H93: 0
A94: СЦЭСМ 121342 | B94: Машины дорожные комбинированные, мощностью от 210 до 270 л.с. | C94: 185.95 | D94: 1117.34 | E94: 13.5 | F94: 174.31 | G94: 1 | H94: 0
A95: СЦЭСМ 121343 | B95: Машины дорожные комбинированные, мощностью более 270 л.с. | C95: 245.66 | D95: 1442.91 | E95: 13.5 | F95: 174.31 | G95: 1 | H95: 0
A96: СЦЭСМ 121550 | B96: Машины дорожной службы (машина дорожного мастера) | C96: 86.5 | D96: 552.55 | E96: 11.6 | F96: 149.81 | G96: 1 | H96: 0
A97: СЦЭСМ 121550 | B97: Машины дорожной службы (машина дорожного мастера) | D97: 552.55 | F97: 149.81 | G97: 1 | H97: 1
A98: СЦЭСМ 121601 | B98: Машины поливомоечные 6000 л | D98: 761.25 | F98: 142.8 | G98: 1 | H98: 0
A99: СЦЭСМ 121805 | B99: Установки для ремонта покрытий струйно-инъекционным методом на базе автомобиля | C99: 247.16 | D99: 1494.01 | E99: 27.9 | F99: 360.31 | G99: 2 | H99: 0
A100: СЦЭСМ 122000 | B100: Укладчики асфальтобетона | D100: 1184 | F100: 178 | G100: 1 | H100: 0
A101: СЦЭСМ 122202 | B101: Фрезы навесные без трактора (болотные) | D101: 37.72 | G101: 0 | H101: 0
A102: СЦЭСМ 122203 | B102: Самоходная дорожная холодная фреза шириной фрезерования 500-1000 мм импортного производства | C102: 350 | D102: 2315.02 | E102: 17.4 | F102: 224.66 | G102: 1 | H102: 0
A103: СЦЭСМ 122801 | B103: Виброплита с двигателем внутреннего сгорания | C103: 60 | D103: 347.14 | G103: 0 | H103: 0
A104: СЦЭСМ 122801 | B104: Виброплита с двигателем внутреннего сгорания | D104: 347.14 | G104: 0 | H104: 1
A105: СЦЭСМ 400001 | B105: Автомобили бортовые, грузоподъемность до 5 т | D105: 516.34 | F105: 124.21 | G105: 1 | H105: 0
A106: СЦЭСМ 400052 | B106: Автомобиль-самосвал, грузоподъемность до 10 т | C106: 112.47 | D106: 702 | E106: 13.5 | F106: 142.8 | G106: 1 | H106: 0
A107: СЦЭСМ 400053 | B107: Автомобиль-самосвал, грузоподъемность до 15 т | D107: 741.94 | F107: 142.8 | G107: 1 | H107: 0

Sheet Базовые цены за единицу
B1: C1 | C1: C2 | D1: C3 | E1: C4 | F1: C5 | G1: C6 | H1: VOZVR | I1: C8 | J1: C9 | K1: C10 | L1: C11 | M1: C12 | N1: NAKL | O1: PLAN | P1: NAKL_ZPR | Q1: NAKL_ZPM | R1: PLAN_ZPR | S1: PLAN_ZPM | T1: RN11 | U1: RN12 | V1: RN13 | X1: OBORUD_VSPOMOG | Y1: NAKL_PN | Z1: NAKL_VX | AA1: PLAN_PN | AB1: PLAN_VX | AC1: VTCH_PN | AD1: VTCH_VX | AE1: MR_BY_ZPR_VSPOMOG | AF1: NAKL_INC | AG1: PLAN_INC
B3: N = < ГЭСНс * 2015_s * 13_15_лр >
B4: Автомобильные дороги регионального или межмуниципального значения с допустимым уровнем содержания - норматив "К" 4 категория (ЛЕТНИЕ РАБОТЫ)
A6: ='Форма по МДС 81-35.2004'!A16 -> 1. | B6: ='Форма по МДС 81-35.2004'!M16 -> 25.83 | C6: =ROUND(СУММПРОИЗВЕСЛИ(1,'Форма по МДС 81-35.2004'!J16:J35,"Г",'Форма по МДС 81-35.2004'!E16:E35,'Форма по МДС 81-35.2004'!M16:M35,0),2) -> 0 | D6: =ROUND(СУММПРОИЗВЕСЛИ(1,'Форма по МДС 81-35.2004'!J16:J35,"IsMash",'Форма по МДС 81-35.2004'!E16:E35,'Форма по МДС 81-35.2004'!M16:M35,0),2) -> 25.83 | E6: =ROUND(СУММПРОИЗВЕСЛИ(1,'Форма по МДС 81-35.2004'!J16:J35,"Ж",'Форма по МДС 81-35.2004'!E16:E35,'Форма по МДС 81-35.2004'!M16:M35,0),2) -> 0 | F6: =ROUND(СУММПРОИЗВЕСЛИ(1,'Форма по МДС 81-35.2004'!J16:J35,"IsMater",'Форма по МДС 81-35.2004'!E16:E35,'Форма по МДС 81-35.2004'!M16:M35,0),2) -> 0 | G6: 0 | H6: 0 | I6: =ОКРУГЛВСЕ(SUMIF('Форма по МДС 81-35.2004'!J16:J35,"Г",'Форма по МДС 81-35.2004'!E16:E35),8) -> 0 | J6: 0 | K6: =ОКРУГЛВСЕ(SUMIF('Форма по МДС 81-35.2004'!J16:J35,"Ж",'Форма по МДС 81-35.2004'!E16:E35),8) -> 0.21 | L6: 0 | M6: 0 | N6: 3.02211 | O6: 2.3081688 | P6: 0 | Q6: 0 | R6: 0 | S6: 0 | T6: 0 | U6: 0 | V6: 0 | X6: 0 | Y6: 0 | Z6: 0 | AA6: 0 | AB6: 0 | AC6: 0 | AD6: 0 | AE6: 0
A7: ='Форма по МДС 81-35.2004'!A36 -> 2. | B7: ='Форма по МДС 81-35.2004'!M36 -> 231.35 | C7: =ROUND(СУММПРОИЗВЕСЛИ(1,'Форма по МДС 81-35.2004'!J36:J54,"Г",'Форма по МДС 81-35.2004'!E36:E54,'Форма по МДС 81-35.2004'!M36:M54,0),2) -> 0 | D7: =ROUND(СУММПРОИЗВЕСЛИ(1,'Форма по МДС 81-35.2004'!J36:J54,"IsMash",'Форма по МДС 81-35.2004'!E36:E54,'Форма по МДС 81-35.2004'!M36:M54,0),2) -> 231.35 | E7: =ROUND(СУММПРОИЗВЕСЛИ(1,'Форма по МДС 81-35.2004'!J36:J54,"Ж",'Форма по МДС 81-35.2004'!E36:E54,'Форма по МДС 81-35.2004'!M36:M54,0),2) -> 0 | F7: =ROUND(СУММПРОИЗВЕСЛИ(1,'Форма по МДС 81-35.2004'!J36:J54,"IsMater",'Форма по МДС 81-35.2004'!E36:E54,'Форма по МДС 81-35.2004'!M36:M54,0),2) -> 0 | G7: 0 | H7: 0 | I7: =ОКРУГЛВСЕ(SUMIF('Форма по МДС 81-35.2004'!J36:J54,"Г",'Форма по МДС 81-35.2004'!E36:E54),8) -> 0 | J7: 0 | K7: =ОКРУГЛВСЕ(SUMIF('Форма по МДС 81-35.2004'!J36:J54,"Ж",'Форма по МДС 81-35.2004'!E36:E54),8) -> 1.48 | L7: 0 | M7: 0 | N7: 27.06795 | O7: 20.673436 | P7: 0 | Q7: 0 | R7: 0 | S7: 0 | T7: 0 | U7: 0 | V7: 0 | X7: 0 | Y7: 0 | Z7: 0 | AA7: 0 | AB7: 0 | AC7: 0 | AD7: 0 | AE7: 0
A8: ='Форма по МДС 81-35.2004'!A55 -> 3. | B8: ='Форма по МДС 81-35.2004'!M55 -> 43.73 | C8: =ROUND(СУММПРОИЗВЕСЛИ(1,'Форма по МДС 81-35.2004'!J55:J76,"Г",'Форма по МДС 81-35.2004'!E55:E76,'Форма по МДС 81-35.2004'!M55:M76,0),2) -> 0 | D8: =ROUND(СУММПРОИЗВЕСЛИ(1,'Форма по МДС 81-35.2004'!J55:J76,"IsMash",'Форма по МДС 81-35.2004'!E55:E76,'Форма по МДС 81-35.2004'!M55:M76,0),2) -> 43.73 | E8: =ROUND(СУММПРОИЗВЕСЛИ(1,'Форма по МДС 81-35.2004'!J55:J76,"Ж",'Форма по МДС 81-35.2004'!E55:E76,'Форма по МДС 81-35.2004'!M55:M76,0),2) -> 0 | F8: =ROUND(СУММПРОИЗВЕСЛИ(1,'Форма по МДС 81-35.2004'!J55:J76,"IsMater",'Форма по МДС 81-35.2004'!E55:E76,'Форма по МДС 81-35.2004'!M55:M76,0),2) -> 0 | G8: 0 | H8: 0 | I8: =ОКРУГЛВСЕ(SUMIF('Форма по МДС 81-35.2004'!J55:J76,"Г",'Форма по МДС 81-35.2004'!E55:E76),8) -> 0 | J8: 0 | K8: =ОКРУГЛВСЕ(SUMIF('Форма по МДС 81-35.2004'!J55:J76,"Ж",'Форма по МДС 81-35.2004'!E55:E76),8) -> 0.7 | L8: 0 | M8: 0 | N8: 5.11641 | O8: 3.9077128 | P8: 0 | Q8: 0 | R8: 0 | S8: 0 | T8: 0 | U8: 0 | V8: 0 | X8: 0 | Y8: 0 | Z8: 0 | AA8: 0 | AB8: 0 | AC8: 0 | AD8: 0 | AE8: 0
A9: ='Форма по МДС 81-35.2004'!A77 -> 4. | B9: ='Форма по МДС 81-35.2004'!M77 -> 28.29 | C9: =ROUND(СУММПРОИЗВЕСЛИ(1,'Форма по МДС 81-35.2004'!J77:J95,"Г",'Форма по МДС 81-35.2004'!E77:E95,'Форма по МДС 81-35.2004'!M77:M95,0),2) -> 0 | D9: =ROUND(СУММПРОИЗВЕСЛИ(1,'Форма по МДС 81-35.2004'!J77:J95,"IsMash",'Форма по МДС 81-35.2004'!E77:E95,'Форма по МДС 81-35.2004'!M77:M95,0),2) -> 28.29 | E9: =ROUND(СУММПРОИЗВЕСЛИ(1,'Форма по МДС 81-35.2004'!J77:J95,"Ж",'Форма по МДС 81-35.2004'!E77:E95,'Форма по МДС 81-35.2004'!M77:M95,0),2) -> 3 | F9: =ROUND(СУММПРОИЗВЕСЛИ(1,'Форма по МДС 81-35.2004'!J77:J95,"IsMater",'Форма по МДС 81-35.2004'!E77:E95,'Форма по МДС 81-35.2004'!M77:M95,0),2) -> 0 | G9: 0 | H9: 0 | I9: =ОКРУГЛВСЕ(SUMIF('Форма по МДС 81-35.2004'!J77:J95,"Г",'Форма по МДС 81-35.2004'!E77:E95),8) -> 0 | J9: 0 | K9: =ОКРУГЛВСЕ(SUMIF('Форма по МДС 81-35.2004'!J77:J95,"Ж",'Форма по МДС 81-35.2004'!E77:E95),8) -> 0.23 | L9: 0 | M9: 0 | N9: 3.30993 | O9: 2.5279944 | P9: 0 | Q9: 0 | R9: 0 | S9: 0 | T9: 0 | U9: 0 | V9: 0 | X9: 0 | Y9: 0 | Z9: 0 | AA9: 0 | AB9: 0 | AC9: 0 | AD9: 0 | AE9: 0
A10: ='Форма по МДС 81-35.2004'!A96 -> 5. | B10: ='Форма по МДС 81-35.2004'!M96 -> 117.74 | C10: =ROUND(СУММПРОИЗВЕСЛИ(1,'Форма по МДС 81-35.2004'!J96:J114,"Г",'Форма по МДС 81-35.2004'!E96:E114,'Форма по МДС 81-35.2004'!M96:M114,0),3) -> 117.739 | D10: =ROUND(СУММПРОИЗВЕСЛИ(1,'Форма по МДС 81-35.2004'!J96:J114,"IsMash",'Форма по МДС 81-35.2004'!E96:E114,'Форма по МДС 81-35.2004'!M96:M114,0),3) -> 0 | E10: =ROUND(СУММПРОИЗВЕСЛИ(1,'Форма по МДС 81-35.2004'!J96:J114,"Ж",'Форма по МДС 81-35.2004'!E96:E114,'Форма по МДС 81-35.2004'!M96:M114,0),3) -> 0 | F10: =ROUND(СУММПРОИЗВЕСЛИ(1,'Форма по МДС 81-35.2004'!J96:J114,"IsMater",'Форма по МДС 81-35.2004'!E96:E114,'Форма по МДС 81-35.2004'!M96:M114,0),3) -> 0 | G10: 0 | H10: 0 | I10: =ОКРУГЛВСЕ(SUMIF('Форма по МДС 81-35.2004'!J96:J114,"Г",'Форма по МДС 81-35.2004'!E96:E114),8) -> 14.42 | J10: 0 | K10: =ОКРУГЛВСЕ(SUMIF('Форма по МДС 81-35.2004'!J96:J114,"Ж",'Форма по МДС 81-35.2004'!E96:E114),8) -> 0 | L10: 0 | M10: 0 | N10: 13.77558 | O10: 10.5212464 | P10: 0 | Q10: 0 | R10: 0 | S10: 0 | T10: 0 | U10: 0 | V10: 0 | X10: 0 | Y10: 0 | Z10: 0 | AA10: 0 | AB10: 0 | AC10: 0 | AD10: 0 | AE10: 0
A11: ='Форма по МДС 81-35.2004'!A115 -> 6. | B11: ='Форма по МДС 81-35.2004'!M115 -> 15.27 | C11: =ROUND(СУММПРОИЗВЕСЛИ(1,'Форма по МДС 81-35.2004'!J115:J134,"Г",'Форма по МДС 81-35.2004'!E115:E134,'Форма по МДС 81-35.2004'!M115:M134,0),2) -> 0 | D11: =ROUND(СУММПРОИЗВЕСЛИ(1,'Форма по МДС 81-35.2004'!J115:J134,"IsMash",'Форма по МДС 81-35.2004'!E115:E134,'Форма по МДС 81-35.2004'!M115:M134,0),2) -> 15.27 | E11: =ROUND(СУММПРОИЗВЕСЛИ(1,'Форма по МДС 81-35.2004'!J115:J134,"Ж",'Форма по МДС 81-35.2004'!E115:E134,'Форма по МДС 81-35.2004'!M115:M134,0),2) -> 2.44 | F11: =ROUND(СУММПРОИЗВЕСЛИ(1,'Форма по МДС 81-35.2004'!J115:J134,"IsMater",'Форма по МДС 81-35.2004'!E115:E134,'Форма по МДС 81-35.2004'!M115:M134,0),2) -> 0 | G11: 0 | H11: 0 | I11: =ОКРУГЛВСЕ(SUMIF('Форма по МДС 81-35.2004'!J115:J134,"Г",'Форма по МДС 81-35.2004'!E115:E134),8) -> 0 | J11: 0 | K11: =ОКРУГЛВСЕ(SUMIF('Форма по МДС 81-35.2004'!J115:J134,"Ж",'Форма по МДС 81-35.2004'!E115:E134),8) -> 0.18 | L11: 0 | M11: 0 | N11: 1.78659 | O11: 1.3645272 | P11: 0 | Q11: 0 | R11: 0 | S11: 0 | T11: 0 | U11: 0 | V11: 0 | X11: 0 | Y11: 0 | Z11: 0 | AA11: 0 | AB11: 0 | AC11: 0 | AD11: 0 | AE11: 0
A12: ='Форма по МДС 81-35.2004'!A135 -> 7. | B12: ='Форма по МДС 81-35.2004'!M135 -> 0.94 | C12: =ROUND(СУММПРОИЗВЕСЛИ(1,'Форма по МДС 81-35.2004'!J135:J152,"Г",'Форма по МДС 81-35.2004'!E135:E152,'Форма по МДС 81-35.2004'!M135:M152,0),3) -> 0.936 | D12: =ROUND(СУММПРОИЗВЕСЛИ(1,'Форма по МДС 81-35.2004'!J135:J152,"IsMash",'Форма по МДС 81-35.2004'!E135:E152,'Форма по МДС 81-35.2004'!M135:M152,0),3) -> 0 | E12: =ROUND(СУММПРОИЗВЕСЛИ(1,'Форма по МДС 81-35.2004'!J135:J152,"Ж",'Форма по МДС 81-35.2004'!E135:E152,'Форма по МДС 81-35.2004'!M135:M152,0),3) -> 0 | F12: =ROUND(СУММПРОИЗВЕСЛИ(1,'Форма по МДС 81-35.2004'!J135:J152,"IsMater",'Форма по МДС 81-35.2004'!E135:E152,'Форма по МДС 81-35.2004'!M135:M152,0),3) -> 0 | G12: 0 | H12: 0 | I12: =ОКРУГЛВСЕ(SUMIF('Форма по МДС 81-35.2004'!J135:J152,"Г",'Форма по МДС 81-35.2004'!E135:E152),8) -> 0.12 | J12: 0 | K12: =ОКРУГЛВСЕ(SUMIF('Форма по МДС 81-35.2004'!J135:J152,"Ж",'Форма по МДС 81-35.2004'!E135:E152),8) -> 0 | L12: 0 | M12: 0 | N12: 0.10998 | O12: 0.0839984 | P12: 0 | Q12: 0 | R12: 0 | S12: 0 | T12: 0 | U12: 0 | V12: 0 | X12: 0 | Y12: 0 | Z12: 0 | AA12: 0 | AB12: 0 | AC12: 0 | AD12: 0 | AE12: 0
A13: ='Форма по МДС 81-35.2004'!A153 -> 8. | B13: ='Форма по МДС 81-35.2004'!M153 -> 2645.55 | C13: =ROUND(СУММПРОИЗВЕСЛИ(1,'Форма по МДС 81-35.2004'!J153:J173,"Г",'Форма по МДС 81-35.2004'!E153:E173,'Форма по МДС 81-35.2004'!M153:M173,0),2) -> 1950 | D13: =ROUND(СУММПРОИЗВЕСЛИ(1,'Форма по МДС 81-35.2004'!J153:J173,"IsMash",'Форма по МДС 81-35.2004'!E153:E173,'Форма по МДС 81-35.2004'!M153:M173,0),2) -> 695.55 | E13: =ROUND(СУММПРОИЗВЕСЛИ(1,'Форма по МДС 81-35.2004'!J153:J173,"Ж",'Форма по МДС 81-35.2004'!E153:E173,'Форма по МДС 81-35.2004'!M153:M173,0),2) -> 100 | F13: =ROUND(СУММПРОИЗВЕСЛИ(1,'Форма по МДС 81-35.2004'!J153:J173,"IsMater",'Форма по МДС 81-35.2004'!E153:E173,'Форма по МДС 81-35.2004'!M153:M173,0),2) -> 0 | G13: 0 | H13: 0 | I13: =ОКРУГЛВСЕ(SUMIF('Форма по МДС 81-35.2004'!J153:J173,"Г",'Форма по МДС 81-35.2004'!E153:E173),8) -> 250 | J13: 0 | K13: =ОКРУГЛВСЕ(SUMIF('Форма по МДС 81-35.2004'!J153:J173,"Ж",'Форма по МДС 81-35.2004'!E153:E173),8) -> 10.45 | L13: 0 | M13: 0 | N13: 309.52935 | O13: 236.406348 | P13: 0 | Q13: 0 | R13: 0 | S13: 0 | T13: 0 | U13: 0 | V13: 0 | X13: 0 | Y13: 0 | Z13: 0 | AA13: 0 | AB13: 0 | AC13: 0 | AD13: 0 | AE13: 0
A14: ='Форма по МДС 81-35.2004'!A174 -> 9. | B14: ='Форма по МДС 81-35.2004'!M174 -> 21.6 | C14: =ROUND(СУММПРОИЗВЕСЛИ(1,'Форма по МДС 81-35.2004'!J174:J192,"Г",'Форма по МДС 81-35.2004'!E174:E192,'Форма по МДС 81-35.2004'!M174:M192,0),2) -> 0 | D14: =ROUND(СУММПРОИЗВЕСЛИ(1,'Форма по МДС 81-35.2004'!J174:J192,"IsMash",'Форма по МДС 81-35.2004'!E174:E192,'Форма по МДС 81-35.2004'!M174:M192,0),2) -> 21.6 | E14: =ROUND(СУММПРОИЗВЕСЛИ(1,'Форма по МДС 81-35.2004'!J174:J192,"Ж",'Форма по МДС 81-35.2004'!E174:E192,'Форма по МДС 81-35.2004'!M174:M192,0),2) -> 4 | F14: =ROUND(СУММПРОИЗВЕСЛИ(1,'Форма по МДС 81-35.2004'!J174:J192,"IsMater",'Форма по МДС 81-35.2004'!E174:E192,'Форма по МДС 81-35.2004'!M174:M192,0),2) -> 0 | G14: 0 | H14: 0 | I14: =ОКРУГЛВСЕ(SUMIF('Форма по МДС 81-35.2004'!J174:J192,"Г",'Форма по МДС 81-35.2004'!E174:E192),8) -> 0 | J14: 0 | K14: =ОКРУГЛВСЕ(SUMIF('Форма по МДС 81-35.2004'!J174:J192,"Ж",'Форма по МДС 81-35.2004'!E174:E192),8) -> 0.27 | L14: 0 | M14: 0 | N14: 2.5272 | O14: 1.930176 | P14: 0 | Q14: 0 | R14: 0 | S14: 0 | T14: 0 | U14: 0 | V14: 0 | X14: 0 | Y14: 0 | Z14: 0 | AA14: 0 | AB14: 0 | AC14: 0 | AD14: 0 | AE14: 0
A15: ='Форма по МДС 81-35.2004'!A194 -> 10. | B15: ='Форма по МДС 81-35.2004'!M194 -> 178.8 | C15: =ROUND(СУММПРОИЗВЕСЛИ(1,'Форма по МДС 81-35.2004'!J194:J215,"Г",'Форма по МДС 81-35.2004'!E194:E215,'Форма по МДС 81-35.2004'!M194:M215,0),2) -> 61.16 | D15: =ROUND(СУММПРОИЗВЕСЛИ(1,'Форма по МДС 81-35.2004'!J194:J215,"IsMash",'Форма по МДС 81-35.2004'!E194:E215,'Форма по МДС 81-35.2004'!M194:M215,0),2) -> 117.64 | E15: =ROUND(СУММПРОИЗВЕСЛИ(1,'Форма по МДС 81-35.2004'!J194:J215,"Ж",'Форма по МДС 81-35.2004'!E194:E215,'Форма по МДС 81-35.2004'!M194:M215,0),2) -> 16.32 | F15: =ROUND(СУММПРОИЗВЕСЛИ(1,'Форма по МДС 81-35.2004'!J194:J215,"IsMater",'Форма по МДС 81-35.2004'!E194:E215,'Форма по МДС 81-35.2004'!M194:M215,0),2) -> 0 | G15: 0 | H15: 0 | I15: =ОКРУГЛВСЕ(SUMIF('Форма по МДС 81-35.2004'!J194:J215,"Г",'Форма по МДС 81-35.2004'!E194:E215),8) -> 8.16 | J15: 0 | K15: =ОКРУГЛВСЕ(SUMIF('Форма по МДС 81-35.2004'!J194:J215,"Ж",'Форма по МДС 81-35.2004'!E194:E215),8) -> 1.36 | L15: 0 | M15: 0 | N15: 20.9196 | O15: 15.977568 | P15: 0 | Q15: 0 | R15: 0 | S15: 0 | T15: 0 | U15: 0 | V15: 0 | X15: 0 | Y15: 0 | Z15: 0 | AA15: 0 | AB15: 0 | AC15: 0 | AD15: 0 | AE15: 0
A16: ='Форма по МДС 81-35.2004'!A216 -> 11. | B16: ='Форма по МДС 81-35.2004'!M216 -> 79.95 | C16: =ROUND(СУММПРОИЗВЕСЛИ(1,'Форма по МДС 81-35.2004'!J216:J234,"Г",'Форма по МДС 81-35.2004'!E216:E234,'Форма по МДС 81-35.2004'!M216:M234,0),2) -> 0 | D16: =ROUND(СУММПРОИЗВЕСЛИ(1,'Форма по МДС 81-35.2004'!J216:J234,"IsMash",'Форма по МДС 81-35.2004'!E216:E234,'Форма по МДС 81-35.2004'!M216:M234,0),2) -> 79.95 | E16: =ROUND(СУММПРОИЗВЕСЛИ(1,'Форма по МДС 81-35.2004'!J216:J234,"Ж",'Форма по МДС 81-35.2004'!E216:E234,'Форма по МДС 81-35.2004'!M216:M234,0),2) -> 8.33 | F16: =ROUND(СУММПРОИЗВЕСЛИ(1,'Форма по МДС 81-35.2004'!J216:J234,"IsMater",'Форма по МДС 81-35.2004'!E216:E234,'Форма по МДС 81-35.2004'!M216:M234,0),2) -> 0 | G16: 0 | H16: 0 | I16: =ОКРУГЛВСЕ(SUMIF('Форма по МДС 81-35.2004'!J216:J234,"Г",'Форма по МДС 81-35.2004'!E216:E234),8) -> 0 | J16: 0 | K16: =ОКРУГЛВСЕ(SUMIF('Форма по МДС 81-35.2004'!J216:J234,"Ж",'Форма по МДС 81-35.2004'!E216:E234),8) -> 0.65 | L16: 0 | M16: 0 | N16: 9.35415 | O16: 7.144332 | P16: 0 | Q16: 0 | R16: 0 | S16: 0 | T16: 0 | U16: 0 | V16: 0 | X16: 0 | Y16: 0 | Z16: 0 | AA16: 0 | AB16: 0 | AC16: 0 | AD16: 0 | AE16: 0
A17: ='Форма по МДС 81-35.2004'!A235 -> 12. | B17: ='Форма по МДС 81-35.2004'!M235 -> 15.27 | C17: =ROUND(СУММПРОИЗВЕСЛИ(1,'Форма по МДС 81-35.2004'!J235:J254,"Г",'Форма по МДС 81-35.2004'!E235:E254,'Форма по МДС 81-35.2004'!M235:M254,0),2) -> 0 | D17: =ROUND(СУММПРОИЗВЕСЛИ(1,'Форма по МДС 81-35.2004'!J235:J254,"IsMash",'Форма по МДС 81-35.2004'!E235:E254,'Форма по МДС 81-35.2004'!M235:M254,0),2) -> 15.27 | E17: =ROUND(СУММПРОИЗВЕСЛИ(1,'Форма по МДС 81-35.2004'!J235:J254,"Ж",'Форма по МДС 81-35.2004'!E235:E254,'Форма по МДС 81-35.2004'!M235:M254,0),2) -> 2.44 | F17: =ROUND(СУММПРОИЗВЕСЛИ(1,'Форма по МДС 81-35.2004'!J235:J254,"IsMater",'Форма по МДС 81-35.2004'!E235:E254,'Форма по МДС 81-35.2004'!M235:M254,0),2) -> 0 | G17: 0 | H17: 0 | I17: =ОКРУГЛВСЕ(SUMIF('Форма по МДС 81-35.2004'!J235:J254,"Г",'Форма по МДС 81-35.2004'!E235:E254),8) -> 0 | J17: 0 | K17: =ОКРУГЛВСЕ(SUMIF('Форма по МДС 81-35.2004'!J235:J254,"Ж",'Форма по МДС 81-35.2004'!E235:E254),8) -> 0.18 | L17: 0 | M17: 0 | N17: 1.78659 | O17: 1.3645272 | P17: 0 | Q17: 0 | R17: 0 | S17: 0 | T17: 0 | U17: 0 | V17: 0 | X17: 0 | Y17: 0 | Z17: 0 | AA17: 0 | AB17: 0 | AC17: 0 | AD17: 0 | AE17: 0
A18: ='Форма по МДС 81-35.2004'!A255 -> 13. | B18: ='Форма по МДС 81-35.2004'!M255 -> 1977.2 | C18: =ROUND(СУММПРОИЗВЕСЛИ(1,'Форма по МДС 81-35.2004'!J255:J273,"Г",'Форма по МДС 81-35.2004'!E255:E273,'Форма по МДС 81-35.2004'!M255:M273,0),3) -> 1977.198 | D18: =ROUND(СУММПРОИЗВЕСЛИ(1,'Форма по МДС 81-35.2004'!J255:J273,"IsMash",'Форма по МДС 81-35.2004'!E255:E273,'Форма по МДС 81-35.2004'!M255:M273,0),3) -> 0 | E18: =ROUND(СУММПРОИЗВЕСЛИ(1,'Форма по МДС 81-35.2004'!J255:J273,"Ж",'Форма по МДС 81-35.2004'!E255:E273,'Форма по МДС 81-35.2004'!M255:M273,0),3) -> 0 | F18: =ROUND(СУММПРОИЗВЕСЛИ(1,'Форма по МДС 81-35.2004'!J255:J273,"IsMater",'Форма по МДС 81-35.2004'!E255:E273,'Форма по МДС 81-35.2004'!M255:M273,0),3) -> 0 | G18: 0 | H18: 0 | I18: =ОКРУГЛВСЕ(SUMIF('Форма по МДС 81-35.2004'!J255:J273,"Г",'Форма по МДС 81-35.2004'!E255:E273),8) -> 241.44 | J18: 0 | K18: =ОКРУГЛВСЕ(SUMIF('Форма по МДС 81-35.2004'!J255:J273,"Ж",'Форма по МДС 81-35.2004'!E255:E273),8) -> 0 | L18: 0 | M18: 0 | N18: 231.3324 | O18: 176.682592 | P18: 0 | Q18: 0 | R18: 0 | S18: 0 | T18: 0 | U18: 0 | V18: 0 | X18: 0 | Y18: 0 | Z18: 0 | AA18: 0 | AB18: 0 | AC18: 0 | AD18: 0 | AE18: 0
A19: ='Форма по МДС 81-35.2004'!A274 -> 14. | B19: ='Форма по МДС 81-35.2004'!M274 -> 8508.02 | C19: =ROUND(СУММПРОИЗВЕСЛИ(1,'Форма по МДС 81-35.2004'!J274:J294,"Г",'Форма по МДС 81-35.2004'!E274:E294,'Форма по МДС 81-35.2004'!M274:M294,0),2) -> 716.04 | D19: =ROUND(СУММПРОИЗВЕСЛИ(1,'Форма по МДС 81-35.2004'!J274:J294,"IsMash",'Форма по МДС 81-35.2004'!E274:E294,'Форма по МДС 81-35.2004'!M274:M294,0),2) -> 7791.98 | E19: =ROUND(СУММПРОИЗВЕСЛИ(1,'Форма по МДС 81-35.2004'!J274:J294,"Ж",'Форма по МДС 81-35.2004'!E274:E294,'Форма по МДС 81-35.2004'!M274:M294,0),2) -> 1233.33 | F19: =ROUND(СУММПРОИЗВЕСЛИ(1,'Форма по МДС 81-35.2004'!J274:J294,"IsMater",'Форма по МДС 81-35.2004'!E274:E294,'Форма по МДС 81-35.2004'!M274:M294,0),2) -> 0 | G19: 0 | H19: 0 | I19: =ОКРУГЛВСЕ(SUMIF('Форма по МДС 81-35.2004'!J274:J294,"Г",'Форма по МДС 81-35.2004'!E274:E294),8) -> 91.8 | J19: 0 | K19: =ОКРУГЛВСЕ(SUMIF('Форма по МДС 81-35.2004'!J274:J294,"Ж",'Форма по МДС 81-35.2004'!E274:E294),8) -> 91.8 | L19: 0 | M19: 0 | N19: 995.43834 | O19: 760.2766672 | P19: 0 | Q19: 0 | R19: 0 | S19: 0 | T19: 0 | U19: 0 | V19: 0 | X19: 0 | Y19: 0 | Z19: 0 | AA19: 0 | AB19: 0 | AC19: 0 | AD19: 0 | AE19: 0
A20: ='Форма по МДС 81-35.2004'!A295 -> 15. | B20: ='Форма по МДС 81-35.2004'!M295 -> 4.29 | C20: =ROUND(СУММПРОИЗВЕСЛИ(1,'Форма по МДС 81-35.2004'!J295:J312,"Г",'Форма по МДС 81-35.2004'!E295:E312,'Форма по МДС 81-35.2004'!M295:M312,0),3) -> 4.29 | D20: =ROUND(СУММПРОИЗВЕСЛИ(1,'Форма по МДС 81-35.2004'!J295:J312,"IsMash",'Форма по МДС 81-35.2004'!E295:E312,'Форма по МДС 81-35.2004'!M295:M312,0),3) -> 0 | E20: =ROUND(СУММПРОИЗВЕСЛИ(1,'Форма по МДС 81-35.2004'!J295:J312,"Ж",'Форма по МДС 81-35.2004'!E295:E312,'Форма по МДС 81-35.2004'!M295:M312,0),3) -> 0 | F20: =ROUND(СУММПРОИЗВЕСЛИ(1,'Форма по МДС 81-35.2004'!J295:J312,"IsMater",'Форма по МДС 81-35.2004'!E295:E312,'Форма по МДС 81-35.2004'!M295:M312,0),3) -> 0 | G20: 0 | H20: 0 | I20: =ОКРУГЛВСЕ(SUMIF('Форма по МДС 81-35.2004'!J295:J312,"Г",'Форма по МДС 81-35.2004'!E295:E312),8) -> 0.55 | J20: 0 | K20: =ОКРУГЛВСЕ(SUMIF('Форма по МДС 81-35.2004'!J295:J312,"Ж",'Форма по МДС 81-35.2004'!E295:E312),8) -> 0 | L20: 0 | M20: 0 | N20: 0.50193 | O20: 0.3833544 | P20: 0 | Q20: 0 | R20: 0 | S20: 0 | T20: 0 | U20: 0 | V20: 0 | X20: 0 | Y20: 0 | Z20: 0 | AA20: 0 | AB20: 0 | AC20: 0 | AD20: 0 | AE20: 0
A21: ='Форма по МДС 81-35.2004'!A313 -> 16. | B21: ='Форма по МДС 81-35.2004'!M313 -> 822.16 | C21: =ROUND(СУММПРОИЗВЕСЛИ(1,'Форма по МДС 81-35.2004'!J313:J331,"Г",'Форма по МДС 81-35.2004'!E313:E331,'Форма по МДС 81-35.2004'!M313:M331,0),2) -> 0 | D21: =ROUND(СУММПРОИЗВЕСЛИ(1,'Форма по МДС 81-35.2004'!J313:J331,"IsMash",'Форма по МДС 81-35.2004'!E313:E331,'Форма по МДС 81-35.2004'!M313:M331,0),2) -> 822.16 | E21: =ROUND(СУММПРОИЗВЕСЛИ(1,'Форма по МДС 81-35.2004'!J313:J331,"Ж",'Форма по МДС 81-35.2004'!E313:E331,'Форма по МДС 81-35.2004'!M313:M331,0),2) -> 0 | F21: =ROUND(СУММПРОИЗВЕСЛИ(1,'Форма по МДС 81-35.2004'!J313:J331,"IsMater",'Форма по МДС 81-35.2004'!E313:E331,'Форма по МДС 81-35.2004'!M313:M331,0),2) -> 0 | G21: 0 | H21: 0 | I21: =ОКРУГЛВСЕ(SUMIF('Форма по МДС 81-35.2004'!J313:J331,"Г",'Форма по МДС 81-35.2004'!E313:E331),8) -> 0 | J21: 0 | K21: =ОКРУГЛВСЕ(SUMIF('Форма по МДС 81-35.2004'!J313:J331,"Ж",'Форма по МДС 81-35.2004'!E313:E331),8) -> 0 | L21: 0 | M21: 0 | N21: 96.19272 | O21: 73.4682176 | P21: 0 | Q21: 0 | R21: 0 | S21: 0 | T21: 0 | U21: 0 | V21: 0 | X21: 0 | Y21: 0 | Z21: 0 | AA21: 0 | AB21: 0 | AC21: 0 | AD21: 0 | AE21: 0
A22: ='Форма по МДС 81-35.2004'!A332 -> 17. | B22: ='Форма по МДС 81-35.2004'!M332 -> 65.23 | C22: =ROUND(СУММПРОИЗВЕСЛИ(1,'Форма по МДС 81-35.2004'!J332:J351,"Г",'Форма по МДС 81-35.2004'!E332:E351,'Форма по МДС 81-35.2004'!M332:M351,0),2) -> 0 | D22: =ROUND(СУММПРОИЗВЕСЛИ(1,'Форма по МДС 81-35.2004'!J332:J351,"IsMash",'Форма по МДС 81-35.2004'!E332:E351,'Форма по МДС 81-35.2004'!M332:M351,0),2) -> 65.23 | E22: =ROUND(СУММПРОИЗВЕСЛИ(1,'Форма по МДС 81-35.2004'!J332:J351,"Ж",'Форма по МДС 81-35.2004'!E332:E351,'Форма по МДС 81-35.2004'!M332:M351,0),2) -> 0 | F22: =ROUND(СУММПРОИЗВЕСЛИ(1,'Форма по МДС 81-35.2004'!J332:J351,"IsMater",'Форма по МДС 81-35.2004'!E332:E351,'Форма по МДС 81-35.2004'!M332:M351,0),2) -> 0 | G22: 0 | H22: 0 | I22: =ОКРУГЛВСЕ(SUMIF('Форма по МДС 81-35.2004'!J332:J351,"Г",'Форма по МДС 81-35.2004'!E332:E351),8) -> 0 | J22: 0 | K22: =ОКРУГЛВСЕ(SUMIF('Форма по МДС 81-35.2004'!J332:J351,"Ж",'Форма по МДС 81-35.2004'!E332:E351),8) -> 0 | L22: 0 | M22: 0 | N22: 7.63191 | O22: 5.8289528 | P22: 0 | Q22: 0 | R22: 0 | S22: 0 | T22: 0 | U22: 0 | V22: 0 | X22: 0 | Y22: 0 | Z22: 0 | AA22: 0 | AB22: 0 | AC22: 0 | AD22: 0 | AE22: 0
A23: ='Форма по МДС 81-35.2004'!A352 -> 18. | B23: ='Форма по МДС 81-35.2004'!M352 -> 25.08 | C23: =ROUND(СУММПРОИЗВЕСЛИ(1,'Форма по МДС 81-35.2004'!J352:J371,"Г",'Форма по МДС 81-35.2004'!E352:E371,'Форма по МДС 81-35.2004'!M352:M371,0),2) -> 8.35 | D23: =ROUND(СУММПРОИЗВЕСЛИ(1,'Форма по МДС 81-35.2004'!J352:J371,"IsMash",'Форма по МДС 81-35.2004'!E352:E371,'Форма по МДС 81-35.2004'!M352:M371,0),2) -> 16.74 | E23: =ROUND(СУММПРОИЗВЕСЛИ(1,'Форма по МДС 81-35.2004'!J352:J371,"Ж",'Форма по МДС 81-35.2004'!E352:E371,'Форма по МДС 81-35.2004'!M352:M371,0),2) -> 1.19 | F23: =ROUND(СУММПРОИЗВЕСЛИ(1,'Форма по МДС 81-35.2004'!J352:J371,"IsMater",'Форма по МДС 81-35.2004'!E352:E371,'Форма по МДС 81-35.2004'!M352:M371,0),2) -> 0 | G23: 0 | H23: 0 | I23: =ОКРУГЛВСЕ(SUMIF('Форма по МДС 81-35.2004'!J352:J371,"Г",'Форма по МДС 81-35.2004'!E352:E371),8) -> 1.07 | J23: 0 | K23: =ОКРУГЛВСЕ(SUMIF('Форма по МДС 81-35.2004'!J352:J371,"Ж",'Форма по МДС 81-35.2004'!E352:E371),8) -> 0.09 | L23: 0 | M23: 0 | N23: 2.93436 | O23: 2.2411488 | P23: 0 | Q23: 0 | R23: 0 | S23: 0 | T23: 0 | U23: 0 | V23: 0 | X23: 0 | Y23: 0 | Z23: 0 | AA23: 0 | AB23: 0 | AC23: 0 | AD23: 0 | AE23: 0
A24: ='Форма по МДС 81-35.2004'!A372 -> 19. | B24: ='Форма по МДС 81-35.2004'!M372 -> 0 | C24: =ROUND(СУММПРОИЗВЕСЛИ(1,'Форма по МДС 81-35.2004'!J372:J396,"Г",'Форма по МДС 81-35.2004'!E372:E396,'Форма по МДС 81-35.2004'!M372:M396,0),2) -> 0 | D24: =ROUND(СУММПРОИЗВЕСЛИ(1,'Форма по МДС 81-35.2004'!J372:J396,"IsMash",'Форма по МДС 81-35.2004'!E372:E396,'Форма по МДС 81-35.2004'!M372:M396,0),2) -> 0 | E24: =ROUND(СУММПРОИЗВЕСЛИ(1,'Форма по МДС 81-35.2004'!J372:J396,"Ж",'Форма по МДС 81-35.2004'!E372:E396,'Форма по МДС 81-35.2004'!M372:M396,0),2) -> 0 | F24: =ROUND(СУММПРОИЗВЕСЛИ(1,'Форма по МДС 81-35.2004'!J372:J396,"IsMater",'Форма по МДС 81-35.2004'!E372:E396,'Форма по МДС 81-35.2004'!M372:M396,0),2) -> 0 | G24: 0 | H24: 0 | I24: =ОКРУГЛВСЕ(SUMIF('Форма по МДС 81-35.2004'!J372:J396,"Г",'Форма по МДС 81-35.2004'!E372:E396),8) -> 0 | J24: 0 | K24: =ОКРУГЛВСЕ(SUMIF('Форма по МДС 81-35.2004'!J372:J396,"Ж",'Форма по МДС 81-35.2004'!E372:E396),8) -> 18.65 | L24: 0 | M24: 0 | N24: 0 | O24: 0 | P24: 0 | Q24: 0 | R24: 0 | S24: 0 | T24: 0 | U24: 0 | V24: 0 | X24: 0 | Y24: 0 | Z24: 0 | AA24: 0 | AB24: 0 | AC24: 0 | AD24: 0 | AE24: 0
A25: ='Форма по МДС 81-35.2004'!A398 -> 20. | B25: ='Форма по МДС 81-35.2004'!M398 -> 5.62 | C25: =ROUND(СУММПРОИЗВЕСЛИ(1,'Форма по МДС 81-35.2004'!J398:J416,"Г",'Форма по МДС 81-35.2004'!E398:E416,'Форма по МДС 81-35.2004'!M398:M416,0),3) -> 5.616 | D25: =ROUND(СУММПРОИЗВЕСЛИ(1,'Форма по МДС 81-35.2004'!J398:J416,"IsMash",'Форма по МДС 81-35.2004'!E398:E416,'Форма по МДС 81-35.2004'!M398:M416,0),3) -> 0 | E25: =ROUND(СУММПРОИЗВЕСЛИ(1,'Форма по МДС 81-35.2004'!J398:J416,"Ж",'Форма по МДС 81-35.2004'!E398:E416,'Форма по МДС 81-35.2004'!M398:M416,0),3) -> 0 | F25: =ROUND(СУММПРОИЗВЕСЛИ(1,'Форма по МДС 81-35.2004'!J398:J416,"IsMater",'Форма по МДС 81-35.2004'!E398:E416,'Форма по МДС 81-35.2004'!M398:M416,0),3) -> 0 | G25: 0 | H25: 0 | I25: =ОКРУГЛВСЕ(SUMIF('Форма по МДС 81-35.2004'!J398:J416,"Г",'Форма по МДС 81-35.2004'!E398:E416),8) -> 0.72 | J25: 0 | K25: =ОКРУГЛВСЕ(SUMIF('Форма по МДС 81-35.2004'!J398:J416,"Ж",'Форма по МДС 81-35.2004'!E398:E416),8) -> 0 | L25: 0 | M25: 0 | N25: 0.65754 | O25: 0.5022032 | P25: 0 | Q25: 0 | R25: 0 | S25: 0 | T25: 0 | U25: 0 | V25: 0 | X25: 0 | Y25: 0 | Z25: 0 | AA25: 0 | AB25: 0 | AC25: 0 | AD25: 0 | AE25: 0
A26: ='Форма по МДС 81-35.2004'!A417 -> 21. | B26: ='Форма по МДС 81-35.2004'!M417 -> 120.47 | C26: =ROUND(СУММПРОИЗВЕСЛИ(1,'Форма по МДС 81-35.2004'!J417:J436,"Г",'Форма по МДС 81-35.2004'!E417:E436,'Форма по МДС 81-35.2004'!M417:M436,0),2) -> 41.72 | D26: =ROUND(СУММПРОИЗВЕСЛИ(1,'Форма по МДС 81-35.2004'!J417:J436,"IsMash",'Форма по МДС 81-35.2004'!E417:E436,'Форма по МДС 81-35.2004'!M417:M436,0),2) -> 78.75 | E26: =ROUND(СУММПРОИЗВЕСЛИ(1,'Форма по МДС 81-35.2004'!J417:J436,"Ж",'Форма по МДС 81-35.2004'!E417:E436,'Форма по МДС 81-35.2004'!M417:M436,0),2) -> 0 | F26: =ROUND(СУММПРОИЗВЕСЛИ(1,'Форма по МДС 81-35.2004'!J417:J436,"IsMater",'Форма по МДС 81-35.2004'!E417:E436,'Форма по МДС 81-35.2004'!M417:M436,0),2) -> 0 | G26: 0 | H26: 0 | I26: =ОКРУГЛВСЕ(SUMIF('Форма по МДС 81-35.2004'!J417:J436,"Г",'Форма по МДС 81-35.2004'!E417:E436),8) -> 5.15 | J26: 0 | K26: =ОКРУГЛВСЕ(SUMIF('Форма по МДС 81-35.2004'!J417:J436,"Ж",'Форма по МДС 81-35.2004'!E417:E436),8) -> 0 | L26: 0 | M26: 0 | N26: 14.09499 | O26: 10.7651992 | P26: 0 | Q26: 0 | R26: 0 | S26: 0 | T26: 0 | U26: 0 | V26: 0 | X26: 0 | Y26: 0 | Z26: 0 | AA26: 0 | AB26: 0 | AC26: 0 | AD26: 0 | AE26: 0
A27: ='Форма по МДС 81-35.2004'!A437 -> 22. | B27: ='Форма по МДС 81-35.2004'!M437 -> 35.67 | C27: =ROUND(СУММПРОИЗВЕСЛИ(1,'Форма по МДС 81-35.2004'!J437:J455,"Г",'Форма по МДС 81-35.2004'!E437:E455,'Форма по МДС 81-35.2004'!M437:M455,0),2) -> 0 | D27: =ROUND(СУММПРОИЗВЕСЛИ(1,'Форма по МДС 81-35.2004'!J437:J455,"IsMash",'Форма по МДС 81-35.2004'!E437:E455,'Форма по МДС 81-35.2004'!M437:M455,0),2) -> 35.67 | E27: =ROUND(СУММПРОИЗВЕСЛИ(1,'Форма по МДС 81-35.2004'!J437:J455,"Ж",'Форма по МДС 81-35.2004'!E437:E455,'Форма по МДС 81-35.2004'!M437:M455,0),2) -> 4 | F27: =ROUND(СУММПРОИЗВЕСЛИ(1,'Форма по МДС 81-35.2004'!J437:J455,"IsMater",'Форма по МДС 81-35.2004'!E437:E455,'Форма по МДС 81-35.2004'!M437:M455,0),2) -> 0 | G27: 0 | H27: 0 | I27: =ОКРУГЛВСЕ(SUMIF('Форма по МДС 81-35.2004'!J437:J455,"Г",'Форма по МДС 81-35.2004'!E437:E455),8) -> 0 | J27: 0 | K27: =ОКРУГЛВСЕ(SUMIF('Форма по МДС 81-35.2004'!J437:J455,"Ж",'Форма по МДС 81-35.2004'!E437:E455),8) -> 0.29 | L27: 0 | M27: 0 | N27: 4.17339 | O27: 3.1874712 | P27: 0 | Q27: 0 | R27: 0 | S27: 0 | T27: 0 | U27: 0 | V27: 0 | X27: 0 | Y27: 0 | Z27: 0 | AA27: 0 | AB27: 0 | AC27: 0 | AD27: 0 | AE27: 0
A28: ='Форма по МДС 81-35.2004'!A457 -> 23. | B28: ='Форма по МДС 81-35.2004'!M457 -> 78.1 | C28: =ROUND(СУММПРОИЗВЕСЛИ(1,'Форма по МДС 81-35.2004'!J457:J475,"Г",'Форма по МДС 81-35.2004'!E457:E475,'Форма по МДС 81-35.2004'!M457:M475,0),2) -> 0 | D28: =ROUND(СУММПРОИЗВЕСЛИ(1,'Форма по МДС 81-35.2004'!J457:J475,"IsMash",'Форма по МДС 81-35.2004'!E457:E475,'Форма по МДС 81-35.2004'!M457:M475,0),2) -> 78.1 | E28: =ROUND(СУММПРОИЗВЕСЛИ(1,'Форма по МДС 81-35.2004'!J457:J475,"Ж",'Форма по МДС 81-35.2004'!E457:E475,'Форма по МДС 81-35.2004'!M457:M475,0),2) -> 5 | F28: =ROUND(СУММПРОИЗВЕСЛИ(1,'Форма по МДС 81-35.2004'!J457:J475,"IsMater",'Форма по МДС 81-35.2004'!E457:E475,'Форма по МДС 81-35.2004'!M457:M475,0),2) -> 0 | G28: 0 | H28: 0 | I28: =ОКРУГЛВСЕ(SUMIF('Форма по МДС 81-35.2004'!J457:J475,"Г",'Форма по МДС 81-35.2004'!E457:E475),8) -> 0 | J28: 0 | K28: =ОКРУГЛВСЕ(SUMIF('Форма по МДС 81-35.2004'!J457:J475,"Ж",'Форма по МДС 81-35.2004'!E457:E475),8) -> 0.42 | L28: 0 | M28: 0 | N28: 9.1377 | O28: 6.979016 | P28: 0 | Q28: 0 | R28: 0 | S28: 0 | T28: 0 | U28: 0 | V28: 0 | X28: 0 | Y28: 0 | Z28: 0 | AA28: 0 | AB28: 0 | AC28: 0 | AD28: 0 | AE28: 0
A29: ='Форма по МДС 81-35.2004'!A476 -> 24. | B29: ='Форма по МДС 81-35.2004'!M476 -> 25.08 | C29: =ROUND(СУММПРОИЗВЕСЛИ(1,'Форма по МДС 81-35.2004'!J476:J495,"Г",'Форма по МДС 81-35.2004'!E476:E495,'Форма по МДС 81-35.2004'!M476:M495,0),2) -> 8.35 | D29: =ROUND(СУММПРОИЗВЕСЛИ(1,'Форма по МДС 81-35.2004'!J476:J495,"IsMash",'Форма по МДС 81-35.2004'!E476:E495,'Форма по МДС 81-35.2004'!M476:M495,0),2) -> 16.74 | E29: =ROUND(СУММПРОИЗВЕСЛИ(1,'Форма по МДС 81-35.2004'!J476:J495,"Ж",'Форма по МДС 81-35.2004'!E476:E495,'Форма по МДС 81-35.2004'!M476:M495,0),2) -> 1.2 | F29: =ROUND(СУММПРОИЗВЕСЛИ(1,'Форма по МДС 81-35.2004'!J476:J495,"IsMater",'Форма по МДС 81-35.2004'!E476:E495,'Форма по МДС 81-35.2004'!M476:M495,0),2) -> 0 | G29: 0 | H29: 0 | I29: =ОКРУГЛВСЕ(SUMIF('Форма по МДС 81-35.2004'!J476:J495,"Г",'Форма по МДС 81-35.2004'!E476:E495),8) -> 1.07 | J29: 0 | K29: =ОКРУГЛВСЕ(SUMIF('Форма по МДС 81-35.2004'!J476:J495,"Ж",'Форма по МДС 81-35.2004'!E476:E495),8) -> 0.09 | L29: 0 | M29: 0 | N29: 2.93436 | O29: 2.2411488 | P29: 0 | Q29: 0 | R29: 0 | S29: 0 | T29: 0 | U29: 0 | V29: 0 | X29: 0 | Y29: 0 | Z29: 0 | AA29: 0 | AB29: 0 | AC29: 0 | AD29: 0 | AE29: 0
A30: ='Форма по МДС 81-35.2004'!A496 -> 25. | B30: ='Форма по МДС 81-35.2004'!M496 -> 822.16 | C30: =ROUND(СУММПРОИЗВЕСЛИ(1,'Форма по МДС 81-35.2004'!J496:J514,"Г",'Форма по МДС 81-35.2004'!E496:E514,'Форма по МДС 81-35.2004'!M496:M514,0),2) -> 0 | D30: =ROUND(СУММПРОИЗВЕСЛИ(1,'Форма по МДС 81-35.2004'!J496:J514,"IsMash",'Форма по МДС 81-35.2004'!E496:E514,'Форма по МДС 81-35.2004'!M496:M514,0),2) -> 822.16 | E30: =ROUND(СУММПРОИЗВЕСЛИ(1,'Форма по МДС 81-35.2004'!J496:J514,"Ж",'Форма по МДС 81-35.2004'!E496:E514,'Форма по МДС 81-35.2004'!M496:M514,0),2) -> 0 | F30: =ROUND(СУММПРОИЗВЕСЛИ(1,'Форма по МДС 81-35.2004'!J496:J514,"IsMater",'Форма по МДС 81-35.2004'!E496:E514,'Форма по МДС 81-35.2004'!M496:M514,0),2) -> 0 | G30: 0 | H30: 0 | I30: =ОКРУГЛВСЕ(SUMIF('Форма по МДС 81-35.2004'!J496:J514,"Г",'Форма по МДС 81-35.2004'!E496:E514),8) -> 0 | J30: 0 | K30: =ОКРУГЛВСЕ(SUMIF('Форма по МДС 81-35.2004'!J496:J514,"Ж",'Форма по МДС 81-35.2004'!E496:E514),8) -> 0 | L30: 0 | M30: 0 | N30: 96.19272 | O30: 73.4682176 | P30: 0 | Q30: 0 | R30: 0 | S30: 0 | T30: 0 | U30: 0 | V30: 0 | X30: 0 | Y30: 0 | Z30: 0 | AA30: 0 | AB30: 0 | AC30: 0 | AD30: 0 | AE30: 0
A31: ='Форма по МДС 81-35.2004'!A515 -> 26. | B31: ='Форма по МДС 81-35.2004'!M515 -> 65.23 | C31: =ROUND(СУММПРОИЗВЕСЛИ(1,'Форма по МДС 81-35.2004'!J515:J534,"Г",'Форма по МДС 81-35.2004'!E515:E534,'Форма по МДС 81-35.2004'!M515:M534,0),2) -> 0 | D31: =ROUND(СУММПРОИЗВЕСЛИ(1,'Форма по МДС 81-35.2004'!J515:J534,"IsMash",'Форма по МДС 81-35.2004'!E515:E534,'Форма по МДС 81-35.2004'!M515:M534,0),2) -> 65.23 | E31: =ROUND(СУММПРОИЗВЕСЛИ(1,'Форма по МДС 81-35.2004'!J515:J534,"Ж",'Форма по МДС 81-35.2004'!E515:E534,'Форма по МДС 81-35.2004'!M515:M534,0),2) -> 0 | F31: =ROUND(СУММПРОИЗВЕСЛИ(1,'Форма по МДС 81-35.2004'!J515:J534,"IsMater",'Форма по МДС 81-35.2004'!E515:E534,'Форма по МДС 81-35.2004'!M515:M534,0),2) -> 0 | G31: 0 | H31: 0 | I31: =ОКРУГЛВСЕ(SUMIF('Форма по МДС 81-35.2004'!J515:J534,"Г",'Форма по МДС 81-35.2004'!E515:E534),8) -> 0 | J31: 0 | K31: =ОКРУГЛВСЕ(SUMIF('Форма по МДС 81-35.2004'!J515:J534,"Ж",'Форма по МДС 81-35.2004'!E515:E534),8) -> 0 | L31: 0 | M31: 0 | N31: 7.63191 | O31: 5.8289528 | P31: 0 | Q31: 0 | R31: 0 | S31: 0 | T31: 0 | U31: 0 | V31: 0 | X31: 0 | Y31: 0 | Z31: 0 | AA31: 0 | AB31: 0 | AC31: 0 | AD31: 0 | AE31: 0
A32: ='Форма по МДС 81-35.2004'!A535 -> 27. | B32: ='Форма по МДС 81-35.2004'!M535 -> 1599.45 | C32: =ROUND(СУММПРОИЗВЕСЛИ(1,'Форма по МДС 81-35.2004'!J535:J558,"Г",'Форма по МДС 81-35.2004'!E535:E558,'Форма по МДС 81-35.2004'!M535:M558,0),2) -> 48.44 | D32: =ROUND(СУММПРОИЗВЕСЛИ(1,'Форма по МДС 81-35.2004'!J535:J558,"IsMash",'Форма по МДС 81-35.2004'!E535:E558,'Форма по МДС 81-35.2004'!M535:M558,0),2) -> 1551.01 | E32: =ROUND(СУММПРОИЗВЕСЛИ(1,'Форма по МДС 81-35.2004'!J535:J558,"Ж",'Форма по МДС 81-35.2004'!E535:E558,'Форма по МДС 81-35.2004'!M535:M558,0),2) -> 199.99 | F32: =ROUND(СУММПРОИЗВЕСЛИ(1,'Форма по МДС 81-35.2004'!J535:J558,"IsMater",'Форма по МДС 81-35.2004'!E535:E558,'Форма по МДС 81-35.2004'!M535:M558,0),2) -> 0 | G32: 0 | H32: 0 | I32: =ОКРУГЛВСЕ(SUMIF('Форма по МДС 81-35.2004'!J535:J558,"Г",'Форма по МДС 81-35.2004'!E535:E558),8) -> 6.21 | J32: 0 | K32: =ОКРУГЛВСЕ(SUMIF('Форма по МДС 81-35.2004'!J535:J558,"Ж",'Форма по МДС 81-35.2004'!E535:E558),8) -> 12.61 | L32: 0 | M32: 0 | N32: 187.13565 | O32: 142.926852 | P32: 0 | Q32: 0 | R32: 0 | S32: 0 | T32: 0 | U32: 0 | V32: 0 | X32: 0 | Y32: 0 | Z32: 0 | AA32: 0 | AB32: 0 | AC32: 0 | AD32: 0 | AE32: 0
A33: ='Форма по МДС 81-35.2004'!A559 -> 28. | B33: ='Форма по МДС 81-35.2004'!M559 -> 102.27 | C33: =ROUND(СУММПРОИЗВЕСЛИ(1,'Форма по МДС 81-35.2004'!J559:J577,"Г",'Форма по МДС 81-35.2004'!E559:E577,'Форма по МДС 81-35.2004'!M559:M577,0),2) -> 0 | D33: =ROUND(СУММПРОИЗВЕСЛИ(1,'Форма по МДС 81-35.2004'!J559:J577,"IsMash",'Форма по МДС 81-35.2004'!E559:E577,'Форма по МДС 81-35.2004'!M559:M577,0),2) -> 102.27 | E33: =ROUND(СУММПРОИЗВЕСЛИ(1,'Форма по МДС 81-35.2004'!J559:J577,"Ж",'Форма по МДС 81-35.2004'!E559:E577,'Форма по МДС 81-35.2004'!M559:M577,0),2) -> 8 | F33: =ROUND(СУММПРОИЗВЕСЛИ(1,'Форма по МДС 81-35.2004'!J559:J577,"IsMater",'Форма по МДС 81-35.2004'!E559:E577,'Форма по МДС 81-35.2004'!M559:M577,0),2) -> 0 | G33: 0 | H33: 0 | I33: =ОКРУГЛВСЕ(SUMIF('Форма по МДС 81-35.2004'!J559:J577,"Г",'Форма по МДС 81-35.2004'!E559:E577),8) -> 0 | J33: 0 | K33: =ОКРУГЛВСЕ(SUMIF('Форма по МДС 81-35.2004'!J559:J577,"Ж",'Форма по МДС 81-35.2004'!E559:E577),8) -> 0.55 | L33: 0 | M33: 0 | N33: 11.96559 | O33: 9.1388472 | P33: 0 | Q33: 0 | R33: 0 | S33: 0 | T33: 0 | U33: 0 | V33: 0 | X33: 0 | Y33: 0 | Z33: 0 | AA33: 0 | AB33: 0 | AC33: 0 | AD33: 0 | AE33: 0
A34: ='Форма по МДС 81-35.2004'!A578 -> 29. | B34: ='Форма по МДС 81-35.2004'!M578 -> 1938.62 | C34: =ROUND(СУММПРОИЗВЕСЛИ(1,'Форма по МДС 81-35.2004'!J578:J605,"Г",'Форма по МДС 81-35.2004'!E578:E605,'Форма по МДС 81-35.2004'!M578:M605,0),2) -> 450.66 | D34: =ROUND(СУММПРОИЗВЕСЛИ(1,'Форма по МДС 81-35.2004'!J578:J605,"IsMash",'Форма по МДС 81-35.2004'!E578:E605,'Форма по МДС 81-35.2004'!M578:M605,0),2) -> 1487.96 | E34: =ROUND(СУММПРОИЗВЕСЛИ(1,'Форма по МДС 81-35.2004'!J578:J605,"Ж",'Форма по МДС 81-35.2004'!E578:E605,'Форма по МДС 81-35.2004'!M578:M605,0),2) -> 200 | F34: =ROUND(СУММПРОИЗВЕСЛИ(1,'Форма по МДС 81-35.2004'!J578:J605,"IsMater",'Форма по МДС 81-35.2004'!E578:E605,'Форма по МДС 81-35.2004'!M578:M605,0),2) -> 0 | G34: 0 | H34: 0 | I34: =ОКРУГЛВСЕ(SUMIF('Форма по МДС 81-35.2004'!J578:J605,"Г",'Форма по МДС 81-35.2004'!E578:E605),8) -> 54.39 | J34: 0 | K34: =ОКРУГЛВСЕ(SUMIF('Форма по МДС 81-35.2004'!J578:J605,"Ж",'Форма по МДС 81-35.2004'!E578:E605),8) -> 15.54 | L34: 0 | M34: 0 | N34: 226.81854 | O34: 173.2350832 | P34: 0 | Q34: 0 | R34: 0 | S34: 0 | T34: 0 | U34: 0 | V34: 0 | X34: 0 | Y34: 0 | Z34: 0 | AA34: 0 | AB34: 0 | AC34: 0 | AD34: 0 | AE34: 0
A35: ='Форма по МДС 81-35.2004'!A606 -> 30. | B35: ='Форма по МДС 81-35.2004'!M606 -> 1938.62 | C35: =ROUND(СУММПРОИЗВЕСЛИ(1,'Форма по МДС 81-35.2004'!J606:J633,"Г",'Форма по МДС 81-35.2004'!E606:E633,'Форма по МДС 81-35.2004'!M606:M633,0),2) -> 450.66 | D35: =ROUND(СУММПРОИЗВЕСЛИ(1,'Форма по МДС 81-35.2004'!J606:J633,"IsMash",'Форма по МДС 81-35.2004'!E606:E633,'Форма по МДС 81-35.2004'!M606:M633,0),2) -> 1487.96 | E35: =ROUND(СУММПРОИЗВЕСЛИ(1,'Форма по МДС 81-35.2004'!J606:J633,"Ж",'Форма по МДС 81-35.2004'!E606:E633,'Форма по МДС 81-35.2004'!M606:M633,0),2) -> 200 | F35: =ROUND(СУММПРОИЗВЕСЛИ(1,'Форма по МДС 81-35.2004'!J606:J633,"IsMater",'Форма по МДС 81-35.2004'!E606:E633,'Форма по МДС 81-35.2004'!M606:M633,0),2) -> 0 | G35: 0 | H35: 0 | I35: =ОКРУГЛВСЕ(SUMIF('Форма по МДС 81-35.2004'!J606:J633,"Г",'Форма по МДС 81-35.2004'!E606:E633),8) -> 54.39 | J35: 0 | K35: =ОКРУГЛВСЕ(SUMIF('Форма по МДС 81-35.2004'!J606:J633,"Ж",'Форма по МДС 81-35.2004'!E606:E633),8) -> 15.54 | L35: 0 | M35: 0 | N35: 226.81854 | O35: 173.2350832 | P35: 0 | Q35: 0 | R35: 0 | S35: 0 | T35: 0 | U35: 0 | V35: 0 | X35: 0 | Y35: 0 | Z35: 0 | AA35: 0 | AB35: 0 | AC35: 0 | AD35: 0 | AE35: 0
A36: ='Форма по МДС 81-35.2004'!A634 -> 31. | B36: ='Форма по МДС 81-35.2004'!M634 -> 1938.62 | C36: =ROUND(СУММПРОИЗВЕСЛИ(1,'Форма по МДС 81-35.2004'!J634:J661,"Г",'Форма по МДС 81-35.2004'!E634:E661,'Форма по МДС 81-35.2004'!M634:M661,0),2) -> 450.66 | D36: =ROUND(СУММПРОИЗВЕСЛИ(1,'Форма по МДС 81-35.2004'!J634:J661,"IsMash",'Форма по МДС 81-35.2004'!E634:E661,'Форма по МДС 81-35.2004'!M634:M661,0),2) -> 1487.96 | E36: =ROUND(СУММПРОИЗВЕСЛИ(1,'Форма по МДС 81-35.2004'!J634:J661,"Ж",'Форма по МДС 81-35.2004'!E634:E661,'Форма по МДС 81-35.2004'!M634:M661,0),2) -> 200 | F36: =ROUND(СУММПРОИЗВЕСЛИ(1,'Форма по МДС 81-35.2004'!J634:J661,"IsMater",'Форма по МДС 81-35.2004'!E634:E661,'Форма по МДС 81-35.2004'!M634:M661,0),2) -> 0 | G36: 0 | H36: 0 | I36: =ОКРУГЛВСЕ(SUMIF('Форма по МДС 81-35.2004'!J634:J661,"Г",'Форма по МДС 81-35.2004'!E634:E661),8) -> 54.39 | J36: 0 | K36: =ОКРУГЛВСЕ(SUMIF('Форма по МДС 81-35.2004'!J634:J661,"Ж",'Форма по МДС 81-35.2004'!E634:E661),8) -> 15.54 | L36: 0 | M36: 0 | N36: 226.81854 | O36: 173.2350832 | P36: 0 | Q36: 0 | R36: 0 | S36: 0 | T36: 0 | U36: 0 | V36: 0 | X36: 0 | Y36: 0 | Z36: 0 | AA36: 0 | AB36: 0 | AC36: 0 | AD36: 0 | AE36: 0
A37: ='Форма по МДС 81-35.2004'!A662 -> 32. | B37: ='Форма по МДС 81-35.2004'!M662 -> 1611 | C37: =ROUND(СУММПРОИЗВЕСЛИ(1,'Форма по МДС 81-35.2004'!J662:J683,"Г",'Форма по МДС 81-35.2004'!E662:E683,'Форма по МДС 81-35.2004'!M662:M683,0),2) -> 363.67 | D37: =ROUND(СУММПРОИЗВЕСЛИ(1,'Форма по МДС 81-35.2004'!J662:J683,"IsMash",'Форма по МДС 81-35.2004'!E662:E683,'Форма по МДС 81-35.2004'!M662:M683,0),2) -> 1247.33 | E37: =ROUND(СУММПРОИЗВЕСЛИ(1,'Форма по МДС 81-35.2004'!J662:J683,"Ж",'Форма по МДС 81-35.2004'!E662:E683,'Форма по МДС 81-35.2004'!M662:M683,0),2) -> 200.01 | F37: =ROUND(СУММПРОИЗВЕСЛИ(1,'Форма по МДС 81-35.2004'!J662:J683,"IsMater",'Форма по МДС 81-35.2004'!E662:E683,'Форма по МДС 81-35.2004'!M662:M683,0),2) -> 0 | G37: 0 | H37: 0 | I37: =ОКРУГЛВСЕ(SUMIF('Форма по МДС 81-35.2004'!J662:J683,"Г",'Форма по МДС 81-35.2004'!E662:E683),8) -> 43.26 | J37: 0 | K37: =ОКРУГЛВСЕ(SUMIF('Форма по МДС 81-35.2004'!J662:J683,"Ж",'Форма по МДС 81-35.2004'!E662:E683),8) -> 14.42 | L37: 0 | M37: 0 | N37: 188.487 | O37: 143.95896 | P37: 0 | Q37: 0 | R37: 0 | S37: 0 | T37: 0 | U37: 0 | V37: 0 | X37: 0 | Y37: 0 | Z37: 0 | AA37: 0 | AB37: 0 | AC37: 0 | AD37: 0 | AE37: 0
A38: ='Форма по МДС 81-35.2004'!A684 -> 33. | B38: ='Форма по МДС 81-35.2004'!M684 -> 1611 | C38: =ROUND(СУММПРОИЗВЕСЛИ(1,'Форма по МДС 81-35.2004'!J684:J705,"Г",'Форма по МДС 81-35.2004'!E684:E705,'Форма по МДС 81-35.2004'!M684:M705,0),2) -> 363.67 | D38: =ROUND(СУММПРОИЗВЕСЛИ(1,'Форма по МДС 81-35.2004'!J684:J705,"IsMash",'Форма по МДС 81-35.2004'!E684:E705,'Форма по МДС 81-35.2004'!M684:M705,0),2) -> 1247.33 | E38: =ROUND(СУММПРОИЗВЕСЛИ(1,'Форма по МДС 81-35.2004'!J684:J705,"Ж",'Форма по МДС 81-35.2004'!E684:E705,'Форма по МДС 81-35.2004'!M684:M705,0),2) -> 200.01 | F38: =ROUND(СУММПРОИЗВЕСЛИ(1,'Форма по МДС 81-35.2004'!J684:J705,"IsMater",'Форма по МДС 81-35.2004'!E684:E705,'Форма по МДС 81-35.2004'!M684:M705,0),2) -> 0 | G38: 0 | H38: 0 | I38: =ОКРУГЛВСЕ(SUMIF('Форма по МДС 81-35.2004'!J684:J705,"Г",'Форма по МДС 81-35.2004'!E684:E705),8) -> 43.26 | J38: 0 | K38: =ОКРУГЛВСЕ(SUMIF('Форма по МДС 81-35.2004'!J684:J705,"Ж",'Форма по МДС 81-35.2004'!E684:E705),8) -> 14.42 | L38: 0 | M38: 0 | N38: 188.487 | O38: 143.95896 | P38: 0 | Q38: 0 | R38: 0 | S38: 0 | T38: 0 | U38: 0 | V38: 0 | X38: 0 | Y38: 0 | Z38: 0 | AA38: 0 | AB38: 0 | AC38: 0 | AD38: 0 | AE38: 0
A39: ='Форма по МДС 81-35.2004'!A706 -> 34. | B39: ='Форма по МДС 81-35.2004'!M706 -> 0 | C39: =ROUND(СУММПРОИЗВЕСЛИ(1,'Форма по МДС 81-35.2004'!J706:J730,"Г",'Форма по МДС 81-35.2004'!E706:E730,'Форма по МДС 81-35.2004'!M706:M730,0),2) -> 0 | D39: =ROUND(СУММПРОИЗВЕСЛИ(1,'Форма по МДС 81-35.2004'!J706:J730,"IsMash",'Форма по МДС 81-35.2004'!E706:E730,'Форма по МДС 81-35.2004'!M706:M730,0),2) -> 0 | E39: =ROUND(СУММПРОИЗВЕСЛИ(1,'Форма по МДС 81-35.2004'!J706:J730,"Ж",'Форма по МДС 81-35.2004'!E706:E730,'Форма по МДС 81-35.2004'!M706:M730,0),2) -> 0 | F39: =ROUND(СУММПРОИЗВЕСЛИ(1,'Форма по МДС 81-35.2004'!J706:J730,"IsMater",'Форма по МДС 81-35.2004'!E706:E730,'Форма по МДС 81-35.2004'!M706:M730,0),2) -> 0 | G39: 0 | H39: 0 | I39: =ОКРУГЛВСЕ(SUMIF('Форма по МДС 81-35.2004'!J706:J730,"Г",'Форма по МДС 81-35.2004'!E706:E730),8) -> 0 | J39: 0 | K39: =ОКРУГЛВСЕ(SUMIF('Форма по МДС 81-35.2004'!J706:J730,"Ж",'Форма по МДС 81-35.2004'!E706:E730),8) -> 0.792 | L39: 0 | M39: 0 | N39: 0 | O39: 0 | P39: 0 | Q39: 0 | R39: 0 | S39: 0 | T39: 0 | U39: 0 | V39: 0 | X39: 0 | Y39: 0 | Z39: 0 | AA39: 0 | AB39: 0 | AC39: 0 | AD39: 0 | AE39: 0
A40: ='Форма по МДС 81-35.2004'!A731 -> 35. | B40: ='Форма по МДС 81-35.2004'!M731 -> 28.9 | C40: =ROUND(СУММПРОИЗВЕСЛИ(1,'Форма по МДС 81-35.2004'!J731:J770,"Г",'Форма по МДС 81-35.2004'!E731:E770,'Форма по МДС 81-35.2004'!M731:M770,0),2) -> 0 | D40: =ROUND(СУММПРОИЗВЕСЛИ(1,'Форма по МДС 81-35.2004'!J731:J770,"IsMash",'Форма по МДС 81-35.2004'!E731:E770,'Форма по МДС 81-35.2004'!M731:M770,0),2) -> 28.9 | E40: =ROUND(СУММПРОИЗВЕСЛИ(1,'Форма по МДС 81-35.2004'!J731:J770,"Ж",'Форма по МДС 81-35.2004'!E731:E770,'Форма по МДС 81-35.2004'!M731:M770,0),2) -> 0 | F40: =ROUND(СУММПРОИЗВЕСЛИ(1,'Форма по МДС 81-35.2004'!J731:J770,"IsMater",'Форма по МДС 81-35.2004'!E731:E770,'Форма по МДС 81-35.2004'!M731:M770,0),2) -> 0 | G40: 0 | H40: 0 | I40: =ОКРУГЛВСЕ(SUMIF('Форма по МДС 81-35.2004'!J731:J770,"Г",'Форма по МДС 81-35.2004'!E731:E770),8) -> 45.96 | J40: 0 | K40: =ОКРУГЛВСЕ(SUMIF('Форма по МДС 81-35.2004'!J731:J770,"Ж",'Форма по МДС 81-35.2004'!E731:E770),8) -> 22.896 | L40: 0 | M40: 0 | N40: 3.3813 | O40: 2.582504 | P40: 0 | Q40: 0 | R40: 0 | S40: 0 | T40: 0 | U40: 0 | V40: 0 | X40: 0 | Y40: 0 | Z40: 0 | AA40: 0 | AB40: 0 | AC40: 0 | AD40: 0 | AE40: 0
A41: ='Форма по МДС 81-35.2004'!A771 -> 36. | B41: ='Форма по МДС 81-35.2004'!M771 -> 3.72 | C41: =ROUND(СУММПРОИЗВЕСЛИ(1,'Форма по МДС 81-35.2004'!J771:J797,"Г",'Форма по МДС 81-35.2004'!E771:E797,'Форма по МДС 81-35.2004'!M771:M797,0),2) -> 0 | D41: =ROUND(СУММПРОИЗВЕСЛИ(1,'Форма по МДС 81-35.2004'!J771:J797,"IsMash",'Форма по МДС 81-35.2004'!E771:E797,'Форма по МДС 81-35.2004'!M771:M797,0),2) -> 3.72 | E41: =ROUND(СУММПРОИЗВЕСЛИ(1,'Форма по МДС 81-35.2004'!J771:J797,"Ж",'Форма по МДС 81-35.2004'!E771:E797,'Форма по МДС 81-35.2004'!M771:M797,0),2) -> 0 | F41: =ROUND(СУММПРОИЗВЕСЛИ(1,'Форма по МДС 81-35.2004'!J771:J797,"IsMater",'Форма по МДС 81-35.2004'!E771:E797,'Форма по МДС 81-35.2004'!M771:M797,0),2) -> 0 | G41: 0 | H41: 0 | I41: =ОКРУГЛВСЕ(SUMIF('Форма по МДС 81-35.2004'!J771:J797,"Г",'Форма по МДС 81-35.2004'!E771:E797),8) -> 0.108 | J41: 0 | K41: =ОКРУГЛВСЕ(SUMIF('Форма по МДС 81-35.2004'!J771:J797,"Ж",'Форма по МДС 81-35.2004'!E771:E797),8) -> 0 | L41: 0 | M41: 0 | N41: 0.43524 | O41: 0.3324192 | P41: 0 | Q41: 0 | R41: 0 | S41: 0 | T41: 0 | U41: 0 | V41: 0 | X41: 0 | Y41: 0 | Z41: 0 | AA41: 0 | AB41: 0 | AC41: 0 | AD41: 0 | AE41: 0
A42: ='Форма по МДС 81-35.2004'!A798 -> 37. | B42: ='Форма по МДС 81-35.2004'!M798 -> 0 | C42: =ROUND(СУММПРОИЗВЕСЛИ(1,'Форма по МДС 81-35.2004'!J798:J822,"Г",'Форма по МДС 81-35.2004'!E798:E822,'Форма по МДС 81-35.2004'!M798:M822,0),2) -> 0 | D42: =ROUND(СУММПРОИЗВЕСЛИ(1,'Форма по МДС 81-35.2004'!J798:J822,"IsMash",'Форма по МДС 81-35.2004'!E798:E822,'Форма по МДС 81-35.2004'!M798:M822,0),2) -> 0 | E42: =ROUND(СУММПРОИЗВЕСЛИ(1,'Форма по МДС 81-35.2004'!J798:J822,"Ж",'Форма по МДС 81-35.2004'!E798:E822,'Форма по МДС 81-35.2004'!M798:M822,0),2) -> 0 | F42: =ROUND(СУММПРОИЗВЕСЛИ(1,'Форма по МДС 81-35.2004'!J798:J822,"IsMater",'Форма по МДС 81-35.2004'!E798:E822,'Форма по МДС 81-35.2004'!M798:M822,0),2) -> 0 | G42: 0 | H42: 0 | I42: =ОКРУГЛВСЕ(SUMIF('Форма по МДС 81-35.2004'!J798:J822,"Г",'Форма по МДС 81-35.2004'!E798:E822),8) -> 0 | J42: 0 | K42: =ОКРУГЛВСЕ(SUMIF('Форма по МДС 81-35.2004'!J798:J822,"Ж",'Форма по МДС 81-35.2004'!E798:E822),8) -> 0.792 | L42: 0 | M42: 0 | N42: 0 | O42: 0 | P42: 0 | Q42: 0 | R42: 0 | S42: 0 | T42: 0 | U42: 0 | V42: 0 | X42: 0 | Y42: 0 | Z42: 0 | AA42: 0 | AB42: 0 | AC42: 0 | AD42: 0 | AE42: 0
A43: ='Форма по МДС 81-35.2004'!A823 -> 38. | B43: ='Форма по МДС 81-35.2004'!M823 -> 28.9 | C43: =ROUND(СУММПРОИЗВЕСЛИ(1,'Форма по МДС 81-35.2004'!J823:J862,"Г",'Форма по МДС 81-35.2004'!E823:E862,'Форма по МДС 81-35.2004'!M823:M862,0),2) -> 0 | D43: =ROUND(СУММПРОИЗВЕСЛИ(1,'Форма по МДС 81-35.2004'!J823:J862,"IsMash",'Форма по МДС 81-35.2004'!E823:E862,'Форма по МДС 81-35.2004'!M823:M862,0),2) -> 28.9 | E43: =ROUND(СУММПРОИЗВЕСЛИ(1,'Форма по МДС 81-35.2004'!J823:J862,"Ж",'Форма по МДС 81-35.2004'!E823:E862,'Форма по МДС 81-35.2004'!M823:M862,0),2) -> 0 | F43: =ROUND(СУММПРОИЗВЕСЛИ(1,'Форма по МДС 81-35.2004'!J823:J862,"IsMater",'Форма по МДС 81-35.2004'!E823:E862,'Форма по МДС 81-35.2004'!M823:M862,0),2) -> 0 | G43: 0 | H43: 0 | I43: =ОКРУГЛВСЕ(SUMIF('Форма по МДС 81-35.2004'!J823:J862,"Г",'Форма по МДС 81-35.2004'!E823:E862),8) -> 45.96 | J43: 0 | K43: =ОКРУГЛВСЕ(SUMIF('Форма по МДС 81-35.2004'!J823:J862,"Ж",'Форма по МДС 81-35.2004'!E823:E862),8) -> 22.896 | L43: 0 | M43: 0 | N43: 3.3813 | O43: 2.582504 | P43: 0 | Q43: 0 | R43: 0 | S43: 0 | T43: 0 | U43: 0 | V43: 0 | X43: 0 | Y43: 0 | Z43: 0 | AA43: 0 | AB43: 0 | AC43: 0 | AD43: 0 | AE43: 0
A44: ='Форма по МДС 81-35.2004'!A863 -> 39. | B44: ='Форма по МДС 81-35.2004'!M863 -> 3.72 | C44: =ROUND(СУММПРОИЗВЕСЛИ(1,'Форма по МДС 81-35.2004'!J863:J889,"Г",'Форма по МДС 81-35.2004'!E863:E889,'Форма по МДС 81-35.2004'!M863:M889,0),2) -> 0 | D44: =ROUND(СУММПРОИЗВЕСЛИ(1,'Форма по МДС 81-35.2004'!J863:J889,"IsMash",'Форма по МДС 81-35.2004'!E863:E889,'Форма по МДС 81-35.2004'!M863:M889,0),2) -> 3.72 | E44: =ROUND(СУММПРОИЗВЕСЛИ(1,'Форма по МДС 81-35.2004'!J863:J889,"Ж",'Форма по МДС 81-35.2004'!E863:E889,'Форма по МДС 81-35.2004'!M863:M889,0),2) -> 0 | F44: =ROUND(СУММПРОИЗВЕСЛИ(1,'Форма по МДС 81-35.2004'!J863:J889,"IsMater",'Форма по МДС 81-35.2004'!E863:E889,'Форма по МДС 81-35.2004'!M863:M889,0),2) -> 0 | G44: 0 | H44: 0 | I44: =ОКРУГЛВСЕ(SUMIF('Форма по МДС 81-35.2004'!J863:J889,"Г",'Форма по МДС 81-35.2004'!E863:E889),8) -> 0.108 | J44: 0 | K44: =ОКРУГЛВСЕ(SUMIF('Форма по МДС 81-35.2004'!J863:J889,"Ж",'Форма по МДС 81-35.2004'!E863:E889),8) -> 0 | L44: 0 | M44: 0 | N44: 0.43524 | O44: 0.3324192 | P44: 0 | Q44: 0 | R44: 0 | S44: 0 | T44: 0 | U44: 0 | V44: 0 | X44: 0 | Y44: 0 | Z44: 0 | AA44: 0 | AB44: 0 | AC44: 0 | AD44: 0 | AE44: 0
A45: ='Форма по МДС 81-35.2004'!A890 -> 40. | B45: ='Форма по МДС 81-35.2004'!M890 -> 0 | C45: =ROUND(СУММПРОИЗВЕСЛИ(1,'Форма по МДС 81-35.2004'!J890:J914,"Г",'Форма по МДС 81-35.2004'!E890:E914,'Форма по МДС 81-35.2004'!M890:M914,0),2) -> 0 | D45: =ROUND(СУММПРОИЗВЕСЛИ(1,'Форма по МДС 81-35.2004'!J890:J914,"IsMash",'Форма по МДС 81-35.2004'!E890:E914,'Форма по МДС 81-35.2004'!M890:M914,0),2) -> 0 | E45: =ROUND(СУММПРОИЗВЕСЛИ(1,'Форма по МДС 81-35.2004'!J890:J914,"Ж",'Форма по МДС 81-35.2004'!E890:E914,'Форма по МДС 81-35.2004'!M890:M914,0),2) -> 0 | F45: =ROUND(СУММПРОИЗВЕСЛИ(1,'Форма по МДС 81-35.2004'!J890:J914,"IsMater",'Форма по МДС 81-35.2004'!E890:E914,'Форма по МДС 81-35.2004'!M890:M914,0),2) -> 0 | G45: 0 | H45: 0 | I45: =ОКРУГЛВСЕ(SUMIF('Форма по МДС 81-35.2004'!J890:J914,"Г",'Форма по МДС 81-35.2004'!E890:E914),8) -> 0 | J45: 0 | K45: =ОКРУГЛВСЕ(SUMIF('Форма по МДС 81-35.2004'!J890:J914,"Ж",'Форма по МДС 81-35.2004'!E890:E914),8) -> 0.792 | L45: 0 | M45: 0 | N45: 0 | O45: 0 | P45: 0 | Q45: 0 | R45: 0 | S45: 0 | T45: 0 | U45: 0 | V45: 0 | X45: 0 | Y45: 0 | Z45: 0 | AA45: 0 | AB45: 0 | AC45: 0 | AD45: 0 | AE45: 0
A46: ='Форма по МДС 81-35.2004'!A915 -> 41. | B46: ='Форма по МДС 81-35.2004'!M915 -> 28.9 | C46: =ROUND(СУММПРОИЗВЕСЛИ(1,'Форма по МДС 81-35.2004'!J915:J954,"Г",'Форма по МДС 81-35.2004'!E915:E954,'Форма по МДС 81-35.2004'!M915:M954,0),2) -> 0 | D46: =ROUND(СУММПРОИЗВЕСЛИ(1,'Форма по МДС 81-35.2004'!J915:J954,"IsMash",'Форма по МДС 81-35.2004'!E915:E954,'Форма по МДС 81-35.2004'!M915:M954,0),2) -> 28.9 | E46: =ROUND(СУММПРОИЗВЕСЛИ(1,'Форма по МДС 81-35.2004'!J915:J954,"Ж",'Форма по МДС 81-35.2004'!E915:E954,'Форма по МДС 81-35.2004'!M915:M954,0),2) -> 0 | F46: =ROUND(СУММПРОИЗВЕСЛИ(1,'Форма по МДС 81-35.2004'!J915:J954,"IsMater",'Форма по МДС 81-35.2004'!E915:E954,'Форма по МДС 81-35.2004'!M915:M954,0),2) -> 0 | G46: 0 | H46: 0 | I46: =ОКРУГЛВСЕ(SUMIF('Форма по МДС 81-35.2004'!J915:J954,"Г",'Форма по МДС 81-35.2004'!E915:E954),8) -> 45.96 | J46: 0 | K46: =ОКРУГЛВСЕ(SUMIF('Форма по МДС 81-35.2004'!J915:J954,"Ж",'Форма по МДС 81-35.2004'!E915:E954),8) -> 22.896 | L46: 0 | M46: 0 | N46: 3.3813 | O46: 2.582504 | P46: 0 | Q46: 0 | R46: 0 | S46: 0 | T46: 0 | U46: 0 | V46: 0 | X46: 0 | Y46: 0 | Z46: 0 | AA46: 0 | AB46: 0 | AC46: 0 | AD46: 0 | AE46: 0
A47: ='Форма по МДС 81-35.2004'!A955 -> 42. | B47: ='Форма по МДС 81-35.2004'!M955 -> 3.72 | C47: =ROUND(СУММПРОИЗВЕСЛИ(1,'Форма по МДС 81-35.2004'!J955:J981,"Г",'Форма по МДС 81-35.2004'!E955:E981,'Форма по МДС 81-35.2004'!M955:M981,0),2) -> 0 | D47: =ROUND(СУММПРОИЗВЕСЛИ(1,'Форма по МДС 81-35.2004'!J955:J981,"IsMash",'Форма по МДС 81-35.2004'!E955:E981,'Форма по МДС 81-35.2004'!M955:M981,0),2) -> 3.72 | E47: =ROUND(СУММПРОИЗВЕСЛИ(1,'Форма по МДС 81-35.2004'!J955:J981,"Ж",'Форма по МДС 81-35.2004'!E955:E981,'Форма по МДС 81-35.2004'!M955:M981,0),2) -> 0 | F47: =ROUND(СУММПРОИЗВЕСЛИ(1,'Форма по МДС 81-35.2004'!J955:J981,"IsMater",'Форма по МДС 81-35.2004'!E955:E981,'Форма по МДС 81-35.2004'!M955:M981,0),2) -> 0 | G47: 0 | H47: 0 | I47: =ОКРУГЛВСЕ(SUMIF('Форма по МДС 81-35.2004'!J955:J981,"Г",'Форма по МДС 81-35.2004'!E955:E981),8) -> 0.108 | J47: 0 | K47: =ОКРУГЛВСЕ(SUMIF('Форма по МДС 81-35.2004'!J955:J981,"Ж",'Форма по МДС 81-35.2004'!E955:E981),8) -> 0 | L47: 0 | M47: 0 | N47: 0.43524 | O47: 0.3324192 | P47: 0 | Q47: 0 | R47: 0 | S47: 0 | T47: 0 | U47: 0 | V47: 0 | X47: 0 | Y47: 0 | Z47: 0 | AA47: 0 | AB47: 0 | AC47: 0 | AD47: 0 | AE47: 0
A48: ='Форма по МДС 81-35.2004'!A982 -> 43. | B48: ='Форма по МДС 81-35.2004'!M982 -> 4957.17 | C48: =ROUND(СУММПРОИЗВЕСЛИ(1,'Форма по МДС 81-35.2004'!J982:J1012,"Г",'Форма по МДС 81-35.2004'!E982:E1012,'Форма по МДС 81-35.2004'!M982:M1012,0),2) -> 308.77 | D48: =ROUND(СУММПРОИЗВЕСЛИ(1,'Форма по МДС 81-35.2004'!J982:J1012,"IsMash",'Форма по МДС 81-35.2004'!E982:E1012,'Форма по МДС 81-35.2004'!M982:M1012,0),2) -> 4648.4 | E48: =ROUND(СУММПРОИЗВЕСЛИ(1,'Форма по МДС 81-35.2004'!J982:J1012,"Ж",'Форма по МДС 81-35.2004'!E982:E1012,'Форма по МДС 81-35.2004'!M982:M1012,0),2) -> 257.14 | F48: =ROUND(СУММПРОИЗВЕСЛИ(1,'Форма по МДС 81-35.2004'!J982:J1012,"IsMater",'Форма по МДС 81-35.2004'!E982:E1012,'Форма по МДС 81-35.2004'!M982:M1012,0),2) -> 0 | G48: 0 | H48: 0 | I48: =ОКРУГЛВСЕ(SUMIF('Форма по МДС 81-35.2004'!J982:J1012,"Г",'Форма по МДС 81-35.2004'!E982:E1012),8) -> 36.12 | J48: 0 | K48: =ОКРУГЛВСЕ(SUMIF('Форма по МДС 81-35.2004'!J982:J1012,"Ж",'Форма по МДС 81-35.2004'!E982:E1012),8) -> 18.06 | L48: 0 | M48: 0 | N48: 579.98889 | O48: 442.9727112 | P48: 0 | Q48: 0 | R48: 0 | S48: 0 | T48: 0 | U48: 0 | V48: 0 | X48: 0 | Y48: 0 | Z48: 0 | AA48: 0 | AB48: 0 | AC48: 0 | AD48: 0 | AE48: 0
A49: ='Форма по МДС 81-35.2004'!A1013 -> 44. | B49: ='Форма по МДС 81-35.2004'!M1013 -> 4957.17 | C49: =ROUND(СУММПРОИЗВЕСЛИ(1,'Форма по МДС 81-35.2004'!J1013:J1043,"Г",'Форма по МДС 81-35.2004'!E1013:E1043,'Форма по МДС 81-35.2004'!M1013:M1043,0),2) -> 308.77 | D49: =ROUND(СУММПРОИЗВЕСЛИ(1,'Форма по МДС 81-35.2004'!J1013:J1043,"IsMash",'Форма по МДС 81-35.2004'!E1013:E1043,'Форма по МДС 81-35.2004'!M1013:M1043,0),2) -> 4648.4 | E49: =ROUND(СУММПРОИЗВЕСЛИ(1,'Форма по МДС 81-35.2004'!J1013:J1043,"Ж",'Форма по МДС 81-35.2004'!E1013:E1043,'Форма по МДС 81-35.2004'!M1013:M1043,0),2) -> 299.99 | F49: =ROUND(СУММПРОИЗВЕСЛИ(1,'Форма по МДС 81-35.2004'!J1013:J1043,"IsMater",'Форма по МДС 81-35.2004'!E1013:E1043,'Форма по МДС 81-35.2004'!M1013:M1043,0),2) -> 0 | G49: 0 | H49: 0 | I49: =ОКРУГЛВСЕ(SUMIF('Форма по МДС 81-35.2004'!J1013:J1043,"Г",'Форма по МДС 81-35.2004'!E1013:E1043),8) -> 36.12 | J49: 0 | K49: =ОКРУГЛВСЕ(SUMIF('Форма по МДС 81-35.2004'!J1013:J1043,"Ж",'Форма по МДС 81-35.2004'!E1013:E1043),8) -> 18.06 | L49: 0 | M49: 0 | N49: 579.98889 | O49: 442.9727112 | P49: 0 | Q49: 0 | R49: 0 | S49: 0 | T49: 0 | U49: 0 | V49: 0 | X49: 0 | Y49: 0 | Z49: 0 | AA49: 0 | AB49: 0 | AC49: 0 | AD49: 0 | AE49: 0
A50: ='Форма по МДС 81-35.2004'!A1044 -> 45. | B50: ='Форма по МДС 81-35.2004'!M1044 -> 4957.17 | C50: =ROUND(СУММПРОИЗВЕСЛИ(1,'Форма по МДС 81-35.2004'!J1044:J1074,"Г",'Форма по МДС 81-35.2004'!E1044:E1074,'Форма по МДС 81-35.2004'!M1044:M1074,0),2) -> 308.77 | D50: =ROUND(СУММПРОИЗВЕСЛИ(1,'Форма по МДС 81-35.2004'!J1044:J1074,"IsMash",'Форма по МДС 81-35.2004'!E1044:E1074,'Форма по МДС 81-35.2004'!M1044:M1074,0),2) -> 4648.4 | E50: =ROUND(СУММПРОИЗВЕСЛИ(1,'Форма по МДС 81-35.2004'!J1044:J1074,"Ж",'Форма по МДС 81-35.2004'!E1044:E1074,'Форма по МДС 81-35.2004'!M1044:M1074,0),2) -> 299.99 | F50: =ROUND(СУММПРОИЗВЕСЛИ(1,'Форма по МДС 81-35.2004'!J1044:J1074,"IsMater",'Форма по МДС 81-35.2004'!E1044:E1074,'Форма по МДС 81-35.2004'!M1044:M1074,0),2) -> 0 | G50: 0 | H50: 0 | I50: =ОКРУГЛВСЕ(SUMIF('Форма по МДС 81-35.2004'!J1044:J1074,"Г",'Форма по МДС 81-35.2004'!E1044:E1074),8) -> 36.12 | J50: 0 | K50: =ОКРУГЛВСЕ(SUMIF('Форма по МДС 81-35.2004'!J1044:J1074,"Ж",'Форма по МДС 81-35.2004'!E1044:E1074),8) -> 18.06 | L50: 0 | M50: 0 | N50: 579.98889 | O50: 442.9727112 | P50: 0 | Q50: 0 | R50: 0 | S50: 0 | T50: 0 | U50: 0 | V50: 0 | X50: 0 | Y50: 0 | Z50: 0 | AA50: 0 | AB50: 0 | AC50: 0 | AD50: 0 | AE50: 0
A51: ='Форма по МДС 81-35.2004'!A1075 -> 46. | B51: ='Форма по МДС 81-35.2004'!M1075 -> 113.59 | C51: =ROUND(СУММПРОИЗВЕСЛИ(1,'Форма по МДС 81-35.2004'!J1075:J1106,"Г",'Форма по МДС 81-35.2004'!E1075:E1106,'Форма по МДС 81-35.2004'!M1075:M1106,0),2) -> 0 | D51: =ROUND(СУММПРОИЗВЕСЛИ(1,'Форма по МДС 81-35.2004'!J1075:J1106,"IsMash",'Форма по МДС 81-35.2004'!E1075:E1106,'Форма по МДС 81-35.2004'!M1075:M1106,0),2) -> 113.4 | E51: =ROUND(СУММПРОИЗВЕСЛИ(1,'Форма по МДС 81-35.2004'!J1075:J1106,"Ж",'Форма по МДС 81-35.2004'!E1075:E1106,'Форма по МДС 81-35.2004'!M1075:M1106,0),2) -> 0 | F51: =ROUND(СУММПРОИЗВЕСЛИ(1,'Форма по МДС 81-35.2004'!J1075:J1106,"IsMater",'Форма по МДС 81-35.2004'!E1075:E1106,'Форма по МДС 81-35.2004'!M1075:M1106,0),2) -> 0.19 | G51: 0.07 | H51: 0 | I51: =ОКРУГЛВСЕ(SUMIF('Форма по МДС 81-35.2004'!J1075:J1106,"Г",'Форма по МДС 81-35.2004'!E1075:E1106),8) -> 0.312 | J51: 0 | K51: =ОКРУГЛВСЕ(SUMIF('Форма по МДС 81-35.2004'!J1075:J1106,"Ж",'Форма по МДС 81-35.2004'!E1075:E1106),8) -> 0.66 | L51: 0 | M51: 0 | N51: 13.29003 | O51: 10.1504024 | P51: 0 | Q51: 0 | R51: 0 | S51: 0 | T51: 0 | U51: 0 | V51: 0 | X51: 0 | Y51: 0 | Z51: 0 | AA51: 0 | AB51: 0 | AC51: 0 | AD51: 0 | AE51: 0
A52: ='Форма по МДС 81-35.2004'!A1107 -> 47. | B52: ='Форма по МДС 81-35.2004'!M1107 -> 194.69 | C52: =ROUND(СУММПРОИЗВЕСЛИ(1,'Форма по МДС 81-35.2004'!J1107:J1131,"Г",'Форма по МДС 81-35.2004'!E1107:E1131,'Форма по МДС 81-35.2004'!M1107:M1131,0),2) -> 40.77 | D52: =ROUND(СУММПРОИЗВЕСЛИ(1,'Форма по МДС 81-35.2004'!J1107:J1131,"IsMash",'Форма по МДС 81-35.2004'!E1107:E1131,'Форма по МДС 81-35.2004'!M1107:M1131,0),2) -> 153.92 | E52: =ROUND(СУММПРОИЗВЕСЛИ(1,'Форма по МДС 81-35.2004'!J1107:J1131,"Ж",'Форма по МДС 81-35.2004'!E1107:E1131,'Форма по МДС 81-35.2004'!M1107:M1131,0),2) -> 12.22 | F52: =ROUND(СУММПРОИЗВЕСЛИ(1,'Форма по МДС 81-35.2004'!J1107:J1131,"IsMater",'Форма по МДС 81-35.2004'!E1107:E1131,'Форма по МДС 81-35.2004'!M1107:M1131,0),2) -> 0 | G52: 0 | H52: 0 | I52: =ОКРУГЛВСЕ(SUMIF('Форма по МДС 81-35.2004'!J1107:J1131,"Г",'Форма по МДС 81-35.2004'!E1107:E1131),8) -> 5.1 | J52: 0 | K52: =ОКРУГЛВСЕ(SUMIF('Форма по МДС 81-35.2004'!J1107:J1131,"Ж",'Форма по МДС 81-35.2004'!E1107:E1131),8) -> 1.02 | L52: 0 | M52: 0 | N52: 22.77873 | O52: 17.3974984 | P52: 0 | Q52: 0 | R52: 0 | S52: 0 | T52: 0 | U52: 0 | V52: 0 | X52: 0 | Y52: 0 | Z52: 0 | AA52: 0 | AB52: 0 | AC52: 0 | AD52: 0 | AE52: 0
A53: ='Форма по МДС 81-35.2004'!A1132 -> 48. | B53: ='Форма по МДС 81-35.2004'!M1132 -> 1.25 | C53: =ROUND(СУММПРОИЗВЕСЛИ(1,'Форма по МДС 81-35.2004'!J1132:J1150,"Г",'Форма по МДС 81-35.2004'!E1132:E1150,'Форма по МДС 81-35.2004'!M1132:M1150,0),2) -> 1.25 | D53: =ROUND(СУММПРОИЗВЕСЛИ(1,'Форма по МДС 81-35.2004'!J1132:J1150,"IsMash",'Форма по МДС 81-35.2004'!E1132:E1150,'Форма по МДС 81-35.2004'!M1132:M1150,0),2) -> 0 | E53: =ROUND(СУММПРОИЗВЕСЛИ(1,'Форма по МДС 81-35.2004'!J1132:J1150,"Ж",'Форма по МДС 81-35.2004'!E1132:E1150,'Форма по МДС 81-35.2004'!M1132:M1150,0),2) -> 0 | F53: =ROUND(СУММПРОИЗВЕСЛИ(1,'Форма по МДС 81-35.2004'!J1132:J1150,"IsMater",'Форма по МДС 81-35.2004'!E1132:E1150,'Форма по МДС 81-35.2004'!M1132:M1150,0),2) -> 0 | G53: 0 | H53: 0 | I53: =ОКРУГЛВСЕ(SUMIF('Форма по МДС 81-35.2004'!J1132:J1150,"Г",'Форма по МДС 81-35.2004'!E1132:E1150),8) -> 0.16 | J53: 0 | K53: =ОКРУГЛВСЕ(SUMIF('Форма по МДС 81-35.2004'!J1132:J1150,"Ж",'Форма по МДС 81-35.2004'!E1132:E1150),8) -> 0 | L53: 0 | M53: 0 | N53: 0.14625 | O53: 0.1117 | P53: 0 | Q53: 0 | R53: 0 | S53: 0 | T53: 0 | U53: 0 | V53: 0 | X53: 0 | Y53: 0 | Z53: 0 | AA53: 0 | AB53: 0 | AC53: 0 | AD53: 0 | AE53: 0
A54: ='Форма по МДС 81-35.2004'!A1151 -> 49. | B54: ='Форма по МДС 81-35.2004'!M1151 -> 1248.78 | C54: =ROUND(СУММПРОИЗВЕСЛИ(1,'Форма по МДС 81-35.2004'!J1151:J1175,"Г",'Форма по МДС 81-35.2004'!E1151:E1175,'Форма по МДС 81-35.2004'!M1151:M1175,0),2) -> 161.68 | D54: =ROUND(СУММПРОИЗВЕСЛИ(1,'Форма по МДС 81-35.2004'!J1151:J1175,"IsMash",'Форма по МДС 81-35.2004'!E1151:E1175,'Форма по МДС 81-35.2004'!M1151:M1175,0),2) -> 1069.59 | E54: =ROUND(СУММПРОИЗВЕСЛИ(1,'Форма по МДС 81-35.2004'!J1151:J1175,"Ж",'Форма по МДС 81-35.2004'!E1151:E1175,'Форма по МДС 81-35.2004'!M1151:M1175,0),2) -> 100 | F54: =ROUND(СУММПРОИЗВЕСЛИ(1,'Форма по МДС 81-35.2004'!J1151:J1175,"IsMater",'Форма по МДС 81-35.2004'!E1151:E1175,'Форма по МДС 81-35.2004'!M1151:M1175,0),2) -> 17.51 | G54: 16.88 | H54: 0 | I54: =ОКРУГЛВСЕ(SUMIF('Форма по МДС 81-35.2004'!J1151:J1175,"Г",'Форма по МДС 81-35.2004'!E1151:E1175),8) -> 18.18 | J54: 0 | K54: =ОКРУГЛВСЕ(SUMIF('Форма по МДС 81-35.2004'!J1151:J1175,"Ж",'Форма по МДС 81-35.2004'!E1151:E1175),8) -> 12.12 | L54: 0 | M54: 0 | N54: 146.10726 | O54: 111.5909808 | P54: 0 | Q54: 0 | R54: 0 | S54: 0 | T54: 0 | U54: 0 | V54: 0 | X54: 0 | Y54: 0 | Z54: 0 | AA54: 0 | AB54: 0 | AC54: 0 | AD54: 0 | AE54: 0
A55: ='Форма по МДС 81-35.2004'!A1178 -> 50. | B55: ='Форма по МДС 81-35.2004'!M1178 -> 59.56 | C55: =ROUND(СУММПРОИЗВЕСЛИ(1,'Форма по МДС 81-35.2004'!J1178:J1197,"Г",'Форма по МДС 81-35.2004'!E1178:E1197,'Форма по МДС 81-35.2004'!M1178:M1197,0),2) -> 24.96 | D55: =ROUND(СУММПРОИЗВЕСЛИ(1,'Форма по МДС 81-35.2004'!J1178:J1197,"IsMash",'Форма по МДС 81-35.2004'!E1178:E1197,'Форма по МДС 81-35.2004'!M1178:M1197,0),2) -> 34.6 | E55: =ROUND(СУММПРОИЗВЕСЛИ(1,'Форма по МДС 81-35.2004'!J1178:J1197,"Ж",'Форма по МДС 81-35.2004'!E1178:E1197,'Форма по МДС 81-35.2004'!M1178:M1197,0),2) -> 4.5 | F55: =ROUND(СУММПРОИЗВЕСЛИ(1,'Форма по МДС 81-35.2004'!J1178:J1197,"IsMater",'Форма по МДС 81-35.2004'!E1178:E1197,'Форма по МДС 81-35.2004'!M1178:M1197,0),2) -> 0 | G55: 0 | H55: 0 | I55: =ОКРУГЛВСЕ(SUMIF('Форма по МДС 81-35.2004'!J1178:J1197,"Г",'Форма по МДС 81-35.2004'!E1178:E1197),8) -> 3.2 | J55: 0 | K55: =ОКРУГЛВСЕ(SUMIF('Форма по МДС 81-35.2004'!J1178:J1197,"Ж",'Форма по МДС 81-35.2004'!E1178:E1197),8) -> 0.4 | L55: 0 | M55: 0 | N55: 6.96852 | O55: 5.3222816 | P55: 0 | Q55: 0 | R55: 0 | S55: 0 | T55: 0 | U55: 0 | V55: 0 | X55: 0 | Y55: 0 | Z55: 0 | AA55: 0 | AB55: 0 | AC55: 0 | AD55: 0 | AE55: 0
A56: ='Форма по МДС 81-35.2004'!A1198 -> 51. | B56: ='Форма по МДС 81-35.2004'!M1198 -> 1329.74 | C56: =ROUND(СУММПРОИЗВЕСЛИ(1,'Форма по МДС 81-35.2004'!J1198:J1222,"Г",'Форма по МДС 81-35.2004'!E1198:E1222,'Форма по МДС 81-35.2004'!M1198:M1222,0),2) -> 336.4 | D56: =ROUND(СУММПРОИЗВЕСЛИ(1,'Форма по МДС 81-35.2004'!J1198:J1222,"IsMash",'Форма по МДС 81-35.2004'!E1198:E1222,'Форма по МДС 81-35.2004'!M1198:M1222,0),2) -> 890.95 | E56: =ROUND(СУММПРОИЗВЕСЛИ(1,'Форма по МДС 81-35.2004'!J1198:J1222,"Ж",'Форма по МДС 81-35.2004'!E1198:E1222,'Форма по МДС 81-35.2004'!M1198:M1222,0),2) -> 117.65 | F56: =ROUND(СУММПРОИЗВЕСЛИ(1,'Форма по МДС 81-35.2004'!J1198:J1222,"IsMater",'Форма по МДС 81-35.2004'!E1198:E1222,'Форма по МДС 81-35.2004'!M1198:M1222,0),2) -> 102.39 | G56: 99.94 | H56: 0 | I56: =ОКРУГЛВСЕ(SUMIF('Форма по МДС 81-35.2004'!J1198:J1222,"Г",'Форма по МДС 81-35.2004'!E1198:E1222),8) -> 41.2 | J56: 0 | K56: =ОКРУГЛВСЕ(SUMIF('Форма по МДС 81-35.2004'!J1198:J1222,"Ж",'Форма по МДС 81-35.2004'!E1198:E1222),8) -> 10.3 | L56: 0 | M56: 0 | N56: 155.57958 | O56: 118.8255664 | P56: 0 | Q56: 0 | R56: 0 | S56: 0 | T56: 0 | U56: 0 | V56: 0 | X56: 0 | Y56: 0 | Z56: 0 | AA56: 0 | AB56: 0 | AC56: 0 | AD56: 0 | AE56: 0
A57: ='Форма по МДС 81-35.2004'!A1223 -> 52. | B57: ='Форма по МДС 81-35.2004'!M1223 -> 377.78 | C57: =ROUND(СУММПРОИЗВЕСЛИ(1,'Форма по МДС 81-35.2004'!J1223:J1246,"Г",'Форма по МДС 81-35.2004'!E1223:E1246,'Форма по МДС 81-35.2004'!M1223:M1246,0),2) -> 99.61 | D57: =ROUND(СУММПРОИЗВЕСЛИ(1,'Форма по МДС 81-35.2004'!J1223:J1246,"IsMash",'Форма по МДС 81-35.2004'!E1223:E1246,'Форма по МДС 81-35.2004'!M1223:M1246,0),2) -> 263.83 | E57: =ROUND(СУММПРОИЗВЕСЛИ(1,'Форма по МДС 81-35.2004'!J1223:J1246,"Ж",'Форма по МДС 81-35.2004'!E1223:E1246,'Форма по МДС 81-35.2004'!M1223:M1246,0),2) -> 0 | F57: =ROUND(СУММПРОИЗВЕСЛИ(1,'Форма по МДС 81-35.2004'!J1223:J1246,"IsMater",'Форма по МДС 81-35.2004'!E1223:E1246,'Форма по МДС 81-35.2004'!M1223:M1246,0),2) -> 14.34 | G57: 13.71 | H57: 0 | I57: =ОКРУГЛВСЕ(SUMIF('Форма по МДС 81-35.2004'!J1223:J1246,"Г",'Форма по МДС 81-35.2004'!E1223:E1246),8) -> 12.2 | J57: 0 | K57: =ОКРУГЛВСЕ(SUMIF('Форма по МДС 81-35.2004'!J1223:J1246,"Ж",'Форма по МДС 81-35.2004'!E1223:E1246),8) -> 3.05 | L57: 0 | M57: 0 | N57: 44.20026 | O57: 33.7584208 | P57: 0 | Q57: 0 | R57: 0 | S57: 0 | T57: 0 | U57: 0 | V57: 0 | X57: 0 | Y57: 0 | Z57: 0 | AA57: 0 | AB57: 0 | AC57: 0 | AD57: 0 | AE57: 0
A58: ='Форма по МДС 81-35.2004'!A1247 -> 53. | B58: ='Форма по МДС 81-35.2004'!M1247 -> 120.47 | C58: =ROUND(СУММПРОИЗВЕСЛИ(1,'Форма по МДС 81-35.2004'!J1247:J1266,"Г",'Форма по МДС 81-35.2004'!E1247:E1266,'Форма по МДС 81-35.2004'!M1247:M1266,0),2) -> 41.72 | D58: =ROUND(СУММПРОИЗВЕСЛИ(1,'Форма по МДС 81-35.2004'!J1247:J1266,"IsMash",'Форма по МДС 81-35.2004'!E1247:E1266,'Форма по МДС 81-35.2004'!M1247:M1266,0),2) -> 78.75 | E58: =ROUND(СУММПРОИЗВЕСЛИ(1,'Форма по МДС 81-35.2004'!J1247:J1266,"Ж",'Форма по МДС 81-35.2004'!E1247:E1266,'Форма по МДС 81-35.2004'!M1247:M1266,0),2) -> 0 | F58: =ROUND(СУММПРОИЗВЕСЛИ(1,'Форма по МДС 81-35.2004'!J1247:J1266,"IsMater",'Форма по МДС 81-35.2004'!E1247:E1266,'Форма по МДС 81-35.2004'!M1247:M1266,0),2) -> 0 | G58: 0 | H58: 0 | I58: =ОКРУГЛВСЕ(SUMIF('Форма по МДС 81-35.2004'!J1247:J1266,"Г",'Форма по МДС 81-35.2004'!E1247:E1266),8) -> 5.15 | J58: 0 | K58: =ОКРУГЛВСЕ(SUMIF('Форма по МДС 81-35.2004'!J1247:J1266,"Ж",'Форма по МДС 81-35.2004'!E1247:E1266),8) -> 0 | L58: 0 | M58: 0 | N58: 14.09499 | O58: 10.7651992 | P58: 0 | Q58: 0 | R58: 0 | S58: 0 | T58: 0 | U58: 0 | V58: 0 | X58: 0 | Y58: 0 | Z58: 0 | AA58: 0 | AB58: 0 | AC58: 0 | AD58: 0 | AE58: 0
A59: ='Форма по МДС 81-35.2004'!A1267 -> 54. | B59: ='Форма по МДС 81-35.2004'!M1267 -> 455 | C59: =ROUND(СУММПРОИЗВЕСЛИ(1,'Форма по МДС 81-35.2004'!J1267:J1292,"Г",'Форма по МДС 81-35.2004'!E1267:E1292,'Форма по МДС 81-35.2004'!M1267:M1292,0),2) -> 162.09 | D59: =ROUND(СУММПРОИЗВЕСЛИ(1,'Форма по МДС 81-35.2004'!J1267:J1292,"IsMash",'Форма по МДС 81-35.2004'!E1267:E1292,'Форма по МДС 81-35.2004'!M1267:M1292,0),2) -> 281.99 | E59: =ROUND(СУММПРОИЗВЕСЛИ(1,'Форма по МДС 81-35.2004'!J1267:J1292,"Ж",'Форма по МДС 81-35.2004'!E1267:E1292,'Форма по МДС 81-35.2004'!M1267:M1292,0),2) -> 42.25 | F59: =ROUND(СУММПРОИЗВЕСЛИ(1,'Форма по МДС 81-35.2004'!J1267:J1292,"IsMater",'Форма по МДС 81-35.2004'!E1267:E1292,'Форма по МДС 81-35.2004'!M1267:M1292,0),2) -> 10.92 | G59: 10.35 | H59: 0 | I59: =ОКРУГЛВСЕ(SUMIF('Форма по МДС 81-35.2004'!J1267:J1292,"Г",'Форма по МДС 81-35.2004'!E1267:E1292),8) -> 19.56 | J59: 0 | K59: =ОКРУГЛВСЕ(SUMIF('Форма по МДС 81-35.2004'!J1267:J1292,"Ж",'Форма по МДС 81-35.2004'!E1267:E1292),8) -> 3.26 | L59: 0 | M59: 0 | N59: 53.235 | O59: 40.6588 | P59: 0 | Q59: 0 | R59: 0 | S59: 0 | T59: 0 | U59: 0 | V59: 0 | X59: 0 | Y59: 0 | Z59: 0 | AA59: 0 | AB59: 0 | AC59: 0 | AD59: 0 | AE59: 0
A60: ='Форма по МДС 81-35.2004'!A1293 -> 55. | B60: ='Форма по МДС 81-35.2004'!M1293 -> 56.1 | C60: =ROUND(СУММПРОИЗВЕСЛИ(1,'Форма по МДС 81-35.2004'!J1293:J1314,"Г",'Форма по МДС 81-35.2004'!E1293:E1314,'Форма по МДС 81-35.2004'!M1293:M1314,0),2) -> 6.53 | D60: =ROUND(СУММПРОИЗВЕСЛИ(1,'Форма по МДС 81-35.2004'!J1293:J1314,"IsMash",'Форма по МДС 81-35.2004'!E1293:E1314,'Форма по МДС 81-35.2004'!M1293:M1314,0),2) -> 17.3 | E60: =ROUND(СУММПРОИЗВЕСЛИ(1,'Форма по МДС 81-35.2004'!J1293:J1314,"Ж",'Форма по МДС 81-35.2004'!E1293:E1314,'Форма по МДС 81-35.2004'!M1293:M1314,0),2) -> 2.17 | F60: =ROUND(СУММПРОИЗВЕСЛИ(1,'Форма по МДС 81-35.2004'!J1293:J1314,"IsMater",'Форма по МДС 81-35.2004'!E1293:E1314,'Форма по МДС 81-35.2004'!M1293:M1314,0),2) -> 32.27 | G60: 31.49 | H60: 0 | I60: =ОКРУГЛВСЕ(SUMIF('Форма по МДС 81-35.2004'!J1293:J1314,"Г",'Форма по МДС 81-35.2004'!E1293:E1314),8) -> 0.8 | J60: 0 | K60: =ОКРУГЛВСЕ(SUMIF('Форма по МДС 81-35.2004'!J1293:J1314,"Ж",'Форма по МДС 81-35.2004'!E1293:E1314),8) -> 0.2 | L60: 0 | M60: 0 | N60: 6.5637 | O60: 5.013096 | P60: 0 | Q60: 0 | R60: 0 | S60: 0 | T60: 0 | U60: 0 | V60: 0 | X60: 0 | Y60: 0 | Z60: 0 | AA60: 0 | AB60: 0 | AC60: 0 | AD60: 0 | AE60: 0
A61: ='Форма по МДС 81-35.2004'!A1315 -> 56. | B61: ='Форма по МДС 81-35.2004'!M1315 -> 70.34 | C61: =ROUND(СУММПРОИЗВЕСЛИ(1,'Форма по МДС 81-35.2004'!J1315:J1338,"Г",'Форма по МДС 81-35.2004'!E1315:E1338,'Форма по МДС 81-35.2004'!M1315:M1338,0),2) -> 19.27 | D61: =ROUND(СУММПРОИЗВЕСЛИ(1,'Форма по МДС 81-35.2004'!J1315:J1338,"IsMash",'Форма по МДС 81-35.2004'!E1315:E1338,'Форма по МДС 81-35.2004'!M1315:M1338,0),2) -> 51.04 | E61: =ROUND(СУММПРОИЗВЕСЛИ(1,'Форма по МДС 81-35.2004'!J1315:J1338,"Ж",'Форма по МДС 81-35.2004'!E1315:E1338,'Форма по МДС 81-35.2004'!M1315:M1338,0),2) -> 6.52 | F61: =ROUND(СУММПРОИЗВЕСЛИ(1,'Форма по МДС 81-35.2004'!J1315:J1338,"IsMater",'Форма по МДС 81-35.2004'!E1315:E1338,'Форма по МДС 81-35.2004'!M1315:M1338,0),2) -> 0.03 | G61: 0.01 | H61: 0 | I61: =ОКРУГЛВСЕ(SUMIF('Форма по МДС 81-35.2004'!J1315:J1338,"Г",'Форма по МДС 81-35.2004'!E1315:E1338),8) -> 2.36 | J61: 0 | K61: =ОКРУГЛВСЕ(SUMIF('Форма по МДС 81-35.2004'!J1315:J1338,"Ж",'Форма по МДС 81-35.2004'!E1315:E1338),8) -> 0.59 | L61: 0 | M61: 0 | N61: 8.22978 | O61: 6.2855824 | P61: 0 | Q61: 0 | R61: 0 | S61: 0 | T61: 0 | U61: 0 | V61: 0 | X61: 0 | Y61: 0 | Z61: 0 | AA61: 0 | AB61: 0 | AC61: 0 | AD61: 0 | AE61: 0
A62: ='Форма по МДС 81-35.2004'!A1341 -> 57. | B62: ='Форма по МДС 81-35.2004'!M1341 -> 1989.29 | C62: =ROUND(СУММПРОИЗВЕСЛИ(1,'Форма по МДС 81-35.2004'!J1341:J1362,"Г",'Форма по МДС 81-35.2004'!E1341:E1362,'Форма по МДС 81-35.2004'!M1341:M1362,0),2) -> 79.95 | D62: =ROUND(СУММПРОИЗВЕСЛИ(1,'Форма по МДС 81-35.2004'!J1341:J1362,"IsMash",'Форма по МДС 81-35.2004'!E1341:E1362,'Форма по МДС 81-35.2004'!M1341:M1362,0),2) -> 1905.99 | E62: =ROUND(СУММПРОИЗВЕСЛИ(1,'Форма по МДС 81-35.2004'!J1341:J1362,"Ж",'Форма по МДС 81-35.2004'!E1341:E1362,'Форма по МДС 81-35.2004'!M1341:M1362,0),2) -> 150 | F62: =ROUND(СУММПРОИЗВЕСЛИ(1,'Форма по МДС 81-35.2004'!J1341:J1362,"IsMater",'Форма по МДС 81-35.2004'!E1341:E1362,'Форма по МДС 81-35.2004'!M1341:M1362,0),2) -> 3.35 | G62: 1.75 | H62: 0 | I62: =ОКРУГЛВСЕ(SUMIF('Форма по МДС 81-35.2004'!J1341:J1362,"Г",'Форма по МДС 81-35.2004'!E1341:E1362),8) -> 10.25 | J62: 0 | K62: =ОКРУГЛВСЕ(SUMIF('Форма по МДС 81-35.2004'!J1341:J1362,"Ж",'Форма по МДС 81-35.2004'!E1341:E1362),8) -> 10.25 | L62: 0 | M62: 0 | N62: 232.74693 | O62: 177.7629544 | P62: 0 | Q62: 0 | R62: 0 | S62: 0 | T62: 0 | U62: 0 | V62: 0 | X62: 0 | Y62: 0 | Z62: 0 | AA62: 0 | AB62: 0 | AC62: 0 | AD62: 0 | AE62: 0
A63: ='Форма по МДС 81-35.2004'!A1363 -> 58. | B63: ='Форма по МДС 81-35.2004'!M1363 -> 1051.7 | C63: =ROUND(СУММПРОИЗВЕСЛИ(1,'Форма по МДС 81-35.2004'!J1363:J1385,"Г",'Форма по МДС 81-35.2004'!E1363:E1385,'Форма по МДС 81-35.2004'!M1363:M1385,0),2) -> 235.48 | D63: =ROUND(СУММПРОИЗВЕСЛИ(1,'Форма по МДС 81-35.2004'!J1363:J1385,"IsMash",'Форма по МДС 81-35.2004'!E1363:E1385,'Форма по МДС 81-35.2004'!M1363:M1385,0),2) -> 623.67 | E63: =ROUND(СУММПРОИЗВЕСЛИ(1,'Форма по МДС 81-35.2004'!J1363:J1385,"Ж",'Форма по МДС 81-35.2004'!E1363:E1385,'Форма по МДС 81-35.2004'!M1363:M1385,0),2) -> 105.27 | F63: =ROUND(СУММПРОИЗВЕСЛИ(1,'Форма по МДС 81-35.2004'!J1363:J1385,"IsMater",'Форма по МДС 81-35.2004'!E1363:E1385,'Форма по МДС 81-35.2004'!M1363:M1385,0),2) -> 192.56 | G63: 188.6 | H63: 0 | I63: =ОКРУГЛВСЕ(SUMIF('Форма по МДС 81-35.2004'!J1363:J1385,"Г",'Форма по МДС 81-35.2004'!E1363:E1385),8) -> 28.84 | J63: 0 | K63: =ОКРУГЛВСЕ(SUMIF('Форма по МДС 81-35.2004'!J1363:J1385,"Ж",'Форма по МДС 81-35.2004'!E1363:E1385),8) -> 7.21 | L63: 0 | M63: 0 | N63: 123.0489 | O63: 93.979912 | P63: 0 | Q63: 0 | R63: 0 | S63: 0 | T63: 0 | U63: 0 | V63: 0 | X63: 0 | Y63: 0 | Z63: 0 | AA63: 0 | AB63: 0 | AC63: 0 | AD63: 0 | AE63: 0
A64: ='Форма по МДС 81-35.2004'!A1386 -> 59. | B64: ='Форма по МДС 81-35.2004'!M1386 -> 9081.93 | C64: =ROUND(СУММПРОИЗВЕСЛИ(1,'Форма по МДС 81-35.2004'!J1386:J1414,"Г",'Форма по МДС 81-35.2004'!E1386:E1414,'Форма по МДС 81-35.2004'!M1386:M1414,0),2) -> 2447.21 | D64: =ROUND(СУММПРОИЗВЕСЛИ(1,'Форма по МДС 81-35.2004'!J1386:J1414,"IsMash",'Форма по МДС 81-35.2004'!E1386:E1414,'Форма по МДС 81-35.2004'!M1386:M1414,0),2) -> 6481.45 | E64: =ROUND(СУММПРОИЗВЕСЛИ(1,'Форма по МДС 81-35.2004'!J1386:J1414,"Ж",'Форма по МДС 81-35.2004'!E1386:E1414,'Форма по МДС 81-35.2004'!M1386:M1414,0),2) -> 1666.67 | F64: =ROUND(СУММПРОИЗВЕСЛИ(1,'Форма по МДС 81-35.2004'!J1386:J1414,"IsMater",'Форма по МДС 81-35.2004'!E1386:E1414,'Форма по МДС 81-35.2004'!M1386:M1414,0),2) -> 153.27 | G64: 148.15 | H64: 0 | I64: =ОКРУГЛВСЕ(SUMIF('Форма по МДС 81-35.2004'!J1386:J1414,"Г",'Форма по МДС 81-35.2004'!E1386:E1414),8) -> 299.72 | J64: 0 | K64: =ОКРУГЛВСЕ(SUMIF('Форма по МДС 81-35.2004'!J1386:J1414,"Ж",'Форма по МДС 81-35.2004'!E1386:E1414),8) -> 74.93 | L64: 0 | M64: 0 | N64: 1062.58581 | O64: 811.5612648 | P64: 0 | Q64: 0 | R64: 0 | S64: 0 | T64: 0 | U64: 0 | V64: 0 | X64: 0 | Y64: 0 | Z64: 0 | AA64: 0 | AB64: 0 | AC64: 0 | AD64: 0 | AE64: 0
A65: ='Форма по МДС 81-35.2004'!A1415 -> 60. | B65: ='Форма по МДС 81-35.2004'!M1415 -> 9081.93 | C65: =ROUND(СУММПРОИЗВЕСЛИ(1,'Форма по МДС 81-35.2004'!J1415:J1442,"Г",'Форма по МДС 81-35.2004'!E1415:E1442,'Форма по МДС 81-35.2004'!M1415:M1442,0),2) -> 2447.21 | D65: =ROUND(СУММПРОИЗВЕСЛИ(1,'Форма по МДС 81-35.2004'!J1415:J1442,"IsMash",'Форма по МДС 81-35.2004'!E1415:E1442,'Форма по МДС 81-35.2004'!M1415:M1442,0),2) -> 6481.45 | E65: =ROUND(СУММПРОИЗВЕСЛИ(1,'Форма по МДС 81-35.2004'!J1415:J1442,"Ж",'Форма по МДС 81-35.2004'!E1415:E1442,'Форма по МДС 81-35.2004'!M1415:M1442,0),2) -> 899.98 | F65: =ROUND(СУММПРОИЗВЕСЛИ(1,'Форма по МДС 81-35.2004'!J1415:J1442,"IsMater",'Форма по МДС 81-35.2004'!E1415:E1442,'Форма по МДС 81-35.2004'!M1415:M1442,0),2) -> 153.27 | G65: 148.15 | H65: 0 | I65: =ОКРУГЛВСЕ(SUMIF('Форма по МДС 81-35.2004'!J1415:J1442,"Г",'Форма по МДС 81-35.2004'!E1415:E1442),8) -> 299.72 | J65: 0 | K65: =ОКРУГЛВСЕ(SUMIF('Форма по МДС 81-35.2004'!J1415:J1442,"Ж",'Форма по МДС 81-35.2004'!E1415:E1442),8) -> 74.93 | L65: 0 | M65: 0 | N65: 1062.58581 | O65: 811.5612648 | P65: 0 | Q65: 0 | R65: 0 | S65: 0 | T65: 0 | U65: 0 | V65: 0 | X65: 0 | Y65: 0 | Z65: 0 | AA65: 0 | AB65: 0 | AC65: 0 | AD65: 0 | AE65: 0
A66: ='Форма по МДС 81-35.2004'!A1443 -> 61. | B66: ='Форма по МДС 81-35.2004'!M1443 -> 521.9 | C66: =ROUND(СУММПРОИЗВЕСЛИ(1,'Форма по МДС 81-35.2004'!J1443:J1460,"Г",'Форма по МДС 81-35.2004'!E1443:E1460,'Форма по МДС 81-35.2004'!M1443:M1460,0),2) -> 0 | D66: =ROUND(СУММПРОИЗВЕСЛИ(1,'Форма по МДС 81-35.2004'!J1443:J1460,"IsMash",'Форма по МДС 81-35.2004'!E1443:E1460,'Форма по МДС 81-35.2004'!M1443:M1460,0),2) -> 0 | E66: =ROUND(СУММПРОИЗВЕСЛИ(1,'Форма по МДС 81-35.2004'!J1443:J1460,"Ж",'Форма по МДС 81-35.2004'!E1443:E1460,'Форма по МДС 81-35.2004'!M1443:M1460,0),2) -> 0 | F66: =ROUND(СУММПРОИЗВЕСЛИ(1,'Форма по МДС 81-35.2004'!J1443:J1460,"IsMater",'Форма по МДС 81-35.2004'!E1443:E1460,'Форма по МДС 81-35.2004'!M1443:M1460,0),2) -> 521.9 | G66: 521.9 | H66: 0 | I66: =ОКРУГЛВСЕ(SUMIF('Форма по МДС 81-35.2004'!J1443:J1460,"Г",'Форма по МДС 81-35.2004'!E1443:E1460),8) -> 0 | J66: 0 | K66: =ОКРУГЛВСЕ(SUMIF('Форма по МДС 81-35.2004'!J1443:J1460,"Ж",'Форма по МДС 81-35.2004'!E1443:E1460),8) -> 0 | L66: 0 | M66: 0 | N66: 61.0623 | O66: 46.636984 | P66: 0 | Q66: 0 | R66: 0 | S66: 0 | T66: 0 | U66: 0 | V66: 0 | X66: 0 | Y66: 0 | Z66: 0 | AA66: 0 | AB66: 0 | AC66: 0 | AD66: 0 | AE66: 0
A67: ='Форма по МДС 81-35.2004'!A1461 -> 62. | B67: ='Форма по МДС 81-35.2004'!M1461 -> 120.47 | C67: =ROUND(СУММПРОИЗВЕСЛИ(1,'Форма по МДС 81-35.2004'!J1461:J1480,"Г",'Форма по МДС 81-35.2004'!E1461:E1480,'Форма по МДС 81-35.2004'!M1461:M1480,0),2) -> 41.72 | D67: =ROUND(СУММПРОИЗВЕСЛИ(1,'Форма по МДС 81-35.2004'!J1461:J1480,"IsMash",'Форма по МДС 81-35.2004'!E1461:E1480,'Форма по МДС 81-35.2004'!M1461:M1480,0),2) -> 78.75 | E67: =ROUND(СУММПРОИЗВЕСЛИ(1,'Форма по МДС 81-35.2004'!J1461:J1480,"Ж",'Форма по МДС 81-35.2004'!E1461:E1480,'Форма по МДС 81-35.2004'!M1461:M1480,0),2) -> 0 | F67: =ROUND(СУММПРОИЗВЕСЛИ(1,'Форма по МДС 81-35.2004'!J1461:J1480,"IsMater",'Форма по МДС 81-35.2004'!E1461:E1480,'Форма по МДС 81-35.2004'!M1461:M1480,0),2) -> 0 | G67: 0 | H67: 0 | I67: =ОКРУГЛВСЕ(SUMIF('Форма по МДС 81-35.2004'!J1461:J1480,"Г",'Форма по МДС 81-35.2004'!E1461:E1480),8) -> 5.15 | J67: 0 | K67: =ОКРУГЛВСЕ(SUMIF('Форма по МДС 81-35.2004'!J1461:J1480,"Ж",'Форма по МДС 81-35.2004'!E1461:E1480),8) -> 0 | L67: 0 | M67: 0 | N67: 14.09499 | O67: 10.7651992 | P67: 0 | Q67: 0 | R67: 0 | S67: 0 | T67: 0 | U67: 0 | V67: 0 | X67: 0 | Y67: 0 | Z67: 0 | AA67: 0 | AB67: 0 | AC67: 0 | AD67: 0 | AE67: 0
A68: ='Форма по МДС 81-35.2004'!A1482 -> 63. | B68: ='Форма по МДС 81-35.2004'!M1482 -> 1546.63 | C68: =ROUND(СУММПРОИЗВЕСЛИ(1,'Форма по МДС 81-35.2004'!J1482:J1502,"Г",'Форма по МДС 81-35.2004'!E1482:E1502,'Форма по МДС 81-35.2004'!M1482:M1502,0),2) -> 62.17 | D68: =ROUND(СУММПРОИЗВЕСЛИ(1,'Форма по МДС 81-35.2004'!J1482:J1502,"IsMash",'Форма по МДС 81-35.2004'!E1482:E1502,'Форма по МДС 81-35.2004'!M1482:M1502,0),2) -> 1482.02 | E68: =ROUND(СУММПРОИЗВЕСЛИ(1,'Форма по МДС 81-35.2004'!J1482:J1502,"Ж",'Форма по МДС 81-35.2004'!E1482:E1502,'Форма по МДС 81-35.2004'!M1482:M1502,0),2) -> 107.52 | F68: =ROUND(СУММПРОИЗВЕСЛИ(1,'Форма по МДС 81-35.2004'!J1482:J1502,"IsMater",'Форма по МДС 81-35.2004'!E1482:E1502,'Форма по МДС 81-35.2004'!M1482:M1502,0),2) -> 2.44 | G68: 0.87 | H68: 0 | I68: =ОКРУГЛВСЕ(SUMIF('Форма по МДС 81-35.2004'!J1482:J1502,"Г",'Форма по МДС 81-35.2004'!E1482:E1502),8) -> 7.97 | J68: 0 | K68: =ОКРУГЛВСЕ(SUMIF('Форма по МДС 81-35.2004'!J1482:J1502,"Ж",'Форма по МДС 81-35.2004'!E1482:E1502),8) -> 7.97 | L68: 0 | M68: 0 | N68: 180.95571 | O68: 138.2068568 | P68: 0 | Q68: 0 | R68: 0 | S68: 0 | T68: 0 | U68: 0 | V68: 0 | X68: 0 | Y68: 0 | Z68: 0 | AA68: 0 | AB68: 0 | AC68: 0 | AD68: 0 | AE68: 0
A69: ='Форма по МДС 81-35.2004'!A1503 -> 64. | B69: ='Форма по МДС 81-35.2004'!M1503 -> 1654.16 | C69: =ROUND(СУММПРОИЗВЕСЛИ(1,'Форма по МДС 81-35.2004'!J1503:J1525,"Г",'Форма по МДС 81-35.2004'!E1503:E1525,'Форма по МДС 81-35.2004'!M1503:M1525,0),2) -> 353.38 | D69: =ROUND(СУММПРОИЗВЕСЛИ(1,'Форма по МДС 81-35.2004'!J1503:J1525,"IsMash",'Форма по МДС 81-35.2004'!E1503:E1525,'Форма по МДС 81-35.2004'!M1503:M1525,0),2) -> 935.93 | E69: =ROUND(СУММПРОИЗВЕСЛИ(1,'Форма по МДС 81-35.2004'!J1503:J1525,"Ж",'Форма по МДС 81-35.2004'!E1503:E1525,'Форма по МДС 81-35.2004'!M1503:M1525,0),2) -> 0 | F69: =ROUND(СУММПРОИЗВЕСЛИ(1,'Форма по МДС 81-35.2004'!J1503:J1525,"IsMater",'Форма по МДС 81-35.2004'!E1503:E1525,'Форма по МДС 81-35.2004'!M1503:M1525,0),2) -> 364.85 | G69: 357.4 | H69: 0 | I69: =ОКРУГЛВСЕ(SUMIF('Форма по МДС 81-35.2004'!J1503:J1525,"Г",'Форма по МДС 81-35.2004'!E1503:E1525),8) -> 43.28 | J69: 0 | K69: =ОКРУГЛВСЕ(SUMIF('Форма по МДС 81-35.2004'!J1503:J1525,"Ж",'Форма по МДС 81-35.2004'!E1503:E1525),8) -> 10.82 | L69: 0 | M69: 0 | N69: 193.53672 | O69: 147.8157376 | P69: 0 | Q69: 0 | R69: 0 | S69: 0 | T69: 0 | U69: 0 | V69: 0 | X69: 0 | Y69: 0 | Z69: 0 | AA69: 0 | AB69: 0 | AC69: 0 | AD69: 0 | AE69: 0
A70: ='Форма по МДС 81-35.2004'!A1526 -> 65. | B70: ='Форма по МДС 81-35.2004'!M1526 -> 120.47 | C70: =ROUND(СУММПРОИЗВЕСЛИ(1,'Форма по МДС 81-35.2004'!J1526:J1545,"Г",'Форма по МДС 81-35.2004'!E1526:E1545,'Форма по МДС 81-35.2004'!M1526:M1545,0),2) -> 41.72 | D70: =ROUND(СУММПРОИЗВЕСЛИ(1,'Форма по МДС 81-35.2004'!J1526:J1545,"IsMash",'Форма по МДС 81-35.2004'!E1526:E1545,'Форма по МДС 81-35.2004'!M1526:M1545,0),2) -> 78.75 | E70: =ROUND(СУММПРОИЗВЕСЛИ(1,'Форма по МДС 81-35.2004'!J1526:J1545,"Ж",'Форма по МДС 81-35.2004'!E1526:E1545,'Форма по МДС 81-35.2004'!M1526:M1545,0),2) -> 0 | F70: =ROUND(СУММПРОИЗВЕСЛИ(1,'Форма по МДС 81-35.2004'!J1526:J1545,"IsMater",'Форма по МДС 81-35.2004'!E1526:E1545,'Форма по МДС 81-35.2004'!M1526:M1545,0),2) -> 0 | G70: 0 | H70: 0 | I70: =ОКРУГЛВСЕ(SUMIF('Форма по МДС 81-35.2004'!J1526:J1545,"Г",'Форма по МДС 81-35.2004'!E1526:E1545),8) -> 5.15 | J70: 0 | K70: =ОКРУГЛВСЕ(SUMIF('Форма по МДС 81-35.2004'!J1526:J1545,"Ж",'Форма по МДС 81-35.2004'!E1526:E1545),8) -> 0 | L70: 0 | M70: 0 | N70: 14.09499 | O70: 10.7651992 | P70: 0 | Q70: 0 | R70: 0 | S70: 0 | T70: 0 | U70: 0 | V70: 0 | X70: 0 | Y70: 0 | Z70: 0 | AA70: 0 | AB70: 0 | AC70: 0 | AD70: 0 | AE70: 0
A71: ='Форма по МДС 81-35.2004'!A1546 -> 66. | B71: ='Форма по МДС 81-35.2004'!M1546 -> 3682.04 | C71: =ROUND(СУММПРОИЗВЕСЛИ(1,'Форма по МДС 81-35.2004'!J1546:J1567,"Г",'Форма по МДС 81-35.2004'!E1546:E1567,'Форма по МДС 81-35.2004'!M1546:M1567,0),2) -> 1009.19 | D71: =ROUND(СУММПРОИЗВЕСЛИ(1,'Форма по МДС 81-35.2004'!J1546:J1567,"IsMash",'Форма по МДС 81-35.2004'!E1546:E1567,'Форма по МДС 81-35.2004'!M1546:M1567,0),2) -> 2672.85 | E71: =ROUND(СУММПРОИЗВЕСЛИ(1,'Форма по МДС 81-35.2004'!J1546:J1567,"Ж",'Форма по МДС 81-35.2004'!E1546:E1567,'Форма по МДС 81-35.2004'!M1546:M1567,0),2) -> 0 | F71: =ROUND(СУММПРОИЗВЕСЛИ(1,'Форма по МДС 81-35.2004'!J1546:J1567,"IsMater",'Форма по МДС 81-35.2004'!E1546:E1567,'Форма по МДС 81-35.2004'!M1546:M1567,0),2) -> 0 | G71: 0 | H71: 0 | I71: =ОКРУГЛВСЕ(SUMIF('Форма по МДС 81-35.2004'!J1546:J1567,"Г",'Форма по МДС 81-35.2004'!E1546:E1567),8) -> 123.6 | J71: 0 | K71: =ОКРУГЛВСЕ(SUMIF('Форма по МДС 81-35.2004'!J1546:J1567,"Ж",'Форма по МДС 81-35.2004'!E1546:E1567),8) -> 30.9 | L71: 0 | M71: 0 | N71: 430.79868 | O71: 329.0270944 | P71: 0 | Q71: 0 | R71: 0 | S71: 0 | T71: 0 | U71: 0 | V71: 0 | X71: 0 | Y71: 0 | Z71: 0 | AA71: 0 | AB71: 0 | AC71: 0 | AD71: 0 | AE71: 0
A72: ='Форма по МДС 81-35.2004'!A1568 -> 67. | B72: ='Форма по МДС 81-35.2004'!M1568 -> 7988.04 | C72: =ROUND(СУММПРОИЗВЕСЛИ(1,'Форма по МДС 81-35.2004'!J1568:J1589,"Г",'Форма по МДС 81-35.2004'!E1568:E1589,'Форма по МДС 81-35.2004'!M1568:M1589,0),2) -> 1009.19 | D72: =ROUND(СУММПРОИЗВЕСЛИ(1,'Форма по МДС 81-35.2004'!J1568:J1589,"IsMash",'Форма по МДС 81-35.2004'!E1568:E1589,'Форма по МДС 81-35.2004'!M1568:M1589,0),2) -> 2672.85 | E72: =ROUND(СУММПРОИЗВЕСЛИ(1,'Форма по МДС 81-35.2004'!J1568:J1589,"Ж",'Форма по МДС 81-35.2004'!E1568:E1589,'Форма по МДС 81-35.2004'!M1568:M1589,0),2) -> 0 | F72: =ROUND(СУММПРОИЗВЕСЛИ(1,'Форма по МДС 81-35.2004'!J1568:J1589,"IsMater",'Форма по МДС 81-35.2004'!E1568:E1589,'Форма по МДС 81-35.2004'!M1568:M1589,0),2) -> 4306 | G72: 4197 | H72: 0 | I72: =ОКРУГЛВСЕ(SUMIF('Форма по МДС 81-35.2004'!J1568:J1589,"Г",'Форма по МДС 81-35.2004'!E1568:E1589),8) -> 123.6 | J72: 0 | K72: =ОКРУГЛВСЕ(SUMIF('Форма по МДС 81-35.2004'!J1568:J1589,"Ж",'Форма по МДС 81-35.2004'!E1568:E1589),8) -> 30.9 | L72: 0 | M72: 0 | N72: 934.60068 | O72: 713.8112544 | P72: 0 | Q72: 0 | R72: 0 | S72: 0 | T72: 0 | U72: 0 | V72: 0 | X72: 0 | Y72: 0 | Z72: 0 | AA72: 0 | AB72: 0 | AC72: 0 | AD72: 0 | AE72: 0
A73: ='Форма по МДС 81-35.2004'!A1590 -> 68. | B73: ='Форма по МДС 81-35.2004'!M1590 -> 917.36 | C73: =ROUND(СУММПРОИЗВЕСЛИ(1,'Форма по МДС 81-35.2004'!J1590:J1611,"Г",'Форма по МДС 81-35.2004'!E1590:E1611,'Форма по МДС 81-35.2004'!M1590:M1611,0),2) -> 247.81 | D73: =ROUND(СУММПРОИЗВЕСЛИ(1,'Форма по МДС 81-35.2004'!J1590:J1611,"IsMash",'Форма по МДС 81-35.2004'!E1590:E1611,'Форма по МДС 81-35.2004'!M1590:M1611,0),2) -> 557.06 | E73: =ROUND(СУММПРОИЗВЕСЛИ(1,'Форма по МДС 81-35.2004'!J1590:J1611,"Ж",'Форма по МДС 81-35.2004'!E1590:E1611,'Форма по МДС 81-35.2004'!M1590:M1611,0),2) -> 100 | F73: =ROUND(СУММПРОИЗВЕСЛИ(1,'Форма по МДС 81-35.2004'!J1590:J1611,"IsMater",'Форма по МДС 81-35.2004'!E1590:E1611,'Форма по МДС 81-35.2004'!M1590:M1611,0),2) -> 112.49 | G73: 110.23 | H73: 0 | I73: =ОКРУГЛВСЕ(SUMIF('Форма по МДС 81-35.2004'!J1590:J1611,"Г",'Форма по МДС 81-35.2004'!E1590:E1611),8) -> 25.76 | J73: 0 | K73: =ОКРУГЛВСЕ(SUMIF('Форма по МДС 81-35.2004'!J1590:J1611,"Ж",'Форма по МДС 81-35.2004'!E1590:E1611),8) -> 6.44 | L73: 0 | M73: 0 | N73: 107.33112 | O73: 81.9752896 | P73: 0 | Q73: 0 | R73: 0 | S73: 0 | T73: 0 | U73: 0 | V73: 0 | X73: 0 | Y73: 0 | Z73: 0 | AA73: 0 | AB73: 0 | AC73: 0 | AD73: 0 | AE73: 0
A74: ='Форма по МДС 81-35.2004'!A1613 -> 69. | B74: ='Форма по МДС 81-35.2004'!M1613 -> 118.68 | C74: =ROUND(СУММПРОИЗВЕСЛИ(1,'Форма по МДС 81-35.2004'!J1613:J1633,"Г",'Форма по МДС 81-35.2004'!E1613:E1633,'Форма по МДС 81-35.2004'!M1613:M1633,0),2) -> 4.76 | D74: =ROUND(СУММПРОИЗВЕСЛИ(1,'Форма по МДС 81-35.2004'!J1613:J1633,"IsMash",'Форма по МДС 81-35.2004'!E1613:E1633,'Форма по МДС 81-35.2004'!M1613:M1633,0),2) -> 113.43 | E74: =ROUND(СУММПРОИЗВЕСЛИ(1,'Форма по МДС 81-35.2004'!J1613:J1633,"Ж",'Форма по МДС 81-35.2004'!E1613:E1633,'Форма по МДС 81-35.2004'!M1613:M1633,0),2) -> 6.67 | F74: =ROUND(СУММПРОИЗВЕСЛИ(1,'Форма по МДС 81-35.2004'!J1613:J1633,"IsMater",'Форма по МДС 81-35.2004'!E1613:E1633,'Форма по МДС 81-35.2004'!M1613:M1633,0),2) -> 0.49 | G74: 0.17 | H74: 0 | I74: =ОКРУГЛВСЕ(SUMIF('Форма по МДС 81-35.2004'!J1613:J1633,"Г",'Форма по МДС 81-35.2004'!E1613:E1633),8) -> 0.61 | J74: 0 | K74: =ОКРУГЛВСЕ(SUMIF('Форма по МДС 81-35.2004'!J1613:J1633,"Ж",'Форма по МДС 81-35.2004'!E1613:E1633),8) -> 0.61 | L74: 0 | M74: 0 | N74: 13.88556 | O74: 10.6052448 | P74: 0 | Q74: 0 | R74: 0 | S74: 0 | T74: 0 | U74: 0 | V74: 0 | X74: 0 | Y74: 0 | Z74: 0 | AA74: 0 | AB74: 0 | AC74: 0 | AD74: 0 | AE74: 0
A75: ='Форма по МДС 81-35.2004'!A1634 -> 70. | B75: ='Форма по МДС 81-35.2004'!M1634 -> 269.86 | C75: =ROUND(СУММПРОИЗВЕСЛИ(1,'Форма по МДС 81-35.2004'!J1634:J1656,"Г",'Форма по МДС 81-35.2004'!E1634:E1656,'Форма по МДС 81-35.2004'!M1634:M1656,0),2) -> 47.03 | D75: =ROUND(СУММПРОИЗВЕСЛИ(1,'Форма по МДС 81-35.2004'!J1634:J1656,"IsMash",'Форма по МДС 81-35.2004'!E1634:E1656,'Форма по МДС 81-35.2004'!M1634:M1656,0),2) -> 124.56 | E75: =ROUND(СУММПРОИЗВЕСЛИ(1,'Форма по МДС 81-35.2004'!J1634:J1656,"Ж",'Форма по МДС 81-35.2004'!E1634:E1656,'Форма по МДС 81-35.2004'!M1634:M1656,0),2) -> 20.43 | F75: =ROUND(СУММПРОИЗВЕСЛИ(1,'Форма по МДС 81-35.2004'!J1634:J1656,"IsMater",'Форма по МДС 81-35.2004'!E1634:E1656,'Форма по МДС 81-35.2004'!M1634:M1656,0),2) -> 98.27 | G75: 96.24 | H75: 0 | I75: =ОКРУГЛВСЕ(SUMIF('Форма по МДС 81-35.2004'!J1634:J1656,"Г",'Форма по МДС 81-35.2004'!E1634:E1656),8) -> 5.76 | J75: 0 | K75: =ОКРУГЛВСЕ(SUMIF('Форма по МДС 81-35.2004'!J1634:J1656,"Ж",'Форма по МДС 81-35.2004'!E1634:E1656),8) -> 1.44 | L75: 0 | M75: 0 | N75: 31.57362 | O75: 24.1146896 | P75: 0 | Q75: 0 | R75: 0 | S75: 0 | T75: 0 | U75: 0 | V75: 0 | X75: 0 | Y75: 0 | Z75: 0 | AA75: 0 | AB75: 0 | AC75: 0 | AD75: 0 | AE75: 0
A76: ='Форма по МДС 81-35.2004'!A1657 -> 71. | B76: ='Форма по МДС 81-35.2004'!M1657 -> 3246.64 | C76: =ROUND(СУММПРОИЗВЕСЛИ(1,'Форма по МДС 81-35.2004'!J1657:J1683,"Г",'Форма по МДС 81-35.2004'!E1657:E1683,'Форма по МДС 81-35.2004'!M1657:M1683,0),2) -> 787.66 | D76: =ROUND(СУММПРОИЗВЕСЛИ(1,'Форма по МДС 81-35.2004'!J1657:J1683,"IsMash",'Форма по МДС 81-35.2004'!E1657:E1683,'Форма по МДС 81-35.2004'!M1657:M1683,0),2) -> 2443.09 | E76: =ROUND(СУММПРОИЗВЕСЛИ(1,'Форма по МДС 81-35.2004'!J1657:J1683,"Ж",'Форма по МДС 81-35.2004'!E1657:E1683,'Форма по МДС 81-35.2004'!M1657:M1683,0),2) -> 400 | F76: =ROUND(СУММПРОИЗВЕСЛИ(1,'Форма по МДС 81-35.2004'!J1657:J1683,"IsMater",'Форма по МДС 81-35.2004'!E1657:E1683,'Форма по МДС 81-35.2004'!M1657:M1683,0),2) -> 15.89 | G76: 15.5 | H76: 0 | I76: =ОКРУГЛВСЕ(SUMIF('Форма по МДС 81-35.2004'!J1657:J1683,"Г",'Форма по МДС 81-35.2004'!E1657:E1683),8) -> 90.7 | J76: 0 | K76: =ОКРУГЛВСЕ(SUMIF('Форма по МДС 81-35.2004'!J1657:J1683,"Ж",'Форма по МДС 81-35.2004'!E1657:E1683),8) -> 25.92 | L76: 0 | M76: 0 | N76: 379.85688 | O76: 290.1197504 | P76: 0 | Q76: 0 | R76: 0 | S76: 0 | T76: 0 | U76: 0 | V76: 0 | X76: 0 | Y76: 0 | Z76: 0 | AA76: 0 | AB76: 0 | AC76: 0 | AD76: 0 | AE76: 0
A77: ='Форма по МДС 81-35.2004'!A1684 -> 72. | B77: ='Форма по МДС 81-35.2004'!M1684 -> 818.29 | C77: =ROUND(СУММПРОИЗВЕСЛИ(1,'Форма по МДС 81-35.2004'!J1684:J1709,"Г",'Форма по МДС 81-35.2004'!E1684:E1709,'Форма по МДС 81-35.2004'!M1684:M1709,0),2) -> 0 | D77: =ROUND(СУММПРОИЗВЕСЛИ(1,'Форма по МДС 81-35.2004'!J1684:J1709,"IsMash",'Форма по МДС 81-35.2004'!E1684:E1709,'Форма по МДС 81-35.2004'!M1684:M1709,0),2) -> 818.29 | E77: =ROUND(СУММПРОИЗВЕСЛИ(1,'Форма по МДС 81-35.2004'!J1684:J1709,"Ж",'Форма по МДС 81-35.2004'!E1684:E1709,'Форма по МДС 81-35.2004'!M1684:M1709,0),2) -> 115.73 | F77: =ROUND(СУММПРОИЗВЕСЛИ(1,'Форма по МДС 81-35.2004'!J1684:J1709,"IsMater",'Форма по МДС 81-35.2004'!E1684:E1709,'Форма по МДС 81-35.2004'!M1684:M1709,0),2) -> 0 | G77: 0 | H77: 0 | I77: =ОКРУГЛВСЕ(SUMIF('Форма по МДС 81-35.2004'!J1684:J1709,"Г",'Форма по МДС 81-35.2004'!E1684:E1709),8) -> 75.68 | J77: 0 | K77: =ОКРУГЛВСЕ(SUMIF('Форма по МДС 81-35.2004'!J1684:J1709,"Ж",'Форма по МДС 81-35.2004'!E1684:E1709),8) -> 28.38 | L77: 0 | M77: 0 | N77: 95.73993 | O77: 73.1223944 | P77: 0 | Q77: 0 | R77: 0 | S77: 0 | T77: 0 | U77: 0 | V77: 0 | X77: 0 | Y77: 0 | Z77: 0 | AA77: 0 | AB77: 0 | AC77: 0 | AD77: 0 | AE77: 0
A78: ='Форма по МДС 81-35.2004'!A1710 -> 73. | B78: ='Форма по МДС 81-35.2004'!M1710 -> 0 | C78: =ROUND(СУММПРОИЗВЕСЛИ(1,'Форма по МДС 81-35.2004'!J1710:J1728,"Г",'Форма по МДС 81-35.2004'!E1710:E1728,'Форма по МДС 81-35.2004'!M1710:M1728,0),2) -> 0 | D78: =ROUND(СУММПРОИЗВЕСЛИ(1,'Форма по МДС 81-35.2004'!J1710:J1728,"IsMash",'Форма по МДС 81-35.2004'!E1710:E1728,'Форма по МДС 81-35.2004'!M1710:M1728,0),2) -> 0 | E78: =ROUND(СУММПРОИЗВЕСЛИ(1,'Форма по МДС 81-35.2004'!J1710:J1728,"Ж",'Форма по МДС 81-35.2004'!E1710:E1728,'Форма по МДС 81-35.2004'!M1710:M1728,0),2) -> 0 | F78: =ROUND(СУММПРОИЗВЕСЛИ(1,'Форма по МДС 81-35.2004'!J1710:J1728,"IsMater",'Форма по МДС 81-35.2004'!E1710:E1728,'Форма по МДС 81-35.2004'!M1710:M1728,0),2) -> 0 | G78: 0 | H78: 0 | I78: =ОКРУГЛВСЕ(SUMIF('Форма по МДС 81-35.2004'!J1710:J1728,"Г",'Форма по МДС 81-35.2004'!E1710:E1728),8) -> 0 | J78: 0 | K78: =ОКРУГЛВСЕ(SUMIF('Форма по МДС 81-35.2004'!J1710:J1728,"Ж",'Форма по МДС 81-35.2004'!E1710:E1728),8) -> 0 | L78: 0 | M78: 0 | N78: 0 | O78: 0 | P78: 0 | Q78: 0 | R78: 0 | S78: 0 | T78: 0 | U78: 0 | V78: 0 | X78: 0 | Y78: 0 | Z78: 0 | AA78: 0 | AB78: 0 | AC78: 0 | AD78: 0 | AE78: 0
A79: ='Форма по МДС 81-35.2004'!A1729 -> 74. | B79: ='Форма по МДС 81-35.2004'!M1729 -> 4006.39 | C79: =ROUND(СУММПРОИЗВЕСЛИ(1,'Форма по МДС 81-35.2004'!J1729:J1750,"Г",'Форма по МДС 81-35.2004'!E1729:E1750,'Форма по МДС 81-35.2004'!M1729:M1750,0),2) -> 185.67 | D79: =ROUND(СУММПРОИЗВЕСЛИ(1,'Форма по МДС 81-35.2004'!J1729:J1750,"IsMash",'Форма по МДС 81-35.2004'!E1729:E1750,'Форма по МДС 81-35.2004'!M1729:M1750,0),2) -> 834.73 | E79: =ROUND(СУММПРОИЗВЕСЛИ(1,'Форма по МДС 81-35.2004'!J1729:J1750,"Ж",'Форма по МДС 81-35.2004'!E1729:E1750,'Форма по МДС 81-35.2004'!M1729:M1750,0),2) -> 100 | F79: =ROUND(СУММПРОИЗВЕСЛИ(1,'Форма по МДС 81-35.2004'!J1729:J1750,"IsMater",'Форма по МДС 81-35.2004'!E1729:E1750,'Форма по МДС 81-35.2004'!M1729:M1750,0),2) -> 2986 | G79: 2878 | H79: 0 | I79: =ОКРУГЛВСЕ(SUMIF('Форма по МДС 81-35.2004'!J1729:J1750,"Г",'Форма по МДС 81-35.2004'!E1729:E1750),8) -> 19.3 | J79: 0 | K79: =ОКРУГЛВСЕ(SUMIF('Форма по МДС 81-35.2004'!J1729:J1750,"Ж",'Форма по МДС 81-35.2004'!E1729:E1750),8) -> 9.65 | L79: 0 | M79: 0 | N79: 468.74763 | O79: 358.0110104 | P79: 0 | Q79: 0 | R79: 0 | S79: 0 | T79: 0 | U79: 0 | V79: 0 | X79: 0 | Y79: 0 | Z79: 0 | AA79: 0 | AB79: 0 | AC79: 0 | AD79: 0 | AE79: 0
A80: ='Форма по МДС 81-35.2004'!A1751 -> 75. | B80: ='Форма по МДС 81-35.2004'!M1751 -> 41.77 | C80: =ROUND(СУММПРОИЗВЕСЛИ(1,'Форма по МДС 81-35.2004'!J1751:J1770,"Г",'Форма по МДС 81-35.2004'!E1751:E1770,'Форма по МДС 81-35.2004'!M1751:M1770,0),2) -> 17.55 | D80: =ROUND(СУММПРОИЗВЕСЛИ(1,'Форма по МДС 81-35.2004'!J1751:J1770,"IsMash",'Форма по МДС 81-35.2004'!E1751:E1770,'Форма по МДС 81-35.2004'!M1751:M1770,0),2) -> 24.22 | E80: =ROUND(СУММПРОИЗВЕСЛИ(1,'Форма по МДС 81-35.2004'!J1751:J1770,"Ж",'Форма по МДС 81-35.2004'!E1751:E1770,'Форма по МДС 81-35.2004'!M1751:M1770,0),2) -> 0 | F80: =ROUND(СУММПРОИЗВЕСЛИ(1,'Форма по МДС 81-35.2004'!J1751:J1770,"IsMater",'Форма по МДС 81-35.2004'!E1751:E1770,'Форма по МДС 81-35.2004'!M1751:M1770,0),2) -> 0 | G80: 0 | H80: 0 | I80: =ОКРУГЛВСЕ(SUMIF('Форма по МДС 81-35.2004'!J1751:J1770,"Г",'Форма по МДС 81-35.2004'!E1751:E1770),8) -> 2.25 | J80: 0 | K80: =ОКРУГЛВСЕ(SUMIF('Форма по МДС 81-35.2004'!J1751:J1770,"Ж",'Форма по МДС 81-35.2004'!E1751:E1770),8) -> 0.28 | L80: 0 | M80: 0 | N80: 4.88709 | O80: 3.7325672 | P80: 0 | Q80: 0 | R80: 0 | S80: 0 | T80: 0 | U80: 0 | V80: 0 | X80: 0 | Y80: 0 | Z80: 0 | AA80: 0 | AB80: 0 | AC80: 0 | AD80: 0 | AE80: 0
A81: ='Форма по МДС 81-35.2004'!A1771 -> 76. | B81: ='Форма по МДС 81-35.2004'!M1771 -> 4.29 | C81: =ROUND(СУММПРОИЗВЕСЛИ(1,'Форма по МДС 81-35.2004'!J1771:J1788,"Г",'Форма по МДС 81-35.2004'!E1771:E1788,'Форма по МДС 81-35.2004'!M1771:M1788,0),3) -> 4.29 | D81: =ROUND(СУММПРОИЗВЕСЛИ(1,'Форма по МДС 81-35.2004'!J1771:J1788,"IsMash",'Форма по МДС 81-35.2004'!E1771:E1788,'Форма по МДС 81-35.2004'!M1771:M1788,0),3) -> 0 | E81: =ROUND(СУММПРОИЗВЕСЛИ(1,'Форма по МДС 81-35.2004'!J1771:J1788,"Ж",'Форма по МДС 81-35.2004'!E1771:E1788,'Форма по МДС 81-35.2004'!M1771:M1788,0),3) -> 0 | F81: =ROUND(СУММПРОИЗВЕСЛИ(1,'Форма по МДС 81-35.2004'!J1771:J1788,"IsMater",'Форма по МДС 81-35.2004'!E1771:E1788,'Форма по МДС 81-35.2004'!M1771:M1788,0),3) -> 0 | G81: 0 | H81: 0 | I81: =ОКРУГЛВСЕ(SUMIF('Форма по МДС 81-35.2004'!J1771:J1788,"Г",'Форма по МДС 81-35.2004'!E1771:E1788),8) -> 0.55 | J81: 0 | K81: =ОКРУГЛВСЕ(SUMIF('Форма по МДС 81-35.2004'!J1771:J1788,"Ж",'Форма по МДС 81-35.2004'!E1771:E1788),8) -> 0 | L81: 0 | M81: 0 | N81: 0.50193 | O81: 0.3833544 | P81: 0 | Q81: 0 | R81: 0 | S81: 0 | T81: 0 | U81: 0 | V81: 0 | X81: 0 | Y81: 0 | Z81: 0 | AA81: 0 | AB81: 0 | AC81: 0 | AD81: 0 | AE81: 0
A82: ='Форма по МДС 81-35.2004'!A1789 -> 77. | B82: ='Форма по МДС 81-35.2004'!M1789 -> 822.16 | C82: =ROUND(СУММПРОИЗВЕСЛИ(1,'Форма по МДС 81-35.2004'!J1789:J1807,"Г",'Форма по МДС 81-35.2004'!E1789:E1807,'Форма по МДС 81-35.2004'!M1789:M1807,0),2) -> 0 | D82: =ROUND(СУММПРОИЗВЕСЛИ(1,'Форма по МДС 81-35.2004'!J1789:J1807,"IsMash",'Форма по МДС 81-35.2004'!E1789:E1807,'Форма по МДС 81-35.2004'!M1789:M1807,0),2) -> 822.16 | E82: =ROUND(СУММПРОИЗВЕСЛИ(1,'Форма по МДС 81-35.2004'!J1789:J1807,"Ж",'Форма по МДС 81-35.2004'!E1789:E1807,'Форма по МДС 81-35.2004'!M1789:M1807,0),2) -> 0 | F82: =ROUND(СУММПРОИЗВЕСЛИ(1,'Форма по МДС 81-35.2004'!J1789:J1807,"IsMater",'Форма по МДС 81-35.2004'!E1789:E1807,'Форма по МДС 81-35.2004'!M1789:M1807,0),2) -> 0 | G82: 0 | H82: 0 | I82: =ОКРУГЛВСЕ(SUMIF('Форма по МДС 81-35.2004'!J1789:J1807,"Г",'Форма по МДС 81-35.2004'!E1789:E1807),8) -> 0 | J82: 0 | K82: =ОКРУГЛВСЕ(SUMIF('Форма по МДС 81-35.2004'!J1789:J1807,"Ж",'Форма по МДС 81-35.2004'!E1789:E1807),8) -> 0 | L82: 0 | M82: 0 | N82: 96.19272 | O82: 73.4682176 | P82: 0 | Q82: 0 | R82: 0 | S82: 0 | T82: 0 | U82: 0 | V82: 0 | X82: 0 | Y82: 0 | Z82: 0 | AA82: 0 | AB82: 0 | AC82: 0 | AD82: 0 | AE82: 0
A83: ='Форма по МДС 81-35.2004'!A1808 -> 78. | B83: ='Форма по МДС 81-35.2004'!M1808 -> 73.11 | C83: =ROUND(СУММПРОИЗВЕСЛИ(1,'Форма по МДС 81-35.2004'!J1808:J1826,"Г",'Форма по МДС 81-35.2004'!E1808:E1826,'Форма по МДС 81-35.2004'!M1808:M1826,0),2) -> 0 | D83: =ROUND(СУММПРОИЗВЕСЛИ(1,'Форма по МДС 81-35.2004'!J1808:J1826,"IsMash",'Форма по МДС 81-35.2004'!E1808:E1826,'Форма по МДС 81-35.2004'!M1808:M1826,0),2) -> 73.11 | E83: =ROUND(СУММПРОИЗВЕСЛИ(1,'Форма по МДС 81-35.2004'!J1808:J1826,"Ж",'Форма по МДС 81-35.2004'!E1808:E1826,'Форма по МДС 81-35.2004'!M1808:M1826,0),2) -> 0 | F83: =ROUND(СУММПРОИЗВЕСЛИ(1,'Форма по МДС 81-35.2004'!J1808:J1826,"IsMater",'Форма по МДС 81-35.2004'!E1808:E1826,'Форма по МДС 81-35.2004'!M1808:M1826,0),2) -> 0 | G83: 0 | H83: 0 | I83: =ОКРУГЛВСЕ(SUMIF('Форма по МДС 81-35.2004'!J1808:J1826,"Г",'Форма по МДС 81-35.2004'!E1808:E1826),8) -> 0 | J83: 0 | K83: =ОКРУГЛВСЕ(SUMIF('Форма по МДС 81-35.2004'!J1808:J1826,"Ж",'Форма по МДС 81-35.2004'!E1808:E1826),8) -> 0 | L83: 0 | M83: 0 | N83: 8.55387 | O83: 6.5331096 | P83: 0 | Q83: 0 | R83: 0 | S83: 0 | T83: 0 | U83: 0 | V83: 0 | X83: 0 | Y83: 0 | Z83: 0 | AA83: 0 | AB83: 0 | AC83: 0 | AD83: 0 | AE83: 0
A84: ='Форма по МДС 81-35.2004'!A1828 -> 79. | B84: ='Форма по МДС 81-35.2004'!M1828 -> 251.94 | C84: =ROUND(СУММПРОИЗВЕСЛИ(1,'Форма по МДС 81-35.2004'!J1828:J1847,"Г",'Форма по МДС 81-35.2004'!E1828:E1847,'Форма по МДС 81-35.2004'!M1828:M1847,0),2) -> 88.45 | D84: =ROUND(СУММПРОИЗВЕСЛИ(1,'Форма по МДС 81-35.2004'!J1828:J1847,"IsMash",'Форма по МДС 81-35.2004'!E1828:E1847,'Форма по МДС 81-35.2004'!M1828:M1847,0),2) -> 163.49 | E84: =ROUND(СУММПРОИЗВЕСЛИ(1,'Форма по МДС 81-35.2004'!J1828:J1847,"Ж",'Форма по МДС 81-35.2004'!E1828:E1847,'Форма по МДС 81-35.2004'!M1828:M1847,0),2) -> 0 | F84: =ROUND(СУММПРОИЗВЕСЛИ(1,'Форма по МДС 81-35.2004'!J1828:J1847,"IsMater",'Форма по МДС 81-35.2004'!E1828:E1847,'Форма по МДС 81-35.2004'!M1828:M1847,0),2) -> 0 | G84: 0 | H84: 0 | I84: =ОКРУГЛВСЕ(SUMIF('Форма по МДС 81-35.2004'!J1828:J1847,"Г",'Форма по МДС 81-35.2004'!E1828:E1847),8) -> 11.34 | J84: 0 | K84: =ОКРУГЛВСЕ(SUMIF('Форма по МДС 81-35.2004'!J1828:J1847,"Ж",'Форма по МДС 81-35.2004'!E1828:E1847),8) -> 1.89 | L84: 0 | M84: 0 | N84: 29.47698 | O84: 22.5133584 | P84: 0 | Q84: 0 | R84: 0 | S84: 0 | T84: 0 | U84: 0 | V84: 0 | X84: 0 | Y84: 0 | Z84: 0 | AA84: 0 | AB84: 0 | AC84: 0 | AD84: 0 | AE84: 0
A85: ='Форма по МДС 81-35.2004'!A1848 -> 80. | B85: ='Форма по МДС 81-35.2004'!M1848 -> 0 | C85: =ROUND(СУММПРОИЗВЕСЛИ(1,'Форма по МДС 81-35.2004'!J1848:J1865,"Г",'Форма по МДС 81-35.2004'!E1848:E1865,'Форма по МДС 81-35.2004'!M1848:M1865,0),3) -> 0 | D85: =ROUND(СУММПРОИЗВЕСЛИ(1,'Форма по МДС 81-35.2004'!J1848:J1865,"IsMash",'Форма по МДС 81-35.2004'!E1848:E1865,'Форма по МДС 81-35.2004'!M1848:M1865,0),3) -> 0 | E85: =ROUND(СУММПРОИЗВЕСЛИ(1,'Форма по МДС 81-35.2004'!J1848:J1865,"Ж",'Форма по МДС 81-35.2004'!E1848:E1865,'Форма по МДС 81-35.2004'!M1848:M1865,0),3) -> 0 | F85: =ROUND(СУММПРОИЗВЕСЛИ(1,'Форма по МДС 81-35.2004'!J1848:J1865,"IsMater",'Форма по МДС 81-35.2004'!E1848:E1865,'Форма по МДС 81-35.2004'!M1848:M1865,0),3) -> 0 | G85: 0 | H85: 0 | I85: =ОКРУГЛВСЕ(SUMIF('Форма по МДС 81-35.2004'!J1848:J1865,"Г",'Форма по МДС 81-35.2004'!E1848:E1865),8) -> 18.68 | J85: 0 | K85: =ОКРУГЛВСЕ(SUMIF('Форма по МДС 81-35.2004'!J1848:J1865,"Ж",'Форма по МДС 81-35.2004'!E1848:E1865),8) -> 0 | L85: 0 | M85: 0 | N85: 0 | O85: 0 | P85: 0 | Q85: 0 | R85: 0 | S85: 0 | T85: 0 | U85: 0 | V85: 0 | X85: 0 | Y85: 0 | Z85: 0 | AA85: 0 | AB85: 0 | AC85: 0 | AD85: 0 | AE85: 0
A86: ='Форма по МДС 81-35.2004'!A1866 -> 81. | B86: ='Форма по МДС 81-35.2004'!M1866 -> 0 | C86: =ROUND(СУММПРОИЗВЕСЛИ(1,'Форма по МДС 81-35.2004'!J1866:J1893,"Г",'Форма по МДС 81-35.2004'!E1866:E1893,'Форма по МДС 81-35.2004'!M1866:M1893,0),2) -> 0 | D86: =ROUND(СУММПРОИЗВЕСЛИ(1,'Форма по МДС 81-35.2004'!J1866:J1893,"IsMash",'Форма по МДС 81-35.2004'!E1866:E1893,'Форма по МДС 81-35.2004'!M1866:M1893,0),2) -> 0 | E86: =ROUND(СУММПРОИЗВЕСЛИ(1,'Форма по МДС 81-35.2004'!J1866:J1893,"Ж",'Форма по МДС 81-35.2004'!E1866:E1893,'Форма по МДС 81-35.2004'!M1866:M1893,0),2) -> 0 | F86: =ROUND(СУММПРОИЗВЕСЛИ(1,'Форма по МДС 81-35.2004'!J1866:J1893,"IsMater",'Форма по МДС 81-35.2004'!E1866:E1893,'Форма по МДС 81-35.2004'!M1866:M1893,0),2) -> 0 | G86: 0 | H86: 0 | I86: =ОКРУГЛВСЕ(SUMIF('Форма по МДС 81-35.2004'!J1866:J1893,"Г",'Форма по МДС 81-35.2004'!E1866:E1893),8) -> 42.4 | J86: 0 | K86: =ОКРУГЛВСЕ(SUMIF('Форма по МДС 81-35.2004'!J1866:J1893,"Ж",'Форма по МДС 81-35.2004'!E1866:E1893),8) -> 0.42 | L86: 0 | M86: 0 | N86: 0 | O86: 0 | P86: 0 | Q86: 0 | R86: 0 | S86: 0 | T86: 0 | U86: 0 | V86: 0 | X86: 0 | Y86: 0 | Z86: 0 | AA86: 0 | AB86: 0 | AC86: 0 | AD86: 0 | AE86: 0
A87: ='Форма по МДС 81-35.2004'!A1894 -> 82. | B87: ='Форма по МДС 81-35.2004'!M1894 -> 1365.59 | C87: =ROUND(СУММПРОИЗВЕСЛИ(1,'Форма по МДС 81-35.2004'!J1894:J1921,"Г",'Форма по МДС 81-35.2004'!E1894:E1921,'Форма по МДС 81-35.2004'!M1894:M1921,0),2) -> 375.42 | D87: =ROUND(СУММПРОИЗВЕСЛИ(1,'Форма по МДС 81-35.2004'!J1894:J1921,"IsMash",'Форма по МДС 81-35.2004'!E1894:E1921,'Форма по МДС 81-35.2004'!M1894:M1921,0),2) -> 990.17 | E87: =ROUND(СУММПРОИЗВЕСЛИ(1,'Форма по МДС 81-35.2004'!J1894:J1921,"Ж",'Форма по МДС 81-35.2004'!E1894:E1921,'Форма по МДС 81-35.2004'!M1894:M1921,0),2) -> 200 | F87: =ROUND(СУММПРОИЗВЕСЛИ(1,'Форма по МДС 81-35.2004'!J1894:J1921,"IsMater",'Форма по МДС 81-35.2004'!E1894:E1921,'Форма по МДС 81-35.2004'!M1894:M1921,0),2) -> 0 | G87: 0 | H87: 0 | I87: =ОКРУГЛВСЕ(SUMIF('Форма по МДС 81-35.2004'!J1894:J1921,"Г",'Форма по МДС 81-35.2004'!E1894:E1921),8) -> 45.31 | J87: 0 | K87: =ОКРУГЛВСЕ(SUMIF('Форма по МДС 81-35.2004'!J1894:J1921,"Ж",'Форма по МДС 81-35.2004'!E1894:E1921),8) -> 12.94 | L87: 0 | M87: 0 | N87: 159.77403 | O87: 122.0291224 | P87: 0 | Q87: 0 | R87: 0 | S87: 0 | T87: 0 | U87: 0 | V87: 0 | X87: 0 | Y87: 0 | Z87: 0 | AA87: 0 | AB87: 0 | AC87: 0 | AD87: 0 | AE87: 0
A88: ='Форма по МДС 81-35.2004'!A1922 -> 83. | B88: ='Форма по МДС 81-35.2004'!M1922 -> 779.61 | C88: =ROUND(СУММПРОИЗВЕСЛИ(1,'Форма по МДС 81-35.2004'!J1922:J1943,"Г",'Форма по МДС 81-35.2004'!E1922:E1943,'Форма по МДС 81-35.2004'!M1922:M1943,0),2) -> 59.11 | D88: =ROUND(СУММПРОИЗВЕСЛИ(1,'Форма по МДС 81-35.2004'!J1922:J1943,"IsMash",'Форма по МДС 81-35.2004'!E1922:E1943,'Форма по МДС 81-35.2004'!M1922:M1943,0),2) -> 156.57 | E88: =ROUND(СУММПРОИЗВЕСЛИ(1,'Форма по МДС 81-35.2004'!J1922:J1943,"Ж",'Форма по МДС 81-35.2004'!E1922:E1943,'Форма по МДС 81-35.2004'!M1922:M1943,0),2) -> 0 | F88: =ROUND(СУММПРОИЗВЕСЛИ(1,'Форма по МДС 81-35.2004'!J1922:J1943,"IsMater",'Форма по МДС 81-35.2004'!E1922:E1943,'Форма по МДС 81-35.2004'!M1922:M1943,0),2) -> 563.93 | G88: 552.33 | H88: 0 | I88: =ОКРУГЛВСЕ(SUMIF('Форма по МДС 81-35.2004'!J1922:J1943,"Г",'Форма по МДС 81-35.2004'!E1922:E1943),8) -> 7.24 | J88: 0 | K88: =ОКРУГЛВСЕ(SUMIF('Форма по МДС 81-35.2004'!J1922:J1943,"Ж",'Форма по МДС 81-35.2004'!E1922:E1943),8) -> 1.81 | L88: 0 | M88: 0 | N88: 91.21437 | O88: 69.6659496 | P88: 0 | Q88: 0 | R88: 0 | S88: 0 | T88: 0 | U88: 0 | V88: 0 | X88: 0 | Y88: 0 | Z88: 0 | AA88: 0 | AB88: 0 | AC88: 0 | AD88: 0 | AE88: 0
A89: ='Форма по МДС 81-35.2004'!A1944 -> 84. | B89: ='Форма по МДС 81-35.2004'!M1944 -> 182.61 | C89: =ROUND(СУММПРОИЗВЕСЛИ(1,'Форма по МДС 81-35.2004'!J1944:J1964,"Г",'Форма по МДС 81-35.2004'!E1944:E1964,'Форма по МДС 81-35.2004'!M1944:M1964,0),2) -> 7.33 | D89: =ROUND(СУММПРОИЗВЕСЛИ(1,'Форма по МДС 81-35.2004'!J1944:J1964,"IsMash",'Форма по МДС 81-35.2004'!E1944:E1964,'Форма по МДС 81-35.2004'!M1944:M1964,0),2) -> 174.79 | E89: =ROUND(СУММПРОИЗВЕСЛИ(1,'Форма по МДС 81-35.2004'!J1944:J1964,"Ж",'Форма по МДС 81-35.2004'!E1944:E1964,'Форма по МДС 81-35.2004'!M1944:M1964,0),2) -> 15.27 | F89: =ROUND(СУММПРОИЗВЕСЛИ(1,'Форма по МДС 81-35.2004'!J1944:J1964,"IsMater",'Форма по МДС 81-35.2004'!E1944:E1964,'Форма по МДС 81-35.2004'!M1944:M1964,0),2) -> 0.49 | G89: 0.17 | H89: 0 | I89: =ОКРУГЛВСЕ(SUMIF('Форма по МДС 81-35.2004'!J1944:J1964,"Г",'Форма по МДС 81-35.2004'!E1944:E1964),8) -> 0.94 | J89: 0 | K89: =ОКРУГЛВСЕ(SUMIF('Форма по МДС 81-35.2004'!J1944:J1964,"Ж",'Форма по МДС 81-35.2004'!E1944:E1964),8) -> 0.94 | L89: 0 | M89: 0 | N89: 21.36537 | O89: 16.3180296 | P89: 0 | Q89: 0 | R89: 0 | S89: 0 | T89: 0 | U89: 0 | V89: 0 | X89: 0 | Y89: 0 | Z89: 0 | AA89: 0 | AB89: 0 | AC89: 0 | AD89: 0 | AE89: 0
A90: ='Форма по МДС 81-35.2004'!A1965 -> 85. | B90: ='Форма по МДС 81-35.2004'!M1965 -> 5492.43 | C90: =ROUND(СУММПРОИЗВЕСЛИ(1,'Форма по МДС 81-35.2004'!J1965:J1989,"Г",'Форма по МДС 81-35.2004'!E1965:E1989,'Форма по МДС 81-35.2004'!M1965:M1989,0),2) -> 1224.75 | D90: =ROUND(СУММПРОИЗВЕСЛИ(1,'Форма по МДС 81-35.2004'!J1965:J1989,"IsMash",'Форма по МДС 81-35.2004'!E1965:E1989,'Форма по МДС 81-35.2004'!M1965:M1989,0),2) -> 3243.75 | E90: =ROUND(СУММПРОИЗВЕСЛИ(1,'Форма по МДС 81-35.2004'!J1965:J1989,"Ж",'Форма по МДС 81-35.2004'!E1965:E1989,'Форма по МДС 81-35.2004'!M1965:M1989,0),2) -> 357.15 | F90: =ROUND(СУММПРОИЗВЕСЛИ(1,'Форма по МДС 81-35.2004'!J1965:J1989,"IsMater",'Форма по МДС 81-35.2004'!E1965:E1989,'Форма по МДС 81-35.2004'!M1965:M1989,0),2) -> 1023.93 | G90: 999.4 | H90: 0 | I90: =ОКРУГЛВСЕ(SUMIF('Форма по МДС 81-35.2004'!J1965:J1989,"Г",'Форма по МДС 81-35.2004'!E1965:E1989),8) -> 150 | J90: 0 | K90: =ОКРУГЛВСЕ(SUMIF('Форма по МДС 81-35.2004'!J1965:J1989,"Ж",'Форма по МДС 81-35.2004'!E1965:E1989),8) -> 37.5 | L90: 0 | M90: 0 | N90: 642.61431 | O90: 490.8035448 | P90: 0 | Q90: 0 | R90: 0 | S90: 0 | T90: 0 | U90: 0 | V90: 0 | X90: 0 | Y90: 0 | Z90: 0 | AA90: 0 | AB90: 0 | AC90: 0 | AD90: 0 | AE90: 0
A91: ='Форма по МДС 81-35.2004'!A1990 -> 86. | B91: ='Форма по МДС 81-35.2004'!M1990 -> 322.48 | C91: =ROUND(СУММПРОИЗВЕСЛИ(1,'Форма по МДС 81-35.2004'!J1990:J2012,"Г",'Форма по МДС 81-35.2004'!E1990:E2012,'Форма по МДС 81-35.2004'!M1990:M2012,0),2) -> 52.26 | D91: =ROUND(СУММПРОИЗВЕСЛИ(1,'Форма по МДС 81-35.2004'!J1990:J2012,"IsMash",'Форма по МДС 81-35.2004'!E1990:E2012,'Форма по МДС 81-35.2004'!M1990:M2012,0),2) -> 138.4 | E91: =ROUND(СУММПРОИЗВЕСЛИ(1,'Форма по МДС 81-35.2004'!J1990:J2012,"Ж",'Форма по МДС 81-35.2004'!E1990:E2012,'Форма по МДС 81-35.2004'!M1990:M2012,0),2) -> 20 | F91: =ROUND(СУММПРОИЗВЕСЛИ(1,'Форма по МДС 81-35.2004'!J1990:J2012,"IsMater",'Форма по МДС 81-35.2004'!E1990:E2012,'Форма по МДС 81-35.2004'!M1990:M2012,0),2) -> 131.82 | G91: 129.1 | H91: 0 | I91: =ОКРУГЛВСЕ(SUMIF('Форма по МДС 81-35.2004'!J1990:J2012,"Г",'Форма по МДС 81-35.2004'!E1990:E2012),8) -> 6.4 | J91: 0 | K91: =ОКРУГЛВСЕ(SUMIF('Форма по МДС 81-35.2004'!J1990:J2012,"Ж",'Форма по МДС 81-35.2004'!E1990:E2012),8) -> 1.6 | L91: 0 | M91: 0 | N91: 37.73016 | O91: 28.8168128 | P91: 0 | Q91: 0 | R91: 0 | S91: 0 | T91: 0 | U91: 0 | V91: 0 | X91: 0 | Y91: 0 | Z91: 0 | AA91: 0 | AB91: 0 | AC91: 0 | AD91: 0 | AE91: 0
A92: ='Форма по МДС 81-35.2004'!A2013 -> 87. | B92: ='Форма по МДС 81-35.2004'!M2013 -> 44.12 | C92: =ROUND(СУММПРОИЗВЕСЛИ(1,'Форма по МДС 81-35.2004'!J2013:J2034,"Г",'Форма по МДС 81-35.2004'!E2013:E2034,'Форма по МДС 81-35.2004'!M2013:M2034,0),2) -> 3.43 | D92: =ROUND(СУММПРОИЗВЕСЛИ(1,'Форма по МДС 81-35.2004'!J2013:J2034,"IsMash",'Форма по МДС 81-35.2004'!E2013:E2034,'Форма по МДС 81-35.2004'!M2013:M2034,0),2) -> 9.52 | E92: =ROUND(СУММПРОИЗВЕСЛИ(1,'Форма по МДС 81-35.2004'!J2013:J2034,"Ж",'Форма по МДС 81-35.2004'!E2013:E2034,'Форма по МДС 81-35.2004'!M2013:M2034,0),2) -> 0 | F92: =ROUND(СУММПРОИЗВЕСЛИ(1,'Форма по МДС 81-35.2004'!J2013:J2034,"IsMater",'Форма по МДС 81-35.2004'!E2013:E2034,'Форма по МДС 81-35.2004'!M2013:M2034,0),2) -> 31.17 | G92: 30.37 | H92: 0 | I92: =ОКРУГЛВСЕ(SUMIF('Форма по МДС 81-35.2004'!J2013:J2034,"Г",'Форма по МДС 81-35.2004'!E2013:E2034),8) -> 0.44 | J92: 0 | K92: =ОКРУГЛВСЕ(SUMIF('Форма по МДС 81-35.2004'!J2013:J2034,"Ж",'Форма по МДС 81-35.2004'!E2013:E2034),8) -> 0.11 | L92: 0 | M92: 0 | N92: 5.16204 | O92: 3.9425632 | P92: 0 | Q92: 0 | R92: 0 | S92: 0 | T92: 0 | U92: 0 | V92: 0 | X92: 0 | Y92: 0 | Z92: 0 | AA92: 0 | AB92: 0 | AC92: 0 | AD92: 0 | AE92: 0
A93: ='Форма по МДС 81-35.2004'!A2035 -> 88. | B93: ='Форма по МДС 81-35.2004'!M2035 -> 1376.13 | C93: =ROUND(СУММПРОИЗВЕСЛИ(1,'Форма по МДС 81-35.2004'!J2035:J2058,"Г",'Форма по МДС 81-35.2004'!E2035:E2058,'Форма по МДС 81-35.2004'!M2035:M2058,0),2) -> 497.25 | D93: =ROUND(СУММПРОИЗВЕСЛИ(1,'Форма по МДС 81-35.2004'!J2035:J2058,"IsMash",'Форма по МДС 81-35.2004'!E2035:E2058,'Форма по МДС 81-35.2004'!M2035:M2058,0),2) -> 877.98 | E93: =ROUND(СУММПРОИЗВЕСЛИ(1,'Форма по МДС 81-35.2004'!J2035:J2058,"Ж",'Форма по МДС 81-35.2004'!E2035:E2058,'Форма по МДС 81-35.2004'!M2035:M2058,0),2) -> 100 | F93: =ROUND(СУММПРОИЗВЕСЛИ(1,'Форма по МДС 81-35.2004'!J2035:J2058,"IsMater",'Форма по МДС 81-35.2004'!E2035:E2058,'Форма по МДС 81-35.2004'!M2035:M2058,0),2) -> 0.91 | G93: 0.32 | H93: 0 | I93: =ОКРУГЛВСЕ(SUMIF('Форма по МДС 81-35.2004'!J2035:J2058,"Г",'Форма по МДС 81-35.2004'!E2035:E2058),8) -> 60.9 | J93: 0 | K93: =ОКРУГЛВСЕ(SUMIF('Форма по МДС 81-35.2004'!J2035:J2058,"Ж",'Форма по МДС 81-35.2004'!E2035:E2058),8) -> 10.15 | L93: 0 | M93: 0 | N93: 161.00721 | O93: 122.9709768 | P93: 0 | Q93: 0 | R93: 0 | S93: 0 | T93: 0 | U93: 0 | V93: 0 | X93: 0 | Y93: 0 | Z93: 0 | AA93: 0 | AB93: 0 | AC93: 0 | AD93: 0 | AE93: 0
A94: ='Форма по МДС 81-35.2004'!A2059 -> 89. | B94: ='Форма по МДС 81-35.2004'!M2059 -> 0 | C94: =ROUND(СУММПРОИЗВЕСЛИ(1,'Форма по МДС 81-35.2004'!J2059:J2077,"Г",'Форма по МДС 81-35.2004'!E2059:E2077,'Форма по МДС 81-35.2004'!M2059:M2077,0),2) -> 0 | D94: =ROUND(СУММПРОИЗВЕСЛИ(1,'Форма по МДС 81-35.2004'!J2059:J2077,"IsMash",'Форма по МДС 81-35.2004'!E2059:E2077,'Форма по МДС 81-35.2004'!M2059:M2077,0),2) -> 0 | E94: =ROUND(СУММПРОИЗВЕСЛИ(1,'Форма по МДС 81-35.2004'!J2059:J2077,"Ж",'Форма по МДС 81-35.2004'!E2059:E2077,'Форма по МДС 81-35.2004'!M2059:M2077,0),2) -> 0 | F94: =ROUND(СУММПРОИЗВЕСЛИ(1,'Форма по МДС 81-35.2004'!J2059:J2077,"IsMater",'Форма по МДС 81-35.2004'!E2059:E2077,'Форма по МДС 81-35.2004'!M2059:M2077,0),2) -> 0 | G94: 0 | H94: 0 | I94: =ОКРУГЛВСЕ(SUMIF('Форма по МДС 81-35.2004'!J2059:J2077,"Г",'Форма по МДС 81-35.2004'!E2059:E2077),8) -> 0 | J94: 0 | K94: =ОКРУГЛВСЕ(SUMIF('Форма по МДС 81-35.2004'!J2059:J2077,"Ж",'Форма по МДС 81-35.2004'!E2059:E2077),8) -> 0 | L94: 0 | M94: 0 | N94: 0 | O94: 0 | P94: 0 | Q94: 0 | R94: 0 | S94: 0 | T94: 0 | U94: 0 | V94: 0 | X94: 0 | Y94: 0 | Z94: 0 | AA94: 0 | AB94: 0 | AC94: 0 | AD94: 0 | AE94: 0
A95: ='Форма по МДС 81-35.2004'!A2078 -> 90. | B95: ='Форма по МДС 81-35.2004'!M2078 -> 0 | C95: =ROUND(СУММПРОИЗВЕСЛИ(1,'Форма по МДС 81-35.2004'!J2078:J2095,"Г",'Форма по МДС 81-35.2004'!E2078:E2095,'Форма по МДС 81-35.2004'!M2078:M2095,0),2) -> 0 | D95: =ROUND(СУММПРОИЗВЕСЛИ(1,'Форма по МДС 81-35.2004'!J2078:J2095,"IsMash",'Форма по МДС 81-35.2004'!E2078:E2095,'Форма по МДС 81-35.2004'!M2078:M2095,0),2) -> 0 | E95: =ROUND(СУММПРОИЗВЕСЛИ(1,'Форма по МДС 81-35.2004'!J2078:J2095,"Ж",'Форма по МДС 81-35.2004'!E2078:E2095,'Форма по МДС 81-35.2004'!M2078:M2095,0),2) -> 0 | F95: =ROUND(СУММПРОИЗВЕСЛИ(1,'Форма по МДС 81-35.2004'!J2078:J2095,"IsMater",'Форма по МДС 81-35.2004'!E2078:E2095,'Форма по МДС 81-35.2004'!M2078:M2095,0),2) -> 0 | G95: 0 | H95: 0 | I95: =ОКРУГЛВСЕ(SUMIF('Форма по МДС 81-35.2004'!J2078:J2095,"Г",'Форма по МДС 81-35.2004'!E2078:E2095),8) -> 0 | J95: 0 | K95: =ОКРУГЛВСЕ(SUMIF('Форма по МДС 81-35.2004'!J2078:J2095,"Ж",'Форма по МДС 81-35.2004'!E2078:E2095),8) -> 0 | L95: 0 | M95: 0 | N95: 0 | O95: 0 | P95: 0 | Q95: 0 | R95: 0 | S95: 0 | T95: 0 | U95: 0 | V95: 0 | X95: 0 | Y95: 0 | Z95: 0 | AA95: 0 | AB95: 0 | AC95: 0 | AD95: 0 | AE95: 0
A96: ='Форма по МДС 81-35.2004'!A2096 -> 91. | B96: ='Форма по МДС 81-35.2004'!M2096 -> 5211.11 | C96: =ROUND(СУММПРОИЗВЕСЛИ(1,'Форма по МДС 81-35.2004'!J2096:J2119,"Г",'Форма по МДС 81-35.2004'!E2096:E2119,'Форма по МДС 81-35.2004'!M2096:M2119,0),2) -> 1151.27 | D96: =ROUND(СУММПРОИЗВЕСЛИ(1,'Форма по МДС 81-35.2004'!J2096:J2119,"IsMash",'Форма по МДС 81-35.2004'!E2096:E2119,'Форма по МДС 81-35.2004'!M2096:M2119,0),2) -> 4036.13 | E96: =ROUND(СУММПРОИЗВЕСЛИ(1,'Форма по МДС 81-35.2004'!J2096:J2119,"Ж",'Форма по МДС 81-35.2004'!E2096:E2119,'Форма по МДС 81-35.2004'!M2096:M2119,0),2) -> 400.02 | F96: =ROUND(СУММПРОИЗВЕСЛИ(1,'Форма по МДС 81-35.2004'!J2096:J2119,"IsMater",'Форма по МДС 81-35.2004'!E2096:E2119,'Форма по МДС 81-35.2004'!M2096:M2119,0),2) -> 23.72 | G96: 23.15 | H96: 0 | I96: =ОКРУГЛВСЕ(SUMIF('Форма по МДС 81-35.2004'!J2096:J2119,"Г",'Форма по МДС 81-35.2004'!E2096:E2119),8) -> 141 | J96: 0 | K96: =ОКРУГЛВСЕ(SUMIF('Форма по МДС 81-35.2004'!J2096:J2119,"Ж",'Форма по МДС 81-35.2004'!E2096:E2119),8) -> 35.25 | L96: 0 | M96: 0 | N96: 609.69987 | O96: 465.6647896 | P96: 0 | Q96: 0 | R96: 0 | S96: 0 | T96: 0 | U96: 0 | V96: 0 | X96: 0 | Y96: 0 | Z96: 0 | AA96: 0 | AB96: 0 | AC96: 0 | AD96: 0 | AE96: 0
A97: ='Форма по МДС 81-35.2004'!A2121 -> 92. | B97: ='Форма по МДС 81-35.2004'!M2121 -> 17.97 | C97: =ROUND(СУММПРОИЗВЕСЛИ(1,'Форма по МДС 81-35.2004'!J2121:J2139,"Г",'Форма по МДС 81-35.2004'!E2121:E2139,'Форма по МДС 81-35.2004'!M2121:M2139,0),2) -> 0 | D97: =ROUND(СУММПРОИЗВЕСЛИ(1,'Форма по МДС 81-35.2004'!J2121:J2139,"IsMash",'Форма по МДС 81-35.2004'!E2121:E2139,'Форма по МДС 81-35.2004'!M2121:M2139,0),2) -> 17.97 | E97: =ROUND(СУММПРОИЗВЕСЛИ(1,'Форма по МДС 81-35.2004'!J2121:J2139,"Ж",'Форма по МДС 81-35.2004'!E2121:E2139,'Форма по МДС 81-35.2004'!M2121:M2139,0),2) -> 0 | F97: =ROUND(СУММПРОИЗВЕСЛИ(1,'Форма по МДС 81-35.2004'!J2121:J2139,"IsMater",'Форма по МДС 81-35.2004'!E2121:E2139,'Форма по МДС 81-35.2004'!M2121:M2139,0),2) -> 0 | G97: 0 | H97: 0 | I97: =ОКРУГЛВСЕ(SUMIF('Форма по МДС 81-35.2004'!J2121:J2139,"Г",'Форма по МДС 81-35.2004'!E2121:E2139),8) -> 0 | J97: 0 | K97: =ОКРУГЛВСЕ(SUMIF('Форма по МДС 81-35.2004'!J2121:J2139,"Ж",'Форма по МДС 81-35.2004'!E2121:E2139),8) -> 0.27 | L97: 0 | M97: 0 | N97: 2.10249 | O97: 1.6057992 | P97: 0 | Q97: 0 | R97: 0 | S97: 0 | T97: 0 | U97: 0 | V97: 0 | X97: 0 | Y97: 0 | Z97: 0 | AA97: 0 | AB97: 0 | AC97: 0 | AD97: 0 | AE97: 0
A98: ='Форма по МДС 81-35.2004'!A2140 -> 93. | B98: ='Форма по МДС 81-35.2004'!M2140 -> 44.12 | C98: =ROUND(СУММПРОИЗВЕСЛИ(1,'Форма по МДС 81-35.2004'!J2140:J2161,"Г",'Форма по МДС 81-35.2004'!E2140:E2161,'Форма по МДС 81-35.2004'!M2140:M2161,0),2) -> 3.43 | D98: =ROUND(СУММПРОИЗВЕСЛИ(1,'Форма по МДС 81-35.2004'!J2140:J2161,"IsMash",'Форма по МДС 81-35.2004'!E2140:E2161,'Форма по МДС 81-35.2004'!M2140:M2161,0),2) -> 9.52 | E98: =ROUND(СУММПРОИЗВЕСЛИ(1,'Форма по МДС 81-35.2004'!J2140:J2161,"Ж",'Форма по МДС 81-35.2004'!E2140:E2161,'Форма по МДС 81-35.2004'!M2140:M2161,0),2) -> 0 | F98: =ROUND(СУММПРОИЗВЕСЛИ(1,'Форма по МДС 81-35.2004'!J2140:J2161,"IsMater",'Форма по МДС 81-35.2004'!E2140:E2161,'Форма по МДС 81-35.2004'!M2140:M2161,0),2) -> 31.17 | G98: 30.37 | H98: 0 | I98: =ОКРУГЛВСЕ(SUMIF('Форма по МДС 81-35.2004'!J2140:J2161,"Г",'Форма по МДС 81-35.2004'!E2140:E2161),8) -> 0.44 | J98: 0 | K98: =ОКРУГЛВСЕ(SUMIF('Форма по МДС 81-35.2004'!J2140:J2161,"Ж",'Форма по МДС 81-35.2004'!E2140:E2161),8) -> 0.11 | L98: 0 | M98: 0 | N98: 5.16204 | O98: 3.9425632 | P98: 0 | Q98: 0 | R98: 0 | S98: 0 | T98: 0 | U98: 0 | V98: 0 | X98: 0 | Y98: 0 | Z98: 0 | AA98: 0 | AB98: 0 | AC98: 0 | AD98: 0 | AE98: 0

Sheet Текущие цены за единицу
B1: C1 | C1: C2 | D1: C3 | E1: C4 | F1: C5 | G1: C6 | H1: VOZVR | I1: C8 | J1: C9 | K1: C10 | L1: C11 | M1: C12 | N1: NAKL | O1: PLAN | P1: NAKL_ZPR | Q1: NAKL_ZPM | R1: PLAN_ZPR | S1: PLAN_ZPM | T1: RN11 | U1: RN12 | V1: RN13 | X1: OBORUD_VSPOMOG | Y1: NAKL_PN | Z1: NAKL_VX | AA1: PLAN_PN | AB1: PLAN_VX | AC1: VTCH_PN | AD1: VTCH_VX | AE1: MR_BY_ZPR_VSPOMOG | AF1: NAKL_INC | AG1: PLAN_INC
B3: N = < ГЭСНс * 2015_s * 13_15_лр >
B4: Автомобильные дороги регионального или межмуниципального значения с допустимым уровнем содержания - норматив "К" 4 категория (ЛЕТНИЕ РАБОТЫ)
A6: ='Форма по МДС 81-35.2004'!A16 -> 1. | B6: ='Форма по МДС 81-35.2004'!G16 -> 38196.11 | C6: =ROUND(СУММПРОИЗВЕСЛИ(1,'Форма по МДС 81-35.2004'!J16:J35,"Г",'Форма по МДС 81-35.2004'!E16:E35,'Форма по МДС 81-35.2004'!G16:G35,0),16777275) -> 0 | D6: =ROUND(СУММПРОИЗВЕСЛИ(1,'Форма по МДС 81-35.2004'!J16:J35,"IsMash",'Форма по МДС 81-35.2004'!E16:E35,'Форма по МДС 81-35.2004'!G16:G35,0),16777275) -> 201.264 | E6: =ROUND(СУММПРОИЗВЕСЛИ(1,'Форма по МДС 81-35.2004'!J16:J35,"Ж",'Форма по МДС 81-35.2004'!E16:E35,'Форма по МДС 81-35.2004'!G16:G35,0),16777275) -> 0 | F6: =ROUND(СУММПРОИЗВЕСЛИ(1,'Форма по МДС 81-35.2004'!J16:J35,"IsMater",'Форма по МДС 81-35.2004'!E16:E35,'Форма по МДС 81-35.2004'!G16:G35,0),16777275) -> 37994.85 | G6: 0 | H6: 0 | I6: =ОКРУГЛВСЕ(SUMIF('Форма по МДС 81-35.2004'!J16:J35,"Г",'Форма по МДС 81-35.2004'!E16:E35),8) -> 0 | J6: 0 | K6: =ОКРУГЛВСЕ(SUMIF('Форма по МДС 81-35.2004'!J16:J35,"Ж",'Форма по МДС 81-35.2004'!E16:E35),8) -> 0.21 | L6: 0 | M6: 0 | N6: 4468.94487 | O6: 3413.20439 | P6: 0 | Q6: 0 | R6: 0 | S6: 0 | T6: 0 | U6: 0 | V6: 0 | X6: 0 | Y6: 0 | Z6: 0 | AA6: 0 | AB6: 0 | AC6: 0 | AD6: 0 | AE6: 0
A7: ='Форма по МДС 81-35.2004'!A36 -> 2. | B7: ='Форма по МДС 81-35.2004'!G36 -> 1767.56 | C7: =ROUND(СУММПРОИЗВЕСЛИ(1,'Форма по МДС 81-35.2004'!J36:J54,"Г",'Форма по МДС 81-35.2004'!E36:E54,'Форма по МДС 81-35.2004'!G36:G54,0),16777275) -> 0 | D7: =ROUND(СУММПРОИЗВЕСЛИ(1,'Форма по МДС 81-35.2004'!J36:J54,"IsMash",'Форма по МДС 81-35.2004'!E36:E54,'Форма по МДС 81-35.2004'!G36:G54,0),16777275) -> 1767.564 | E7: =ROUND(СУММПРОИЗВЕСЛИ(1,'Форма по МДС 81-35.2004'!J36:J54,"Ж",'Форма по МДС 81-35.2004'!E36:E54,'Форма по МДС 81-35.2004'!G36:G54,0),16777275) -> 300.00044 | F7: =ROUND(СУММПРОИЗВЕСЛИ(1,'Форма по МДС 81-35.2004'!J36:J54,"IsMater",'Форма по МДС 81-35.2004'!E36:E54,'Форма по МДС 81-35.2004'!G36:G54,0),16777275) -> 0 | G7: 0 | H7: 0 | I7: =ОКРУГЛВСЕ(SUMIF('Форма по МДС 81-35.2004'!J36:J54,"Г",'Форма по МДС 81-35.2004'!E36:E54),8) -> 0 | J7: 0 | K7: =ОКРУГЛВСЕ(SUMIF('Форма по МДС 81-35.2004'!J36:J54,"Ж",'Форма по МДС 81-35.2004'!E36:E54),8) -> 1.48 | L7: 0 | M7: 0 | N7: 206.80452 | O7: 157.9491616 | P7: 0 | Q7: 0 | R7: 0 | S7: 0 | T7: 0 | U7: 0 | V7: 0 | X7: 0 | Y7: 0 | Z7: 0 | AA7: 0 | AB7: 0 | AC7: 0 | AD7: 0 | AE7: 0
A8: ='Форма по МДС 81-35.2004'!A55 -> 3. | B8: ='Форма по МДС 81-35.2004'!G55 -> 16321.78 | C8: =ROUND(СУММПРОИЗВЕСЛИ(1,'Форма по МДС 81-35.2004'!J55:J76,"Г",'Форма по МДС 81-35.2004'!E55:E76,'Форма по МДС 81-35.2004'!G55:G76,0),16777275) -> 0 | D8: =ROUND(СУММПРОИЗВЕСЛИ(1,'Форма по МДС 81-35.2004'!J55:J76,"IsMash",'Форма по МДС 81-35.2004'!E55:E76,'Форма по МДС 81-35.2004'!G55:G76,0),16777275) -> 332.2557 | E8: =ROUND(СУММПРОИЗВЕСЛИ(1,'Форма по МДС 81-35.2004'!J55:J76,"Ж",'Форма по МДС 81-35.2004'!E55:E76,'Форма по МДС 81-35.2004'!G55:G76,0),16777275) -> 99.9999 | F8: =ROUND(СУММПРОИЗВЕСЛИ(1,'Форма по МДС 81-35.2004'!J55:J76,"IsMater",'Форма по МДС 81-35.2004'!E55:E76,'Форма по МДС 81-35.2004'!G55:G76,0),16777275) -> 15989.526 | G8: 0 | H8: 0 | I8: =ОКРУГЛВСЕ(SUMIF('Форма по МДС 81-35.2004'!J55:J76,"Г",'Форма по МДС 81-35.2004'!E55:E76),8) -> 0 | J8: 0 | K8: =ОКРУГЛВСЕ(SUMIF('Форма по МДС 81-35.2004'!J55:J76,"Ж",'Форма по МДС 81-35.2004'!E55:E76),8) -> 0.7 | L8: 0 | M8: 0 | N8: 1909.64826 | O8: 1458.514261 | P8: 0 | Q8: 0 | R8: 0 | S8: 0 | T8: 0 | U8: 0 | V8: 0 | X8: 0 | Y8: 0 | Z8: 0 | AA8: 0 | AB8: 0 | AC8: 0 | AD8: 0 | AE8: 0
A9: ='Форма по МДС 81-35.2004'!A77 -> 4. | B9: ='Форма по МДС 81-35.2004'!G77 -> 220.43 | C9: =ROUND(СУММПРОИЗВЕСЛИ(1,'Форма по МДС 81-35.2004'!J77:J95,"Г",'Форма по МДС 81-35.2004'!E77:E95,'Форма по МДС 81-35.2004'!G77:G95,0),16777275) -> 0 | D9: =ROUND(СУММПРОИЗВЕСЛИ(1,'Форма по МДС 81-35.2004'!J77:J95,"IsMash",'Форма по МДС 81-35.2004'!E77:E95,'Форма по МДС 81-35.2004'!G77:G95,0),16777275) -> 220.432 | E9: =ROUND(СУММПРОИЗВЕСЛИ(1,'Форма по МДС 81-35.2004'!J77:J95,"Ж",'Форма по МДС 81-35.2004'!E77:E95,'Форма по МДС 81-35.2004'!G77:G95,0),16777275) -> 38.49993 | F9: =ROUND(СУММПРОИЗВЕСЛИ(1,'Форма по МДС 81-35.2004'!J77:J95,"IsMater",'Форма по МДС 81-35.2004'!E77:E95,'Форма по МДС 81-35.2004'!G77:G95,0),16777275) -> 0 | G9: 0 | H9: 0 | I9: =ОКРУГЛВСЕ(SUMIF('Форма по МДС 81-35.2004'!J77:J95,"Г",'Форма по МДС 81-35.2004'!E77:E95),8) -> 0 | J9: 0 | K9: =ОКРУГЛВСЕ(SUMIF('Форма по МДС 81-35.2004'!J77:J95,"Ж",'Форма по МДС 81-35.2004'!E77:E95),8) -> 0.23 | L9: 0 | M9: 0 | N9: 25.79031 | O9: 19.6976248 | P9: 0 | Q9: 0 | R9: 0 | S9: 0 | T9: 0 | U9: 0 | V9: 0 | X9: 0 | Y9: 0 | Z9: 0 | AA9: 0 | AB9: 0 | AC9: 0 | AD9: 0 | AE9: 0
A10: ='Форма по МДС 81-35.2004'!A96 -> 5. | B10: ='Форма по МДС 81-35.2004'!G96 -> 1517.78 | C10: =ROUND(СУММПРОИЗВЕСЛИ(1,'Форма по МДС 81-35.2004'!J96:J114,"Г",'Форма по МДС 81-35.2004'!E96:E114,'Форма по МДС 81-35.2004'!G96:G114,0),16777275) -> 1517.7771 | D10: =ROUND(СУММПРОИЗВЕСЛИ(1,'Форма по МДС 81-35.2004'!J96:J114,"IsMash",'Форма по МДС 81-35.2004'!E96:E114,'Форма по МДС 81-35.2004'!G96:G114,0),16777275) -> 0 | E10: =ROUND(СУММПРОИЗВЕСЛИ(1,'Форма по МДС 81-35.2004'!J96:J114,"Ж",'Форма по МДС 81-35.2004'!E96:E114,'Форма по МДС 81-35.2004'!G96:G114,0),16777275) -> 0 | F10: =ROUND(СУММПРОИЗВЕСЛИ(1,'Форма по МДС 81-35.2004'!J96:J114,"IsMater",'Форма по МДС 81-35.2004'!E96:E114,'Форма по МДС 81-35.2004'!G96:G114,0),16777275) -> 0 | G10: 0 | H10: 0 | I10: =ОКРУГЛВСЕ(SUMIF('Форма по МДС 81-35.2004'!J96:J114,"Г",'Форма по МДС 81-35.2004'!E96:E114),8) -> 14.42 | J10: 0 | K10: =ОКРУГЛВСЕ(SUMIF('Форма по МДС 81-35.2004'!J96:J114,"Ж",'Форма по МДС 81-35.2004'!E96:E114),8) -> 0 | L10: 0 | M10: 0 | N10: 177.58026 | O10: 135.6288208 | P10: 0 | Q10: 0 | R10: 0 | S10: 0 | T10: 0 | U10: 0 | V10: 0 | X10: 0 | Y10: 0 | Z10: 0 | AA10: 0 | AB10: 0 | AC10: 0 | AD10: 0 | AE10: 0
A11: ='Форма по МДС 81-35.2004'!A115 -> 6. | B11: ='Форма по МДС 81-35.2004'!G115 -> 86.03 | C11: =ROUND(СУММПРОИЗВЕСЛИ(1,'Форма по МДС 81-35.2004'!J115:J134,"Г",'Форма по МДС 81-35.2004'!E115:E134,'Форма по МДС 81-35.2004'!G115:G134,0),16777275) -> 0 | D11: =ROUND(СУММПРОИЗВЕСЛИ(1,'Форма по МДС 81-35.2004'!J115:J134,"IsMash",'Форма по МДС 81-35.2004'!E115:E134,'Форма по МДС 81-35.2004'!G115:G134,0),16777275) -> 86.0274 | E11: =ROUND(СУММПРОИЗВЕСЛИ(1,'Форма по МДС 81-35.2004'!J115:J134,"Ж",'Форма по МДС 81-35.2004'!E115:E134,'Форма по МДС 81-35.2004'!G115:G134,0),16777275) -> 30.00006 | F11: =ROUND(СУММПРОИЗВЕСЛИ(1,'Форма по МДС 81-35.2004'!J115:J134,"IsMater",'Форма по МДС 81-35.2004'!E115:E134,'Форма по МДС 81-35.2004'!G115:G134,0),16777275) -> 0 | G11: 0 | H11: 0 | I11: =ОКРУГЛВСЕ(SUMIF('Форма по МДС 81-35.2004'!J115:J134,"Г",'Форма по МДС 81-35.2004'!E115:E134),8) -> 0 | J11: 0 | K11: =ОКРУГЛВСЕ(SUMIF('Форма по МДС 81-35.2004'!J115:J134,"Ж",'Форма по МДС 81-35.2004'!E115:E134),8) -> 0.18 | L11: 0 | M11: 0 | N11: 10.06551 | O11: 7.6876408 | P11: 0 | Q11: 0 | R11: 0 | S11: 0 | T11: 0 | U11: 0 | V11: 0 | X11: 0 | Y11: 0 | Z11: 0 | AA11: 0 | AB11: 0 | AC11: 0 | AD11: 0 | AE11: 0
A12: ='Форма по МДС 81-35.2004'!A135 -> 7. | B12: ='Форма по МДС 81-35.2004'!G135 -> 12.07 | C12: =ROUND(СУММПРОИЗВЕСЛИ(1,'Форма по МДС 81-35.2004'!J135:J152,"Г",'Форма по МДС 81-35.2004'!E135:E152,'Форма по МДС 81-35.2004'!G135:G152,0),16777275) -> 12.0684 | D12: =ROUND(СУММПРОИЗВЕСЛИ(1,'Форма по МДС 81-35.2004'!J135:J152,"IsMash",'Форма по МДС 81-35.2004'!E135:E152,'Форма по МДС 81-35.2004'!G135:G152,0),16777275) -> 0 | E12: =ROUND(СУММПРОИЗВЕСЛИ(1,'Форма по МДС 81-35.2004'!J135:J152,"Ж",'Форма по МДС 81-35.2004'!E135:E152,'Форма по МДС 81-35.2004'!G135:G152,0),16777275) -> 0 | F12: =ROUND(СУММПРОИЗВЕСЛИ(1,'Форма по МДС 81-35.2004'!J135:J152,"IsMater",'Форма по МДС 81-35.2004'!E135:E152,'Форма по МДС 81-35.2004'!G135:G152,0),16777275) -> 0 | G12: 0 | H12: 0 | I12: =ОКРУГЛВСЕ(SUMIF('Форма по МДС 81-35.2004'!J135:J152,"Г",'Форма по МДС 81-35.2004'!E135:E152),8) -> 0.12 | J12: 0 | K12: =ОКРУГЛВСЕ(SUMIF('Форма по МДС 81-35.2004'!J135:J152,"Ж",'Форма по МДС 81-35.2004'!E135:E152),8) -> 0 | L12: 0 | M12: 0 | N12: 1.41219 | O12: 1.0785752 | P12: 0 | Q12: 0 | R12: 0 | S12: 0 | T12: 0 | U12: 0 | V12: 0 | X12: 0 | Y12: 0 | Z12: 0 | AA12: 0 | AB12: 0 | AC12: 0 | AD12: 0 | AE12: 0
A13: ='Форма по МДС 81-35.2004'!A153 -> 8. | B13: ='Форма по МДС 81-35.2004'!G153 -> 163185.58 | C13: =ROUND(СУММПРОИЗВЕСЛИ(1,'Форма по МДС 81-35.2004'!J153:J173,"Г",'Форма по МДС 81-35.2004'!E153:E173,'Форма по МДС 81-35.2004'!G153:G173,0),16777275) -> 25142.5 | D13: =ROUND(СУММПРОИЗВЕСЛИ(1,'Форма по МДС 81-35.2004'!J153:J173,"IsMash",'Форма по МДС 81-35.2004'!E153:E173,'Форма по МДС 81-35.2004'!G153:G173,0),16777275) -> 4040.597 | E13: =ROUND(СУММПРОИЗВЕСЛИ(1,'Форма по МДС 81-35.2004'!J153:J173,"Ж",'Форма по МДС 81-35.2004'!E153:E173,'Форма по МДС 81-35.2004'!G153:G173,0),16777275) -> 1500.00345 | F13: =ROUND(СУММПРОИЗВЕСЛИ(1,'Форма по МДС 81-35.2004'!J153:J173,"IsMater",'Форма по МДС 81-35.2004'!E153:E173,'Форма по МДС 81-35.2004'!G153:G173,0),16777275) -> 134002.485 | G13: 0 | H13: 0 | I13: =ОКРУГЛВСЕ(SUMIF('Форма по МДС 81-35.2004'!J153:J173,"Г",'Форма по МДС 81-35.2004'!E153:E173),8) -> 250 | J13: 0 | K13: =ОКРУГЛВСЕ(SUMIF('Форма по МДС 81-35.2004'!J153:J173,"Ж",'Форма по МДС 81-35.2004'!E153:E173),8) -> 10.45 | L13: 0 | M13: 0 | N13: 19092.71286 | O13: 14582.26343 | P13: 0 | Q13: 0 | R13: 0 | S13: 0 | T13: 0 | U13: 0 | V13: 0 | X13: 0 | Y13: 0 | Z13: 0 | AA13: 0 | AB13: 0 | AC13: 0 | AD13: 0 | AE13: 0
A14: ='Форма по МДС 81-35.2004'!A174 -> 9. | B14: ='Форма по МДС 81-35.2004'!G174 -> 165.24 | C14: =ROUND(СУММПРОИЗВЕСЛИ(1,'Форма по МДС 81-35.2004'!J174:J192,"Г",'Форма по МДС 81-35.2004'!E174:E192,'Форма по МДС 81-35.2004'!G174:G192,0),16777275) -> 0 | D14: =ROUND(СУММПРОИЗВЕСЛИ(1,'Форма по МДС 81-35.2004'!J174:J192,"IsMash",'Форма по МДС 81-35.2004'!E174:E192,'Форма по МДС 81-35.2004'!G174:G192,0),16777275) -> 165.24 | E14: =ROUND(СУММПРОИЗВЕСЛИ(1,'Форма по МДС 81-35.2004'!J174:J192,"Ж",'Форма по МДС 81-35.2004'!E174:E192,'Форма по МДС 81-35.2004'!G174:G192,0),16777275) -> 48.00006 | F14: =ROUND(СУММПРОИЗВЕСЛИ(1,'Форма по МДС 81-35.2004'!J174:J192,"IsMater",'Форма по МДС 81-35.2004'!E174:E192,'Форма по МДС 81-35.2004'!G174:G192,0),16777275) -> 0 | G14: 0 | H14: 0 | I14: =ОКРУГЛВСЕ(SUMIF('Форма по МДС 81-35.2004'!J174:J192,"Г",'Форма по МДС 81-35.2004'!E174:E192),8) -> 0 | J14: 0 | K14: =ОКРУГЛВСЕ(SUMIF('Форма по МДС 81-35.2004'!J174:J192,"Ж",'Форма по МДС 81-35.2004'!E174:E192),8) -> 0.27 | L14: 0 | M14: 0 | N14: 19.33308 | O14: 14.7658464 | P14: 0 | Q14: 0 | R14: 0 | S14: 0 | T14: 0 | U14: 0 | V14: 0 | X14: 0 | Y14: 0 | Z14: 0 | AA14: 0 | AB14: 0 | AC14: 0 | AD14: 0 | AE14: 0
A15: ='Форма по МДС 81-35.2004'!A194 -> 10. | B15: ='Форма по МДС 81-35.2004'!G194 -> 5339.45 | C15: =ROUND(СУММПРОИЗВЕСЛИ(1,'Форма по МДС 81-35.2004'!J194:J215,"Г",'Форма по МДС 81-35.2004'!E194:E215,'Форма по МДС 81-35.2004'!G194:G215,0),16777275) -> 788.5008 | D15: =ROUND(СУММПРОИЗВЕСЛИ(1,'Форма по МДС 81-35.2004'!J194:J215,"IsMash",'Форма по МДС 81-35.2004'!E194:E215,'Форма по МДС 81-35.2004'!G194:G215,0),16777275) -> 751.468 | E15: =ROUND(СУММПРОИЗВЕСЛИ(1,'Форма по МДС 81-35.2004'!J194:J215,"Ж",'Форма по МДС 81-35.2004'!E194:E215,'Форма по МДС 81-35.2004'!G194:G215,0),16777275) -> 201.30584 | F15: =ROUND(СУММПРОИЗВЕСЛИ(1,'Форма по МДС 81-35.2004'!J194:J215,"IsMater",'Форма по МДС 81-35.2004'!E194:E215,'Форма по МДС 81-35.2004'!G194:G215,0),16777275) -> 3799.485 | G15: 0 | H15: 0 | I15: =ОКРУГЛВСЕ(SUMIF('Форма по МДС 81-35.2004'!J194:J215,"Г",'Форма по МДС 81-35.2004'!E194:E215),8) -> 8.16 | J15: 0 | K15: =ОКРУГЛВСЕ(SUMIF('Форма по МДС 81-35.2004'!J194:J215,"Ж",'Форма по МДС 81-35.2004'!E194:E215),8) -> 1.36 | L15: 0 | M15: 0 | N15: 624.71565 | O15: 477.133252 | P15: 0 | Q15: 0 | R15: 0 | S15: 0 | T15: 0 | U15: 0 | V15: 0 | X15: 0 | Y15: 0 | Z15: 0 | AA15: 0 | AB15: 0 | AC15: 0 | AD15: 0 | AE15: 0
A16: ='Форма по МДС 81-35.2004'!A216 -> 11. | B16: ='Форма по МДС 81-35.2004'!G216 -> 622.96 | C16: =ROUND(СУММПРОИЗВЕСЛИ(1,'Форма по МДС 81-35.2004'!J216:J234,"Г",'Форма по МДС 81-35.2004'!E216:E234,'Форма по МДС 81-35.2004'!G216:G234,0),16777275) -> 0 | D16: =ROUND(СУММПРОИЗВЕСЛИ(1,'Форма по МДС 81-35.2004'!J216:J234,"IsMash",'Форма по МДС 81-35.2004'!E216:E234,'Форма по МДС 81-35.2004'!G216:G234,0),16777275) -> 622.96 | E16: =ROUND(СУММПРОИЗВЕСЛИ(1,'Форма по МДС 81-35.2004'!J216:J234,"Ж",'Форма по МДС 81-35.2004'!E216:E234,'Форма по МДС 81-35.2004'!G216:G234,0),16777275) -> 108.33355 | F16: =ROUND(СУММПРОИЗВЕСЛИ(1,'Форма по МДС 81-35.2004'!J216:J234,"IsMater",'Форма по МДС 81-35.2004'!E216:E234,'Форма по МДС 81-35.2004'!G216:G234,0),16777275) -> 0 | G16: 0 | H16: 0 | I16: =ОКРУГЛВСЕ(SUMIF('Форма по МДС 81-35.2004'!J216:J234,"Г",'Форма по МДС 81-35.2004'!E216:E234),8) -> 0 | J16: 0 | K16: =ОКРУГЛВСЕ(SUMIF('Форма по МДС 81-35.2004'!J216:J234,"Ж",'Форма по МДС 81-35.2004'!E216:E234),8) -> 0.65 | L16: 0 | M16: 0 | N16: 72.88632 | O16: 55.6677056 | P16: 0 | Q16: 0 | R16: 0 | S16: 0 | T16: 0 | U16: 0 | V16: 0 | X16: 0 | Y16: 0 | Z16: 0 | AA16: 0 | AB16: 0 | AC16: 0 | AD16: 0 | AE16: 0
A17: ='Форма по МДС 81-35.2004'!A235 -> 12. | B17: ='Форма по МДС 81-35.2004'!G235 -> 86.03 | C17: =ROUND(СУММПРОИЗВЕСЛИ(1,'Форма по МДС 81-35.2004'!J235:J254,"Г",'Форма по МДС 81-35.2004'!E235:E254,'Форма по МДС 81-35.2004'!G235:G254,0),16777275) -> 0 | D17: =ROUND(СУММПРОИЗВЕСЛИ(1,'Форма по МДС 81-35.2004'!J235:J254,"IsMash",'Форма по МДС 81-35.2004'!E235:E254,'Форма по МДС 81-35.2004'!G235:G254,0),16777275) -> 86.0274 | E17: =ROUND(СУММПРОИЗВЕСЛИ(1,'Форма по МДС 81-35.2004'!J235:J254,"Ж",'Форма по МДС 81-35.2004'!E235:E254,'Форма по МДС 81-35.2004'!G235:G254,0),16777275) -> 30.00006 | F17: =ROUND(СУММПРОИЗВЕСЛИ(1,'Форма по МДС 81-35.2004'!J235:J254,"IsMater",'Форма по МДС 81-35.2004'!E235:E254,'Форма по МДС 81-35.2004'!G235:G254,0),16777275) -> 0 | G17: 0 | H17: 0 | I17: =ОКРУГЛВСЕ(SUMIF('Форма по МДС 81-35.2004'!J235:J254,"Г",'Форма по МДС 81-35.2004'!E235:E254),8) -> 0 | J17: 0 | K17: =ОКРУГЛВСЕ(SUMIF('Форма по МДС 81-35.2004'!J235:J254,"Ж",'Форма по МДС 81-35.2004'!E235:E254),8) -> 0.18 | L17: 0 | M17: 0 | N17: 10.06551 | O17: 7.6876408 | P17: 0 | Q17: 0 | R17: 0 | S17: 0 | T17: 0 | U17: 0 | V17: 0 | X17: 0 | Y17: 0 | Z17: 0 | AA17: 0 | AB17: 0 | AC17: 0 | AD17: 0 | AE17: 0
A18: ='Форма по МДС 81-35.2004'!A255 -> 13. | B18: ='Форма по МДС 81-35.2004'!G255 -> 25487.73 | C18: =ROUND(СУММПРОИЗВЕСЛИ(1,'Форма по МДС 81-35.2004'!J255:J273,"Г",'Форма по МДС 81-35.2004'!E255:E273,'Форма по МДС 81-35.2004'!G255:G273,0),16777275) -> 25487.7272 | D18: =ROUND(СУММПРОИЗВЕСЛИ(1,'Форма по МДС 81-35.2004'!J255:J273,"IsMash",'Форма по МДС 81-35.2004'!E255:E273,'Форма по МДС 81-35.2004'!G255:G273,0),16777275) -> 0 | E18: =ROUND(СУММПРОИЗВЕСЛИ(1,'Форма по МДС 81-35.2004'!J255:J273,"Ж",'Форма по МДС 81-35.2004'!E255:E273,'Форма по МДС 81-35.2004'!G255:G273,0),16777275) -> 0 | F18: =ROUND(СУММПРОИЗВЕСЛИ(1,'Форма по МДС 81-35.2004'!J255:J273,"IsMater",'Форма по МДС 81-35.2004'!E255:E273,'Форма по МДС 81-35.2004'!G255:G273,0),16777275) -> 0 | G18: 0 | H18: 0 | I18: =ОКРУГЛВСЕ(SUMIF('Форма по МДС 81-35.2004'!J255:J273,"Г",'Форма по МДС 81-35.2004'!E255:E273),8) -> 241.44 | J18: 0 | K18: =ОКРУГЛВСЕ(SUMIF('Форма по МДС 81-35.2004'!J255:J273,"Ж",'Форма по МДС 81-35.2004'!E255:E273),8) -> 0 | L18: 0 | M18: 0 | N18: 2982.06441 | O18: 2277.583553 | P18: 0 | Q18: 0 | R18: 0 | S18: 0 | T18: 0 | U18: 0 | V18: 0 | X18: 0 | Y18: 0 | Z18: 0 | AA18: 0 | AB18: 0 | AC18: 0 | AD18: 0 | AE18: 0
A19: ='Форма по МДС 81-35.2004'!A274 -> 14. | B19: ='Форма по МДС 81-35.2004'!G274 -> 53548.78 | C19: =ROUND(СУММПРОИЗВЕСЛИ(1,'Форма по МДС 81-35.2004'!J274:J294,"Г",'Форма по МДС 81-35.2004'!E274:E294,'Форма по МДС 81-35.2004'!G274:G294,0),16777275) -> 9232.326 | D19: =ROUND(СУММПРОИЗВЕСЛИ(1,'Форма по МДС 81-35.2004'!J274:J294,"IsMash",'Форма по МДС 81-35.2004'!E274:E294,'Форма по МДС 81-35.2004'!G274:G294,0),16777275) -> 44316.45 | E19: =ROUND(СУММПРОИЗВЕСЛИ(1,'Форма по МДС 81-35.2004'!J274:J294,"Ж",'Форма по МДС 81-35.2004'!E274:E294,'Форма по МДС 81-35.2004'!G274:G294,0),16777275) -> 15300.0306 | F19: =ROUND(СУММПРОИЗВЕСЛИ(1,'Форма по МДС 81-35.2004'!J274:J294,"IsMater",'Форма по МДС 81-35.2004'!E274:E294,'Форма по МДС 81-35.2004'!G274:G294,0),16777275) -> 0 | G19: 0 | H19: 0 | I19: =ОКРУГЛВСЕ(SUMIF('Форма по МДС 81-35.2004'!J274:J294,"Г",'Форма по МДС 81-35.2004'!E274:E294),8) -> 91.8 | J19: 0 | K19: =ОКРУГЛВСЕ(SUMIF('Форма по МДС 81-35.2004'!J274:J294,"Ж",'Форма по МДС 81-35.2004'!E274:E294),8) -> 91.8 | L19: 0 | M19: 0 | N19: 6265.20726 | O19: 4785.118981 | P19: 0 | Q19: 0 | R19: 0 | S19: 0 | T19: 0 | U19: 0 | V19: 0 | X19: 0 | Y19: 0 | Z19: 0 | AA19: 0 | AB19: 0 | AC19: 0 | AD19: 0 | AE19: 0
A20: ='Форма по МДС 81-35.2004'!A295 -> 15. | B20: ='Форма по МДС 81-35.2004'!G295 -> 55.31 | C20: =ROUND(СУММПРОИЗВЕСЛИ(1,'Форма по МДС 81-35.2004'!J295:J312,"Г",'Форма по МДС 81-35.2004'!E295:E312,'Форма по МДС 81-35.2004'!G295:G312,0),16777275) -> 55.3135 | D20: =ROUND(СУММПРОИЗВЕСЛИ(1,'Форма по МДС 81-35.2004'!J295:J312,"IsMash",'Форма по МДС 81-35.2004'!E295:E312,'Форма по МДС 81-35.2004'!G295:G312,0),16777275) -> 0 | E20: =ROUND(СУММПРОИЗВЕСЛИ(1,'Форма по МДС 81-35.2004'!J295:J312,"Ж",'Форма по МДС 81-35.2004'!E295:E312,'Форма по МДС 81-35.2004'!G295:G312,0),16777275) -> 0 | F20: =ROUND(СУММПРОИЗВЕСЛИ(1,'Форма по МДС 81-35.2004'!J295:J312,"IsMater",'Форма по МДС 81-35.2004'!E295:E312,'Форма по МДС 81-35.2004'!G295:G312,0),16777275) -> 0 | G20: 0 | H20: 0 | I20: =ОКРУГЛВСЕ(SUMIF('Форма по МДС 81-35.2004'!J295:J312,"Г",'Форма по МДС 81-35.2004'!E295:E312),8) -> 0.55 | J20: 0 | K20: =ОКРУГЛВСЕ(SUMIF('Форма по МДС 81-35.2004'!J295:J312,"Ж",'Форма по МДС 81-35.2004'!E295:E312),8) -> 0 | L20: 0 | M20: 0 | N20: 6.47127 | O20: 4.9425016 | P20: 0 | Q20: 0 | R20: 0 | S20: 0 | T20: 0 | U20: 0 | V20: 0 | X20: 0 | Y20: 0 | Z20: 0 | AA20: 0 | AB20: 0 | AC20: 0 | AD20: 0 | AE20: 0
A21: ='Форма по МДС 81-35.2004'!A313 -> 16. | B21: ='Форма по МДС 81-35.2004'!G313 -> 5131.62 | C21: =ROUND(СУММПРОИЗВЕСЛИ(1,'Форма по МДС 81-35.2004'!J313:J331,"Г",'Форма по МДС 81-35.2004'!E313:E331,'Форма по МДС 81-35.2004'!G313:G331,0),16777275) -> 0 | D21: =ROUND(СУММПРОИЗВЕСЛИ(1,'Форма по МДС 81-35.2004'!J313:J331,"IsMash",'Форма по МДС 81-35.2004'!E313:E331,'Форма по МДС 81-35.2004'!G313:G331,0),16777275) -> 5131.62 | E21: =ROUND(СУММПРОИЗВЕСЛИ(1,'Форма по МДС 81-35.2004'!J313:J331,"Ж",'Форма по МДС 81-35.2004'!E313:E331,'Форма по МДС 81-35.2004'!G313:G331,0),16777275) -> 0 | F21: =ROUND(СУММПРОИЗВЕСЛИ(1,'Форма по МДС 81-35.2004'!J313:J331,"IsMater",'Форма по МДС 81-35.2004'!E313:E331,'Форма по МДС 81-35.2004'!G313:G331,0),16777275) -> 0 | G21: 0 | H21: 0 | I21: =ОКРУГЛВСЕ(SUMIF('Форма по МДС 81-35.2004'!J313:J331,"Г",'Форма по МДС 81-35.2004'!E313:E331),8) -> 0 | J21: 0 | K21: =ОКРУГЛВСЕ(SUMIF('Форма по МДС 81-35.2004'!J313:J331,"Ж",'Форма по МДС 81-35.2004'!E313:E331),8) -> 0 | L21: 0 | M21: 0 | N21: 600.39954 | O21: 458.5615632 | P21: 0 | Q21: 0 | R21: 0 | S21: 0 | T21: 0 | U21: 0 | V21: 0 | X21: 0 | Y21: 0 | Z21: 0 | AA21: 0 | AB21: 0 | AC21: 0 | AD21: 0 | AE21: 0
A22: ='Форма по МДС 81-35.2004'!A332 -> 17. | B22: ='Форма по МДС 81-35.2004'!G332 -> 407.16 | C22: =ROUND(СУММПРОИЗВЕСЛИ(1,'Форма по МДС 81-35.2004'!J332:J351,"Г",'Форма по МДС 81-35.2004'!E332:E351,'Форма по МДС 81-35.2004'!G332:G351,0),16777275) -> 0 | D22: =ROUND(СУММПРОИЗВЕСЛИ(1,'Форма по МДС 81-35.2004'!J332:J351,"IsMash",'Форма по МДС 81-35.2004'!E332:E351,'Форма по МДС 81-35.2004'!G332:G351,0),16777275) -> 407.16 | E22: =ROUND(СУММПРОИЗВЕСЛИ(1,'Форма по МДС 81-35.2004'!J332:J351,"Ж",'Форма по МДС 81-35.2004'!E332:E351,'Форма по МДС 81-35.2004'!G332:G351,0),16777275) -> 0 | F22: =ROUND(СУММПРОИЗВЕСЛИ(1,'Форма по МДС 81-35.2004'!J332:J351,"IsMater",'Форма по МДС 81-35.2004'!E332:E351,'Форма по МДС 81-35.2004'!G332:G351,0),16777275) -> 0 | G22: 0 | H22: 0 | I22: =ОКРУГЛВСЕ(SUMIF('Форма по МДС 81-35.2004'!J332:J351,"Г",'Форма по МДС 81-35.2004'!E332:E351),8) -> 0 | J22: 0 | K22: =ОКРУГЛВСЕ(SUMIF('Форма по МДС 81-35.2004'!J332:J351,"Ж",'Форма по МДС 81-35.2004'!E332:E351),8) -> 0 | L22: 0 | M22: 0 | N22: 47.63772 | O22: 36.3838176 | P22: 0 | Q22: 0 | R22: 0 | S22: 0 | T22: 0 | U22: 0 | V22: 0 | X22: 0 | Y22: 0 | Z22: 0 | AA22: 0 | AB22: 0 | AC22: 0 | AD22: 0 | AE22: 0
A23: ='Форма по МДС 81-35.2004'!A352 -> 18. | B23: ='Форма по МДС 81-35.2004'!G352 -> 208.17 | C23: =ROUND(СУММПРОИЗВЕСЛИ(1,'Форма по МДС 81-35.2004'!J352:J371,"Г",'Форма по МДС 81-35.2004'!E352:E371,'Форма по МДС 81-35.2004'!G352:G371,0),16777275) -> 107.6099 | D23: =ROUND(СУММПРОИЗВЕСЛИ(1,'Форма по МДС 81-35.2004'!J352:J371,"IsMash",'Форма по МДС 81-35.2004'!E352:E371,'Форма по МДС 81-35.2004'!G352:G371,0),16777275) -> 100.5606 | E23: =ROUND(СУММПРОИЗВЕСЛИ(1,'Форма по МДС 81-35.2004'!J352:J371,"Ж",'Форма по МДС 81-35.2004'!E352:E371,'Форма по МДС 81-35.2004'!G352:G371,0),16777275) -> 15.64623 | F23: =ROUND(СУММПРОИЗВЕСЛИ(1,'Форма по МДС 81-35.2004'!J352:J371,"IsMater",'Форма по МДС 81-35.2004'!E352:E371,'Форма по МДС 81-35.2004'!G352:G371,0),16777275) -> 0 | G23: 0 | H23: 0 | I23: =ОКРУГЛВСЕ(SUMIF('Форма по МДС 81-35.2004'!J352:J371,"Г",'Форма по МДС 81-35.2004'!E352:E371),8) -> 1.07 | J23: 0 | K23: =ОКРУГЛВСЕ(SUMIF('Форма по МДС 81-35.2004'!J352:J371,"Ж",'Форма по МДС 81-35.2004'!E352:E371),8) -> 0.09 | L23: 0 | M23: 0 | N23: 24.35589 | O23: 18.6020712 | P23: 0 | Q23: 0 | R23: 0 | S23: 0 | T23: 0 | U23: 0 | V23: 0 | X23: 0 | Y23: 0 | Z23: 0 | AA23: 0 | AB23: 0 | AC23: 0 | AD23: 0 | AE23: 0
A24: ='Форма по МДС 81-35.2004'!A372 -> 19. | B24: ='Форма по МДС 81-35.2004'!G372 -> 9321.3 | C24: =ROUND(СУММПРОИЗВЕСЛИ(1,'Форма по МДС 81-35.2004'!J372:J396,"Г",'Форма по МДС 81-35.2004'!E372:E396,'Форма по МДС 81-35.2004'!G372:G396,0),16777275) -> 0 | D24: =ROUND(СУММПРОИЗВЕСЛИ(1,'Форма по МДС 81-35.2004'!J372:J396,"IsMash",'Форма по МДС 81-35.2004'!E372:E396,'Форма по МДС 81-35.2004'!G372:G396,0),16777275) -> 9321.3045 | E24: =ROUND(СУММПРОИЗВЕСЛИ(1,'Форма по МДС 81-35.2004'!J372:J396,"Ж",'Форма по МДС 81-35.2004'!E372:E396,'Форма по МДС 81-35.2004'!G372:G396,0),16777275) -> 3035.71645 | F24: =ROUND(СУММПРОИЗВЕСЛИ(1,'Форма по МДС 81-35.2004'!J372:J396,"IsMater",'Форма по МДС 81-35.2004'!E372:E396,'Форма по МДС 81-35.2004'!G372:G396,0),16777275) -> 0 | G24: 0 | H24: 0 | I24: =ОКРУГЛВСЕ(SUMIF('Форма по МДС 81-35.2004'!J372:J396,"Г",'Форма по МДС 81-35.2004'!E372:E396),8) -> 0 | J24: 0 | K24: =ОКРУГЛВСЕ(SUMIF('Форма по МДС 81-35.2004'!J372:J396,"Ж",'Форма по МДС 81-35.2004'!E372:E396),8) -> 18.65 | L24: 0 | M24: 0 | N24: 1090.5921 | O24: 832.951368 | P24: 0 | Q24: 0 | R24: 0 | S24: 0 | T24: 0 | U24: 0 | V24: 0 | X24: 0 | Y24: 0 | Z24: 0 | AA24: 0 | AB24: 0 | AC24: 0 | AD24: 0 | AE24: 0
A25: ='Форма по МДС 81-35.2004'!A398 -> 20. | B25: ='Форма по МДС 81-35.2004'!G398 -> 72.41 | C25: =ROUND(СУММПРОИЗВЕСЛИ(1,'Форма по МДС 81-35.2004'!J398:J416,"Г",'Форма по МДС 81-35.2004'!E398:E416,'Форма по МДС 81-35.2004'!G398:G416,0),16777275) -> 72.4104 | D25: =ROUND(СУММПРОИЗВЕСЛИ(1,'Форма по МДС 81-35.2004'!J398:J416,"IsMash",'Форма по МДС 81-35.2004'!E398:E416,'Форма по МДС 81-35.2004'!G398:G416,0),16777275) -> 0 | E25: =ROUND(СУММПРОИЗВЕСЛИ(1,'Форма по МДС 81-35.2004'!J398:J416,"Ж",'Форма по МДС 81-35.2004'!E398:E416,'Форма по МДС 81-35.2004'!G398:G416,0),16777275) -> 0 | F25: =ROUND(СУММПРОИЗВЕСЛИ(1,'Форма по МДС 81-35.2004'!J398:J416,"IsMater",'Форма по МДС 81-35.2004'!E398:E416,'Форма по МДС 81-35.2004'!G398:G416,0),16777275) -> 0 | G25: 0 | H25: 0 | I25: =ОКРУГЛВСЕ(SUMIF('Форма по МДС 81-35.2004'!J398:J416,"Г",'Форма по МДС 81-35.2004'!E398:E416),8) -> 0.72 | J25: 0 | K25: =ОКРУГЛВСЕ(SUMIF('Форма по МДС 81-35.2004'!J398:J416,"Ж",'Форма по МДС 81-35.2004'!E398:E416),8) -> 0 | L25: 0 | M25: 0 | N25: 8.47197 | O25: 6.4705576 | P25: 0 | Q25: 0 | R25: 0 | S25: 0 | T25: 0 | U25: 0 | V25: 0 | X25: 0 | Y25: 0 | Z25: 0 | AA25: 0 | AB25: 0 | AC25: 0 | AD25: 0 | AE25: 0
A26: ='Форма по МДС 81-35.2004'!A417 -> 21. | B26: ='Форма по МДС 81-35.2004'!G417 -> 857.66 | C26: =ROUND(СУММПРОИЗВЕСЛИ(1,'Форма по МДС 81-35.2004'!J417:J436,"Г",'Форма по МДС 81-35.2004'!E417:E436,'Форма по МДС 81-35.2004'!G417:G436,0),16777275) -> 537.7285 | D26: =ROUND(СУММПРОИЗВЕСЛИ(1,'Форма по МДС 81-35.2004'!J417:J436,"IsMash",'Форма по МДС 81-35.2004'!E417:E436,'Форма по МДС 81-35.2004'!G417:G436,0),16777275) -> 319.935 | E26: =ROUND(СУММПРОИЗВЕСЛИ(1,'Форма по МДС 81-35.2004'!J417:J436,"Ж",'Форма по МДС 81-35.2004'!E417:E436,'Форма по МДС 81-35.2004'!G417:G436,0),16777275) -> 0 | F26: =ROUND(СУММПРОИЗВЕСЛИ(1,'Форма по МДС 81-35.2004'!J417:J436,"IsMater",'Форма по МДС 81-35.2004'!E417:E436,'Форма по МДС 81-35.2004'!G417:G436,0),16777275) -> 0 | G26: 0 | H26: 0 | I26: =ОКРУГЛВСЕ(SUMIF('Форма по МДС 81-35.2004'!J417:J436,"Г",'Форма по МДС 81-35.2004'!E417:E436),8) -> 5.15 | J26: 0 | K26: =ОКРУГЛВСЕ(SUMIF('Форма по МДС 81-35.2004'!J417:J436,"Ж",'Форма по МДС 81-35.2004'!E417:E436),8) -> 0 | L26: 0 | M26: 0 | N26: 100.34622 | O26: 76.6404976 | P26: 0 | Q26: 0 | R26: 0 | S26: 0 | T26: 0 | U26: 0 | V26: 0 | X26: 0 | Y26: 0 | Z26: 0 | AA26: 0 | AB26: 0 | AC26: 0 | AD26: 0 | AE26: 0
A27: ='Форма по МДС 81-35.2004'!A437 -> 22. | B27: ='Форма по МДС 81-35.2004'!G437 -> 277.94 | C27: =ROUND(СУММПРОИЗВЕСЛИ(1,'Форма по МДС 81-35.2004'!J437:J455,"Г",'Форма по МДС 81-35.2004'!E437:E455,'Форма по МДС 81-35.2004'!G437:G455,0),16777275) -> 0 | D27: =ROUND(СУММПРОИЗВЕСЛИ(1,'Форма по МДС 81-35.2004'!J437:J455,"IsMash",'Форма по МДС 81-35.2004'!E437:E455,'Форма по МДС 81-35.2004'!G437:G455,0),16777275) -> 277.936 | E27: =ROUND(СУММПРОИЗВЕСЛИ(1,'Форма по МДС 81-35.2004'!J437:J455,"Ж",'Форма по МДС 81-35.2004'!E437:E455,'Форма по МДС 81-35.2004'!G437:G455,0),16777275) -> 47.99993 | F27: =ROUND(СУММПРОИЗВЕСЛИ(1,'Форма по МДС 81-35.2004'!J437:J455,"IsMater",'Форма по МДС 81-35.2004'!E437:E455,'Форма по МДС 81-35.2004'!G437:G455,0),16777275) -> 0 | G27: 0 | H27: 0 | I27: =ОКРУГЛВСЕ(SUMIF('Форма по МДС 81-35.2004'!J437:J455,"Г",'Форма по МДС 81-35.2004'!E437:E455),8) -> 0 | J27: 0 | K27: =ОКРУГЛВСЕ(SUMIF('Форма по МДС 81-35.2004'!J437:J455,"Ж",'Форма по МДС 81-35.2004'!E437:E455),8) -> 0.29 | L27: 0 | M27: 0 | N27: 32.51898 | O27: 24.8367184 | P27: 0 | Q27: 0 | R27: 0 | S27: 0 | T27: 0 | U27: 0 | V27: 0 | X27: 0 | Y27: 0 | Z27: 0 | AA27: 0 | AB27: 0 | AC27: 0 | AD27: 0 | AE27: 0
A28: ='Форма по МДС 81-35.2004'!A457 -> 23. | B28: ='Форма по МДС 81-35.2004'!G457 -> 469.28 | C28: =ROUND(СУММПРОИЗВЕСЛИ(1,'Форма по МДС 81-35.2004'!J457:J475,"Г",'Форма по МДС 81-35.2004'!E457:E475,'Форма по МДС 81-35.2004'!G457:G475,0),16777275) -> 0 | D28: =ROUND(СУММПРОИЗВЕСЛИ(1,'Форма по МДС 81-35.2004'!J457:J475,"IsMash",'Форма по МДС 81-35.2004'!E457:E475,'Форма по МДС 81-35.2004'!G457:G475,0),16777275) -> 469.2828 | E28: =ROUND(СУММПРОИЗВЕСЛИ(1,'Форма по МДС 81-35.2004'!J457:J475,"Ж",'Форма по МДС 81-35.2004'!E457:E475,'Форма по МДС 81-35.2004'!G457:G475,0),16777275) -> 73.33326 | F28: =ROUND(СУММПРОИЗВЕСЛИ(1,'Форма по МДС 81-35.2004'!J457:J475,"IsMater",'Форма по МДС 81-35.2004'!E457:E475,'Форма по МДС 81-35.2004'!G457:G475,0),16777275) -> 0 | G28: 0 | H28: 0 | I28: =ОКРУГЛВСЕ(SUMIF('Форма по МДС 81-35.2004'!J457:J475,"Г",'Форма по МДС 81-35.2004'!E457:E475),8) -> 0 | J28: 0 | K28: =ОКРУГЛВСЕ(SUMIF('Форма по МДС 81-35.2004'!J457:J475,"Ж",'Форма по МДС 81-35.2004'!E457:E475),8) -> 0.42 | L28: 0 | M28: 0 | N28: 54.90576 | O28: 41.9348608 | P28: 0 | Q28: 0 | R28: 0 | S28: 0 | T28: 0 | U28: 0 | V28: 0 | X28: 0 | Y28: 0 | Z28: 0 | AA28: 0 | AB28: 0 | AC28: 0 | AD28: 0 | AE28: 0
A29: ='Форма по МДС 81-35.2004'!A476 -> 24. | B29: ='Форма по МДС 81-35.2004'!G476 -> 208.17 | C29: =ROUND(СУММПРОИЗВЕСЛИ(1,'Форма по МДС 81-35.2004'!J476:J495,"Г",'Форма по МДС 81-35.2004'!E476:E495,'Форма по МДС 81-35.2004'!G476:G495,0),16777275) -> 107.6099 | D29: =ROUND(СУММПРОИЗВЕСЛИ(1,'Форма по МДС 81-35.2004'!J476:J495,"IsMash",'Форма по МДС 81-35.2004'!E476:E495,'Форма по МДС 81-35.2004'!G476:G495,0),16777275) -> 100.5606 | E29: =ROUND(СУММПРОИЗВЕСЛИ(1,'Форма по МДС 81-35.2004'!J476:J495,"Ж",'Форма по МДС 81-35.2004'!E476:E495,'Форма по МДС 81-35.2004'!G476:G495,0),16777275) -> 15.69996 | F29: =ROUND(СУММПРОИЗВЕСЛИ(1,'Форма по МДС 81-35.2004'!J476:J495,"IsMater",'Форма по МДС 81-35.2004'!E476:E495,'Форма по МДС 81-35.2004'!G476:G495,0),16777275) -> 0 | G29: 0 | H29: 0 | I29: =ОКРУГЛВСЕ(SUMIF('Форма по МДС 81-35.2004'!J476:J495,"Г",'Форма по МДС 81-35.2004'!E476:E495),8) -> 1.07 | J29: 0 | K29: =ОКРУГЛВСЕ(SUMIF('Форма по МДС 81-35.2004'!J476:J495,"Ж",'Форма по МДС 81-35.2004'!E476:E495),8) -> 0.09 | L29: 0 | M29: 0 | N29: 24.35589 | O29: 18.6020712 | P29: 0 | Q29: 0 | R29: 0 | S29: 0 | T29: 0 | U29: 0 | V29: 0 | X29: 0 | Y29: 0 | Z29: 0 | AA29: 0 | AB29: 0 | AC29: 0 | AD29: 0 | AE29: 0
A30: ='Форма по МДС 81-35.2004'!A496 -> 25. | B30: ='Форма по МДС 81-35.2004'!G496 -> 5131.62 | C30: =ROUND(СУММПРОИЗВЕСЛИ(1,'Форма по МДС 81-35.2004'!J496:J514,"Г",'Форма по МДС 81-35.2004'!E496:E514,'Форма по МДС 81-35.2004'!G496:G514,0),16777275) -> 0 | D30: =ROUND(СУММПРОИЗВЕСЛИ(1,'Форма по МДС 81-35.2004'!J496:J514,"IsMash",'Форма по МДС 81-35.2004'!E496:E514,'Форма по МДС 81-35.2004'!G496:G514,0),16777275) -> 5131.62 | E30: =ROUND(СУММПРОИЗВЕСЛИ(1,'Форма по МДС 81-35.2004'!J496:J514,"Ж",'Форма по МДС 81-35.2004'!E496:E514,'Форма по МДС 81-35.2004'!G496:G514,0),16777275) -> 0 | F30: =ROUND(СУММПРОИЗВЕСЛИ(1,'Форма по МДС 81-35.2004'!J496:J514,"IsMater",'Форма по МДС 81-35.2004'!E496:E514,'Форма по МДС 81-35.2004'!G496:G514,0),16777275) -> 0 | G30: 0 | H30: 0 | I30: =ОКРУГЛВСЕ(SUMIF('Форма по МДС 81-35.2004'!J496:J514,"Г",'Форма по МДС 81-35.2004'!E496:E514),8) -> 0 | J30: 0 | K30: =ОКРУГЛВСЕ(SUMIF('Форма по МДС 81-35.2004'!J496:J514,"Ж",'Форма по МДС 81-35.2004'!E496:E514),8) -> 0 | L30: 0 | M30: 0 | N30: 600.39954 | O30: 458.5615632 | P30: 0 | Q30: 0 | R30: 0 | S30: 0 | T30: 0 | U30: 0 | V30: 0 | X30: 0 | Y30: 0 | Z30: 0 | AA30: 0 | AB30: 0 | AC30: 0 | AD30: 0 | AE30: 0
A31: ='Форма по МДС 81-35.2004'!A515 -> 26. | B31: ='Форма по МДС 81-35.2004'!G515 -> 407.16 | C31: =ROUND(СУММПРОИЗВЕСЛИ(1,'Форма по МДС 81-35.2004'!J515:J534,"Г",'Форма по МДС 81-35.2004'!E515:E534,'Форма по МДС 81-35.2004'!G515:G534,0),16777275) -> 0 | D31: =ROUND(СУММПРОИЗВЕСЛИ(1,'Форма по МДС 81-35.2004'!J515:J534,"IsMash",'Форма по МДС 81-35.2004'!E515:E534,'Форма по МДС 81-35.2004'!G515:G534,0),16777275) -> 407.16 | E31: =ROUND(СУММПРОИЗВЕСЛИ(1,'Форма по МДС 81-35.2004'!J515:J534,"Ж",'Форма по МДС 81-35.2004'!E515:E534,'Форма по МДС 81-35.2004'!G515:G534,0),16777275) -> 0 | F31: =ROUND(СУММПРОИЗВЕСЛИ(1,'Форма по МДС 81-35.2004'!J515:J534,"IsMater",'Форма по МДС 81-35.2004'!E515:E534,'Форма по МДС 81-35.2004'!G515:G534,0),16777275) -> 0 | G31: 0 | H31: 0 | I31: =ОКРУГЛВСЕ(SUMIF('Форма по МДС 81-35.2004'!J515:J534,"Г",'Форма по МДС 81-35.2004'!E515:E534),8) -> 0 | J31: 0 | K31: =ОКРУГЛВСЕ(SUMIF('Форма по МДС 81-35.2004'!J515:J534,"Ж",'Форма по МДС 81-35.2004'!E515:E534),8) -> 0 | L31: 0 | M31: 0 | N31: 47.63772 | O31: 36.3838176 | P31: 0 | Q31: 0 | R31: 0 | S31: 0 | T31: 0 | U31: 0 | V31: 0 | X31: 0 | Y31: 0 | Z31: 0 | AA31: 0 | AB31: 0 | AC31: 0 | AD31: 0 | AE31: 0
A32: ='Форма по МДС 81-35.2004'!A535 -> 27. | B32: ='Форма по МДС 81-35.2004'!G535 -> 33657.41 | C32: =ROUND(СУММПРОИЗВЕСЛИ(1,'Форма по МДС 81-35.2004'!J535:J558,"Г",'Форма по МДС 81-35.2004'!E535:E558,'Форма по МДС 81-35.2004'!G535:G558,0),16777275) -> 624.5397 | D32: =ROUND(СУММПРОИЗВЕСЛИ(1,'Форма по МДС 81-35.2004'!J535:J558,"IsMash",'Форма по МДС 81-35.2004'!E535:E558,'Форма по МДС 81-35.2004'!G535:G558,0),16777275) -> 9374.2176 | E32: =ROUND(СУММПРОИЗВЕСЛИ(1,'Форма по МДС 81-35.2004'!J535:J558,"Ж",'Форма по МДС 81-35.2004'!E535:E558,'Форма по МДС 81-35.2004'!G535:G558,0),16777275) -> 2200.00365 | F32: =ROUND(СУММПРОИЗВЕСЛИ(1,'Форма по МДС 81-35.2004'!J535:J558,"IsMater",'Форма по МДС 81-35.2004'!E535:E558,'Форма по МДС 81-35.2004'!G535:G558,0),16777275) -> 23658.6477 | G32: 0 | H32: 0 | I32: =ОКРУГЛВСЕ(SUMIF('Форма по МДС 81-35.2004'!J535:J558,"Г",'Форма по МДС 81-35.2004'!E535:E558),8) -> 6.21 | J32: 0 | K32: =ОКРУГЛВСЕ(SUMIF('Форма по МДС 81-35.2004'!J535:J558,"Ж",'Форма по МДС 81-35.2004'!E535:E558),8) -> 12.61 | L32: 0 | M32: 0 | N32: 3937.91697 | O32: 3007.626158 | P32: 0 | Q32: 0 | R32: 0 | S32: 0 | T32: 0 | U32: 0 | V32: 0 | X32: 0 | Y32: 0 | Z32: 0 | AA32: 0 | AB32: 0 | AC32: 0 | AD32: 0 | AE32: 0
A33: ='Форма по МДС 81-35.2004'!A559 -> 28. | B33: ='Форма по МДС 81-35.2004'!G559 -> 614.54 | C33: =ROUND(СУММПРОИЗВЕСЛИ(1,'Форма по МДС 81-35.2004'!J559:J577,"Г",'Форма по МДС 81-35.2004'!E559:E577,'Форма по МДС 81-35.2004'!G559:G577,0),16777275) -> 0 | D33: =ROUND(СУММПРОИЗВЕСЛИ(1,'Форма по МДС 81-35.2004'!J559:J577,"IsMash",'Форма по МДС 81-35.2004'!E559:E577,'Форма по МДС 81-35.2004'!G559:G577,0),16777275) -> 614.537 | E33: =ROUND(СУММПРОИЗВЕСЛИ(1,'Форма по МДС 81-35.2004'!J559:J577,"Ж",'Форма по МДС 81-35.2004'!E559:E577,'Форма по МДС 81-35.2004'!G559:G577,0),16777275) -> 95.99975 | F33: =ROUND(СУММПРОИЗВЕСЛИ(1,'Форма по МДС 81-35.2004'!J559:J577,"IsMater",'Форма по МДС 81-35.2004'!E559:E577,'Форма по МДС 81-35.2004'!G559:G577,0),16777275) -> 0 | G33: 0 | H33: 0 | I33: =ОКРУГЛВСЕ(SUMIF('Форма по МДС 81-35.2004'!J559:J577,"Г",'Форма по МДС 81-35.2004'!E559:E577),8) -> 0 | J33: 0 | K33: =ОКРУГЛВСЕ(SUMIF('Форма по МДС 81-35.2004'!J559:J577,"Ж",'Форма по МДС 81-35.2004'!E559:E577),8) -> 0.55 | L33: 0 | M33: 0 | N33: 71.90118 | O33: 54.9152944 | P33: 0 | Q33: 0 | R33: 0 | S33: 0 | T33: 0 | U33: 0 | V33: 0 | X33: 0 | Y33: 0 | Z33: 0 | AA33: 0 | AB33: 0 | AC33: 0 | AD33: 0 | AE33: 0
A34: ='Форма по МДС 81-35.2004'!A578 -> 29. | B34: ='Форма по МДС 81-35.2004'!G578 -> 58543.04 | C34: =ROUND(СУММПРОИЗВЕСЛИ(1,'Форма по МДС 81-35.2004'!J578:J605,"Г",'Форма по МДС 81-35.2004'!E578:E605,'Форма по МДС 81-35.2004'!G578:G605,0),16777275) -> 5809.3959 | D34: =ROUND(СУММПРОИЗВЕСЛИ(1,'Форма по МДС 81-35.2004'!J578:J605,"IsMash",'Форма по МДС 81-35.2004'!E578:E605,'Форма по МДС 81-35.2004'!G578:G605,0),16777275) -> 10081.3419 | E34: =ROUND(СУММПРОИЗВЕСЛИ(1,'Форма по МДС 81-35.2004'!J578:J605,"Ж",'Форма по МДС 81-35.2004'!E578:E605,'Форма по МДС 81-35.2004'!G578:G605,0),16777275) -> 2299.9977 | F34: =ROUND(СУММПРОИЗВЕСЛИ(1,'Форма по МДС 81-35.2004'!J578:J605,"IsMater",'Форма по МДС 81-35.2004'!E578:E605,'Форма по МДС 81-35.2004'!G578:G605,0),16777275) -> 42652.30128 | G34: 0 | H34: 0 | I34: =ОКРУГЛВСЕ(SUMIF('Форма по МДС 81-35.2004'!J578:J605,"Г",'Форма по МДС 81-35.2004'!E578:E605),8) -> 54.39 | J34: 0 | K34: =ОКРУГЛВСЕ(SUMIF('Форма по МДС 81-35.2004'!J578:J605,"Ж",'Форма по МДС 81-35.2004'!E578:E605),8) -> 15.54 | L34: 0 | M34: 0 | N34: 6849.53568 | O34: 5231.406054 | P34: 0 | Q34: 0 | R34: 0 | S34: 0 | T34: 0 | U34: 0 | V34: 0 | X34: 0 | Y34: 0 | Z34: 0 | AA34: 0 | AB34: 0 | AC34: 0 | AD34: 0 | AE34: 0
A35: ='Форма по МДС 81-35.2004'!A606 -> 30. | B35: ='Форма по МДС 81-35.2004'!G606 -> 59471.08 | C35: =ROUND(СУММПРОИЗВЕСЛИ(1,'Форма по МДС 81-35.2004'!J606:J633,"Г",'Форма по МДС 81-35.2004'!E606:E633,'Форма по МДС 81-35.2004'!G606:G633,0),16777275) -> 5809.3959 | D35: =ROUND(СУММПРОИЗВЕСЛИ(1,'Форма по МДС 81-35.2004'!J606:J633,"IsMash",'Форма по МДС 81-35.2004'!E606:E633,'Форма по МДС 81-35.2004'!G606:G633,0),16777275) -> 10081.3419 | E35: =ROUND(СУММПРОИЗВЕСЛИ(1,'Форма по МДС 81-35.2004'!J606:J633,"Ж",'Форма по МДС 81-35.2004'!E606:E633,'Форма по МДС 81-35.2004'!G606:G633,0),16777275) -> 2299.9977 | F35: =ROUND(СУММПРОИЗВЕСЛИ(1,'Форма по МДС 81-35.2004'!J606:J633,"IsMater",'Форма по МДС 81-35.2004'!E606:E633,'Форма по МДС 81-35.2004'!G606:G633,0),16777275) -> 43580.34528 | G35: 0 | H35: 0 | I35: =ОКРУГЛВСЕ(SUMIF('Форма по МДС 81-35.2004'!J606:J633,"Г",'Форма по МДС 81-35.2004'!E606:E633),8) -> 54.39 | J35: 0 | K35: =ОКРУГЛВСЕ(SUMIF('Форма по МДС 81-35.2004'!J606:J633,"Ж",'Форма по МДС 81-35.2004'!E606:E633),8) -> 15.54 | L35: 0 | M35: 0 | N35: 6958.11636 | O35: 5314.335709 | P35: 0 | Q35: 0 | R35: 0 | S35: 0 | T35: 0 | U35: 0 | V35: 0 | X35: 0 | Y35: 0 | Z35: 0 | AA35: 0 | AB35: 0 | AC35: 0 | AD35: 0 | AE35: 0
A36: ='Форма по МДС 81-35.2004'!A634 -> 31. | B36: ='Форма по МДС 81-35.2004'!G634 -> 56644.71 | C36: =ROUND(СУММПРОИЗВЕСЛИ(1,'Форма по МДС 81-35.2004'!J634:J661,"Г",'Форма по МДС 81-35.2004'!E634:E661,'Форма по МДС 81-35.2004'!G634:G661,0),16777275) -> 5809.3959 | D36: =ROUND(СУММПРОИЗВЕСЛИ(1,'Форма по МДС 81-35.2004'!J634:J661,"IsMash",'Форма по МДС 81-35.2004'!E634:E661,'Форма по МДС 81-35.2004'!G634:G661,0),16777275) -> 10081.3419 | E36: =ROUND(СУММПРОИЗВЕСЛИ(1,'Форма по МДС 81-35.2004'!J634:J661,"Ж",'Форма по МДС 81-35.2004'!E634:E661,'Форма по МДС 81-35.2004'!G634:G661,0),16777275) -> 2299.9977 | F36: =ROUND(СУММПРОИЗВЕСЛИ(1,'Форма по МДС 81-35.2004'!J634:J661,"IsMater",'Форма по МДС 81-35.2004'!E634:E661,'Форма по МДС 81-35.2004'!G634:G661,0),16777275) -> 40753.97628 | G36: 0 | H36: 0 | I36: =ОКРУГЛВСЕ(SUMIF('Форма по МДС 81-35.2004'!J634:J661,"Г",'Форма по МДС 81-35.2004'!E634:E661),8) -> 54.39 | J36: 0 | K36: =ОКРУГЛВСЕ(SUMIF('Форма по МДС 81-35.2004'!J634:J661,"Ж",'Форма по МДС 81-35.2004'!E634:E661),8) -> 15.54 | L36: 0 | M36: 0 | N36: 6627.43107 | O36: 5061.771286 | P36: 0 | Q36: 0 | R36: 0 | S36: 0 | T36: 0 | U36: 0 | V36: 0 | X36: 0 | Y36: 0 | Z36: 0 | AA36: 0 | AB36: 0 | AC36: 0 | AD36: 0 | AE36: 0
A37: ='Форма по МДС 81-35.2004'!A662 -> 32. | B37: ='Форма по МДС 81-35.2004'!G662 -> 25733.15 | C37: =ROUND(СУММПРОИЗВЕСЛИ(1,'Форма по МДС 81-35.2004'!J662:J683,"Г",'Форма по МДС 81-35.2004'!E662:E683,'Форма по МДС 81-35.2004'!G662:G683,0),16777275) -> 4688.8072 | D37: =ROUND(СУММПРОИЗВЕСЛИ(1,'Форма по МДС 81-35.2004'!J662:J683,"IsMash",'Форма по МДС 81-35.2004'!E662:E683,'Форма по МДС 81-35.2004'!G662:G683,0),16777275) -> 7967.771 | E37: =ROUND(СУММПРОИЗВЕСЛИ(1,'Форма по МДС 81-35.2004'!J662:J683,"Ж",'Форма по МДС 81-35.2004'!E662:E683,'Форма по МДС 81-35.2004'!G662:G683,0),16777275) -> 2200.00172 | F37: =ROUND(СУММПРОИЗВЕСЛИ(1,'Форма по МДС 81-35.2004'!J662:J683,"IsMater",'Форма по МДС 81-35.2004'!E662:E683,'Форма по МДС 81-35.2004'!G662:G683,0),16777275) -> 13076.571 | G37: 0 | H37: 0 | I37: =ОКРУГЛВСЕ(SUMIF('Форма по МДС 81-35.2004'!J662:J683,"Г",'Форма по МДС 81-35.2004'!E662:E683),8) -> 43.26 | J37: 0 | K37: =ОКРУГЛВСЕ(SUMIF('Форма по МДС 81-35.2004'!J662:J683,"Ж",'Форма по МДС 81-35.2004'!E662:E683),8) -> 14.42 | L37: 0 | M37: 0 | N37: 3010.77855 | O37: 2299.514284 | P37: 0 | Q37: 0 | R37: 0 | S37: 0 | T37: 0 | U37: 0 | V37: 0 | X37: 0 | Y37: 0 | Z37: 0 | AA37: 0 | AB37: 0 | AC37: 0 | AD37: 0 | AE37: 0
A38: ='Форма по МДС 81-35.2004'!A684 -> 33. | B38: ='Форма по МДС 81-35.2004'!G684 -> 26082.81 | C38: =ROUND(СУММПРОИЗВЕСЛИ(1,'Форма по МДС 81-35.2004'!J684:J705,"Г",'Форма по МДС 81-35.2004'!E684:E705,'Форма по МДС 81-35.2004'!G684:G705,0),16777275) -> 4688.8072 | D38: =ROUND(СУММПРОИЗВЕСЛИ(1,'Форма по МДС 81-35.2004'!J684:J705,"IsMash",'Форма по МДС 81-35.2004'!E684:E705,'Форма по МДС 81-35.2004'!G684:G705,0),16777275) -> 7967.771 | E38: =ROUND(СУММПРОИЗВЕСЛИ(1,'Форма по МДС 81-35.2004'!J684:J705,"Ж",'Форма по МДС 81-35.2004'!E684:E705,'Форма по МДС 81-35.2004'!G684:G705,0),16777275) -> 2200.00172 | F38: =ROUND(СУММПРОИЗВЕСЛИ(1,'Форма по МДС 81-35.2004'!J684:J705,"IsMater",'Форма по МДС 81-35.2004'!E684:E705,'Форма по МДС 81-35.2004'!G684:G705,0),16777275) -> 13426.233 | G38: 0 | H38: 0 | I38: =ОКРУГЛВСЕ(SUMIF('Форма по МДС 81-35.2004'!J684:J705,"Г",'Форма по МДС 81-35.2004'!E684:E705),8) -> 43.26 | J38: 0 | K38: =ОКРУГЛВСЕ(SUMIF('Форма по МДС 81-35.2004'!J684:J705,"Ж",'Форма по МДС 81-35.2004'!E684:E705),8) -> 14.42 | L38: 0 | M38: 0 | N38: 3051.68877 | O38: 2330.759902 | P38: 0 | Q38: 0 | R38: 0 | S38: 0 | T38: 0 | U38: 0 | V38: 0 | X38: 0 | Y38: 0 | Z38: 0 | AA38: 0 | AB38: 0 | AC38: 0 | AD38: 0 | AE38: 0
A39: ='Форма по МДС 81-35.2004'!A706 -> 34. | B39: ='Форма по МДС 81-35.2004'!G706 -> 14794.7 | C39: =ROUND(СУММПРОИЗВЕСЛИ(1,'Форма по МДС 81-35.2004'!J706:J730,"Г",'Форма по МДС 81-35.2004'!E706:E730,'Форма по МДС 81-35.2004'!G706:G730,0),16777275) -> 0 | D39: =ROUND(СУММПРОИЗВЕСЛИ(1,'Форма по МДС 81-35.2004'!J706:J730,"IsMash",'Форма по МДС 81-35.2004'!E706:E730,'Форма по МДС 81-35.2004'!G706:G730,0),16777275) -> 357.6672 | E39: =ROUND(СУММПРОИЗВЕСЛИ(1,'Форма по МДС 81-35.2004'!J706:J730,"Ж",'Форма по МДС 81-35.2004'!E706:E730,'Форма по МДС 81-35.2004'!G706:G730,0),16777275) -> 0 | F39: =ROUND(СУММПРОИЗВЕСЛИ(1,'Форма по МДС 81-35.2004'!J706:J730,"IsMater",'Форма по МДС 81-35.2004'!E706:E730,'Форма по МДС 81-35.2004'!G706:G730,0),16777275) -> 14437.0362 | G39: 0 | H39: 0 | I39: =ОКРУГЛВСЕ(SUMIF('Форма по МДС 81-35.2004'!J706:J730,"Г",'Форма по МДС 81-35.2004'!E706:E730),8) -> 0 | J39: 0 | K39: =ОКРУГЛВСЕ(SUMIF('Форма по МДС 81-35.2004'!J706:J730,"Ж",'Форма по МДС 81-35.2004'!E706:E730),8) -> 0.792 | L39: 0 | M39: 0 | N39: 1730.9799 | O39: 1322.054392 | P39: 0 | Q39: 0 | R39: 0 | S39: 0 | T39: 0 | U39: 0 | V39: 0 | X39: 0 | Y39: 0 | Z39: 0 | AA39: 0 | AB39: 0 | AC39: 0 | AD39: 0 | AE39: 0
A40: ='Форма по МДС 81-35.2004'!A731 -> 35. | B40: ='Форма по МДС 81-35.2004'!G731 -> 374287.59 | C40: =ROUND(СУММПРОИЗВЕСЛИ(1,'Форма по МДС 81-35.2004'!J731:J770,"Г",'Форма по МДС 81-35.2004'!E731:E770,'Форма по МДС 81-35.2004'!G731:G770,0),16777275) -> 5699.9592 | D40: =ROUND(СУММПРОИЗВЕСЛИ(1,'Форма по МДС 81-35.2004'!J731:J770,"IsMash",'Форма по МДС 81-35.2004'!E731:E770,'Форма по МДС 81-35.2004'!G731:G770,0),16777275) -> 19263.53712 | E40: =ROUND(СУММПРОИЗВЕСЛИ(1,'Форма по МДС 81-35.2004'!J731:J770,"Ж",'Форма по МДС 81-35.2004'!E731:E770,'Форма по МДС 81-35.2004'!G731:G770,0),16777275) -> 3999.999888 | F40: =ROUND(СУММПРОИЗВЕСЛИ(1,'Форма по МДС 81-35.2004'!J731:J770,"IsMater",'Форма по МДС 81-35.2004'!E731:E770,'Форма по МДС 81-35.2004'!G731:G770,0),16777275) -> 349324.0893 | G40: 0 | H40: 0 | I40: =ОКРУГЛВСЕ(SUMIF('Форма по МДС 81-35.2004'!J731:J770,"Г",'Форма по МДС 81-35.2004'!E731:E770),8) -> 45.96 | J40: 0 | K40: =ОКРУГЛВСЕ(SUMIF('Форма по МДС 81-35.2004'!J731:J770,"Ж",'Форма по МДС 81-35.2004'!E731:E770),8) -> 22.896 | L40: 0 | M40: 0 | N40: 43791.64803 | O40: 33446.33904 | P40: 0 | Q40: 0 | R40: 0 | S40: 0 | T40: 0 | U40: 0 | V40: 0 | X40: 0 | Y40: 0 | Z40: 0 | AA40: 0 | AB40: 0 | AC40: 0 | AD40: 0 | AE40: 0
A41: ='Форма по МДС 81-35.2004'!A771 -> 36. | B41: ='Форма по МДС 81-35.2004'!G771 -> 43696.52 | C41: =ROUND(СУММПРОИЗВЕСЛИ(1,'Форма по МДС 81-35.2004'!J771:J797,"Г",'Форма по МДС 81-35.2004'!E771:E797,'Форма по МДС 81-35.2004'!G771:G797,0),16777275) -> 13.39416 | D41: =ROUND(СУММПРОИЗВЕСЛИ(1,'Форма по МДС 81-35.2004'!J771:J797,"IsMash",'Форма по МДС 81-35.2004'!E771:E797,'Форма по МДС 81-35.2004'!G771:G797,0),16777275) -> 16.86744 | E41: =ROUND(СУММПРОИЗВЕСЛИ(1,'Форма по МДС 81-35.2004'!J771:J797,"Ж",'Форма по МДС 81-35.2004'!E771:E797,'Форма по МДС 81-35.2004'!G771:G797,0),16777275) -> 0 | F41: =ROUND(СУММПРОИЗВЕСЛИ(1,'Форма по МДС 81-35.2004'!J771:J797,"IsMater",'Форма по МДС 81-35.2004'!E771:E797,'Форма по МДС 81-35.2004'!G771:G797,0),16777275) -> 43666.25916 | G41: 0 | H41: 0 | I41: =ОКРУГЛВСЕ(SUMIF('Форма по МДС 81-35.2004'!J771:J797,"Г",'Форма по МДС 81-35.2004'!E771:E797),8) -> 0.108 | J41: 0 | K41: =ОКРУГЛВСЕ(SUMIF('Форма по МДС 81-35.2004'!J771:J797,"Ж",'Форма по МДС 81-35.2004'!E771:E797),8) -> 0 | L41: 0 | M41: 0 | N41: 5112.49284 | O41: 3904.721027 | P41: 0 | Q41: 0 | R41: 0 | S41: 0 | T41: 0 | U41: 0 | V41: 0 | X41: 0 | Y41: 0 | Z41: 0 | AA41: 0 | AB41: 0 | AC41: 0 | AD41: 0 | AE41: 0
A42: ='Форма по МДС 81-35.2004'!A798 -> 37. | B42: ='Форма по МДС 81-35.2004'!G798 -> 14794.7 | C42: =ROUND(СУММПРОИЗВЕСЛИ(1,'Форма по МДС 81-35.2004'!J798:J822,"Г",'Форма по МДС 81-35.2004'!E798:E822,'Форма по МДС 81-35.2004'!G798:G822,0),16777275) -> 0 | D42: =ROUND(СУММПРОИЗВЕСЛИ(1,'Форма по МДС 81-35.2004'!J798:J822,"IsMash",'Форма по МДС 81-35.2004'!E798:E822,'Форма по МДС 81-35.2004'!G798:G822,0),16777275) -> 357.6672 | E42: =ROUND(СУММПРОИЗВЕСЛИ(1,'Форма по МДС 81-35.2004'!J798:J822,"Ж",'Форма по МДС 81-35.2004'!E798:E822,'Форма по МДС 81-35.2004'!G798:G822,0),16777275) -> 0 | F42: =ROUND(СУММПРОИЗВЕСЛИ(1,'Форма по МДС 81-35.2004'!J798:J822,"IsMater",'Форма по МДС 81-35.2004'!E798:E822,'Форма по МДС 81-35.2004'!G798:G822,0),16777275) -> 14437.0362 | G42: 0 | H42: 0 | I42: =ОКРУГЛВСЕ(SUMIF('Форма по МДС 81-35.2004'!J798:J822,"Г",'Форма по МДС 81-35.2004'!E798:E822),8) -> 0 | J42: 0 | K42: =ОКРУГЛВСЕ(SUMIF('Форма по МДС 81-35.2004'!J798:J822,"Ж",'Форма по МДС 81-35.2004'!E798:E822),8) -> 0.792 | L42: 0 | M42: 0 | N42: 1730.9799 | O42: 1322.054392 | P42: 0 | Q42: 0 | R42: 0 | S42: 0 | T42: 0 | U42: 0 | V42: 0 | X42: 0 | Y42: 0 | Z42: 0 | AA42: 0 | AB42: 0 | AC42: 0 | AD42: 0 | AE42: 0
A43: ='Форма по МДС 81-35.2004'!A823 -> 38. | B43: ='Форма по МДС 81-35.2004'!G823 -> 381949.9 | C43: =ROUND(СУММПРОИЗВЕСЛИ(1,'Форма по МДС 81-35.2004'!J823:J862,"Г",'Форма по МДС 81-35.2004'!E823:E862,'Форма по МДС 81-35.2004'!G823:G862,0),16777275) -> 5699.9592 | D43: =ROUND(СУММПРОИЗВЕСЛИ(1,'Форма по МДС 81-35.2004'!J823:J862,"IsMash",'Форма по МДС 81-35.2004'!E823:E862,'Форма по МДС 81-35.2004'!G823:G862,0),16777275) -> 19263.53712 | E43: =ROUND(СУММПРОИЗВЕСЛИ(1,'Форма по МДС 81-35.2004'!J823:J862,"Ж",'Форма по МДС 81-35.2004'!E823:E862,'Форма по МДС 81-35.2004'!G823:G862,0),16777275) -> 3999.999888 | F43: =ROUND(СУММПРОИЗВЕСЛИ(1,'Форма по МДС 81-35.2004'!J823:J862,"IsMater",'Форма по МДС 81-35.2004'!E823:E862,'Форма по МДС 81-35.2004'!G823:G862,0),16777275) -> 356986.4013 | G43: 0 | H43: 0 | I43: =ОКРУГЛВСЕ(SUMIF('Форма по МДС 81-35.2004'!J823:J862,"Г",'Форма по МДС 81-35.2004'!E823:E862),8) -> 45.96 | J43: 0 | K43: =ОКРУГЛВСЕ(SUMIF('Форма по МДС 81-35.2004'!J823:J862,"Ж",'Форма по МДС 81-35.2004'!E823:E862),8) -> 22.896 | L43: 0 | M43: 0 | N43: 44688.1383 | O43: 34131.04306 | P43: 0 | Q43: 0 | R43: 0 | S43: 0 | T43: 0 | U43: 0 | V43: 0 | X43: 0 | Y43: 0 | Z43: 0 | AA43: 0 | AB43: 0 | AC43: 0 | AD43: 0 | AE43: 0
A44: ='Форма по МДС 81-35.2004'!A863 -> 39. | B44: ='Форма по МДС 81-35.2004'!G863 -> 44656.29 | C44: =ROUND(СУММПРОИЗВЕСЛИ(1,'Форма по МДС 81-35.2004'!J863:J889,"Г",'Форма по МДС 81-35.2004'!E863:E889,'Форма по МДС 81-35.2004'!G863:G889,0),16777275) -> 13.39416 | D44: =ROUND(СУММПРОИЗВЕСЛИ(1,'Форма по МДС 81-35.2004'!J863:J889,"IsMash",'Форма по МДС 81-35.2004'!E863:E889,'Форма по МДС 81-35.2004'!G863:G889,0),16777275) -> 16.86744 | E44: =ROUND(СУММПРОИЗВЕСЛИ(1,'Форма по МДС 81-35.2004'!J863:J889,"Ж",'Форма по МДС 81-35.2004'!E863:E889,'Форма по МДС 81-35.2004'!G863:G889,0),16777275) -> 0 | F44: =ROUND(СУММПРОИЗВЕСЛИ(1,'Форма по МДС 81-35.2004'!J863:J889,"IsMater",'Форма по МДС 81-35.2004'!E863:E889,'Форма по МДС 81-35.2004'!G863:G889,0),16777275) -> 44626.03116 | G44: 0 | H44: 0 | I44: =ОКРУГЛВСЕ(SUMIF('Форма по МДС 81-35.2004'!J863:J889,"Г",'Форма по МДС 81-35.2004'!E863:E889),8) -> 0.108 | J44: 0 | K44: =ОКРУГЛВСЕ(SUMIF('Форма по МДС 81-35.2004'!J863:J889,"Ж",'Форма по МДС 81-35.2004'!E863:E889),8) -> 0 | L44: 0 | M44: 0 | N44: 5224.78593 | O44: 3990.486074 | P44: 0 | Q44: 0 | R44: 0 | S44: 0 | T44: 0 | U44: 0 | V44: 0 | X44: 0 | Y44: 0 | Z44: 0 | AA44: 0 | AB44: 0 | AC44: 0 | AD44: 0 | AE44: 0
A45: ='Форма по МДС 81-35.2004'!A890 -> 40. | B45: ='Форма по МДС 81-35.2004'!G890 -> 14794.7 | C45: =ROUND(СУММПРОИЗВЕСЛИ(1,'Форма по МДС 81-35.2004'!J890:J914,"Г",'Форма по МДС 81-35.2004'!E890:E914,'Форма по МДС 81-35.2004'!G890:G914,0),16777275) -> 0 | D45: =ROUND(СУММПРОИЗВЕСЛИ(1,'Форма по МДС 81-35.2004'!J890:J914,"IsMash",'Форма по МДС 81-35.2004'!E890:E914,'Форма по МДС 81-35.2004'!G890:G914,0),16777275) -> 357.6672 | E45: =ROUND(СУММПРОИЗВЕСЛИ(1,'Форма по МДС 81-35.2004'!J890:J914,"Ж",'Форма по МДС 81-35.2004'!E890:E914,'Форма по МДС 81-35.2004'!G890:G914,0),16777275) -> 0 | F45: =ROUND(СУММПРОИЗВЕСЛИ(1,'Форма по МДС 81-35.2004'!J890:J914,"IsMater",'Форма по МДС 81-35.2004'!E890:E914,'Форма по МДС 81-35.2004'!G890:G914,0),16777275) -> 14437.0362 | G45: 0 | H45: 0 | I45: =ОКРУГЛВСЕ(SUMIF('Форма по МДС 81-35.2004'!J890:J914,"Г",'Форма по МДС 81-35.2004'!E890:E914),8) -> 0 | J45: 0 | K45: =ОКРУГЛВСЕ(SUMIF('Форма по МДС 81-35.2004'!J890:J914,"Ж",'Форма по МДС 81-35.2004'!E890:E914),8) -> 0.792 | L45: 0 | M45: 0 | N45: 1730.9799 | O45: 1322.054392 | P45: 0 | Q45: 0 | R45: 0 | S45: 0 | T45: 0 | U45: 0 | V45: 0 | X45: 0 | Y45: 0 | Z45: 0 | AA45: 0 | AB45: 0 | AC45: 0 | AD45: 0 | AE45: 0
A46: ='Форма по МДС 81-35.2004'!A915 -> 41. | B46: ='Форма по МДС 81-35.2004'!G915 -> 358614.24 | C46: =ROUND(СУММПРОИЗВЕСЛИ(1,'Форма по МДС 81-35.2004'!J915:J954,"Г",'Форма по МДС 81-35.2004'!E915:E954,'Форма по МДС 81-35.2004'!G915:G954,0),16777275) -> 5699.9592 | D46: =ROUND(СУММПРОИЗВЕСЛИ(1,'Форма по МДС 81-35.2004'!J915:J954,"IsMash",'Форма по МДС 81-35.2004'!E915:E954,'Форма по МДС 81-35.2004'!G915:G954,0),16777275) -> 19263.53712 | E46: =ROUND(СУММПРОИЗВЕСЛИ(1,'Форма по МДС 81-35.2004'!J915:J954,"Ж",'Форма по МДС 81-35.2004'!E915:E954,'Форма по МДС 81-35.2004'!G915:G954,0),16777275) -> 3999.999888 | F46: =ROUND(СУММПРОИЗВЕСЛИ(1,'Форма по МДС 81-35.2004'!J915:J954,"IsMater",'Форма по МДС 81-35.2004'!E915:E954,'Форма по МДС 81-35.2004'!G915:G954,0),16777275) -> 333650.7393 | G46: 0 | H46: 0 | I46: =ОКРУГЛВСЕ(SUMIF('Форма по МДС 81-35.2004'!J915:J954,"Г",'Форма по МДС 81-35.2004'!E915:E954),8) -> 45.96 | J46: 0 | K46: =ОКРУГЛВСЕ(SUMIF('Форма по МДС 81-35.2004'!J915:J954,"Ж",'Форма по МДС 81-35.2004'!E915:E954),8) -> 22.896 | L46: 0 | M46: 0 | N46: 41957.86608 | O46: 32045.76849 | P46: 0 | Q46: 0 | R46: 0 | S46: 0 | T46: 0 | U46: 0 | V46: 0 | X46: 0 | Y46: 0 | Z46: 0 | AA46: 0 | AB46: 0 | AC46: 0 | AD46: 0 | AE46: 0
A47: ='Форма по МДС 81-35.2004'!A955 -> 42. | B47: ='Форма по МДС 81-35.2004'!G955 -> 41733.3 | C47: =ROUND(СУММПРОИЗВЕСЛИ(1,'Форма по МДС 81-35.2004'!J955:J981,"Г",'Форма по МДС 81-35.2004'!E955:E981,'Форма по МДС 81-35.2004'!G955:G981,0),16777275) -> 13.39416 | D47: =ROUND(СУММПРОИЗВЕСЛИ(1,'Форма по МДС 81-35.2004'!J955:J981,"IsMash",'Форма по МДС 81-35.2004'!E955:E981,'Форма по МДС 81-35.2004'!G955:G981,0),16777275) -> 16.86744 | E47: =ROUND(СУММПРОИЗВЕСЛИ(1,'Форма по МДС 81-35.2004'!J955:J981,"Ж",'Форма по МДС 81-35.2004'!E955:E981,'Форма по МДС 81-35.2004'!G955:G981,0),16777275) -> 0 | F47: =ROUND(СУММПРОИЗВЕСЛИ(1,'Форма по МДС 81-35.2004'!J955:J981,"IsMater",'Форма по МДС 81-35.2004'!E955:E981,'Форма по МДС 81-35.2004'!G955:G981,0),16777275) -> 41703.03416 | G47: 0 | H47: 0 | I47: =ОКРУГЛВСЕ(SUMIF('Форма по МДС 81-35.2004'!J955:J981,"Г",'Форма по МДС 81-35.2004'!E955:E981),8) -> 0.108 | J47: 0 | K47: =ОКРУГЛВСЕ(SUMIF('Форма по МДС 81-35.2004'!J955:J981,"Ж",'Форма по МДС 81-35.2004'!E955:E981),8) -> 0 | L47: 0 | M47: 0 | N47: 4882.7961 | O47: 3729.287688 | P47: 0 | Q47: 0 | R47: 0 | S47: 0 | T47: 0 | U47: 0 | V47: 0 | X47: 0 | Y47: 0 | Z47: 0 | AA47: 0 | AB47: 0 | AC47: 0 | AD47: 0 | AE47: 0
A48: ='Форма по МДС 81-35.2004'!A982 -> 43. | B48: ='Форма по МДС 81-35.2004'!G982 -> 75624.14 | C48: =ROUND(СУММПРОИЗВЕСЛИ(1,'Форма по МДС 81-35.2004'!J982:J1012,"Г",'Форма по МДС 81-35.2004'!E982:E1012,'Форма по МДС 81-35.2004'!G982:G1012,0),16777275) -> 3980.3036 | D48: =ROUND(СУММПРОИЗВЕСЛИ(1,'Форма по МДС 81-35.2004'!J982:J1012,"IsMash",'Форма по МДС 81-35.2004'!E982:E1012,'Форма по МДС 81-35.2004'!G982:G1012,0),16777275) -> 28991.5374 | E48: =ROUND(СУММПРОИЗВЕСЛИ(1,'Форма по МДС 81-35.2004'!J982:J1012,"Ж",'Форма по МДС 81-35.2004'!E982:E1012,'Форма по МДС 81-35.2004'!G982:G1012,0),16777275) -> 3299.99544 | F48: =ROUND(СУММПРОИЗВЕСЛИ(1,'Форма по МДС 81-35.2004'!J982:J1012,"IsMater",'Форма по МДС 81-35.2004'!E982:E1012,'Форма по МДС 81-35.2004'!G982:G1012,0),16777275) -> 42652.30128 | G48: 0 | H48: 0 | I48: =ОКРУГЛВСЕ(SUMIF('Форма по МДС 81-35.2004'!J982:J1012,"Г",'Форма по МДС 81-35.2004'!E982:E1012),8) -> 36.12 | J48: 0 | K48: =ОКРУГЛВСЕ(SUMIF('Форма по МДС 81-35.2004'!J982:J1012,"Ж",'Форма по МДС 81-35.2004'!E982:E1012),8) -> 18.06 | L48: 0 | M48: 0 | N48: 8848.02438 | O48: 6757.77315 | P48: 0 | Q48: 0 | R48: 0 | S48: 0 | T48: 0 | U48: 0 | V48: 0 | X48: 0 | Y48: 0 | Z48: 0 | AA48: 0 | AB48: 0 | AC48: 0 | AD48: 0 | AE48: 0
A49: ='Форма по МДС 81-35.2004'!A1013 -> 44. | B49: ='Форма по МДС 81-35.2004'!G1013 -> 76552.19 | C49: =ROUND(СУММПРОИЗВЕСЛИ(1,'Форма по МДС 81-35.2004'!J1013:J1043,"Г",'Форма по МДС 81-35.2004'!E1013:E1043,'Форма по МДС 81-35.2004'!G1013:G1043,0),16777275) -> 3980.3036 | D49: =ROUND(СУММПРОИЗВЕСЛИ(1,'Форма по МДС 81-35.2004'!J1013:J1043,"IsMash",'Форма по МДС 81-35.2004'!E1013:E1043,'Форма по МДС 81-35.2004'!G1013:G1043,0),16777275) -> 28991.5374 | E49: =ROUND(СУММПРОИЗВЕСЛИ(1,'Форма по МДС 81-35.2004'!J1013:J1043,"Ж",'Форма по МДС 81-35.2004'!E1013:E1043,'Форма по МДС 81-35.2004'!G1013:G1043,0),16777275) -> 3299.99544 | F49: =ROUND(СУММПРОИЗВЕСЛИ(1,'Форма по МДС 81-35.2004'!J1013:J1043,"IsMater",'Форма по МДС 81-35.2004'!E1013:E1043,'Форма по МДС 81-35.2004'!G1013:G1043,0),16777275) -> 43580.34528 | G49: 0 | H49: 0 | I49: =ОКРУГЛВСЕ(SUMIF('Форма по МДС 81-35.2004'!J1013:J1043,"Г",'Форма по МДС 81-35.2004'!E1013:E1043),8) -> 36.12 | J49: 0 | K49: =ОКРУГЛВСЕ(SUMIF('Форма по МДС 81-35.2004'!J1013:J1043,"Ж",'Форма по МДС 81-35.2004'!E1013:E1043),8) -> 18.06 | L49: 0 | M49: 0 | N49: 8956.60623 | O49: 6840.703698 | P49: 0 | Q49: 0 | R49: 0 | S49: 0 | T49: 0 | U49: 0 | V49: 0 | X49: 0 | Y49: 0 | Z49: 0 | AA49: 0 | AB49: 0 | AC49: 0 | AD49: 0 | AE49: 0
A50: ='Форма по МДС 81-35.2004'!A1044 -> 45. | B50: ='Форма по МДС 81-35.2004'!G1044 -> 73725.82 | C50: =ROUND(СУММПРОИЗВЕСЛИ(1,'Форма по МДС 81-35.2004'!J1044:J1074,"Г",'Форма по МДС 81-35.2004'!E1044:E1074,'Форма по МДС 81-35.2004'!G1044:G1074,0),16777275) -> 3980.3036 | D50: =ROUND(СУММПРОИЗВЕСЛИ(1,'Форма по МДС 81-35.2004'!J1044:J1074,"IsMash",'Форма по МДС 81-35.2004'!E1044:E1074,'Форма по МДС 81-35.2004'!G1044:G1074,0),16777275) -> 28991.5374 | E50: =ROUND(СУММПРОИЗВЕСЛИ(1,'Форма по МДС 81-35.2004'!J1044:J1074,"Ж",'Форма по МДС 81-35.2004'!E1044:E1074,'Форма по МДС 81-35.2004'!G1044:G1074,0),16777275) -> 3299.99544 | F50: =ROUND(СУММПРОИЗВЕСЛИ(1,'Форма по МДС 81-35.2004'!J1044:J1074,"IsMater",'Форма по МДС 81-35.2004'!E1044:E1074,'Форма по МДС 81-35.2004'!G1044:G1074,0),16777275) -> 40753.97628 | G50: 0 | H50: 0 | I50: =ОКРУГЛВСЕ(SUMIF('Форма по МДС 81-35.2004'!J1044:J1074,"Г",'Форма по МДС 81-35.2004'!E1044:E1074),8) -> 36.12 | J50: 0 | K50: =ОКРУГЛВСЕ(SUMIF('Форма по МДС 81-35.2004'!J1044:J1074,"Ж",'Форма по МДС 81-35.2004'!E1044:E1074),8) -> 18.06 | L50: 0 | M50: 0 | N50: 8625.92094 | O50: 6588.139275 | P50: 0 | Q50: 0 | R50: 0 | S50: 0 | T50: 0 | U50: 0 | V50: 0 | X50: 0 | Y50: 0 | Z50: 0 | AA50: 0 | AB50: 0 | AC50: 0 | AD50: 0 | AE50: 0
A51: ='Форма по МДС 81-35.2004'!A1075 -> 46. | B51: ='Форма по МДС 81-35.2004'!G1075 -> 1160.04 | C51: =ROUND(СУММПРОИЗВЕСЛИ(1,'Форма по МДС 81-35.2004'!J1075:J1106,"Г",'Форма по МДС 81-35.2004'!E1075:E1106,'Форма по МДС 81-35.2004'!G1075:G1106,0),16777275) -> 34.01112 | D51: =ROUND(СУММПРОИЗВЕСЛИ(1,'Форма по МДС 81-35.2004'!J1075:J1106,"IsMash",'Форма по МДС 81-35.2004'!E1075:E1106,'Форма по МДС 81-35.2004'!G1075:G1106,0),16777275) -> 1125.19656 | E51: =ROUND(СУММПРОИЗВЕСЛИ(1,'Форма по МДС 81-35.2004'!J1075:J1106,"Ж",'Форма по МДС 81-35.2004'!E1075:E1106,'Форма по МДС 81-35.2004'!G1075:G1106,0),16777275) -> 99.9999 | F51: =ROUND(СУММПРОИЗВЕСЛИ(1,'Форма по МДС 81-35.2004'!J1075:J1106,"IsMater",'Форма по МДС 81-35.2004'!E1075:E1106,'Форма по МДС 81-35.2004'!G1075:G1106,0),16777275) -> 0.83545 | G51: 0 | H51: 0 | I51: =ОКРУГЛВСЕ(SUMIF('Форма по МДС 81-35.2004'!J1075:J1106,"Г",'Форма по МДС 81-35.2004'!E1075:E1106),8) -> 0.312 | J51: 0 | K51: =ОКРУГЛВСЕ(SUMIF('Форма по МДС 81-35.2004'!J1075:J1106,"Ж",'Форма по МДС 81-35.2004'!E1075:E1106),8) -> 0.66 | L51: 0 | M51: 0 | N51: 135.72468 | O51: 103.6611744 | P51: 0 | Q51: 0 | R51: 0 | S51: 0 | T51: 0 | U51: 0 | V51: 0 | X51: 0 | Y51: 0 | Z51: 0 | AA51: 0 | AB51: 0 | AC51: 0 | AD51: 0 | AE51: 0
A52: ='Форма по МДС 81-35.2004'!A1107 -> 47. | B52: ='Форма по МДС 81-35.2004'!G1107 -> 2903.65 | C52: =ROUND(СУММПРОИЗВЕСЛИ(1,'Форма по МДС 81-35.2004'!J1107:J1131,"Г",'Форма по МДС 81-35.2004'!E1107:E1131,'Форма по МДС 81-35.2004'!G1107:G1131,0),16777275) -> 525.504 | D52: =ROUND(СУММПРОИЗВЕСЛИ(1,'Форма по МДС 81-35.2004'!J1107:J1131,"IsMash",'Форма по МДС 81-35.2004'!E1107:E1131,'Форма по МДС 81-35.2004'!G1107:G1131,0),16777275) -> 884.3196 | E52: =ROUND(СУММПРОИЗВЕСЛИ(1,'Форма по МДС 81-35.2004'!J1107:J1131,"Ж",'Форма по МДС 81-35.2004'!E1107:E1131,'Форма по МДС 81-35.2004'!G1107:G1131,0),16777275) -> 153.33354 | F52: =ROUND(СУММПРОИЗВЕСЛИ(1,'Форма по МДС 81-35.2004'!J1107:J1131,"IsMater",'Форма по МДС 81-35.2004'!E1107:E1131,'Форма по МДС 81-35.2004'!G1107:G1131,0),16777275) -> 1493.829894 | G52: 0 | H52: 0 | I52: =ОКРУГЛВСЕ(SUMIF('Форма по МДС 81-35.2004'!J1107:J1131,"Г",'Форма по МДС 81-35.2004'!E1107:E1131),8) -> 5.1 | J52: 0 | K52: =ОКРУГЛВСЕ(SUMIF('Форма по МДС 81-35.2004'!J1107:J1131,"Ж",'Форма по МДС 81-35.2004'!E1107:E1131),8) -> 1.02 | L52: 0 | M52: 0 | N52: 339.72705 | O52: 259.470164 | P52: 0 | Q52: 0 | R52: 0 | S52: 0 | T52: 0 | U52: 0 | V52: 0 | X52: 0 | Y52: 0 | Z52: 0 | AA52: 0 | AB52: 0 | AC52: 0 | AD52: 0 | AE52: 0
A53: ='Форма по МДС 81-35.2004'!A1132 -> 48. | B53: ='Форма по МДС 81-35.2004'!G1132 -> 59.05 | C53: =ROUND(СУММПРОИЗВЕСЛИ(1,'Форма по МДС 81-35.2004'!J1132:J1150,"Г",'Форма по МДС 81-35.2004'!E1132:E1150,'Форма по МДС 81-35.2004'!G1132:G1150,0),16777275) -> 16.0912 | D53: =ROUND(СУММПРОИЗВЕСЛИ(1,'Форма по МДС 81-35.2004'!J1132:J1150,"IsMash",'Форма по МДС 81-35.2004'!E1132:E1150,'Форма по МДС 81-35.2004'!G1132:G1150,0),16777275) -> 0 | E53: =ROUND(СУММПРОИЗВЕСЛИ(1,'Форма по МДС 81-35.2004'!J1132:J1150,"Ж",'Форма по МДС 81-35.2004'!E1132:E1150,'Форма по МДС 81-35.2004'!G1132:G1150,0),16777275) -> 0 | F53: =ROUND(СУММПРОИЗВЕСЛИ(1,'Форма по МДС 81-35.2004'!J1132:J1150,"IsMater",'Форма по МДС 81-35.2004'!E1132:E1150,'Форма по МДС 81-35.2004'!G1132:G1150,0),16777275) -> 42.95628 | G53: 0 | H53: 0 | I53: =ОКРУГЛВСЕ(SUMIF('Форма по МДС 81-35.2004'!J1132:J1150,"Г",'Форма по МДС 81-35.2004'!E1132:E1150),8) -> 0.16 | J53: 0 | K53: =ОКРУГЛВСЕ(SUMIF('Форма по МДС 81-35.2004'!J1132:J1150,"Ж",'Форма по МДС 81-35.2004'!E1132:E1150),8) -> 0 | L53: 0 | M53: 0 | N53: 6.90885 | O53: 5.276708 | P53: 0 | Q53: 0 | R53: 0 | S53: 0 | T53: 0 | U53: 0 | V53: 0 | X53: 0 | Y53: 0 | Z53: 0 | AA53: 0 | AB53: 0 | AC53: 0 | AD53: 0 | AE53: 0
A54: ='Форма по МДС 81-35.2004'!A1151 -> 49. | B54: ='Форма по МДС 81-35.2004'!G1151 -> 15639.05 | C54: =ROUND(СУММПРОИЗВЕСЛИ(1,'Форма по МДС 81-35.2004'!J1151:J1175,"Г",'Форма по МДС 81-35.2004'!E1151:E1175,'Форма по МДС 81-35.2004'!G1151:G1175,0),16777275) -> 2084.034 | D54: =ROUND(СУММПРОИЗВЕСЛИ(1,'Форма по МДС 81-35.2004'!J1151:J1175,"IsMash",'Форма по МДС 81-35.2004'!E1151:E1175,'Форма по МДС 81-35.2004'!G1151:G1175,0),16777275) -> 6524.9838 | E54: =ROUND(СУММПРОИЗВЕСЛИ(1,'Форма по МДС 81-35.2004'!J1151:J1175,"Ж",'Форма по МДС 81-35.2004'!E1151:E1175,'Форма по МДС 81-35.2004'!G1151:G1175,0),16777275) -> 1650.00468 | F54: =ROUND(СУММПРОИЗВЕСЛИ(1,'Форма по МДС 81-35.2004'!J1151:J1175,"IsMater",'Форма по МДС 81-35.2004'!E1151:E1175,'Форма по МДС 81-35.2004'!G1151:G1175,0),16777275) -> 7030.0324 | G54: 0 | H54: 0 | I54: =ОКРУГЛВСЕ(SUMIF('Форма по МДС 81-35.2004'!J1151:J1175,"Г",'Форма по МДС 81-35.2004'!E1151:E1175),8) -> 18.18 | J54: 0 | K54: =ОКРУГЛВСЕ(SUMIF('Форма по МДС 81-35.2004'!J1151:J1175,"Ж",'Форма по МДС 81-35.2004'!E1151:E1175),8) -> 12.12 | L54: 0 | M54: 0 | N54: 1829.76885 | O54: 1397.505508 | P54: 0 | Q54: 0 | R54: 0 | S54: 0 | T54: 0 | U54: 0 | V54: 0 | X54: 0 | Y54: 0 | Z54: 0 | AA54: 0 | AB54: 0 | AC54: 0 | AD54: 0 | AE54: 0
A55: ='Форма по МДС 81-35.2004'!A1178 -> 50. | B55: ='Форма по МДС 81-35.2004'!G1178 -> 542.84 | C55: =ROUND(СУММПРОИЗВЕСЛИ(1,'Форма по МДС 81-35.2004'!J1178:J1197,"Г",'Форма по МДС 81-35.2004'!E1178:E1197,'Форма по МДС 81-35.2004'!G1178:G1197,0),16777275) -> 321.824 | D55: =ROUND(СУММПРОИЗВЕСЛИ(1,'Форма по МДС 81-35.2004'!J1178:J1197,"IsMash",'Форма по МДС 81-35.2004'!E1178:E1197,'Форма по МДС 81-35.2004'!G1178:G1197,0),16777275) -> 221.02 | E55: =ROUND(СУММПРОИЗВЕСЛИ(1,'Форма по МДС 81-35.2004'!J1178:J1197,"Ж",'Форма по МДС 81-35.2004'!E1178:E1197,'Форма по МДС 81-35.2004'!G1178:G1197,0),16777275) -> 60 | F55: =ROUND(СУММПРОИЗВЕСЛИ(1,'Форма по МДС 81-35.2004'!J1178:J1197,"IsMater",'Форма по МДС 81-35.2004'!E1178:E1197,'Форма по МДС 81-35.2004'!G1178:G1197,0),16777275) -> 0 | G55: 0 | H55: 0 | I55: =ОКРУГЛВСЕ(SUMIF('Форма по МДС 81-35.2004'!J1178:J1197,"Г",'Форма по МДС 81-35.2004'!E1178:E1197),8) -> 3.2 | J55: 0 | K55: =ОКРУГЛВСЕ(SUMIF('Форма по МДС 81-35.2004'!J1178:J1197,"Ж",'Форма по МДС 81-35.2004'!E1178:E1197),8) -> 0.4 | L55: 0 | M55: 0 | N55: 63.51228 | O55: 48.5081824 | P55: 0 | Q55: 0 | R55: 0 | S55: 0 | T55: 0 | U55: 0 | V55: 0 | X55: 0 | Y55: 0 | Z55: 0 | AA55: 0 | AB55: 0 | AC55: 0 | AD55: 0 | AE55: 0
A56: ='Форма по МДС 81-35.2004'!A1198 -> 51. | B56: ='Форма по МДС 81-35.2004'!G1198 -> 11360.19 | C56: =ROUND(СУММПРОИЗВЕСЛИ(1,'Форма по МДС 81-35.2004'!J1198:J1222,"Г",'Форма по МДС 81-35.2004'!E1198:E1222,'Форма по МДС 81-35.2004'!G1198:G1222,0),16777275) -> 4336.506 | D56: =ROUND(СУММПРОИЗВЕСЛИ(1,'Форма по МДС 81-35.2004'!J1198:J1222,"IsMash",'Форма по МДС 81-35.2004'!E1198:E1222,'Форма по МДС 81-35.2004'!G1198:G1222,0),16777275) -> 5691.265 | E56: =ROUND(СУММПРОИЗВЕСЛИ(1,'Форма по МДС 81-35.2004'!J1198:J1222,"Ж",'Форма по МДС 81-35.2004'!E1198:E1222,'Форма по МДС 81-35.2004'!G1198:G1222,0),16777275) -> 1529.4161 | F56: =ROUND(СУММПРОИЗВЕСЛИ(1,'Форма по МДС 81-35.2004'!J1198:J1222,"IsMater",'Форма по МДС 81-35.2004'!E1198:E1222,'Форма по МДС 81-35.2004'!G1198:G1222,0),16777275) -> 1332.42119 | G56: 0 | H56: 0 | I56: =ОКРУГЛВСЕ(SUMIF('Форма по МДС 81-35.2004'!J1198:J1222,"Г",'Форма по МДС 81-35.2004'!E1198:E1222),8) -> 41.2 | J56: 0 | K56: =ОКРУГЛВСЕ(SUMIF('Форма по МДС 81-35.2004'!J1198:J1222,"Ж",'Форма по МДС 81-35.2004'!E1198:E1222),8) -> 10.3 | L56: 0 | M56: 0 | N56: 1329.14223 | O56: 1015.146578 | P56: 0 | Q56: 0 | R56: 0 | S56: 0 | T56: 0 | U56: 0 | V56: 0 | X56: 0 | Y56: 0 | Z56: 0 | AA56: 0 | AB56: 0 | AC56: 0 | AD56: 0 | AE56: 0
A57: ='Форма по МДС 81-35.2004'!A1223 -> 52. | B57: ='Форма по МДС 81-35.2004'!G1223 -> 3082.7 | C57: =ROUND(СУММПРОИЗВЕСЛИ(1,'Форма по МДС 81-35.2004'!J1223:J1246,"Г",'Форма по МДС 81-35.2004'!E1223:E1246,'Форма по МДС 81-35.2004'!G1223:G1246,0),16777275) -> 1284.111 | D57: =ROUND(СУММПРОИЗВЕСЛИ(1,'Форма по МДС 81-35.2004'!J1223:J1246,"IsMash",'Форма по МДС 81-35.2004'!E1223:E1246,'Форма по МДС 81-35.2004'!G1223:G1246,0),16777275) -> 1685.2775 | E57: =ROUND(СУММПРОИЗВЕСЛИ(1,'Форма по МДС 81-35.2004'!J1223:J1246,"Ж",'Форма по МДС 81-35.2004'!E1223:E1246,'Форма по МДС 81-35.2004'!G1223:G1246,0),16777275) -> 499.9987 | F57: =ROUND(СУММПРОИЗВЕСЛИ(1,'Форма по МДС 81-35.2004'!J1223:J1246,"IsMater",'Форма по МДС 81-35.2004'!E1223:E1246,'Форма по МДС 81-35.2004'!G1223:G1246,0),16777275) -> 113.3155481 | G57: 0 | H57: 0 | I57: =ОКРУГЛВСЕ(SUMIF('Форма по МДС 81-35.2004'!J1223:J1246,"Г",'Форма по МДС 81-35.2004'!E1223:E1246),8) -> 12.2 | J57: 0 | K57: =ОКРУГЛВСЕ(SUMIF('Форма по МДС 81-35.2004'!J1223:J1246,"Ж",'Форма по МДС 81-35.2004'!E1223:E1246),8) -> 3.05 | L57: 0 | M57: 0 | N57: 360.6759 | O57: 275.470072 | P57: 0 | Q57: 0 | R57: 0 | S57: 0 | T57: 0 | U57: 0 | V57: 0 | X57: 0 | Y57: 0 | Z57: 0 | AA57: 0 | AB57: 0 | AC57: 0 | AD57: 0 | AE57: 0
A58: ='Форма по МДС 81-35.2004'!A1247 -> 53. | B58: ='Форма по МДС 81-35.2004'!G1247 -> 857.66 | C58: =ROUND(СУММПРОИЗВЕСЛИ(1,'Форма по МДС 81-35.2004'!J1247:J1266,"Г",'Форма по МДС 81-35.2004'!E1247:E1266,'Форма по МДС 81-35.2004'!G1247:G1266,0),16777275) -> 537.7285 | D58: =ROUND(СУММПРОИЗВЕСЛИ(1,'Форма по МДС 81-35.2004'!J1247:J1266,"IsMash",'Форма по МДС 81-35.2004'!E1247:E1266,'Форма по МДС 81-35.2004'!G1247:G1266,0),16777275) -> 319.935 | E58: =ROUND(СУММПРОИЗВЕСЛИ(1,'Форма по МДС 81-35.2004'!J1247:J1266,"Ж",'Форма по МДС 81-35.2004'!E1247:E1266,'Форма по МДС 81-35.2004'!G1247:G1266,0),16777275) -> 0 | F58: =ROUND(СУММПРОИЗВЕСЛИ(1,'Форма по МДС 81-35.2004'!J1247:J1266,"IsMater",'Форма по МДС 81-35.2004'!E1247:E1266,'Форма по МДС 81-35.2004'!G1247:G1266,0),16777275) -> 0 | G58: 0 | H58: 0 | I58: =ОКРУГЛВСЕ(SUMIF('Форма по МДС 81-35.2004'!J1247:J1266,"Г",'Форма по МДС 81-35.2004'!E1247:E1266),8) -> 5.15 | J58: 0 | K58: =ОКРУГЛВСЕ(SUMIF('Форма по МДС 81-35.2004'!J1247:J1266,"Ж",'Форма по МДС 81-35.2004'!E1247:E1266),8) -> 0 | L58: 0 | M58: 0 | N58: 100.34622 | O58: 76.6404976 | P58: 0 | Q58: 0 | R58: 0 | S58: 0 | T58: 0 | U58: 0 | V58: 0 | X58: 0 | Y58: 0 | Z58: 0 | AA58: 0 | AB58: 0 | AC58: 0 | AD58: 0 | AE58: 0
A59: ='Форма по МДС 81-35.2004'!A1267 -> 54. | B59: ='Форма по МДС 81-35.2004'!G1267 -> 6632.19 | C59: =ROUND(СУММПРОИЗВЕСЛИ(1,'Форма по МДС 81-35.2004'!J1267:J1292,"Г",'Форма по МДС 81-35.2004'!E1267:E1292,'Форма по МДС 81-35.2004'!G1267:G1292,0),16777275) -> 2089.334 | D59: =ROUND(СУММПРОИЗВЕСЛИ(1,'Форма по МДС 81-35.2004'!J1267:J1292,"IsMash",'Форма по МДС 81-35.2004'!E1267:E1292,'Форма по МДС 81-35.2004'!G1267:G1292,0),16777275) -> 1801.313 | E59: =ROUND(СУММПРОИЗВЕСЛИ(1,'Форма по МДС 81-35.2004'!J1267:J1292,"Ж",'Форма по МДС 81-35.2004'!E1267:E1292,'Форма по МДС 81-35.2004'!G1267:G1292,0),16777275) -> 492.95764 | F59: =ROUND(СУММПРОИЗВЕСЛИ(1,'Форма по МДС 81-35.2004'!J1267:J1292,"IsMater",'Форма по МДС 81-35.2004'!E1267:E1292,'Форма по МДС 81-35.2004'!G1267:G1292,0),16777275) -> 2741.54055 | G59: 0 | H59: 0 | I59: =ОКРУГЛВСЕ(SUMIF('Форма по МДС 81-35.2004'!J1267:J1292,"Г",'Форма по МДС 81-35.2004'!E1267:E1292),8) -> 19.56 | J59: 0 | K59: =ОКРУГЛВСЕ(SUMIF('Форма по МДС 81-35.2004'!J1267:J1292,"Ж",'Форма по МДС 81-35.2004'!E1267:E1292),8) -> 3.26 | L59: 0 | M59: 0 | N59: 775.96623 | O59: 592.6524984 | P59: 0 | Q59: 0 | R59: 0 | S59: 0 | T59: 0 | U59: 0 | V59: 0 | X59: 0 | Y59: 0 | Z59: 0 | AA59: 0 | AB59: 0 | AC59: 0 | AD59: 0 | AE59: 0
A60: ='Форма по МДС 81-35.2004'!A1293 -> 55. | B60: ='Форма по МДС 81-35.2004'!G1293 -> 540.9 | C60: =ROUND(СУММПРОИЗВЕСЛИ(1,'Форма по МДС 81-35.2004'!J1293:J1314,"Г",'Форма по МДС 81-35.2004'!E1293:E1314,'Форма по МДС 81-35.2004'!G1293:G1314,0),16777275) -> 84.204 | D60: =ROUND(СУММПРОИЗВЕСЛИ(1,'Форма по МДС 81-35.2004'!J1293:J1314,"IsMash",'Форма по МДС 81-35.2004'!E1293:E1314,'Форма по МДС 81-35.2004'!G1293:G1314,0),16777275) -> 110.51 | E60: =ROUND(СУММПРОИЗВЕСЛИ(1,'Форма по МДС 81-35.2004'!J1293:J1314,"Ж",'Форма по МДС 81-35.2004'!E1293:E1314,'Форма по МДС 81-35.2004'!G1293:G1314,0),16777275) -> 30.4348 | F60: =ROUND(СУММПРОИЗВЕСЛИ(1,'Форма по МДС 81-35.2004'!J1293:J1314,"IsMater",'Форма по МДС 81-35.2004'!E1293:E1314,'Форма по МДС 81-35.2004'!G1293:G1314,0),16777275) -> 346.1829 | G60: 0 | H60: 0 | I60: =ОКРУГЛВСЕ(SUMIF('Форма по МДС 81-35.2004'!J1293:J1314,"Г",'Форма по МДС 81-35.2004'!E1293:E1314),8) -> 0.8 | J60: 0 | K60: =ОКРУГЛВСЕ(SUMIF('Форма по МДС 81-35.2004'!J1293:J1314,"Ж",'Форма по МДС 81-35.2004'!E1293:E1314),8) -> 0.2 | L60: 0 | M60: 0 | N60: 63.2853 | O60: 48.334824 | P60: 0 | Q60: 0 | R60: 0 | S60: 0 | T60: 0 | U60: 0 | V60: 0 | X60: 0 | Y60: 0 | Z60: 0 | AA60: 0 | AB60: 0 | AC60: 0 | AD60: 0 | AE60: 0
A61: ='Форма по МДС 81-35.2004'!A1315 -> 56. | B61: ='Форма по МДС 81-35.2004'!G1315 -> 654.38 | C61: =ROUND(СУММПРОИЗВЕСЛИ(1,'Форма по МДС 81-35.2004'!J1315:J1338,"Г",'Форма по МДС 81-35.2004'!E1315:E1338,'Форма по МДС 81-35.2004'!G1315:G1338,0),16777275) -> 248.4018 | D61: =ROUND(СУММПРОИЗВЕСЛИ(1,'Форма по МДС 81-35.2004'!J1315:J1338,"IsMash",'Форма по МДС 81-35.2004'!E1315:E1338,'Форма по МДС 81-35.2004'!G1315:G1338,0),16777275) -> 326.0045 | E61: =ROUND(СУММПРОИЗВЕСЛИ(1,'Форма по МДС 81-35.2004'!J1315:J1338,"Ж",'Форма по МДС 81-35.2004'!E1315:E1338,'Форма по МДС 81-35.2004'!G1315:G1338,0),16777275) -> 88.04334 | F61: =ROUND(СУММПРОИЗВЕСЛИ(1,'Форма по МДС 81-35.2004'!J1315:J1338,"IsMater",'Форма по МДС 81-35.2004'!E1315:E1338,'Форма по МДС 81-35.2004'!G1315:G1338,0),16777275) -> 79.974675 | G61: 0 | H61: 0 | I61: =ОКРУГЛВСЕ(SUMIF('Форма по МДС 81-35.2004'!J1315:J1338,"Г",'Форма по МДС 81-35.2004'!E1315:E1338),8) -> 2.36 | J61: 0 | K61: =ОКРУГЛВСЕ(SUMIF('Форма по МДС 81-35.2004'!J1315:J1338,"Ж",'Форма по МДС 81-35.2004'!E1315:E1338),8) -> 0.59 | L61: 0 | M61: 0 | N61: 76.56246 | O61: 58.4753968 | P61: 0 | Q61: 0 | R61: 0 | S61: 0 | T61: 0 | U61: 0 | V61: 0 | X61: 0 | Y61: 0 | Z61: 0 | AA61: 0 | AB61: 0 | AC61: 0 | AD61: 0 | AE61: 0
A62: ='Форма по МДС 81-35.2004'!A1341 -> 57. | B62: ='Форма по МДС 81-35.2004'!G1341 -> 12499.77 | C62: =ROUND(СУММПРОИЗВЕСЛИ(1,'Форма по МДС 81-35.2004'!J1341:J1362,"Г",'Форма по МДС 81-35.2004'!E1341:E1362,'Форма по МДС 81-35.2004'!G1341:G1362,0),16777275) -> 1030.8425 | D62: =ROUND(СУММПРОИЗВЕСЛИ(1,'Форма по МДС 81-35.2004'!J1341:J1362,"IsMash",'Форма по МДС 81-35.2004'!E1341:E1362,'Форма по МДС 81-35.2004'!G1341:G1362,0),16777275) -> 11452.735 | E62: =ROUND(СУММПРОИЗВЕСЛИ(1,'Форма по МДС 81-35.2004'!J1341:J1362,"Ж",'Форма по МДС 81-35.2004'!E1341:E1362,'Форма по МДС 81-35.2004'!G1341:G1362,0),16777275) -> 1800.0025 | F62: =ROUND(СУММПРОИЗВЕСЛИ(1,'Форма по МДС 81-35.2004'!J1341:J1362,"IsMater",'Форма по МДС 81-35.2004'!E1341:E1362,'Форма по МДС 81-35.2004'!G1341:G1362,0),16777275) -> 16.19 | G62: 0 | H62: 0 | I62: =ОКРУГЛВСЕ(SUMIF('Форма по МДС 81-35.2004'!J1341:J1362,"Г",'Форма по МДС 81-35.2004'!E1341:E1362),8) -> 10.25 | J62: 0 | K62: =ОКРУГЛВСЕ(SUMIF('Форма по МДС 81-35.2004'!J1341:J1362,"Ж",'Форма по МДС 81-35.2004'!E1341:E1362),8) -> 10.25 | L62: 0 | M62: 0 | N62: 1462.47309 | O62: 1116.979447 | P62: 0 | Q62: 0 | R62: 0 | S62: 0 | T62: 0 | U62: 0 | V62: 0 | X62: 0 | Y62: 0 | Z62: 0 | AA62: 0 | AB62: 0 | AC62: 0 | AD62: 0 | AE62: 0
A63: ='Форма по МДС 81-35.2004'!A1363 -> 58. | B63: ='Форма по МДС 81-35.2004'!G1363 -> 7905.27 | C63: =ROUND(СУММПРОИЗВЕСЛИ(1,'Форма по МДС 81-35.2004'!J1363:J1385,"Г",'Форма по МДС 81-35.2004'!E1363:E1385,'Форма по МДС 81-35.2004'!G1363:G1385,0),16777275) -> 3035.5542 | D63: =ROUND(СУММПРОИЗВЕСЛИ(1,'Форма по МДС 81-35.2004'!J1363:J1385,"IsMash",'Форма по МДС 81-35.2004'!E1363:E1385,'Форма по МДС 81-35.2004'!G1363:G1385,0),16777275) -> 3983.8855 | E63: =ROUND(СУММПРОИЗВЕСЛИ(1,'Форма по МДС 81-35.2004'!J1363:J1385,"Ж",'Форма по МДС 81-35.2004'!E1363:E1385,'Форма по МДС 81-35.2004'!G1363:G1385,0),16777275) -> 1105.26416 | F63: =ROUND(СУММПРОИЗВЕСЛИ(1,'Форма по МДС 81-35.2004'!J1363:J1385,"IsMater",'Форма по МДС 81-35.2004'!E1363:E1385,'Форма по МДС 81-35.2004'!G1363:G1385,0),16777275) -> 885.8256 | G63: 0 | H63: 0 | I63: =ОКРУГЛВСЕ(SUMIF('Форма по МДС 81-35.2004'!J1363:J1385,"Г",'Форма по МДС 81-35.2004'!E1363:E1385),8) -> 28.84 | J63: 0 | K63: =ОКРУГЛВСЕ(SUMIF('Форма по МДС 81-35.2004'!J1363:J1385,"Ж",'Форма по МДС 81-35.2004'!E1363:E1385),8) -> 7.21 | L63: 0 | M63: 0 | N63: 924.91659 | O63: 706.4149272 | P63: 0 | Q63: 0 | R63: 0 | S63: 0 | T63: 0 | U63: 0 | V63: 0 | X63: 0 | Y63: 0 | Z63: 0 | AA63: 0 | AB63: 0 | AC63: 0 | AD63: 0 | AE63: 0
A64: ='Форма по МДС 81-35.2004'!A1386 -> 59. | B64: ='Форма по МДС 81-35.2004'!G1386 -> 296935.79 | C64: =ROUND(СУММПРОИЗВЕСЛИ(1,'Форма по МДС 81-35.2004'!J1386:J1414,"Г",'Форма по МДС 81-35.2004'!E1386:E1414,'Форма по МДС 81-35.2004'!G1386:G1414,0),16777275) -> 31547.0286 | D64: =ROUND(СУММПРОИЗВЕСЛИ(1,'Форма по МДС 81-35.2004'!J1386:J1414,"IsMash",'Форма по МДС 81-35.2004'!E1386:E1414,'Форма по МДС 81-35.2004'!G1386:G1414,0),16777275) -> 41402.5715 | E64: =ROUND(СУММПРОИЗВЕСЛИ(1,'Форма по МДС 81-35.2004'!J1386:J1414,"Ж",'Форма по МДС 81-35.2004'!E1386:E1414,'Форма по МДС 81-35.2004'!G1386:G1414,0),16777275) -> 11666.67593 | F64: =ROUND(СУММПРОИЗВЕСЛИ(1,'Форма по МДС 81-35.2004'!J1386:J1414,"IsMater",'Форма по МДС 81-35.2004'!E1386:E1414,'Форма по МДС 81-35.2004'!G1386:G1414,0),16777275) -> 223986.193 | G64: 0 | H64: 0 | I64: =ОКРУГЛВСЕ(SUMIF('Форма по МДС 81-35.2004'!J1386:J1414,"Г",'Форма по МДС 81-35.2004'!E1386:E1414),8) -> 299.72 | J64: 0 | K64: =ОКРУГЛВСЕ(SUMIF('Форма по МДС 81-35.2004'!J1386:J1414,"Ж",'Форма по МДС 81-35.2004'!E1386:E1414),8) -> 74.93 | L64: 0 | M64: 0 | N64: 34741.48743 | O64: 26534.18219 | P64: 0 | Q64: 0 | R64: 0 | S64: 0 | T64: 0 | U64: 0 | V64: 0 | X64: 0 | Y64: 0 | Z64: 0 | AA64: 0 | AB64: 0 | AC64: 0 | AD64: 0 | AE64: 0
A65: ='Форма по МДС 81-35.2004'!A1415 -> 60. | B65: ='Форма по МДС 81-35.2004'!G1415 -> 195749.79 | C65: =ROUND(СУММПРОИЗВЕСЛИ(1,'Форма по МДС 81-35.2004'!J1415:J1442,"Г",'Форма по МДС 81-35.2004'!E1415:E1442,'Форма по МДС 81-35.2004'!G1415:G1442,0),16777275) -> 31547.0286 | D65: =ROUND(СУММПРОИЗВЕСЛИ(1,'Форма по МДС 81-35.2004'!J1415:J1442,"IsMash",'Форма по МДС 81-35.2004'!E1415:E1442,'Форма по МДС 81-35.2004'!G1415:G1442,0),16777275) -> 41402.5715 | E65: =ROUND(СУММПРОИЗВЕСЛИ(1,'Форма по МДС 81-35.2004'!J1415:J1442,"Ж",'Форма по МДС 81-35.2004'!E1415:E1442,'Форма по МДС 81-35.2004'!G1415:G1442,0),16777275) -> 11200.01189 | F65: =ROUND(СУММПРОИЗВЕСЛИ(1,'Форма по МДС 81-35.2004'!J1415:J1442,"IsMater",'Форма по МДС 81-35.2004'!E1415:E1442,'Форма по МДС 81-35.2004'!G1415:G1442,0),16777275) -> 122800.193 | G65: 0 | H65: 0 | I65: =ОКРУГЛВСЕ(SUMIF('Форма по МДС 81-35.2004'!J1415:J1442,"Г",'Форма по МДС 81-35.2004'!E1415:E1442),8) -> 299.72 | J65: 0 | K65: =ОКРУГЛВСЕ(SUMIF('Форма по МДС 81-35.2004'!J1415:J1442,"Ж",'Форма по МДС 81-35.2004'!E1415:E1442),8) -> 74.93 | L65: 0 | M65: 0 | N65: 22902.72543 | O65: 17492.20123 | P65: 0 | Q65: 0 | R65: 0 | S65: 0 | T65: 0 | U65: 0 | V65: 0 | X65: 0 | Y65: 0 | Z65: 0 | AA65: 0 | AB65: 0 | AC65: 0 | AD65: 0 | AE65: 0
A66: ='Форма по МДС 81-35.2004'!A1443 -> 61. | B66: ='Форма по МДС 81-35.2004'!G1443 -> 3220.93 | C66: =ROUND(СУММПРОИЗВЕСЛИ(1,'Форма по МДС 81-35.2004'!J1443:J1460,"Г",'Форма по МДС 81-35.2004'!E1443:E1460,'Форма по МДС 81-35.2004'!G1443:G1460,0),16777275) -> 0 | D66: =ROUND(СУММПРОИЗВЕСЛИ(1,'Форма по МДС 81-35.2004'!J1443:J1460,"IsMash",'Форма по МДС 81-35.2004'!E1443:E1460,'Форма по МДС 81-35.2004'!G1443:G1460,0),16777275) -> 0 | E66: =ROUND(СУММПРОИЗВЕСЛИ(1,'Форма по МДС 81-35.2004'!J1443:J1460,"Ж",'Форма по МДС 81-35.2004'!E1443:E1460,'Форма по МДС 81-35.2004'!G1443:G1460,0),16777275) -> 0 | F66: =ROUND(СУММПРОИЗВЕСЛИ(1,'Форма по МДС 81-35.2004'!J1443:J1460,"IsMater",'Форма по МДС 81-35.2004'!E1443:E1460,'Форма по МДС 81-35.2004'!G1443:G1460,0),16777275) -> 3220.93 | G66: 0 | H66: 0 | I66: =ОКРУГЛВСЕ(SUMIF('Форма по МДС 81-35.2004'!J1443:J1460,"Г",'Форма по МДС 81-35.2004'!E1443:E1460),8) -> 0 | J66: 0 | K66: =ОКРУГЛВСЕ(SUMIF('Форма по МДС 81-35.2004'!J1443:J1460,"Ж",'Форма по МДС 81-35.2004'!E1443:E1460),8) -> 0 | L66: 0 | M66: 0 | N66: 376.84881 | O66: 287.8223048 | P66: 0 | Q66: 0 | R66: 0 | S66: 0 | T66: 0 | U66: 0 | V66: 0 | X66: 0 | Y66: 0 | Z66: 0 | AA66: 0 | AB66: 0 | AC66: 0 | AD66: 0 | AE66: 0
A67: ='Форма по МДС 81-35.2004'!A1461 -> 62. | B67: ='Форма по МДС 81-35.2004'!G1461 -> 857.66 | C67: =ROUND(СУММПРОИЗВЕСЛИ(1,'Форма по МДС 81-35.2004'!J1461:J1480,"Г",'Форма по МДС 81-35.2004'!E1461:E1480,'Форма по МДС 81-35.2004'!G1461:G1480,0),16777275) -> 537.7285 | D67: =ROUND(СУММПРОИЗВЕСЛИ(1,'Форма по МДС 81-35.2004'!J1461:J1480,"IsMash",'Форма по МДС 81-35.2004'!E1461:E1480,'Форма по МДС 81-35.2004'!G1461:G1480,0),16777275) -> 319.935 | E67: =ROUND(СУММПРОИЗВЕСЛИ(1,'Форма по МДС 81-35.2004'!J1461:J1480,"Ж",'Форма по МДС 81-35.2004'!E1461:E1480,'Форма по МДС 81-35.2004'!G1461:G1480,0),16777275) -> 0 | F67: =ROUND(СУММПРОИЗВЕСЛИ(1,'Форма по МДС 81-35.2004'!J1461:J1480,"IsMater",'Форма по МДС 81-35.2004'!E1461:E1480,'Форма по МДС 81-35.2004'!G1461:G1480,0),16777275) -> 0 | G67: 0 | H67: 0 | I67: =ОКРУГЛВСЕ(SUMIF('Форма по МДС 81-35.2004'!J1461:J1480,"Г",'Форма по МДС 81-35.2004'!E1461:E1480),8) -> 5.15 | J67: 0 | K67: =ОКРУГЛВСЕ(SUMIF('Форма по МДС 81-35.2004'!J1461:J1480,"Ж",'Форма по МДС 81-35.2004'!E1461:E1480),8) -> 0 | L67: 0 | M67: 0 | N67: 100.34622 | O67: 76.6404976 | P67: 0 | Q67: 0 | R67: 0 | S67: 0 | T67: 0 | U67: 0 | V67: 0 | X67: 0 | Y67: 0 | Z67: 0 | AA67: 0 | AB67: 0 | AC67: 0 | AD67: 0 | AE67: 0
A68: ='Форма по МДС 81-35.2004'!A1482 -> 63. | B68: ='Форма по МДС 81-35.2004'!G1482 -> 9717.59 | C68: =ROUND(СУММПРОИЗВЕСЛИ(1,'Форма по МДС 81-35.2004'!J1482:J1502,"Г",'Форма по МДС 81-35.2004'!E1482:E1502,'Форма по МДС 81-35.2004'!G1482:G1502,0),16777275) -> 801.5429 | D68: =ROUND(СУММПРОИЗВЕСЛИ(1,'Форма по МДС 81-35.2004'!J1482:J1502,"IsMash",'Форма по МДС 81-35.2004'!E1482:E1502,'Форма по МДС 81-35.2004'!G1482:G1502,0),16777275) -> 8905.1998 | E68: =ROUND(СУММПРОИЗВЕСЛИ(1,'Форма по МДС 81-35.2004'!J1482:J1502,"Ж",'Форма по МДС 81-35.2004'!E1482:E1502,'Форма по МДС 81-35.2004'!G1482:G1502,0),16777275) -> 1397.85033 | F68: =ROUND(СУММПРОИЗВЕСЛИ(1,'Форма по МДС 81-35.2004'!J1482:J1502,"IsMater",'Форма по МДС 81-35.2004'!E1482:E1502,'Форма по МДС 81-35.2004'!G1482:G1502,0),16777275) -> 10.85 | G68: 0 | H68: 0 | I68: =ОКРУГЛВСЕ(SUMIF('Форма по МДС 81-35.2004'!J1482:J1502,"Г",'Форма по МДС 81-35.2004'!E1482:E1502),8) -> 7.97 | J68: 0 | K68: =ОКРУГЛВСЕ(SUMIF('Форма по МДС 81-35.2004'!J1482:J1502,"Ж",'Форма по МДС 81-35.2004'!E1482:E1502),8) -> 7.97 | L68: 0 | M68: 0 | N68: 1136.95803 | O68: 868.3638424 | P68: 0 | Q68: 0 | R68: 0 | S68: 0 | T68: 0 | U68: 0 | V68: 0 | X68: 0 | Y68: 0 | Z68: 0 | AA68: 0 | AB68: 0 | AC68: 0 | AD68: 0 | AE68: 0
A69: ='Форма по МДС 81-35.2004'!A1503 -> 64. | B69: ='Форма по МДС 81-35.2004'!G1503 -> 12254.76 | C69: =ROUND(СУММПРОИЗВЕСЛИ(1,'Форма по МДС 81-35.2004'!J1503:J1525,"Г",'Форма по МДС 81-35.2004'!E1503:E1525,'Форма по МДС 81-35.2004'!G1503:G1525,0),16777275) -> 4555.4364 | D69: =ROUND(СУММПРОИЗВЕСЛИ(1,'Форма по МДС 81-35.2004'!J1503:J1525,"IsMash",'Форма по МДС 81-35.2004'!E1503:E1525,'Форма по МДС 81-35.2004'!G1503:G1525,0),16777275) -> 5978.591 | E69: =ROUND(СУММПРОИЗВЕСЛИ(1,'Форма по МДС 81-35.2004'!J1503:J1525,"Ж",'Форма по МДС 81-35.2004'!E1503:E1525,'Форма по МДС 81-35.2004'!G1503:G1525,0),16777275) -> 1538.46334 | F69: =ROUND(СУММПРОИЗВЕСЛИ(1,'Форма по МДС 81-35.2004'!J1503:J1525,"IsMater",'Форма по МДС 81-35.2004'!E1503:E1525,'Форма по МДС 81-35.2004'!G1503:G1525,0),16777275) -> 1720.7276 | G69: 0 | H69: 0 | I69: =ОКРУГЛВСЕ(SUMIF('Форма по МДС 81-35.2004'!J1503:J1525,"Г",'Форма по МДС 81-35.2004'!E1503:E1525),8) -> 43.28 | J69: 0 | K69: =ОКРУГЛВСЕ(SUMIF('Форма по МДС 81-35.2004'!J1503:J1525,"Ж",'Форма по МДС 81-35.2004'!E1503:E1525),8) -> 10.82 | L69: 0 | M69: 0 | N69: 1433.80692 | O69: 1095.085354 | P69: 0 | Q69: 0 | R69: 0 | S69: 0 | T69: 0 | U69: 0 | V69: 0 | X69: 0 | Y69: 0 | Z69: 0 | AA69: 0 | AB69: 0 | AC69: 0 | AD69: 0 | AE69: 0
A70: ='Форма по МДС 81-35.2004'!A1526 -> 65. | B70: ='Форма по МДС 81-35.2004'!G1526 -> 857.66 | C70: =ROUND(СУММПРОИЗВЕСЛИ(1,'Форма по МДС 81-35.2004'!J1526:J1545,"Г",'Форма по МДС 81-35.2004'!E1526:E1545,'Форма по МДС 81-35.2004'!G1526:G1545,0),16777275) -> 537.7285 | D70: =ROUND(СУММПРОИЗВЕСЛИ(1,'Форма по МДС 81-35.2004'!J1526:J1545,"IsMash",'Форма по МДС 81-35.2004'!E1526:E1545,'Форма по МДС 81-35.2004'!G1526:G1545,0),16777275) -> 319.935 | E70: =ROUND(СУММПРОИЗВЕСЛИ(1,'Форма по МДС 81-35.2004'!J1526:J1545,"Ж",'Форма по МДС 81-35.2004'!E1526:E1545,'Форма по МДС 81-35.2004'!G1526:G1545,0),16777275) -> 0 | F70: =ROUND(СУММПРОИЗВЕСЛИ(1,'Форма по МДС 81-35.2004'!J1526:J1545,"IsMater",'Форма по МДС 81-35.2004'!E1526:E1545,'Форма по МДС 81-35.2004'!G1526:G1545,0),16777275) -> 0 | G70: 0 | H70: 0 | I70: =ОКРУГЛВСЕ(SUMIF('Форма по МДС 81-35.2004'!J1526:J1545,"Г",'Форма по МДС 81-35.2004'!E1526:E1545),8) -> 5.15 | J70: 0 | K70: =ОКРУГЛВСЕ(SUMIF('Форма по МДС 81-35.2004'!J1526:J1545,"Ж",'Форма по МДС 81-35.2004'!E1526:E1545),8) -> 0 | L70: 0 | M70: 0 | N70: 100.34622 | O70: 76.6404976 | P70: 0 | Q70: 0 | R70: 0 | S70: 0 | T70: 0 | U70: 0 | V70: 0 | X70: 0 | Y70: 0 | Z70: 0 | AA70: 0 | AB70: 0 | AC70: 0 | AD70: 0 | AE70: 0
A71: ='Форма по МДС 81-35.2004'!A1546 -> 66. | B71: ='Форма по МДС 81-35.2004'!G1546 -> 38678 | C71: =ROUND(СУММПРОИЗВЕСЛИ(1,'Форма по МДС 81-35.2004'!J1546:J1567,"Г",'Форма по МДС 81-35.2004'!E1546:E1567,'Форма по МДС 81-35.2004'!G1546:G1567,0),16777275) -> 13009.518 | D71: =ROUND(СУММПРОИЗВЕСЛИ(1,'Форма по МДС 81-35.2004'!J1546:J1567,"IsMash",'Форма по МДС 81-35.2004'!E1546:E1567,'Форма по МДС 81-35.2004'!G1546:G1567,0),16777275) -> 17073.795 | E71: =ROUND(СУММПРОИЗВЕСЛИ(1,'Форма по МДС 81-35.2004'!J1546:J1567,"Ж",'Форма по МДС 81-35.2004'!E1546:E1567,'Форма по МДС 81-35.2004'!G1546:G1567,0),16777275) -> 4615.3785 | F71: =ROUND(СУММПРОИЗВЕСЛИ(1,'Форма по МДС 81-35.2004'!J1546:J1567,"IsMater",'Форма по МДС 81-35.2004'!E1546:E1567,'Форма по МДС 81-35.2004'!G1546:G1567,0),16777275) -> 8594.6894 | G71: 0 | H71: 0 | I71: =ОКРУГЛВСЕ(SUMIF('Форма по МДС 81-35.2004'!J1546:J1567,"Г",'Форма по МДС 81-35.2004'!E1546:E1567),8) -> 123.6 | J71: 0 | K71: =ОКРУГЛВСЕ(SUMIF('Форма по МДС 81-35.2004'!J1546:J1567,"Ж",'Форма по МДС 81-35.2004'!E1546:E1567),8) -> 30.9 | L71: 0 | M71: 0 | N71: 4525.326 | O71: 3456.26608 | P71: 0 | Q71: 0 | R71: 0 | S71: 0 | T71: 0 | U71: 0 | V71: 0 | X71: 0 | Y71: 0 | Z71: 0 | AA71: 0 | AB71: 0 | AC71: 0 | AD71: 0 | AE71: 0
A72: ='Форма по МДС 81-35.2004'!A1568 -> 67. | B72: ='Форма по МДС 81-35.2004'!G1568 -> 52442.31 | C72: =ROUND(СУММПРОИЗВЕСЛИ(1,'Форма по МДС 81-35.2004'!J1568:J1589,"Г",'Форма по МДС 81-35.2004'!E1568:E1589,'Форма по МДС 81-35.2004'!G1568:G1589,0),16777275) -> 13009.518 | D72: =ROUND(СУММПРОИЗВЕСЛИ(1,'Форма по МДС 81-35.2004'!J1568:J1589,"IsMash",'Форма по МДС 81-35.2004'!E1568:E1589,'Форма по МДС 81-35.2004'!G1568:G1589,0),16777275) -> 17073.795 | E72: =ROUND(СУММПРОИЗВЕСЛИ(1,'Форма по МДС 81-35.2004'!J1568:J1589,"Ж",'Форма по МДС 81-35.2004'!E1568:E1589,'Форма по МДС 81-35.2004'!G1568:G1589,0),16777275) -> 4615.3785 | F72: =ROUND(СУММПРОИЗВЕСЛИ(1,'Форма по МДС 81-35.2004'!J1568:J1589,"IsMater",'Форма по МДС 81-35.2004'!E1568:E1589,'Форма по МДС 81-35.2004'!G1568:G1589,0),16777275) -> 22359 | G72: 0 | H72: 0 | I72: =ОКРУГЛВСЕ(SUMIF('Форма по МДС 81-35.2004'!J1568:J1589,"Г",'Форма по МДС 81-35.2004'!E1568:E1589),8) -> 123.6 | J72: 0 | K72: =ОКРУГЛВСЕ(SUMIF('Форма по МДС 81-35.2004'!J1568:J1589,"Ж",'Форма по МДС 81-35.2004'!E1568:E1589),8) -> 30.9 | L72: 0 | M72: 0 | N72: 6135.75027 | O72: 4686.244822 | P72: 0 | Q72: 0 | R72: 0 | S72: 0 | T72: 0 | U72: 0 | V72: 0 | X72: 0 | Y72: 0 | Z72: 0 | AA72: 0 | AB72: 0 | AC72: 0 | AD72: 0 | AE72: 0
A73: ='Форма по МДС 81-35.2004'!A1590 -> 68. | B73: ='Форма по МДС 81-35.2004'!G1590 -> 7326.97 | C73: =ROUND(СУММПРОИЗВЕСЛИ(1,'Форма по МДС 81-35.2004'!J1590:J1611,"Г",'Форма по МДС 81-35.2004'!E1590:E1611,'Форма по МДС 81-35.2004'!G1590:G1611,0),16777275) -> 3194.7552 | D73: =ROUND(СУММПРОИЗВЕСЛИ(1,'Форма по МДС 81-35.2004'!J1590:J1611,"IsMash",'Форма по МДС 81-35.2004'!E1590:E1611,'Форма по МДС 81-35.2004'!G1590:G1611,0),16777275) -> 3558.422 | E73: =ROUND(СУММПРОИЗВЕСЛИ(1,'Форма по МДС 81-35.2004'!J1590:J1611,"Ж",'Форма по МДС 81-35.2004'!E1590:E1611,'Форма по МДС 81-35.2004'!G1590:G1611,0),16777275) -> 1000.0032 | F73: =ROUND(СУММПРОИЗВЕСЛИ(1,'Форма по МДС 81-35.2004'!J1590:J1611,"IsMater",'Форма по МДС 81-35.2004'!E1590:E1611,'Форма по МДС 81-35.2004'!G1590:G1611,0),16777275) -> 573.7951564 | G73: 0 | H73: 0 | I73: =ОКРУГЛВСЕ(SUMIF('Форма по МДС 81-35.2004'!J1590:J1611,"Г",'Форма по МДС 81-35.2004'!E1590:E1611),8) -> 25.76 | J73: 0 | K73: =ОКРУГЛВСЕ(SUMIF('Форма по МДС 81-35.2004'!J1590:J1611,"Ж",'Форма по МДС 81-35.2004'!E1590:E1611),8) -> 6.44 | L73: 0 | M73: 0 | N73: 857.25549 | O73: 654.7380392 | P73: 0 | Q73: 0 | R73: 0 | S73: 0 | T73: 0 | U73: 0 | V73: 0 | X73: 0 | Y73: 0 | Z73: 0 | AA73: 0 | AB73: 0 | AC73: 0 | AD73: 0 | AE73: 0
A74: ='Форма по МДС 81-35.2004'!A1613 -> 69. | B74: ='Форма по МДС 81-35.2004'!G1613 -> 745.1 | C74: =ROUND(СУММПРОИЗВЕСЛИ(1,'Форма по МДС 81-35.2004'!J1613:J1633,"Г",'Форма по МДС 81-35.2004'!E1613:E1633,'Форма по МДС 81-35.2004'!G1613:G1633,0),16777275) -> 61.3477 | D74: =ROUND(СУММПРОИЗВЕСЛИ(1,'Форма по МДС 81-35.2004'!J1613:J1633,"IsMash",'Форма по МДС 81-35.2004'!E1613:E1633,'Форма по МДС 81-35.2004'!G1613:G1633,0),16777275) -> 681.5774 | E74: =ROUND(СУММПРОИЗВЕСЛИ(1,'Форма по МДС 81-35.2004'!J1613:J1633,"Ж",'Форма по МДС 81-35.2004'!E1613:E1633,'Форма по МДС 81-35.2004'!G1613:G1633,0),16777275) -> 106.66643 | F74: =ROUND(СУММПРОИЗВЕСЛИ(1,'Форма по МДС 81-35.2004'!J1613:J1633,"IsMater",'Форма по МДС 81-35.2004'!E1613:E1633,'Форма по МДС 81-35.2004'!G1613:G1633,0),16777275) -> 2.17 | G74: 0 | H74: 0 | I74: =ОКРУГЛВСЕ(SUMIF('Форма по МДС 81-35.2004'!J1613:J1633,"Г",'Форма по МДС 81-35.2004'!E1613:E1633),8) -> 0.61 | J74: 0 | K74: =ОКРУГЛВСЕ(SUMIF('Форма по МДС 81-35.2004'!J1613:J1633,"Ж",'Форма по МДС 81-35.2004'!E1613:E1633),8) -> 0.61 | L74: 0 | M74: 0 | N74: 87.1767 | O74: 66.582136 | P74: 0 | Q74: 0 | R74: 0 | S74: 0 | T74: 0 | U74: 0 | V74: 0 | X74: 0 | Y74: 0 | Z74: 0 | AA74: 0 | AB74: 0 | AC74: 0 | AD74: 0 | AE74: 0
A75: ='Форма по МДС 81-35.2004'!A1634 -> 70. | B75: ='Форма по МДС 81-35.2004'!G1634 -> 1839.83 | C75: =ROUND(СУММПРОИЗВЕСЛИ(1,'Форма по МДС 81-35.2004'!J1634:J1656,"Г",'Форма по МДС 81-35.2004'!E1634:E1656,'Форма по МДС 81-35.2004'!G1634:G1656,0),16777275) -> 606.2688 | D75: =ROUND(СУММПРОИЗВЕСЛИ(1,'Форма по МДС 81-35.2004'!J1634:J1656,"IsMash",'Форма по МДС 81-35.2004'!E1634:E1656,'Форма по МДС 81-35.2004'!G1634:G1656,0),16777275) -> 795.672 | E75: =ROUND(СУММПРОИЗВЕСЛИ(1,'Форма по МДС 81-35.2004'!J1634:J1656,"Ж",'Форма по МДС 81-35.2004'!E1634:E1656,'Форма по МДС 81-35.2004'!G1634:G1656,0),16777275) -> 224.7192 | F75: =ROUND(СУММПРОИЗВЕСЛИ(1,'Форма по МДС 81-35.2004'!J1634:J1656,"IsMater",'Форма по МДС 81-35.2004'!E1634:E1656,'Форма по МДС 81-35.2004'!G1634:G1656,0),16777275) -> 437.889 | G75: 0 | H75: 0 | I75: =ОКРУГЛВСЕ(SUMIF('Форма по МДС 81-35.2004'!J1634:J1656,"Г",'Форма по МДС 81-35.2004'!E1634:E1656),8) -> 5.76 | J75: 0 | K75: =ОКРУГЛВСЕ(SUMIF('Форма по МДС 81-35.2004'!J1634:J1656,"Ж",'Форма по МДС 81-35.2004'!E1634:E1656),8) -> 1.44 | L75: 0 | M75: 0 | N75: 215.26011 | O75: 164.4072088 | P75: 0 | Q75: 0 | R75: 0 | S75: 0 | T75: 0 | U75: 0 | V75: 0 | X75: 0 | Y75: 0 | Z75: 0 | AA75: 0 | AB75: 0 | AC75: 0 | AD75: 0 | AE75: 0
A76: ='Форма по МДС 81-35.2004'!A1657 -> 71. | B76: ='Форма по МДС 81-35.2004'!G1657 -> 26662.78 | C76: =ROUND(СУММПРОИЗВЕСЛИ(1,'Форма по МДС 81-35.2004'!J1657:J1683,"Г",'Форма по МДС 81-35.2004'!E1657:E1683,'Форма по МДС 81-35.2004'!G1657:G1683,0),16777275) -> 10154.6357 | D76: =ROUND(СУММПРОИЗВЕСЛИ(1,'Форма по МДС 81-35.2004'!J1657:J1683,"IsMash",'Форма по МДС 81-35.2004'!E1657:E1683,'Форма по МДС 81-35.2004'!G1657:G1683,0),16777275) -> 15135.5952 | E76: =ROUND(СУММПРОИЗВЕСЛИ(1,'Форма по МДС 81-35.2004'!J1657:J1683,"Ж",'Форма по МДС 81-35.2004'!E1657:E1683,'Форма по МДС 81-35.2004'!G1657:G1683,0),16777275) -> 3800.0016 | F76: =ROUND(СУММПРОИЗВЕСЛИ(1,'Форма по МДС 81-35.2004'!J1657:J1683,"IsMater",'Форма по МДС 81-35.2004'!E1657:E1683,'Форма по МДС 81-35.2004'!G1657:G1683,0),16777275) -> 1372.553917 | G76: 0 | H76: 0 | I76: =ОКРУГЛВСЕ(SUMIF('Форма по МДС 81-35.2004'!J1657:J1683,"Г",'Форма по МДС 81-35.2004'!E1657:E1683),8) -> 90.7 | J76: 0 | K76: =ОКРУГЛВСЕ(SUMIF('Форма по МДС 81-35.2004'!J1657:J1683,"Ж",'Форма по МДС 81-35.2004'!E1657:E1683),8) -> 25.92 | L76: 0 | M76: 0 | N76: 3119.54526 | O76: 2382.586021 | P76: 0 | Q76: 0 | R76: 0 | S76: 0 | T76: 0 | U76: 0 | V76: 0 | X76: 0 | Y76: 0 | Z76: 0 | AA76: 0 | AB76: 0 | AC76: 0 | AD76: 0 | AE76: 0
A77: ='Форма по МДС 81-35.2004'!A1684 -> 72. | B77: ='Форма по МДС 81-35.2004'!G1684 -> 24332.53 | C77: =ROUND(СУММПРОИЗВЕСЛИ(1,'Форма по МДС 81-35.2004'!J1684:J1709,"Г",'Форма по МДС 81-35.2004'!E1684:E1709,'Форма по МДС 81-35.2004'!G1684:G1709,0),16777275) -> 8143.4518 | D77: =ROUND(СУММПРОИЗВЕСЛИ(1,'Форма по МДС 81-35.2004'!J1684:J1709,"IsMash",'Форма по МДС 81-35.2004'!E1684:E1709,'Форма по МДС 81-35.2004'!G1684:G1709,0),16777275) -> 16108.961 | E77: =ROUND(СУММПРОИЗВЕСЛИ(1,'Форма по МДС 81-35.2004'!J1684:J1709,"Ж",'Форма по МДС 81-35.2004'!E1684:E1709,'Форма по МДС 81-35.2004'!G1684:G1709,0),16777275) -> 4120.37868 | F77: =ROUND(СУММПРОИЗВЕСЛИ(1,'Форма по МДС 81-35.2004'!J1684:J1709,"IsMater",'Форма по МДС 81-35.2004'!E1684:E1709,'Форма по МДС 81-35.2004'!G1684:G1709,0),16777275) -> 80.1199168 | G77: 0 | H77: 0 | I77: =ОКРУГЛВСЕ(SUMIF('Форма по МДС 81-35.2004'!J1684:J1709,"Г",'Форма по МДС 81-35.2004'!E1684:E1709),8) -> 75.68 | J77: 0 | K77: =ОКРУГЛВСЕ(SUMIF('Форма по МДС 81-35.2004'!J1684:J1709,"Ж",'Форма по МДС 81-35.2004'!E1684:E1709),8) -> 28.38 | L77: 0 | M77: 0 | N77: 2846.90601 | O77: 2174.354881 | P77: 0 | Q77: 0 | R77: 0 | S77: 0 | T77: 0 | U77: 0 | V77: 0 | X77: 0 | Y77: 0 | Z77: 0 | AA77: 0 | AB77: 0 | AC77: 0 | AD77: 0 | AE77: 0
A78: ='Форма по МДС 81-35.2004'!A1710 -> 73. | B78: ='Форма по МДС 81-35.2004'!G1710 -> 996830.51 | C78: =ROUND(СУММПРОИЗВЕСЛИ(1,'Форма по МДС 81-35.2004'!J1710:J1728,"Г",'Форма по МДС 81-35.2004'!E1710:E1728,'Форма по МДС 81-35.2004'!G1710:G1728,0),16777275) -> 0 | D78: =ROUND(СУММПРОИЗВЕСЛИ(1,'Форма по МДС 81-35.2004'!J1710:J1728,"IsMash",'Форма по МДС 81-35.2004'!E1710:E1728,'Форма по МДС 81-35.2004'!G1710:G1728,0),16777275) -> 0 | E78: =ROUND(СУММПРОИЗВЕСЛИ(1,'Форма по МДС 81-35.2004'!J1710:J1728,"Ж",'Форма по МДС 81-35.2004'!E1710:E1728,'Форма по МДС 81-35.2004'!G1710:G1728,0),16777275) -> 0 | F78: =ROUND(СУММПРОИЗВЕСЛИ(1,'Форма по МДС 81-35.2004'!J1710:J1728,"IsMater",'Форма по МДС 81-35.2004'!E1710:E1728,'Форма по МДС 81-35.2004'!G1710:G1728,0),16777275) -> 996830.51 | G78: 0 | H78: 0 | I78: =ОКРУГЛВСЕ(SUMIF('Форма по МДС 81-35.2004'!J1710:J1728,"Г",'Форма по МДС 81-35.2004'!E1710:E1728),8) -> 0 | J78: 0 | K78: =ОКРУГЛВСЕ(SUMIF('Форма по МДС 81-35.2004'!J1710:J1728,"Ж",'Форма по МДС 81-35.2004'!E1710:E1728),8) -> 0 | L78: 0 | M78: 0 | N78: 116629.1697 | O78: 89076.77437 | P78: 0 | Q78: 0 | R78: 0 | S78: 0 | T78: 0 | U78: 0 | V78: 0 | X78: 0 | Y78: 0 | Z78: 0 | AA78: 0 | AB78: 0 | AC78: 0 | AD78: 0 | AE78: 0
A79: ='Форма по МДС 81-35.2004'!A1729 -> 74. | B79: ='Форма по МДС 81-35.2004'!G1729 -> 23680.59 | C79: =ROUND(СУММПРОИЗВЕСЛИ(1,'Форма по МДС 81-35.2004'!J1729:J1750,"Г",'Форма по МДС 81-35.2004'!E1729:E1750,'Форма по МДС 81-35.2004'!G1729:G1750,0),16777275) -> 2393.586 | D79: =ROUND(СУММПРОИЗВЕСЛИ(1,'Форма по МДС 81-35.2004'!J1729:J1750,"IsMash",'Форма по МДС 81-35.2004'!E1729:E1750,'Форма по МДС 81-35.2004'!G1729:G1750,0),16777275) -> 5332.1075 | E79: =ROUND(СУММПРОИЗВЕСЛИ(1,'Форма по МДС 81-35.2004'!J1729:J1750,"Ж",'Форма по МДС 81-35.2004'!E1729:E1750,'Форма по МДС 81-35.2004'!G1729:G1750,0),16777275) -> 1400.0027 | F79: =ROUND(СУММПРОИЗВЕСЛИ(1,'Форма по МДС 81-35.2004'!J1729:J1750,"IsMater",'Форма по МДС 81-35.2004'!E1729:E1750,'Форма по МДС 81-35.2004'!G1729:G1750,0),16777275) -> 15954.9 | G79: 0 | H79: 0 | I79: =ОКРУГЛВСЕ(SUMIF('Форма по МДС 81-35.2004'!J1729:J1750,"Г",'Форма по МДС 81-35.2004'!E1729:E1750),8) -> 19.3 | J79: 0 | K79: =ОКРУГЛВСЕ(SUMIF('Форма по МДС 81-35.2004'!J1729:J1750,"Ж",'Форма по МДС 81-35.2004'!E1729:E1750),8) -> 9.65 | L79: 0 | M79: 0 | N79: 2770.62903 | O79: 2116.097522 | P79: 0 | Q79: 0 | R79: 0 | S79: 0 | T79: 0 | U79: 0 | V79: 0 | X79: 0 | Y79: 0 | Z79: 0 | AA79: 0 | AB79: 0 | AC79: 0 | AD79: 0 | AE79: 0
A80: ='Форма по МДС 81-35.2004'!A1751 -> 75. | B80: ='Форма по МДС 81-35.2004'!G1751 -> 381 | C80: =ROUND(СУММПРОИЗВЕСЛИ(1,'Форма по МДС 81-35.2004'!J1751:J1770,"Г",'Форма по МДС 81-35.2004'!E1751:E1770,'Форма по МДС 81-35.2004'!G1751:G1770,0),16777275) -> 226.2825 | D80: =ROUND(СУММПРОИЗВЕСЛИ(1,'Форма по МДС 81-35.2004'!J1751:J1770,"IsMash",'Форма по МДС 81-35.2004'!E1751:E1770,'Форма по МДС 81-35.2004'!G1751:G1770,0),16777275) -> 154.714 | E80: =ROUND(СУММПРОИЗВЕСЛИ(1,'Форма по МДС 81-35.2004'!J1751:J1770,"Ж",'Форма по МДС 81-35.2004'!E1751:E1770,'Форма по МДС 81-35.2004'!G1751:G1770,0),16777275) -> 49.99988 | F80: =ROUND(СУММПРОИЗВЕСЛИ(1,'Форма по МДС 81-35.2004'!J1751:J1770,"IsMater",'Форма по МДС 81-35.2004'!E1751:E1770,'Форма по МДС 81-35.2004'!G1751:G1770,0),16777275) -> 0 | G80: 0 | H80: 0 | I80: =ОКРУГЛВСЕ(SUMIF('Форма по МДС 81-35.2004'!J1751:J1770,"Г",'Форма по МДС 81-35.2004'!E1751:E1770),8) -> 2.25 | J80: 0 | K80: =ОКРУГЛВСЕ(SUMIF('Форма по МДС 81-35.2004'!J1751:J1770,"Ж",'Форма по МДС 81-35.2004'!E1751:E1770),8) -> 0.28 | L80: 0 | M80: 0 | N80: 44.577 | O80: 34.04616 | P80: 0 | Q80: 0 | R80: 0 | S80: 0 | T80: 0 | U80: 0 | V80: 0 | X80: 0 | Y80: 0 | Z80: 0 | AA80: 0 | AB80: 0 | AC80: 0 | AD80: 0 | AE80: 0
A81: ='Форма по МДС 81-35.2004'!A1771 -> 76. | B81: ='Форма по МДС 81-35.2004'!G1771 -> 55.31 | C81: =ROUND(СУММПРОИЗВЕСЛИ(1,'Форма по МДС 81-35.2004'!J1771:J1788,"Г",'Форма по МДС 81-35.2004'!E1771:E1788,'Форма по МДС 81-35.2004'!G1771:G1788,0),16777275) -> 55.3135 | D81: =ROUND(СУММПРОИЗВЕСЛИ(1,'Форма по МДС 81-35.2004'!J1771:J1788,"IsMash",'Форма по МДС 81-35.2004'!E1771:E1788,'Форма по МДС 81-35.2004'!G1771:G1788,0),16777275) -> 0 | E81: =ROUND(СУММПРОИЗВЕСЛИ(1,'Форма по МДС 81-35.2004'!J1771:J1788,"Ж",'Форма по МДС 81-35.2004'!E1771:E1788,'Форма по МДС 81-35.2004'!G1771:G1788,0),16777275) -> 0 | F81: =ROUND(СУММПРОИЗВЕСЛИ(1,'Форма по МДС 81-35.2004'!J1771:J1788,"IsMater",'Форма по МДС 81-35.2004'!E1771:E1788,'Форма по МДС 81-35.2004'!G1771:G1788,0),16777275) -> 0 | G81: 0 | H81: 0 | I81: =ОКРУГЛВСЕ(SUMIF('Форма по МДС 81-35.2004'!J1771:J1788,"Г",'Форма по МДС 81-35.2004'!E1771:E1788),8) -> 0.55 | J81: 0 | K81: =ОКРУГЛВСЕ(SUMIF('Форма по МДС 81-35.2004'!J1771:J1788,"Ж",'Форма по МДС 81-35.2004'!E1771:E1788),8) -> 0 | L81: 0 | M81: 0 | N81: 6.47127 | O81: 4.9425016 | P81: 0 | Q81: 0 | R81: 0 | S81: 0 | T81: 0 | U81: 0 | V81: 0 | X81: 0 | Y81: 0 | Z81: 0 | AA81: 0 | AB81: 0 | AC81: 0 | AD81: 0 | AE81: 0
A82: ='Форма по МДС 81-35.2004'!A1789 -> 77. | B82: ='Форма по МДС 81-35.2004'!G1789 -> 5131.62 | C82: =ROUND(СУММПРОИЗВЕСЛИ(1,'Форма по МДС 81-35.2004'!J1789:J1807,"Г",'Форма по МДС 81-35.2004'!E1789:E1807,'Форма по МДС 81-35.2004'!G1789:G1807,0),16777275) -> 0 | D82: =ROUND(СУММПРОИЗВЕСЛИ(1,'Форма по МДС 81-35.2004'!J1789:J1807,"IsMash",'Форма по МДС 81-35.2004'!E1789:E1807,'Форма по МДС 81-35.2004'!G1789:G1807,0),16777275) -> 5131.62 | E82: =ROUND(СУММПРОИЗВЕСЛИ(1,'Форма по МДС 81-35.2004'!J1789:J1807,"Ж",'Форма по МДС 81-35.2004'!E1789:E1807,'Форма по МДС 81-35.2004'!G1789:G1807,0),16777275) -> 0 | F82: =ROUND(СУММПРОИЗВЕСЛИ(1,'Форма по МДС 81-35.2004'!J1789:J1807,"IsMater",'Форма по МДС 81-35.2004'!E1789:E1807,'Форма по МДС 81-35.2004'!G1789:G1807,0),16777275) -> 0 | G82: 0 | H82: 0 | I82: =ОКРУГЛВСЕ(SUMIF('Форма по МДС 81-35.2004'!J1789:J1807,"Г",'Форма по МДС 81-35.2004'!E1789:E1807),8) -> 0 | J82: 0 | K82: =ОКРУГЛВСЕ(SUMIF('Форма по МДС 81-35.2004'!J1789:J1807,"Ж",'Форма по МДС 81-35.2004'!E1789:E1807),8) -> 0 | L82: 0 | M82: 0 | N82: 600.39954 | O82: 458.5615632 | P82: 0 | Q82: 0 | R82: 0 | S82: 0 | T82: 0 | U82: 0 | V82: 0 | X82: 0 | Y82: 0 | Z82: 0 | AA82: 0 | AB82: 0 | AC82: 0 | AD82: 0 | AE82: 0
A83: ='Форма по МДС 81-35.2004'!A1808 -> 78. | B83: ='Форма по МДС 81-35.2004'!G1808 -> 456.3 | C83: =ROUND(СУММПРОИЗВЕСЛИ(1,'Форма по МДС 81-35.2004'!J1808:J1826,"Г",'Форма по МДС 81-35.2004'!E1808:E1826,'Форма по МДС 81-35.2004'!G1808:G1826,0),16777275) -> 0 | D83: =ROUND(СУММПРОИЗВЕСЛИ(1,'Форма по МДС 81-35.2004'!J1808:J1826,"IsMash",'Форма по МДС 81-35.2004'!E1808:E1826,'Форма по МДС 81-35.2004'!G1808:G1826,0),16777275) -> 456.3 | E83: =ROUND(СУММПРОИЗВЕСЛИ(1,'Форма по МДС 81-35.2004'!J1808:J1826,"Ж",'Форма по МДС 81-35.2004'!E1808:E1826,'Форма по МДС 81-35.2004'!G1808:G1826,0),16777275) -> 0 | F83: =ROUND(СУММПРОИЗВЕСЛИ(1,'Форма по МДС 81-35.2004'!J1808:J1826,"IsMater",'Форма по МДС 81-35.2004'!E1808:E1826,'Форма по МДС 81-35.2004'!G1808:G1826,0),16777275) -> 0 | G83: 0 | H83: 0 | I83: =ОКРУГЛВСЕ(SUMIF('Форма по МДС 81-35.2004'!J1808:J1826,"Г",'Форма по МДС 81-35.2004'!E1808:E1826),8) -> 0 | J83: 0 | K83: =ОКРУГЛВСЕ(SUMIF('Форма по МДС 81-35.2004'!J1808:J1826,"Ж",'Форма по МДС 81-35.2004'!E1808:E1826),8) -> 0 | L83: 0 | M83: 0 | N83: 53.3871 | O83: 40.774968 | P83: 0 | Q83: 0 | R83: 0 | S83: 0 | T83: 0 | U83: 0 | V83: 0 | X83: 0 | Y83: 0 | Z83: 0 | AA83: 0 | AB83: 0 | AC83: 0 | AD83: 0 | AE83: 0
A84: ='Форма по МДС 81-35.2004'!A1828 -> 79. | B84: ='Форма по МДС 81-35.2004'!G1828 -> 2184.78 | C84: =ROUND(СУММПРОИЗВЕСЛИ(1,'Форма по МДС 81-35.2004'!J1828:J1847,"Г",'Форма по МДС 81-35.2004'!E1828:E1847,'Форма по МДС 81-35.2004'!G1828:G1847,0),16777275) -> 1140.4638 | D84: =ROUND(СУММПРОИЗВЕСЛИ(1,'Форма по МДС 81-35.2004'!J1828:J1847,"IsMash",'Форма по МДС 81-35.2004'!E1828:E1847,'Форма по МДС 81-35.2004'!G1828:G1847,0),16777275) -> 1044.3195 | E84: =ROUND(СУММПРОИЗВЕСЛИ(1,'Форма по МДС 81-35.2004'!J1828:J1847,"Ж",'Форма по МДС 81-35.2004'!E1828:E1847,'Форма по МДС 81-35.2004'!G1828:G1847,0),16777275) -> 285.71508 | F84: =ROUND(СУММПРОИЗВЕСЛИ(1,'Форма по МДС 81-35.2004'!J1828:J1847,"IsMater",'Форма по МДС 81-35.2004'!E1828:E1847,'Форма по МДС 81-35.2004'!G1828:G1847,0),16777275) -> 0 | G84: 0 | H84: 0 | I84: =ОКРУГЛВСЕ(SUMIF('Форма по МДС 81-35.2004'!J1828:J1847,"Г",'Форма по МДС 81-35.2004'!E1828:E1847),8) -> 11.34 | J84: 0 | K84: =ОКРУГЛВСЕ(SUMIF('Форма по МДС 81-35.2004'!J1828:J1847,"Ж",'Форма по МДС 81-35.2004'!E1828:E1847),8) -> 1.89 | L84: 0 | M84: 0 | N84: 255.61926 | O84: 195.2319408 | P84: 0 | Q84: 0 | R84: 0 | S84: 0 | T84: 0 | U84: 0 | V84: 0 | X84: 0 | Y84: 0 | Z84: 0 | AA84: 0 | AB84: 0 | AC84: 0 | AD84: 0 | AE84: 0
A85: ='Форма по МДС 81-35.2004'!A1848 -> 80. | B85: ='Форма по МДС 81-35.2004'!G1848 -> 1835.5 | C85: =ROUND(СУММПРОИЗВЕСЛИ(1,'Форма по МДС 81-35.2004'!J1848:J1865,"Г",'Форма по МДС 81-35.2004'!E1848:E1865,'Форма по МДС 81-35.2004'!G1848:G1865,0),16777275) -> 1835.4968 | D85: =ROUND(СУММПРОИЗВЕСЛИ(1,'Форма по МДС 81-35.2004'!J1848:J1865,"IsMash",'Форма по МДС 81-35.2004'!E1848:E1865,'Форма по МДС 81-35.2004'!G1848:G1865,0),16777275) -> 0 | E85: =ROUND(СУММПРОИЗВЕСЛИ(1,'Форма по МДС 81-35.2004'!J1848:J1865,"Ж",'Форма по МДС 81-35.2004'!E1848:E1865,'Форма по МДС 81-35.2004'!G1848:G1865,0),16777275) -> 0 | F85: =ROUND(СУММПРОИЗВЕСЛИ(1,'Форма по МДС 81-35.2004'!J1848:J1865,"IsMater",'Форма по МДС 81-35.2004'!E1848:E1865,'Форма по МДС 81-35.2004'!G1848:G1865,0),16777275) -> 0 | G85: 0 | H85: 0 | I85: =ОКРУГЛВСЕ(SUMIF('Форма по МДС 81-35.2004'!J1848:J1865,"Г",'Форма по МДС 81-35.2004'!E1848:E1865),8) -> 18.68 | J85: 0 | K85: =ОКРУГЛВСЕ(SUMIF('Форма по МДС 81-35.2004'!J1848:J1865,"Ж",'Форма по МДС 81-35.2004'!E1848:E1865),8) -> 0 | L85: 0 | M85: 0 | N85: 214.7535 | O85: 164.02028 | P85: 0 | Q85: 0 | R85: 0 | S85: 0 | T85: 0 | U85: 0 | V85: 0 | X85: 0 | Y85: 0 | Z85: 0 | AA85: 0 | AB85: 0 | AC85: 0 | AD85: 0 | AE85: 0
A86: ='Форма по МДС 81-35.2004'!A1866 -> 81. | B86: ='Форма по МДС 81-35.2004'!G1866 -> 59943.92 | C86: =ROUND(СУММПРОИЗВЕСЛИ(1,'Форма по МДС 81-35.2004'!J1866:J1893,"Г",'Форма по МДС 81-35.2004'!E1866:E1893,'Форма по МДС 81-35.2004'!G1866:G1893,0),16777275) -> 4464.72 | D86: =ROUND(СУММПРОИЗВЕСЛИ(1,'Форма по МДС 81-35.2004'!J1866:J1893,"IsMash",'Форма по МДС 81-35.2004'!E1866:E1893,'Форма по МДС 81-35.2004'!G1866:G1893,0),16777275) -> 2361.8207 | E86: =ROUND(СУММПРОИЗВЕСЛИ(1,'Форма по МДС 81-35.2004'!J1866:J1893,"Ж",'Форма по МДС 81-35.2004'!E1866:E1893,'Форма по МДС 81-35.2004'!G1866:G1893,0),16777275) -> 99.9999 | F86: =ROUND(СУММПРОИЗВЕСЛИ(1,'Форма по МДС 81-35.2004'!J1866:J1893,"IsMater",'Форма по МДС 81-35.2004'!E1866:E1893,'Форма по МДС 81-35.2004'!G1866:G1893,0),16777275) -> 53117.3775 | G86: 0 | H86: 0 | I86: =ОКРУГЛВСЕ(SUMIF('Форма по МДС 81-35.2004'!J1866:J1893,"Г",'Форма по МДС 81-35.2004'!E1866:E1893),8) -> 42.4 | J86: 0 | K86: =ОКРУГЛВСЕ(SUMIF('Форма по МДС 81-35.2004'!J1866:J1893,"Ж",'Форма по МДС 81-35.2004'!E1866:E1893),8) -> 0.42 | L86: 0 | M86: 0 | N86: 7013.43864 | O86: 5356.588691 | P86: 0 | Q86: 0 | R86: 0 | S86: 0 | T86: 0 | U86: 0 | V86: 0 | X86: 0 | Y86: 0 | Z86: 0 | AA86: 0 | AB86: 0 | AC86: 0 | AD86: 0 | AE86: 0
A87: ='Форма по МДС 81-35.2004'!A1894 -> 82. | B87: ='Форма по МДС 81-35.2004'!G1894 -> 32002.84 | C87: =ROUND(СУММПРОИЗВЕСЛИ(1,'Форма по МДС 81-35.2004'!J1894:J1921,"Г",'Форма по МДС 81-35.2004'!E1894:E1921,'Форма по МДС 81-35.2004'!G1894:G1921,0),16777275) -> 4839.53 | D87: =ROUND(СУММПРОИЗВЕСЛИ(1,'Форма по МДС 81-35.2004'!J1894:J1921,"IsMash",'Форма по МДС 81-35.2004'!E1894:E1921,'Форма по МДС 81-35.2004'!G1894:G1921,0),16777275) -> 6328.5011 | E87: =ROUND(СУММПРОИЗВЕСЛИ(1,'Форма по МДС 81-35.2004'!J1894:J1921,"Ж",'Форма по МДС 81-35.2004'!E1894:E1921,'Форма по МДС 81-35.2004'!G1894:G1921,0),16777275) -> 1800.00576 | F87: =ROUND(СУММПРОИЗВЕСЛИ(1,'Форма по МДС 81-35.2004'!J1894:J1921,"IsMater",'Форма по МДС 81-35.2004'!E1894:E1921,'Форма по МДС 81-35.2004'!G1894:G1921,0),16777275) -> 20834.80562 | G87: 0 | H87: 0 | I87: =ОКРУГЛВСЕ(SUMIF('Форма по МДС 81-35.2004'!J1894:J1921,"Г",'Форма по МДС 81-35.2004'!E1894:E1921),8) -> 45.31 | J87: 0 | K87: =ОКРУГЛВСЕ(SUMIF('Форма по МДС 81-35.2004'!J1894:J1921,"Ж",'Форма по МДС 81-35.2004'!E1894:E1921),8) -> 12.94 | L87: 0 | M87: 0 | N87: 3744.33228 | O87: 2859.773782 | P87: 0 | Q87: 0 | R87: 0 | S87: 0 | T87: 0 | U87: 0 | V87: 0 | X87: 0 | Y87: 0 | Z87: 0 | AA87: 0 | AB87: 0 | AC87: 0 | AD87: 0 | AE87: 0
A88: ='Форма по МДС 81-35.2004'!A1922 -> 83. | B88: ='Форма по МДС 81-35.2004'!G1922 -> 4298.44 | C88: =ROUND(СУММПРОИЗВЕСЛИ(1,'Форма по МДС 81-35.2004'!J1922:J1943,"Г",'Форма по МДС 81-35.2004'!E1922:E1943,'Форма по МДС 81-35.2004'!G1922:G1943,0),16777275) -> 762.0462 | D88: =ROUND(СУММПРОИЗВЕСЛИ(1,'Форма по МДС 81-35.2004'!J1922:J1943,"IsMash",'Форма по МДС 81-35.2004'!E1922:E1943,'Форма по МДС 81-35.2004'!G1922:G1943,0),16777275) -> 1000.1155 | E88: =ROUND(СУММПРОИЗВЕСЛИ(1,'Форма по МДС 81-35.2004'!J1922:J1943,"Ж",'Форма по МДС 81-35.2004'!E1922:E1943,'Форма по МДС 81-35.2004'!G1922:G1943,0),16777275) -> 333.33322 | F88: =ROUND(СУММПРОИЗВЕСЛИ(1,'Форма по МДС 81-35.2004'!J1922:J1943,"IsMater",'Форма по МДС 81-35.2004'!E1922:E1943,'Форма по МДС 81-35.2004'!G1922:G1943,0),16777275) -> 2536.2765 | G88: 0 | H88: 0 | I88: =ОКРУГЛВСЕ(SUMIF('Форма по МДС 81-35.2004'!J1922:J1943,"Г",'Форма по МДС 81-35.2004'!E1922:E1943),8) -> 7.24 | J88: 0 | K88: =ОКРУГЛВСЕ(SUMIF('Форма по МДС 81-35.2004'!J1922:J1943,"Ж",'Форма по МДС 81-35.2004'!E1922:E1943),8) -> 1.81 | L88: 0 | M88: 0 | N88: 502.91748 | O88: 384.1085984 | P88: 0 | Q88: 0 | R88: 0 | S88: 0 | T88: 0 | U88: 0 | V88: 0 | X88: 0 | Y88: 0 | Z88: 0 | AA88: 0 | AB88: 0 | AC88: 0 | AD88: 0 | AE88: 0
A89: ='Форма по МДС 81-35.2004'!A1944 -> 84. | B89: ='Форма по МДС 81-35.2004'!G1944 -> 1147.01 | C89: =ROUND(СУММПРОИЗВЕСЛИ(1,'Форма по МДС 81-35.2004'!J1944:J1964,"Г",'Форма по МДС 81-35.2004'!E1944:E1964,'Форма по МДС 81-35.2004'!G1944:G1964,0),16777275) -> 94.5358 | D89: =ROUND(СУММПРОИЗВЕСЛИ(1,'Форма по МДС 81-35.2004'!J1944:J1964,"IsMash",'Форма по МДС 81-35.2004'!E1944:E1964,'Форма по МДС 81-35.2004'!G1944:G1964,0),16777275) -> 1050.2996 | E89: =ROUND(СУММПРОИЗВЕСЛИ(1,'Форма по МДС 81-35.2004'!J1944:J1964,"Ж",'Форма по МДС 81-35.2004'!E1944:E1964,'Форма по МДС 81-35.2004'!G1944:G1964,0),16777275) -> 160.30572 | F89: =ROUND(СУММПРОИЗВЕСЛИ(1,'Форма по МДС 81-35.2004'!J1944:J1964,"IsMater",'Форма по МДС 81-35.2004'!E1944:E1964,'Форма по МДС 81-35.2004'!G1944:G1964,0),16777275) -> 2.17 | G89: 0 | H89: 0 | I89: =ОКРУГЛВСЕ(SUMIF('Форма по МДС 81-35.2004'!J1944:J1964,"Г",'Форма по МДС 81-35.2004'!E1944:E1964),8) -> 0.94 | J89: 0 | K89: =ОКРУГЛВСЕ(SUMIF('Форма по МДС 81-35.2004'!J1944:J1964,"Ж",'Форма по МДС 81-35.2004'!E1944:E1964),8) -> 0.94 | L89: 0 | M89: 0 | N89: 134.20017 | O89: 102.4968136 | P89: 0 | Q89: 0 | R89: 0 | S89: 0 | T89: 0 | U89: 0 | V89: 0 | X89: 0 | Y89: 0 | Z89: 0 | AA89: 0 | AB89: 0 | AC89: 0 | AD89: 0 | AE89: 0
A90: ='Форма по МДС 81-35.2004'!A1965 -> 85. | B90: ='Форма по МДС 81-35.2004'!G1965 -> 49833.09 | C90: =ROUND(СУММПРОИЗВЕСЛИ(1,'Форма по МДС 81-35.2004'!J1965:J1989,"Г",'Форма по МДС 81-35.2004'!E1965:E1989,'Форма по МДС 81-35.2004'!G1965:G1989,0),16777275) -> 15788.25 | D90: =ROUND(СУММПРОИЗВЕСЛИ(1,'Форма по МДС 81-35.2004'!J1965:J1989,"IsMash",'Форма по МДС 81-35.2004'!E1965:E1989,'Форма по МДС 81-35.2004'!G1965:G1989,0),16777275) -> 20720.625 | E90: =ROUND(СУММПРОИЗВЕСЛИ(1,'Форма по МДС 81-35.2004'!J1965:J1989,"Ж",'Форма по МДС 81-35.2004'!E1965:E1989,'Форма по МДС 81-35.2004'!G1965:G1989,0),16777275) -> 5714.2875 | F90: =ROUND(СУММПРОИЗВЕСЛИ(1,'Форма по МДС 81-35.2004'!J1965:J1989,"IsMater",'Форма по МДС 81-35.2004'!E1965:E1989,'Форма по МДС 81-35.2004'!G1965:G1989,0),16777275) -> 13324.2119 | G90: 0 | H90: 0 | I90: =ОКРУГЛВСЕ(SUMIF('Форма по МДС 81-35.2004'!J1965:J1989,"Г",'Форма по МДС 81-35.2004'!E1965:E1989),8) -> 150 | J90: 0 | K90: =ОКРУГЛВСЕ(SUMIF('Форма по МДС 81-35.2004'!J1965:J1989,"Ж",'Форма по МДС 81-35.2004'!E1965:E1989),8) -> 37.5 | L90: 0 | M90: 0 | N90: 5830.47153 | O90: 4453.084922 | P90: 0 | Q90: 0 | R90: 0 | S90: 0 | T90: 0 | U90: 0 | V90: 0 | X90: 0 | Y90: 0 | Z90: 0 | AA90: 0 | AB90: 0 | AC90: 0 | AD90: 0 | AE90: 0
A91: ='Форма по МДС 81-35.2004'!A1990 -> 86. | B91: ='Форма по МДС 81-35.2004'!G1990 -> 2151.85 | C91: =ROUND(СУММПРОИЗВЕСЛИ(1,'Форма по МДС 81-35.2004'!J1990:J2012,"Г",'Форма по МДС 81-35.2004'!E1990:E2012,'Форма по МДС 81-35.2004'!G1990:G2012,0),16777275) -> 673.632 | D91: =ROUND(СУММПРОИЗВЕСЛИ(1,'Форма по МДС 81-35.2004'!J1990:J2012,"IsMash",'Форма по МДС 81-35.2004'!E1990:E2012,'Форма по МДС 81-35.2004'!G1990:G2012,0),16777275) -> 884.08 | E91: =ROUND(СУММПРОИЗВЕСЛИ(1,'Форма по МДС 81-35.2004'!J1990:J2012,"Ж",'Форма по МДС 81-35.2004'!E1990:E2012,'Форма по МДС 81-35.2004'!G1990:G2012,0),16777275) -> 240 | F91: =ROUND(СУММПРОИЗВЕСЛИ(1,'Форма по МДС 81-35.2004'!J1990:J2012,"IsMater",'Форма по МДС 81-35.2004'!E1990:E2012,'Форма по МДС 81-35.2004'!G1990:G2012,0),16777275) -> 594.1366 | G91: 0 | H91: 0 | I91: =ОКРУГЛВСЕ(SUMIF('Форма по МДС 81-35.2004'!J1990:J2012,"Г",'Форма по МДС 81-35.2004'!E1990:E2012),8) -> 6.4 | J91: 0 | K91: =ОКРУГЛВСЕ(SUMIF('Форма по МДС 81-35.2004'!J1990:J2012,"Ж",'Форма по МДС 81-35.2004'!E1990:E2012),8) -> 1.6 | L91: 0 | M91: 0 | N91: 251.76645 | O91: 192.289316 | P91: 0 | Q91: 0 | R91: 0 | S91: 0 | T91: 0 | U91: 0 | V91: 0 | X91: 0 | Y91: 0 | Z91: 0 | AA91: 0 | AB91: 0 | AC91: 0 | AD91: 0 | AE91: 0
A92: ='Форма по МДС 81-35.2004'!A2013 -> 87. | B92: ='Форма по МДС 81-35.2004'!G2013 -> 213.44 | C92: =ROUND(СУММПРОИЗВЕСЛИ(1,'Форма по МДС 81-35.2004'!J2013:J2034,"Г",'Форма по МДС 81-35.2004'!E2013:E2034,'Форма по МДС 81-35.2004'!G2013:G2034,0),16777275) -> 44.2508 | D92: =ROUND(СУММПРОИЗВЕСЛИ(1,'Форма по МДС 81-35.2004'!J2013:J2034,"IsMash",'Форма по МДС 81-35.2004'!E2013:E2034,'Форма по МДС 81-35.2004'!G2013:G2034,0),16777275) -> 60.7805 | E92: =ROUND(СУММПРОИЗВЕСЛИ(1,'Форма по МДС 81-35.2004'!J2013:J2034,"Ж",'Форма по МДС 81-35.2004'!E2013:E2034,'Форма по МДС 81-35.2004'!G2013:G2034,0),16777275) -> 17.12326 | F92: =ROUND(СУММПРОИЗВЕСЛИ(1,'Форма по МДС 81-35.2004'!J2013:J2034,"IsMater",'Форма по МДС 81-35.2004'!E2013:E2034,'Форма по МДС 81-35.2004'!G2013:G2034,0),16777275) -> 108.4113926 | G92: 0 | H92: 0 | I92: =ОКРУГЛВСЕ(SUMIF('Форма по МДС 81-35.2004'!J2013:J2034,"Г",'Форма по МДС 81-35.2004'!E2013:E2034),8) -> 0.44 | J92: 0 | K92: =ОКРУГЛВСЕ(SUMIF('Форма по МДС 81-35.2004'!J2013:J2034,"Ж",'Форма по МДС 81-35.2004'!E2013:E2034),8) -> 0.11 | L92: 0 | M92: 0 | N92: 24.97248 | O92: 19.0729984 | P92: 0 | Q92: 0 | R92: 0 | S92: 0 | T92: 0 | U92: 0 | V92: 0 | X92: 0 | Y92: 0 | Z92: 0 | AA92: 0 | AB92: 0 | AC92: 0 | AD92: 0 | AE92: 0
A93: ='Форма по МДС 81-35.2004'!A2035 -> 88. | B93: ='Форма по МДС 81-35.2004'!G2035 -> 14594.46 | C93: =ROUND(СУММПРОИЗВЕСЛИ(1,'Форма по МДС 81-35.2004'!J2035:J2058,"Г",'Форма по МДС 81-35.2004'!E2035:E2058,'Форма по МДС 81-35.2004'!G2035:G2058,0),16777275) -> 6410.0295 | D93: =ROUND(СУММПРОИЗВЕСЛИ(1,'Форма по МДС 81-35.2004'!J2035:J2058,"IsMash",'Форма по МДС 81-35.2004'!E2035:E2058,'Форма по МДС 81-35.2004'!G2035:G2058,0),16777275) -> 5608.3825 | E93: =ROUND(СУММПРОИЗВЕСЛИ(1,'Форма по МДС 81-35.2004'!J2035:J2058,"Ж",'Форма по МДС 81-35.2004'!E2035:E2058,'Форма по МДС 81-35.2004'!G2035:G2058,0),16777275) -> 1499.99745 | F93: =ROUND(СУММПРОИЗВЕСЛИ(1,'Форма по МДС 81-35.2004'!J2035:J2058,"IsMater",'Форма по МДС 81-35.2004'!E2035:E2058,'Форма по МДС 81-35.2004'!G2035:G2058,0),16777275) -> 2576.05194 | G93: 0 | H93: 0 | I93: =ОКРУГЛВСЕ(SUMIF('Форма по МДС 81-35.2004'!J2035:J2058,"Г",'Форма по МДС 81-35.2004'!E2035:E2058),8) -> 60.9 | J93: 0 | K93: =ОКРУГЛВСЕ(SUMIF('Форма по МДС 81-35.2004'!J2035:J2058,"Ж",'Форма по МДС 81-35.2004'!E2035:E2058),8) -> 10.15 | L93: 0 | M93: 0 | N93: 1707.55182 | O93: 1304.160946 | P93: 0 | Q93: 0 | R93: 0 | S93: 0 | T93: 0 | U93: 0 | V93: 0 | X93: 0 | Y93: 0 | Z93: 0 | AA93: 0 | AB93: 0 | AC93: 0 | AD93: 0 | AE93: 0
A94: ='Форма по МДС 81-35.2004'!A2059 -> 89. | B94: ='Форма по МДС 81-35.2004'!G2059 -> 184.97 | C94: =ROUND(СУММПРОИЗВЕСЛИ(1,'Форма по МДС 81-35.2004'!J2059:J2077,"Г",'Форма по МДС 81-35.2004'!E2059:E2077,'Форма по МДС 81-35.2004'!G2059:G2077,0),16777275) -> 0 | D94: =ROUND(СУММПРОИЗВЕСЛИ(1,'Форма по МДС 81-35.2004'!J2059:J2077,"IsMash",'Форма по МДС 81-35.2004'!E2059:E2077,'Форма по МДС 81-35.2004'!G2059:G2077,0),16777275) -> 0 | E94: =ROUND(СУММПРОИЗВЕСЛИ(1,'Форма по МДС 81-35.2004'!J2059:J2077,"Ж",'Форма по МДС 81-35.2004'!E2059:E2077,'Форма по МДС 81-35.2004'!G2059:G2077,0),16777275) -> 0 | F94: =ROUND(СУММПРОИЗВЕСЛИ(1,'Форма по МДС 81-35.2004'!J2059:J2077,"IsMater",'Форма по МДС 81-35.2004'!E2059:E2077,'Форма по МДС 81-35.2004'!G2059:G2077,0),16777275) -> 184.97 | G94: 0 | H94: 0 | I94: =ОКРУГЛВСЕ(SUMIF('Форма по МДС 81-35.2004'!J2059:J2077,"Г",'Форма по МДС 81-35.2004'!E2059:E2077),8) -> 0 | J94: 0 | K94: =ОКРУГЛВСЕ(SUMIF('Форма по МДС 81-35.2004'!J2059:J2077,"Ж",'Форма по МДС 81-35.2004'!E2059:E2077),8) -> 0 | L94: 0 | M94: 0 | N94: 21.64149 | O94: 16.5289192 | P94: 0 | Q94: 0 | R94: 0 | S94: 0 | T94: 0 | U94: 0 | V94: 0 | X94: 0 | Y94: 0 | Z94: 0 | AA94: 0 | AB94: 0 | AC94: 0 | AD94: 0 | AE94: 0
A95: ='Форма по МДС 81-35.2004'!A2078 -> 90. | B95: ='Форма по МДС 81-35.2004'!G2078 -> 439.98 | C95: =ROUND(СУММПРОИЗВЕСЛИ(1,'Форма по МДС 81-35.2004'!J2078:J2095,"Г",'Форма по МДС 81-35.2004'!E2078:E2095,'Форма по МДС 81-35.2004'!G2078:G2095,0),16777275) -> 0 | D95: =ROUND(СУММПРОИЗВЕСЛИ(1,'Форма по МДС 81-35.2004'!J2078:J2095,"IsMash",'Форма по МДС 81-35.2004'!E2078:E2095,'Форма по МДС 81-35.2004'!G2078:G2095,0),16777275) -> 0 | E95: =ROUND(СУММПРОИЗВЕСЛИ(1,'Форма по МДС 81-35.2004'!J2078:J2095,"Ж",'Форма по МДС 81-35.2004'!E2078:E2095,'Форма по МДС 81-35.2004'!G2078:G2095,0),16777275) -> 0 | F95: =ROUND(СУММПРОИЗВЕСЛИ(1,'Форма по МДС 81-35.2004'!J2078:J2095,"IsMater",'Форма по МДС 81-35.2004'!E2078:E2095,'Форма по МДС 81-35.2004'!G2078:G2095,0),16777275) -> 439.98 | G95: 0 | H95: 0 | I95: =ОКРУГЛВСЕ(SUMIF('Форма по МДС 81-35.2004'!J2078:J2095,"Г",'Форма по МДС 81-35.2004'!E2078:E2095),8) -> 0 | J95: 0 | K95: =ОКРУГЛВСЕ(SUMIF('Форма по МДС 81-35.2004'!J2078:J2095,"Ж",'Форма по МДС 81-35.2004'!E2078:E2095),8) -> 0 | L95: 0 | M95: 0 | N95: 51.47766 | O95: 39.3166128 | P95: 0 | Q95: 0 | R95: 0 | S95: 0 | T95: 0 | U95: 0 | V95: 0 | X95: 0 | Y95: 0 | Z95: 0 | AA95: 0 | AB95: 0 | AC95: 0 | AD95: 0 | AE95: 0
A96: ='Форма по МДС 81-35.2004'!A2096 -> 91. | B96: ='Форма по МДС 81-35.2004'!G2096 -> 85183.12 | C96: =ROUND(СУММПРОИЗВЕСЛИ(1,'Форма по МДС 81-35.2004'!J2096:J2119,"Г",'Форма по МДС 81-35.2004'!E2096:E2119,'Форма по МДС 81-35.2004'!G2096:G2119,0),16777275) -> 14840.955 | D96: =ROUND(СУММПРОИЗВЕСЛИ(1,'Форма по МДС 81-35.2004'!J2096:J2119,"IsMash",'Форма по МДС 81-35.2004'!E2096:E2119,'Форма по МДС 81-35.2004'!G2096:G2119,0),16777275) -> 25141.3575 | E96: =ROUND(СУММПРОИЗВЕСЛИ(1,'Форма по МДС 81-35.2004'!J2096:J2119,"Ж",'Форма по МДС 81-35.2004'!E2096:E2119,'Форма по МДС 81-35.2004'!G2096:G2119,0),16777275) -> 5300.01375 | F96: =ROUND(СУММПРОИЗВЕСЛИ(1,'Форма по МДС 81-35.2004'!J2096:J2119,"IsMater",'Форма по МДС 81-35.2004'!E2096:E2119,'Форма по МДС 81-35.2004'!G2096:G2119,0),16777275) -> 45200.80974 | G96: 0 | H96: 0 | I96: =ОКРУГЛВСЕ(SUMIF('Форма по МДС 81-35.2004'!J2096:J2119,"Г",'Форма по МДС 81-35.2004'!E2096:E2119),8) -> 141 | J96: 0 | K96: =ОКРУГЛВСЕ(SUMIF('Форма по МДС 81-35.2004'!J2096:J2119,"Ж",'Форма по МДС 81-35.2004'!E2096:E2119),8) -> 35.25 | L96: 0 | M96: 0 | N96: 9966.42504 | O96: 7611.963603 | P96: 0 | Q96: 0 | R96: 0 | S96: 0 | T96: 0 | U96: 0 | V96: 0 | X96: 0 | Y96: 0 | Z96: 0 | AA96: 0 | AB96: 0 | AC96: 0 | AD96: 0 | AE96: 0
A97: ='Форма по МДС 81-35.2004'!A2121 -> 92. | B97: ='Форма по МДС 81-35.2004'!G2121 -> 104.4 | C97: =ROUND(СУММПРОИЗВЕСЛИ(1,'Форма по МДС 81-35.2004'!J2121:J2139,"Г",'Форма по МДС 81-35.2004'!E2121:E2139,'Форма по МДС 81-35.2004'!G2121:G2139,0),16777275) -> 0 | D97: =ROUND(СУММПРОИЗВЕСЛИ(1,'Форма по МДС 81-35.2004'!J2121:J2139,"IsMash",'Форма по МДС 81-35.2004'!E2121:E2139,'Форма по МДС 81-35.2004'!G2121:G2139,0),16777275) -> 104.3982 | E97: =ROUND(СУММПРОИЗВЕСЛИ(1,'Форма по МДС 81-35.2004'!J2121:J2139,"Ж",'Форма по МДС 81-35.2004'!E2121:E2139,'Форма по МДС 81-35.2004'!G2121:G2139,0),16777275) -> 42.8571 | F97: =ROUND(СУММПРОИЗВЕСЛИ(1,'Форма по МДС 81-35.2004'!J2121:J2139,"IsMater",'Форма по МДС 81-35.2004'!E2121:E2139,'Форма по МДС 81-35.2004'!G2121:G2139,0),16777275) -> 0 | G97: 0 | H97: 0 | I97: =ОКРУГЛВСЕ(SUMIF('Форма по МДС 81-35.2004'!J2121:J2139,"Г",'Форма по МДС 81-35.2004'!E2121:E2139),8) -> 0 | J97: 0 | K97: =ОКРУГЛВСЕ(SUMIF('Форма по МДС 81-35.2004'!J2121:J2139,"Ж",'Форма по МДС 81-35.2004'!E2121:E2139),8) -> 0.27 | L97: 0 | M97: 0 | N97: 12.2148 | O97: 9.329184 | P97: 0 | Q97: 0 | R97: 0 | S97: 0 | T97: 0 | U97: 0 | V97: 0 | X97: 0 | Y97: 0 | Z97: 0 | AA97: 0 | AB97: 0 | AC97: 0 | AD97: 0 | AE97: 0
A98: ='Форма по МДС 81-35.2004'!A2140 -> 93. | B98: ='Форма по МДС 81-35.2004'!G2140 -> 213.44 | C98: =ROUND(СУММПРОИЗВЕСЛИ(1,'Форма по МДС 81-35.2004'!J2140:J2161,"Г",'Форма по МДС 81-35.2004'!E2140:E2161,'Форма по МДС 81-35.2004'!G2140:G2161,0),16777275) -> 44.2508 | D98: =ROUND(СУММПРОИЗВЕСЛИ(1,'Форма по МДС 81-35.2004'!J2140:J2161,"IsMash",'Форма по МДС 81-35.2004'!E2140:E2161,'Форма по МДС 81-35.2004'!G2140:G2161,0),16777275) -> 60.7805 | E98: =ROUND(СУММПРОИЗВЕСЛИ(1,'Форма по МДС 81-35.2004'!J2140:J2161,"Ж",'Форма по МДС 81-35.2004'!E2140:E2161,'Форма по МДС 81-35.2004'!G2140:G2161,0),16777275) -> 0 | F98: =ROUND(СУММПРОИЗВЕСЛИ(1,'Форма по МДС 81-35.2004'!J2140:J2161,"IsMater",'Форма по МДС 81-35.2004'!E2140:E2161,'Форма по МДС 81-35.2004'!G2140:G2161,0),16777275) -> 108.4113926 | G98: 0 | H98: 0 | I98: =ОКРУГЛВСЕ(SUMIF('Форма по МДС 81-35.2004'!J2140:J2161,"Г",'Форма по МДС 81-35.2004'!E2140:E2161),8) -> 0.44 | J98: 0 | K98: =ОКРУГЛВСЕ(SUMIF('Форма по МДС 81-35.2004'!J2140:J2161,"Ж",'Форма по МДС 81-35.2004'!E2140:E2161),8) -> 0.11 | L98: 0 | M98: 0 | N98: 24.97248 | O98: 19.0729984 | P98: 0 | Q98: 0 | R98: 0 | S98: 0 | T98: 0 | U98: 0 | V98: 0 | X98: 0 | Y98: 0 | Z98: 0 | AA98: 0 | AB98: 0 | AC98: 0 | AD98: 0 | AE98: 0

Sheet Базовые цены с учетом расхода
B1: C1 | C1: C2 | D1: C3 | E1: C4 | F1: C5 | G1: C6 | H1: VOZVR | I1: C8 | J1: C9 | K1: C10 | L1: C11 | M1: C12 | N1: NAKL | O1: PLAN | P1: NAKL_ZPR | Q1: NAKL_ZPM | R1: PLAN_ZPR | S1: PLAN_ZPM | T1: RN11 | U1: RN12 | V1: RN13 | X1: OBORUD_VSPOMOG | Y1: NAKL_PN | Z1: NAKL_VX | AA1: PLAN_PN | AB1: PLAN_VX | AC1: VTCH_PN | AD1: VTCH_VX | AE1: MR_BY_ZPR_VSPOMOG | AF1: NAKL_INC | AG1: PLAN_INC
B3: N = < ГЭСНс * 2015_s * 13_15_лр >
B4: Автомобильные дороги регионального или межмуниципального значения с допустимым уровнем содержания - норматив "К" 4 категория (ЛЕТНИЕ РАБОТЫ)
A6: ='Форма по МДС 81-35.2004'!A16 -> 1. | B6: ='Форма по МДС 81-35.2004'!N16 -> 0 | C6: =ROUND(SUMIF('Форма по МДС 81-35.2004'!J16:J35,"Г",'Форма по МДС 81-35.2004'!N16:N35),0) -> 0 | D6: =ROUND(SUMIF('Форма по МДС 81-35.2004'!J16:J35,"IsMash",'Форма по МДС 81-35.2004'!N16:N35),0) -> 0 | E6: ='Форма по МДС 81-35.2004'!N17 -> 0 | F6: =ROUND(SUMIF('Форма по МДС 81-35.2004'!J16:J35,"IsMater",'Форма по МДС 81-35.2004'!N16:N35),0) -> 0 | G6: =ROUND('Форма по МДС 81-35.2004'!F16*'Базовые цены за единицу'!G6,0) -> 0 | H6: =ROUND('Форма по МДС 81-35.2004'!F16*'Базовые цены за единицу'!H6,0) -> 0 | I6: =ОКРУГЛВСЕ(SUMIF('Форма по МДС 81-35.2004'!J16:J35,"Г",'Форма по МДС 81-35.2004'!F16:F35),8) -> 0 | J6: =ОКРУГЛВСЕ('Форма по МДС 81-35.2004'!F16*'Базовые цены за единицу'!J6,8) -> 0 | K6: =ОКРУГЛВСЕ(SUMIF('Форма по МДС 81-35.2004'!J16:J35,"Ж",'Форма по МДС 81-35.2004'!F16:F35),8) -> 0.0021 | L6: =ROUND('Форма по МДС 81-35.2004'!F16*'Базовые цены за единицу'!L6,0) -> 0 | M6: =ROUND('Форма по МДС 81-35.2004'!F16*'Базовые цены за единицу'!M6,0) -> 0 | N6: =ROUND(B6*'Форма по МДС 81-35.2004'!M30/100,0) -> 0 | O6: =ROUND((B6+N6)*'Форма по МДС 81-35.2004'!M33/100,0) -> 0 | P6: =ROUND('Форма по МДС 81-35.2004'!F16*'Базовые цены за единицу'!P6,0) -> 0 | Q6: =ROUND('Форма по МДС 81-35.2004'!F16*'Базовые цены за единицу'!Q6,0) -> 0 | R6: =ROUND('Форма по МДС 81-35.2004'!F16*'Базовые цены за единицу'!R6,0) -> 0 | S6: =ROUND('Форма по МДС 81-35.2004'!F16*'Базовые цены за единицу'!S6,0) -> 0 | T6: =ROUND('Форма по МДС 81-35.2004'!F16*'Базовые цены за единицу'!T6,0) -> 0 | U6: =ROUND('Форма по МДС 81-35.2004'!F16*'Базовые цены за единицу'!U6,0) -> 0 | V6: =ROUND('Форма по МДС 81-35.2004'!F16*'Базовые цены за единицу'!V6,0) -> 0 | X6: =ROUND('Форма по МДС 81-35.2004'!F16*'Базовые цены за единицу'!X6,0) -> 0 | Y6: =IF(Определители!I6="9",ROUND(B6*(Начисления!M6/100)*'Форма по МДС 81-35.2004'!M30/100,0),0) -> 0 | Z6: =IF(Определители!I6="9",ROUND(B6*(100-Начисления!M6/100)*'Форма по МДС 81-35.2004'!M30/100,0),0) -> 0 | AA6: =IF(Определители!I6="9",ROUND((C6+E6)*(Начисления!M6/100)*('Форма по МДС 81-35.2004'!M33/100),0),0) -> 0 | AB6: =IF(Определители!I6="9",ROUND((C6+E6)*(100-Начисления!M6/100)*('Форма по МДС 81-35.2004'!M33/100),0),0) -> 0 | AC6: =IF(Определители!I6="9",ROUND(B6*Начисления!M6/100,0),0) -> 0 | AD6: =IF(Определители!I6="9",ROUND(B6*(100-Начисления!M6)/100,0),0) -> 0 | AE6: =ROUND('Форма по МДС 81-35.2004'!F16*'Базовые цены за единицу'!AE6,0) -> 0
A7: ='Форма по МДС 81-35.2004'!A36 -> 2. | B7: ='Форма по МДС 81-35.2004'!N36 -> 2 | C7: =ROUND(SUMIF('Форма по МДС 81-35.2004'!J36:J54,"Г",'Форма по МДС 81-35.2004'!N36:N54),0) -> 0 | D7: =ROUND(SUMIF('Форма по МДС 81-35.2004'!J36:J54,"IsMash",'Форма по МДС 81-35.2004'!N36:N54),0) -> 2 | E7: ='Форма по МДС 81-35.2004'!N37 -> 0 | F7: =ROUND(SUMIF('Форма по МДС 81-35.2004'!J36:J54,"IsMater",'Форма по МДС 81-35.2004'!N36:N54),0) -> 0 | G7: =ROUND('Форма по МДС 81-35.2004'!F36*'Базовые цены за единицу'!G7,0) -> 0 | H7: =ROUND('Форма по МДС 81-35.2004'!F36*'Базовые цены за единицу'!H7,0) -> 0 | I7: =ОКРУГЛВСЕ(SUMIF('Форма по МДС 81-35.2004'!J36:J54,"Г",'Форма по МДС 81-35.2004'!F36:F54),8) -> 0 | J7: =ОКРУГЛВСЕ('Форма по МДС 81-35.2004'!F36*'Базовые цены за единицу'!J7,8) -> 0 | K7: =ОКРУГЛВСЕ(SUMIF('Форма по МДС 81-35.2004'!J36:J54,"Ж",'Форма по МДС 81-35.2004'!F36:F54),8) -> 0.0148 | L7: =ROUND('Форма по МДС 81-35.2004'!F36*'Базовые цены за единицу'!L7,0) -> 0 | M7: =ROUND('Форма по МДС 81-35.2004'!F36*'Базовые цены за единицу'!M7,0) -> 0 | N7: =ROUND(B7*'Форма по МДС 81-35.2004'!M49/100,0) -> 0 | O7: =ROUND((B7+N7)*'Форма по МДС 81-35.2004'!M52/100,0) -> 0 | P7: =ROUND('Форма по МДС 81-35.2004'!F36*'Базовые цены за единицу'!P7,0) -> 0 | Q7: =ROUND('Форма по МДС 81-35.2004'!F36*'Базовые цены за единицу'!Q7,0) -> 0 | R7: =ROUND('Форма по МДС 81-35.2004'!F36*'Базовые цены за единицу'!R7,0) -> 0 | S7: =ROUND('Форма по МДС 81-35.2004'!F36*'Базовые цены за единицу'!S7,0) -> 0 | T7: =ROUND('Форма по МДС 81-35.2004'!F36*'Базовые цены за единицу'!T7,0) -> 0 | U7: =ROUND('Форма по МДС 81-35.2004'!F36*'Базовые цены за единицу'!U7,0) -> 0 | V7: =ROUND('Форма по МДС 81-35.2004'!F36*'Базовые цены за единицу'!V7,0) -> 0 | X7: =ROUND('Форма по МДС 81-35.2004'!F36*'Базовые цены за единицу'!X7,0) -> 0 | Y7: =IF(Определители!I7="9",ROUND(B7*(Начисления!M7/100)*'Форма по МДС 81-35.2004'!M49/100,0),0) -> 0 | Z7: =IF(Определители!I7="9",ROUND(B7*(100-Начисления!M7/100)*'Форма по МДС 81-35.2004'!M49/100,0),0) -> 0 | AA7: =IF(Определители!I7="9",ROUND((C7+E7)*(Начисления!M7/100)*('Форма по МДС 81-35.2004'!M52/100),0),0) -> 0 | AB7: =IF(Определители!I7="9",ROUND((C7+E7)*(100-Начисления!M7/100)*('Форма по МДС 81-35.2004'!M52/100),0),0) -> 0 | AC7: =IF(Определители!I7="9",ROUND(B7*Начисления!M7/100,0),0) -> 0 | AD7: =IF(Определители!I7="9",ROUND(B7*(100-Начисления!M7)/100,0),0) -> 0 | AE7: =ROUND('Форма по МДС 81-35.2004'!F36*'Базовые цены за единицу'!AE7,0) -> 0
A8: ='Форма по МДС 81-35.2004'!A55 -> 3. | B8: ='Форма по МДС 81-35.2004'!N55 -> 0 | C8: =ROUND(SUMIF('Форма по МДС 81-35.2004'!J55:J76,"Г",'Форма по МДС 81-35.2004'!N55:N76),0) -> 0 | D8: =ROUND(SUMIF('Форма по МДС 81-35.2004'!J55:J76,"IsMash",'Форма по МДС 81-35.2004'!N55:N76),0) -> 0 | E8: ='Форма по МДС 81-35.2004'!N56 -> 0 | F8: =ROUND(SUMIF('Форма по МДС 81-35.2004'!J55:J76,"IsMater",'Форма по МДС 81-35.2004'!N55:N76),0) -> 0 | G8: =ROUND('Форма по МДС 81-35.2004'!F55*'Базовые цены за единицу'!G8,0) -> 0 | H8: =ROUND('Форма по МДС 81-35.2004'!F55*'Базовые цены за единицу'!H8,0) -> 0 | I8: =ОКРУГЛВСЕ(SUMIF('Форма по МДС 81-35.2004'!J55:J76,"Г",'Форма по МДС 81-35.2004'!F55:F76),8) -> 0 | J8: =ОКРУГЛВСЕ('Форма по МДС 81-35.2004'!F55*'Базовые цены за единицу'!J8,8) -> 0 | K8: =ОКРУГЛВСЕ(SUMIF('Форма по МДС 81-35.2004'!J55:J76,"Ж",'Форма по МДС 81-35.2004'!F55:F76),8) -> 0.007 | L8: =ROUND('Форма по МДС 81-35.2004'!F55*'Базовые цены за единицу'!L8,0) -> 0 | M8: =ROUND('Форма по МДС 81-35.2004'!F55*'Базовые цены за единицу'!M8,0) -> 0 | N8: =ROUND(B8*'Форма по МДС 81-35.2004'!M71/100,0) -> 0 | O8: =ROUND((B8+N8)*'Форма по МДС 81-35.2004'!M74/100,0) -> 0 | P8: =ROUND('Форма по МДС 81-35.2004'!F55*'Базовые цены за единицу'!P8,0) -> 0 | Q8: =ROUND('Форма по МДС 81-35.2004'!F55*'Базовые цены за единицу'!Q8,0) -> 0 | R8: =ROUND('Форма по МДС 81-35.2004'!F55*'Базовые цены за единицу'!R8,0) -> 0 | S8: =ROUND('Форма по МДС 81-35.2004'!F55*'Базовые цены за единицу'!S8,0) -> 0 | T8: =ROUND('Форма по МДС 81-35.2004'!F55*'Базовые цены за единицу'!T8,0) -> 0 | U8: =ROUND('Форма по МДС 81-35.2004'!F55*'Базовые цены за единицу'!U8,0) -> 0 | V8: =ROUND('Форма по МДС 81-35.2004'!F55*'Базовые цены за единицу'!V8,0) -> 0 | X8: =ROUND('Форма по МДС 81-35.2004'!F55*'Базовые цены за единицу'!X8,0) -> 0 | Y8: =IF(Определители!I8="9",ROUND(B8*(Начисления!M8/100)*'Форма по МДС 81-35.2004'!M71/100,0),0) -> 0 | Z8: =IF(Определители!I8="9",ROUND(B8*(100-Начисления!M8/100)*'Форма по МДС 81-35.2004'!M71/100,0),0) -> 0 | AA8: =IF(Определители!I8="9",ROUND((C8+E8)*(Начисления!M8/100)*('Форма по МДС 81-35.2004'!M74/100),0),0) -> 0 | AB8: =IF(Определители!I8="9",ROUND((C8+E8)*(100-Начисления!M8/100)*('Форма по МДС 81-35.2004'!M74/100),0),0) -> 0 | AC8: =IF(Определители!I8="9",ROUND(B8*Начисления!M8/100,0),0) -> 0 | AD8: =IF(Определители!I8="9",ROUND(B8*(100-Начисления!M8)/100,0),0) -> 0 | AE8: =ROUND('Форма по МДС 81-35.2004'!F55*'Базовые цены за единицу'!AE8,0) -> 0
A9: ='Форма по МДС 81-35.2004'!A77 -> 4. | B9: ='Форма по МДС 81-35.2004'!N77 -> 57 | C9: =ROUND(SUMIF('Форма по МДС 81-35.2004'!J77:J95,"Г",'Форма по МДС 81-35.2004'!N77:N95),0) -> 0 | D9: =ROUND(SUMIF('Форма по МДС 81-35.2004'!J77:J95,"IsMash",'Форма по МДС 81-35.2004'!N77:N95),0) -> 57 | E9: ='Форма по МДС 81-35.2004'!N78 -> 6 | F9: =ROUND(SUMIF('Форма по МДС 81-35.2004'!J77:J95,"IsMater",'Форма по МДС 81-35.2004'!N77:N95),0) -> 0 | G9: =ROUND('Форма по МДС 81-35.2004'!F77*'Базовые цены за единицу'!G9,0) -> 0 | H9: =ROUND('Форма по МДС 81-35.2004'!F77*'Базовые цены за единицу'!H9,0) -> 0 | I9: =ОКРУГЛВСЕ(SUMIF('Форма по МДС 81-35.2004'!J77:J95,"Г",'Форма по МДС 81-35.2004'!F77:F95),8) -> 0 | J9: =ОКРУГЛВСЕ('Форма по МДС 81-35.2004'!F77*'Базовые цены за единицу'!J9,8) -> 0 | K9: =ОКРУГЛВСЕ(SUMIF('Форма по МДС 81-35.2004'!J77:J95,"Ж",'Форма по МДС 81-35.2004'!F77:F95),8) -> 0.46 | L9: =ROUND('Форма по МДС 81-35.2004'!F77*'Базовые цены за единицу'!L9,0) -> 0 | M9: =ROUND('Форма по МДС 81-35.2004'!F77*'Базовые цены за единицу'!M9,0) -> 0 | N9: =ROUND(B9*'Форма по МДС 81-35.2004'!M90/100,0) -> 7 | O9: =ROUND((B9+N9)*'Форма по МДС 81-35.2004'!M93/100,0) -> 5 | P9: =ROUND('Форма по МДС 81-35.2004'!F77*'Базовые цены за единицу'!P9,0) -> 0 | Q9: =ROUND('Форма по МДС 81-35.2004'!F77*'Базовые цены за единицу'!Q9,0) -> 0 | R9: =ROUND('Форма по МДС 81-35.2004'!F77*'Базовые цены за единицу'!R9,0) -> 0 | S9: =ROUND('Форма по МДС 81-35.2004'!F77*'Базовые цены за единицу'!S9,0) -> 0 | T9: =ROUND('Форма по МДС 81-35.2004'!F77*'Базовые цены за единицу'!T9,0) -> 0 | U9: =ROUND('Форма по МДС 81-35.2004'!F77*'Базовые цены за единицу'!U9,0) -> 0 | V9: =ROUND('Форма по МДС 81-35.2004'!F77*'Базовые цены за единицу'!V9,0) -> 0 | X9: =ROUND('Форма по МДС 81-35.2004'!F77*'Базовые цены за единицу'!X9,0) -> 0 | Y9: =IF(Определители!I9="9",ROUND(B9*(Начисления!M9/100)*'Форма по МДС 81-35.2004'!M90/100,0),0) -> 0 | Z9: =IF(Определители!I9="9",ROUND(B9*(100-Начисления!M9/100)*'Форма по МДС 81-35.2004'!M90/100,0),0) -> 0 | AA9: =IF(Определители!I9="9",ROUND((C9+E9)*(Начисления!M9/100)*('Форма по МДС 81-35.2004'!M93/100),0),0) -> 0 | AB9: =IF(Определители!I9="9",ROUND((C9+E9)*(100-Начисления!M9/100)*('Форма по МДС 81-35.2004'!M93/100),0),0) -> 0 | AC9: =IF(Определители!I9="9",ROUND(B9*Начисления!M9/100,0),0) -> 0 | AD9: =IF(Определители!I9="9",ROUND(B9*(100-Начисления!M9)/100,0),0) -> 0 | AE9: =ROUND('Форма по МДС 81-35.2004'!F77*'Базовые цены за единицу'!AE9,0) -> 0
